{"text_format":"1","workbook":"xlsx","n_sheets":3,"sheets":["Analyses_demandées","Recherche","Outlook"],"not_rendered":{"charts":0,"images":1,"macros":1,"external_links":0,"defined_names":4,"comments":0,"pivot_tables":0},"unopened":[],"bounds":{"document_bytes":16777216,"sheet_cells":100000,"rows_first":2000,"rows_last":500,"rows_between":2000,"halvings":0,"cell_chars":16384,"cell_head_chars":4096},"cells_cut":0,"cells_raw":0,"read":"whole","date_system":"1900"}

{"sheet":"Analyses_demandées","index":0,"n_rows":45,"n_cols":13,"rows_kept":45,"cut":false,"hidden":false,"merged":[[2,1,2,12],[4,5,4,6],[40,4,40,9],[1,11,1,12]]}
[null,"Annexe - Demande d'analyse pour projet de recherche",null,null,null,"N° projet"]
[null,null,null,null,null,"Addendum","Oui/Non",null,null,null,null,"                        DMLP_03_ANN_002 v4.0"]
[null,"Merci de compléter cette annexe en sélectionnant les analyses souhaitées dans la colonne B \"Analyse\" ci-dessous. Les 3 premières lettres de l'analyse souhaitée peuvent être saisies dans la case pour affiner la recherche.                                          \nIl y a également, le catalogue complet des analyses qui est disponible dans l'onglet \"Recherche\" (ctrl+f pour effectuer une recherche). Depuis là, le nom de l'analyse peut être copier et coller dans la colonne B \"Analyse\".\nLes colonnes \"Nb échantillons\", \"type d'échantillon\" et \"type de traitement analytique\" doivent également être complétées.\nLes analyses externalisées ou sous-traitées ne peuvent pas faire partie du budget d'un projet d'étude.\n\nCette liste correctement et complétement remplies assure un traitement de la demande plus rapide."]
[]
[null,"Type de financement de l'étude:       ","Autre financement (cf formulaire de demande)",null,"Rabais octroyé:",0.1]
[]
[null,"Analyse","Domaine","Nb échantillons","Code tarification Molis","Nbre de points LA","ajout suffixe C/non C\n4707.10 (1.80) ou\n4707.20 (0.90)","Prix proposé","Total proposé","CGRA/B créditeur labo","Type d'échantillon","Type de traitement analytique ","Commentaire"]
[null,null,{"$f":"IF(ISNA(VLOOKUP($B8,Recherche!A:E,5,FALSE)),\" \",VLOOKUP($B8,Recherche!A:E,5,FALSE))","v":" "},null,null,null,null,{"$f":"ROUND(IF($F$5=10%,(($F8+$G8)*0.9),($F8+$G8)),1)","v":0},{"$f":"D8*H8","v":0}]
[null,null,{"$f":"IF(ISNA(VLOOKUP($B9,Recherche!A:E,5,FALSE)),\" \",VLOOKUP($B9,Recherche!A:E,5,FALSE))","v":" "},null,null,null,null,{"$f":"ROUND(IF($F$5=10%,(($F9+$G9)*0.9),($F9+$G9)),1)","v":0},{"$f":"D9*H9","v":0}]
[null,null,{"$f":"IF(ISNA(VLOOKUP($B10,Recherche!A:E,5,FALSE)),\" \",VLOOKUP($B10,Recherche!A:E,5,FALSE))","v":" "},null,null,null,null,0,0]
[null,null,{"$f":"IF(ISNA(VLOOKUP($B11,Recherche!A:E,5,FALSE)),\" \",VLOOKUP($B11,Recherche!A:E,5,FALSE))","v":" "},null,null,null,null,0,0]
[null,null,{"$f":"IF(ISNA(VLOOKUP($B12,Recherche!A:E,5,FALSE)),\" \",VLOOKUP($B12,Recherche!A:E,5,FALSE))","v":" "},null,null,null,null,0,0]
[null,null,{"$f":"IF(ISNA(VLOOKUP($B13,Recherche!A:E,5,FALSE)),\" \",VLOOKUP($B13,Recherche!A:E,5,FALSE))","v":" "},null,null,null,null,0,0]
[null,null,{"$f":"IF(ISNA(VLOOKUP($B14,Recherche!A:E,5,FALSE)),\" \",VLOOKUP($B14,Recherche!A:E,5,FALSE))","v":" "},null,null,null,null,0,0]
[null,null,{"$f":"IF(ISNA(VLOOKUP($B15,Recherche!A:E,5,FALSE)),\" \",VLOOKUP($B15,Recherche!A:E,5,FALSE))","v":" "},null,null,null,null,0,0]
[null,null,null,null,null,null,null,0,0]
[null,null,{"$f":"IF(ISNA(VLOOKUP($B17,Recherche!A:E,5,FALSE)),\" \",VLOOKUP($B17,Recherche!A:E,5,FALSE))","v":" "},null,null,null,null,0,0]
[null,null,{"$f":"IF(ISNA(VLOOKUP($B18,Recherche!A:E,5,FALSE)),\" \",VLOOKUP($B18,Recherche!A:E,5,FALSE))","v":" "},null,null,null,null,0,0]
[null,null,{"$f":"IF(ISNA(VLOOKUP($B19,Recherche!A:E,5,FALSE)),\" \",VLOOKUP($B19,Recherche!A:E,5,FALSE))","v":" "},null,null,null,null,0,0]
[null,null,{"$f":"IF(ISNA(VLOOKUP($B20,Recherche!A:E,5,FALSE)),\" \",VLOOKUP($B20,Recherche!A:E,5,FALSE))","v":" "},null,null,null,null,0,0]
[null,null,{"$f":"IF(ISNA(VLOOKUP($B21,Recherche!A:E,5,FALSE)),\" \",VLOOKUP($B21,Recherche!A:E,5,FALSE))","v":" "},null,null,null,null,0,0]
[null,null,{"$f":"IF(ISNA(VLOOKUP($B22,Recherche!A:E,5,FALSE)),\" \",VLOOKUP($B22,Recherche!A:E,5,FALSE))","v":" "},null,null,null,null,0,0]
[null,null,{"$f":"IF(ISNA(VLOOKUP($B23,Recherche!A:E,5,FALSE)),\" \",VLOOKUP($B23,Recherche!A:E,5,FALSE))","v":" "},null,null,null,null,0,0]
[null,null,{"$f":"IF(ISNA(VLOOKUP($B25,Recherche!A:E,5,FALSE)),\" \",VLOOKUP($B25,Recherche!A:E,5,FALSE))","v":" "},null,null,null,null,0,0]
[null,null,null,null,null,null,null,0,0]
[null,null,{"$f":"IF(ISNA(VLOOKUP($B26,Recherche!A:E,5,FALSE)),\" \",VLOOKUP($B26,Recherche!A:E,5,FALSE))","v":" "},null,null,null,null,0,0]
[null,null,{"$f":"IF(ISNA(VLOOKUP($B27,Recherche!A:E,5,FALSE)),\" \",VLOOKUP($B27,Recherche!A:E,5,FALSE))","v":" "},null,null,null,null,0,0]
[null,null,{"$f":"IF(ISNA(VLOOKUP($B28,Recherche!A:E,5,FALSE)),\" \",VLOOKUP($B28,Recherche!A:E,5,FALSE))","v":" "},null,null,null,null,0,0]
[null,null,{"$f":"IF(ISNA(VLOOKUP($B29,Recherche!A:E,5,FALSE)),\" \",VLOOKUP($B29,Recherche!A:E,5,FALSE))","v":" "},null,null,null,null,0,0]
[null,null,{"$f":"IF(ISNA(VLOOKUP($B30,Recherche!A:E,5,FALSE)),\" \",VLOOKUP($B30,Recherche!A:E,5,FALSE))","v":" "},null,null,null,null,0,0]
[null,null,{"$f":"IF(ISNA(VLOOKUP($B31,Recherche!A:E,5,FALSE)),\" \",VLOOKUP($B31,Recherche!A:E,5,FALSE))","v":" "},null,null,null,null,0,0]
[null,null,{"$f":"IF(ISNA(VLOOKUP($B32,Recherche!A:E,5,FALSE)),\" \",VLOOKUP($B32,Recherche!A:E,5,FALSE))","v":" "},null,null,null,null,0,0]
[null,null,{"$f":"IF(ISNA(VLOOKUP($B33,Recherche!A:E,5,FALSE)),\" \",VLOOKUP($B33,Recherche!A:E,5,FALSE))","v":" "},null,null,null,null,0,0]
[null,null,{"$f":"IF(ISNA(VLOOKUP($B34,Recherche!A:E,5,FALSE)),\" \",VLOOKUP($B34,Recherche!A:E,5,FALSE))","v":" "},null,null,null,null,0,0]
[null,null,{"$f":"IF(ISNA(VLOOKUP($B35,Recherche!A:E,5,FALSE)),\" \",VLOOKUP($B35,Recherche!A:E,5,FALSE))","v":" "},null,null,null,null,0,0]
[null,null,{"$f":"IF(ISNA(VLOOKUP($B36,Recherche!A:E,5,FALSE)),\" \",VLOOKUP($B36,Recherche!A:E,5,FALSE))","v":" "},null,null,null,null,0,0]
[null,null,null,null,null,null,null,"Total:",{"$f":"SUM(I8:I36)","v":0}]
[null,null,null,null,null,null,null,"Taxe administrative:",{"$f":"ROUND(I37*0.05,0)","v":0}]
[]
[]
[null,null,null,null,"Par sa signature le demandeur accepte les tarifs proposés ci-dessus imputé sur le CGRA/B: _________________, ainsi que les  conditions générales disponible sur le site www.chuv.ch/fr/laboratoires."]
[]
[null,null,null,null,null,"Date:"]
[]
[null,null,null,null,"Signature du demandeur:"]

{"sheet":"Recherche","index":1,"n_rows":1786,"n_cols":10,"rows_kept":1786,"cut":false,"hidden":false,"merged":[]}
["Pour effectuer une recherche: Ctrl+f, indiquer le terme recherché et reporter le nom de l'analyse (colonne A) dans l'onglet Analyses_demandées sous Analyse (colonne B)"]
[]
["Nom de l'analyse","Nom fiche","Mots clés","Sous-titre","Groupe","Attention","But de l'analyse","Indication diagnostique","Préparation du patient","Synonyme"]
["5-HIAA - Urine 24 h","5-hiaa","","Urine 24 h","Catécholamines","","","Syndrome carcinoïde","<p>72h avant et pendant la collecte, ne pas absorber de café, thé, chocolat, banane, noix, amandes, ananas, aubergine, kiwi, avocat, prune, tomate et alcool.<br /></p>","Acide 5-hydroxy-indole acétique, HIAA-5, hydroxy-indole-acétate-5, 5-hydroxy-indole-acétate"]
["5-HIAA - Sang","5-hiaa-1","","Sang","Catécholamines","","","Syndrome carcinoïde<br />","<p>24h avant le prélèvement, ne pas absorber de noix, banane, chocolat, prune, avocat, aubergine, tomate, ananas, kiwi, plantain, caféine (café, thé), nicotine, alcool<br /><br /></p>\r\n<p>Etre à jeûn<br /></p>","5-HIAA, Acide 5-hydroxy-indole acétique, HIAA-5, hydroxyindole acetate-5, 5-hydroxyindole acétate"]
["6-Mercaptopurine (6-TG, 6-MMP) - Sang","6-mercaptopurine-6-tg-6-mmp","Immunosupresseur, Anticancéreux","Sang","Pharmacologie","","<p>Dosage du taux sanguin (TDM) de ﻿6-Mercaptopurine: 6-TG (6-Thioguanine) et 6-MMP (6-Methylmercaptopurine). ﻿<br /></p>","Sur avis du spécialiste. L’interprétation clinique (TDM) du dosage n’est actuellement pas validée pour toutes les indications thérapeutiques.","","Puri-Nethol, Xaluprine\r\n6-MP, 6-MMP, 6-Methylmercaptopurine, 6-TG, 6-Thioguanine, Azathioprine, 6-TGN, 6-Thioguanine nucleotide, 6tg, 6mmp, 6tgn"]
["Abacavir - Sang","abacavir","Antirétroviraux, anti-HIV, Antirétroviral, NRTI, analogue nucléosidique et nucléotidique","Sang","Pharmacologie","","<p>Dosage et interprétation pharmacocinétique de taux sanguin d'abacavir (absence d'intervalle de référence, évaluation seulement de la plausibilité du taux)</p>","<p>Suivi thérapeutique, réponse insatisfaisante, suspicion de toxicité, suspicion d'interaction médicamenteuse, doute sur la compliance, grossesse, étude</p>","","Ziagen®, dans Triumeq®, dans Kivexa®, dans Trizivir®"]
["Abemaciclib - Sang","abemaciclib","Anticancéreux ciblés, TKI, inhibiteur tirosine kinase, inhibiteur protéine kinase, PKI","Sang","Pharmacologie","","Dosage de taux sanguin d'abemaciclib<br />","Sur avis du spécialiste. L’interprétation clinique (TDM) ou pharmacocinétique des dosage n’est actuellement pas validée.","","Verzenios ®"]
["Acanthamoeba spp PCR - Frottis œil","acanthamoeba-spp-pcr","","Frottis œil","Microbio moléculaire","","Recherche d'amibes Acanthamoeba spp dans les prélèvement oculaires","","",""]
["Acanthamoeba spp PCR - Liquide humeur aqueuse","acanthamoeba-spp-pcr-1","","Liquide humeur aqueuse","Microbio moléculaire","","Recherche d'amibes Acanthamoeba spp dans les prélèvement oculaires","","",""]
["Acanthamoeba spp PCR - Liquide humeur vitrée","acanthamoeba-spp-pcr-2","","Liquide humeur vitrée","Microbio moléculaire","","Recherche d'amibes Acanthamoeba spp dans les prélèvement oculaires","","",""]
["Acanthamoeba spp PCR - Liquide verre de contact","acanthamoeba-spp-pcr-3","","Liquide verre de contact","Microbio moléculaire","","Recherche d'amibes Acanthamoeba spp dans les prélèvement oculaires","","",""]
["Acanthamoeba spp PCR - Sécrétions conjonctivales","acanthamoeba-spp-pcr-4","","Sécrétions conjonctivales","Microbio moléculaire","","Recherche d'amibes Acanthamoeba spp dans les prélèvement oculaires","","",""]
["Acanthamoeba spp PCR - Biopsie","acanthamoeba-spp-pcr-5","","Biopsie","Microbio moléculaire","","Recherche d'amibes Acanthamoeba spp dans les prélèvement oculaires","","",""]
["Aciclovir - Sang","aciclovir","Antiviraux, antiviral","Sang","Pharmacologie","","Dosage et interprétation pharmacologique (TDM) de taux sanguin d'aciclovir (intervalle de référence disponible)","Suivi thérapeutique, réponse insatisfaisante, suspicion de toxicité, suspicion d'interaction médicamenteuse, doute sur la compliance, grossesse, étude","","Zovirax®"]
["Acide aminé spécifique - Urine","acide-amine-specifique","cystine, lysine, arginine, ornithine,  IEM, EIM, erreurs innées du métabolisme, Inborn Errors of Metabolism","Urine","Chimie clinique","","","","","Acide aminé, acides aminés, amines (acides…),aminoacides, arginine, cystine, lysine, ornithine"]
["Acide aminé spécifique - Sang","acide-amine-specifique-1","phénylalanine, tyrosine, citrulline, arginine, glutamine, méthionine, cystine, homocystine, leucine, isoleucine, valine, alloisoleucine,tryptophane, CHD, cystine-homocystine disulfide,  IEM, EIM, erreurs innées du métabolisme, Inborn Errors of Metabolism","Sang","Chimie clinique","","","","Patient à jeun (>4h après le dernier repas)","Acide aminé, Acides aminés, aminés (acides …) Aminoacides"]
["Acide aminé spécifique - LCR","acide-amine-specifique-2","sérine, glycine","LCR","Chimie clinique","","","Erreurs innées du métabolisme des acides aminés","","amino acid, aminoacids, amines"]
["acide beta-hydroxybutyrique - Sang","acide-beta-hydroxybutyrique","","Sang","Chimie clinique","","Screening urgent de l'acide 3-hydroxybutyrique. A ne pas confondre avec les corps cétoniques quantitatifs ni les demandes d'acide gamma-hydroxybutyrique.","Dans les cas de déficit graves de la beta-oxydation et des diabètes décompensés","Paient à jeun (&gt; 4 h après le dernier repas)","beta hydroxybutyrate, acide 3-hydroxybutyrique, acide 3-hydroxy butyrique, BHB, 3-hydroxybutyrate, beta-hydroxy butyrate, 3-hydroxy butyrate"]
["Acide gamma hydro butyrique - Sang","acide-gamma-hydro-butyrique","","Sang","Toxicologie","","Dosage demandé à des fins légales <br />La manupulation de ces kits est très importante d'un point de vue légal. Lire et suivre attentivement les instructions se touvant à l'intérieur du kit","Le kit peut-être obtenu auprès du laboratoire de toxicologie et chimie forensique","","Drogue du violeur, gamma hydroxybutyrate, GHB"]
["Acide gamma hydro butyrique - Urine","acide-gamma-hydro-butyrique-1","","Urine","Toxicologie","","Dosage demandé à des fins légales <br />La manupulation de ces kits est très importante d'un point de vue légal. Lire et suivre attentivement les instructions se touvant à l'intérieur du kit","Le kit peut-être obtenu auprès du laboratoire de toxicologie et chimie forensique","","Drogue du violeur, gamma hydroxybutyrate, GHB"]
["Acide homovanillique - Urine 24 h","acide-homovanillique","","Urine 24 h","Catécholamines","","","<p>Neuroblastome</p>","<p>J-3 arrêt médicaments suivants, selon OM: Adelphan, Aldomet, artérénol, dopamine, isoprénaline, Isuprel, Novadral.﻿</p>\r\n<p>Aucune préparation pour d'autres examens (lavement, urographie,…).</p>\r\n<p>Eviter les situations de stress.</p>\r\n<p>24h avant et pendant la collecte, ne pas absorber de café, thé, chocolat, banane, noix, amandes, ananas, aubergine, kiwi, avocat, prune, tomate et alcool.</p>","HMA, HVA"]
["Acide homovanillique - Spot Urinaire - Neuroblastome","acide-homovanillique-1","","Spot Urinaire - Neuroblastome","Catécholamines","","","Neuroblastome","<p>J-3 arrêt médicaments suivants, selon OM: Adelphan, Aldomet, artérénol, dopamine, isoprénaline, Isuprel, Novadral.</p>\r\n<p>Aucune préparation pour d'autres examens (lavement, urographie,…).<br /></p>\r\n<p>Eviter les situations de stress.<br /></p>\r\n<p>24h avant et pendant la collecte, ne pas absorber de café, thé, chocolat, banane, noix, amandes, ananas, aubergine, kiwi, avocat, prune, tomate et alcool.</p>","HMA, HVA"]
["acide p-aminosalicylique (PAS) - Sang","acide-p-aminosalicylique-pas","tuberculose, tuberculeux, anti-tuberculeux, Antibiotique, MDR, XDR,  PAS,  P-aminosalicylic acid","Sang","Pharmacologie","","Dosage et interprétation pharmacocinétique de taux sanguin de l'acide p-aminosalicylique","<p>Sur avis du spécialiste. L’interprétation clinique (TDM) du dosage n’est actuellement pas validée. </p>\r\n<p><br /></p>","","Granupas (EMA)"]
["Acide vanylmandélique - Urine 24 h","acide-vanylmandelique","","Urine 24 h","Catécholamines","","","<p>Neuroblastomes</p>","<p>J-3 arrêt médicaments suivants, selon OM: Adelphan, Aldomet, artérénol, dopamine, isoprénaline, Isuprel, Novadral.</p>\r\n<p>Aucune préparation pour d'autres examens (lavement, urographie,…).</p>\r\n<p>Eviter les situations de stress.</p>\r\n<p>24h avant et pendant la collecte, ne pas absorber de café, thé, chocolat, banane, noix, amandes, ananas, aubergine, kiwi, avocat, prune, tomate et alcool.</p>","AVM, VMA, vanylmandélate, vanilmandelic acid, vanilmandélate, vanilmandélique"]
["Acide vanylmandélique - Spot Urinaire - Neuroblastome","acide-vanylmandelique-1","","Spot Urinaire - Neuroblastome","Catécholamines","","","Neuroblastome","<p>J-3 arrêt médicaments suivants, selon OM: Adelphan, Aldomet, artérénol, dopamine, isoprénaline, Isuprel, Novadral.</p>\r\n<p>Aucune préparation pour d'autres examens (lavement, urographie,…).<br /></p>\r\n<p>Eviter les situations de stress.<br /></p>\r\n<p>24h avant et pendant la collecte, ne pas absorber de café, thé, chocolat, banane, noix, amandes, ananas, aubergine, kiwi, avocat, prune, tomate et alcool.</p>","AVM, VMA, vanylmandélate, vanilmandelic acid, vanilmandélate, vanilmandélique"]
["Acides aminés - Urine","acides-amines","cystine, lysine, ornithine, arginine,  IEM, EIM, erreurs innées du métabolisme, Inborn Errors of Metabolism","Urine","Chimie clinique","","","","Patient à jeun (&gt;4h après le dernier repas)","Aminoacides, aminoacids, amines, "]
["Acides aminés - LCR","acides-amines-1","IEM, EIM, erreurs innées du métabolisme, Inborn Errors of Metabolism","LCR","Chimie clinique","","","Erreurs innées du métabolisme des acides aminés","","Amines (acides…), aminoacids, aminoacides"]
["Acides aminés - Sang","acides-amines-2","phenylalanine, phénylalanine, glutamine, tryptophane, citrulline, tyrosine, leucine, isoleucine, méthionine, cystine, IEM, EIM, erreurs innées du métabolisme, Inborn Errors of Metabolism","Sang","Chimie clinique","","","","Patient à jeun (>4h après le dernier repas)","Acide aminé, acides aminés, amines (acides…),aminoacides, aminoacids, profil acides aminés"]
["Acides aminés - Urine 24h","acides-amines-3","IEM, EIM, erreurs innées du métabolisme, Inborn Errors of Metabolism","Urine 24h","Chimie clinique","","","","","Acide aminé, acides aminés, amines (acides…),aminoacides"]
["Acides gras libres (NEFA) - Sang","acides-gras-libres-nefa","","Sang","Chimie clinique","","","","Patient à jeûn (12 heures).","Acides gras non estérifiés, free fatty acids, non esterified fatty acids, NEFA"]
["Acides organiques - Urine","acides-organiques","Acide méthylmalonique, méthylmalonate, méthylmalonique acid, MMA, profil acides organiques, mévalonate,, IEM, EIM, erreurs innées du métabolisme, Inborn Errors of Metabolism","Urine","Chimie clinique","","","","","organic acids"]
["Acides organiques - LCR","acides-organiques-1","","LCR","Chimie clinique","","","","","Acide organique, acides organiques"]
["ACTH (corticotrophine) - Sang","acth-corticotrophine","corticotropine, adrénocorticotropine","Sang","Chimie clinique","Acheminer immédiatement le tube sur la glace","","","","Adrénocorticotrophine, corticostimuline, hormone corticotrope"]
["Actinomyces - Culture - Abcès cervical","actinomyces-culture-4","pus","Abcès cervical","Microbiologie","","Recherche par culture d'<em>Actinomyces </em>dans l'abcès cervical.","","",""]
["Actinomyces - Culture - Abcès anal, para-anal","actinomyces-culture-5","pus","Abcès anal, para-anal","Microbiologie","","Recherche par culture d'<em>Actinomyces </em>dans l'abcès anal, para-anal.","","",""]
["Actinomyces - Culture - Abcès paroi abdominale","actinomyces-culture-6","pus","Abcès paroi abdominale","Microbiologie","","Recherche par culture d'<em>Actinomyces </em>dans l'abcès de paroi abdominale.","","",""]
["Actinomyces - Culture - Abcès du poumon","actinomyces-culture-7","pus","Abcès du poumon","Microbiologie","","Recherche par culture d'<em>Actinomyces </em>dans l'abcès pulmonaire.","","",""]
["Actinomyces - Culture - Abcès du sein","actinomyces-culture-8","pus","Abcès du sein","Microbiologie","","Recherche par culture d'<em>Actinomyces </em>dans l'abcès du sein.","","",""]
["Actinomyces - Culture - Abcès","actinomyces-culture-9","pus","Abcès","Microbiologie","","Recherche par culture d'<em>Actinomyces </em>dans les échantillons d'abcès.","","",""]
["Actinomyces - Culture - Frottis plaies profondes non opératoires","actinomyces-culture-10","pus","Frottis plaies profondes non opératoires","Microbiologie","","Recherche par culture d'<em>Actinomyces </em>dans les frottis de plaies profondes non opératoire.","","",""]
["Actinomyces - Culture - Liquide de douglas","actinomyces-culture-11","","Liquide de douglas","Microbiologie","","Recherche par culture d'<em>Actinomyces</em> dans le liquide de douglas.","","",""]
["Actinomyces - Culture - Liquide pleural","actinomyces-culture-12","","Liquide pleural","Microbiologie","","Recherche par culture d'<em>Actinomyces</em> dans le liquide pleural.","","",""]
["Actinomyces - Culture - Liquide et ponction de cavité normalement stérile (préciser la nature de l'échantillon)","actinomyces-culture-13","cytoponction","Liquide et ponction de cavité normalement stérile (préciser la nature de l'échantillon)","Microbiologie","","Recherche par culture d'<em>Actinomyces</em> dans un liquide, une ponction ou cytoponction de cavité normalement stérile.","","",""]
["Actinomyces - Culture - Tissu (biopsie) d'anévrisme","actinomyces-culture-14","fragment","Tissu (biopsie) d'anévrisme","Microbiologie","","Recherche par culture d'<em>Actinomyces</em> dans du tissu (biopsie) d'anévrisme.","","",""]
["Actinomyces - Culture - Tissu (biopsie) cérébral","actinomyces-culture-15","fragment","Tissu (biopsie) cérébral","Microbiologie","","Recherche par culture d'<em>Actinomyces</em> dans du tissu (biopsie) cérébral.","","",""]
["Actinomyces - Culture - Tissu (biopsie) de ganglion","actinomyces-culture-16","fragment","Tissu (biopsie) de ganglion","Microbiologie","","Recherche par culture d'<em>Actinomyces</em> dans du tissu (biopsie) de ganglion.","","",""]
["Actinomyces - Culture - Tissu (biopsie) de plèvre ou poumon","actinomyces-culture-17","fragment","Tissu (biopsie) de plèvre ou poumon","Microbiologie","","Recherche par culture d'<em>Actinomyces</em> dans du tissu (biopsie) de plèvre ou de poumon.","","",""]
["Actinomyces - Culture - Tissu ou biopsie (spécifier le site anatomique)","actinomyces-culture-18","fragment","Tissu ou biopsie (spécifier le site anatomique)","Microbiologie","","Recherche par culture d'<em>Actinomyces</em> dans du tissu ou biopsie.","","",""]
["Actinomyces - Culture - Abcès cérébral","actinomyces-culture-1","pus","Abcès cérébral","Microbiologie","","Recherche par culture d'<em>Actinomyces </em>dans l'abcès cérébral.","","",""]
["Actinomyces - Culture - Abcès dentaire","actinomyces-culture","dent","Abcès dentaire","Microbiologie","","Recherche par culture d'<em>Actinomyces </em>dans les échantillons d'abcès dentaires.","","",""]
["Actinomyces - Culture - Lavage broncho-alvéolaire (LBA)","actinomyces-culture-2","Sécrétions pulmonaires, respiratoires","Lavage broncho-alvéolaire (LBA)","Microbiologie","","Recherche par culture d'<em>Actinomyces</em> dans les échantillons de lavage broncho-alvéolaire (LBA).","","",""]
["Actinomyces - Culture - Aspirations bronchiques, Sécrétions endotrachéales","actinomyces-culture-3","Sécrétions pulmonaires, respiratoires","Aspirations bronchiques, Sécrétions endotrachéales","Microbiologie","","Recherche par culture d'<em>Actinomyces</em>﻿ dans les aspirations bronchiques et sécrétions endotrachéales.","","",""]
["Activité anti-facteur IIa - ","activite-anti-facteur-iia","anti II, anti-II, anti IIa, anti-IIa, anti 2, anti 2a, 2a, Argatroban, argatra, Dabigatran, Pradaxa, Bivalirudine, Angiox","","Hématologie - Hémostase spéciale","","<p>Dosage de l’activité anti IIa pour le suivi des patients sous Argatroban (Argatra®), Dabigatran (Pradaxa®) ou Bivalirudine (Angiox®)</p>\r\n<p>Prestations simultanées:<br /> PTT, TT, D-dimères</p>","","","Activité anti IIa, activité anti 2a"]
["Activité anti-facteur Xa - ","activite-anti-facteur-xa","anti X, anti Xa, Anti 10, anti 10a, Xa, HBPM, Fragmine, Fraxiparine, Clexane, héparine, héparinémie, Liquémine, Orgaran, danaparoide, Arixtra, fondaparinux, Xarelto, Rivaroxaban, Eliquis, apixaban, Lixiana, edoxaban, anticoagulant, anticoagulation","","Hématologie générale 24/7","","<p>Dosage de l’activité anti Xa pour le suivi des patients sous Héparine standard, Héparine de bas poids moléculaire (Clexane®, Fraxiparine®, Fragmine®, Danaparoïde (Orgaran®), Fondaparinux (Arixtra®), Rivaroxaban (Xarelto®), Apixaban (Eliquis®) ou Edoxaban (Lixiana®).</p>\r\n<p>Attention&nbsp;: en présence de 2 molécules anti-Xa, le test de laboratoire ne permet pas de les différencier, elles sont cumulées dans le résultat rendu.</p>\r\n<p>Prestations simultanées = PTT et TT selon l’anticoagulant.</p>","","<p>Important pour HBPM (Fraxiparine, Clexane et Arixtra):</p>\r\n<p>La prise de sang de contrôle doit être faite entre 3 et 5 heures après l'injection<br /> Si injection sous cutanée (Orgaran ou héparine standard) prise de sang à mi-temps entre 2 injections</p>","Activité anti Xa, activité anti facteur X activé"]
["Activité NADPH Oxydase (DHR) - ","activite-nadph-oxydase-dhr","","","Immunologie et allergie","","","Infections bactériennes et/ou fongiques à répétition, recherche de dysfonctionnement granulocytaire<br />","",""]
["Acyl-carnitines - Sang complet","acyl-carnitines","MCAD, VLCAD, LCHAD, SCAD, GAI, glutaric aciduria, acidurie glutarique,  IEM, EIM, erreurs innées du métabolisme, Inborn Errors of Metabolism","Sang complet","Chimie clinique","","","Analyse réalisée comme dépistage séléctif des maladies métaboliques (déficit beta-oxydation y compris)","","Acyl, acyl-carnitine, acylcarnitine, acycarnitines, carnitine, carnitines"]
["Acyl-carnitines (profil) - Sang","acyl-carnitines-profil","MCAD, VLCAD, SCAD, LCHAD, GAI, Glutaric aciduria, acidurie glutarique, IEM, EIM, erreurs innées du métabolisme, Inborn Errors of Metabolism","Sang","Chimie clinique","","","Analyse réalisée comme dépistage sélectif des maladies métaboliques (déficit beta-oxydation y compris)","","Acyl, acyl-carnitine, acylcarnitine, acycarnitines, carnitine, carnitines, profil acylcarnitines"]
["Adalimumab - Taux résiduel du médicament, détection d'anticorps anti-médicaments et TNFalpha","adalimumab","","Taux résiduel du médicament, détection d'anticorps anti-médicaments et TNFalpha","Immunologie et allergie","","Suivi thérapeutique","","","Humira, médicaments biologiques"]
["Adénosine déaminase - Liquide pleural","adenosine-deaminase","Liquide pleural, liquide d'ascite, LCR","Liquide pleural","Chimie clinique","","","","","ADA, adénosine aminohydrolase"]
["Adenovirus antigènes (test rapide) - Selles","adenovirus-antigenes-test-rapide","","Selles","Microbiologie","","Mise en évidence d'Adenovirus dans les selles par test rapide immunochromatographique.","","",""]
["Adenovirus PCR - Frottis gorge","adenovirus-pcr","","Frottis gorge","Microbio moléculaire","","","","",""]
["Adenovirus PCR - Liquide humeur aqueuse","adenovirus-pcr-1","","Liquide humeur aqueuse","Microbio moléculaire","","","","",""]
["Adenovirus PCR - Liquide humeur vitrée","adenovirus-pcr-2","","Liquide humeur vitrée","Microbio moléculaire","","","","",""]
["Adenovirus PCR - Sécrétions conjonctivales","adenovirus-pcr-3","","Sécrétions conjonctivales","Microbio moléculaire","","","","",""]
["Adenovirus PCR - Ponction vésicale","adenovirus-pcr-4","","Ponction vésicale","Microbio moléculaire","","","","",""]
["Adenovirus PCR - Urine milieu du jet","adenovirus-pcr-5","","Urine milieu du jet","Microbio moléculaire","","","","",""]
["Adenovirus PCR - Urine sac (enfant)","adenovirus-pcr-6","","Urine sac (enfant)","Microbio moléculaire","","","","",""]
["Adenovirus PCR - Urine sondage aller retour","adenovirus-pcr-7","","Urine sondage aller retour","Microbio moléculaire","","","","",""]
["Adenovirus PCR - Urine sonde à demeure","adenovirus-pcr-8","","Urine sonde à demeure","Microbio moléculaire","","","","",""]
["Adenovirus PCR - Moelle osseuse","adenovirus-pcr-9","","Moelle osseuse","Microbio moléculaire","","","","",""]
["Adenovirus PCR - Sang","adenovirus-pcr-10","","Sang","Microbio moléculaire","","Evaluation de la charge virale","Principalement c/o immunosupprimés","",""]
["Adenovirus PCR - Sécrétions nasopharyngées","adenovirus-pcr-11","","Sécrétions nasopharyngées","Microbio moléculaire","","","","",""]
["AFP (alpha-1-foetoprotéine) - Sang","afp-alpha-1-foetoproteine","marqueur tumoral","Sang","Chimie clinique","","","<p><strong>Pour des indications hors dépistage prénatal.</strong></p>\r\n<p><em>En cas de dépistage prénatal de :</em><br /><em>- la <strong>non fermeture du tube neural (NFTN) </strong>: cf. fiche correspondante \"Dépistage de la NFTN - 2ème trimestre\"</em><br /><em>- la <strong>trisomie 21 au 2ème trimestre </strong>: cf. fiche correspondante \"Dépistage de la trisomie 21 et de la NFTN - 2ème trimestre\"</em><br /></p>","","Alpha-foetoprotéine"]
["Agglutinines froides - ","agglutinines-froides","Transfusion, AHAI, anémie hémolytique, mycoplasmes","","UMT","","Bilan d'anémie immuno-hémolytique, suspicion d'infection par mycoplasme, CMV ou EBV","","",""]
["Agrégations plaquettaires - ","agregations-plaquettaires","plaquette fonction plaquettaire","","Hématologie - Hémostase spéciale","","Analyse de la capacité d'agréger des plaquettes après activation par divers agonistes","","","Fonctions plaquettaires"]
["Alanine amino-transférase (ALAT) (GPT) - Sang","alanine-amino-transferase-alat-gpt","","Sang","Chimie clinique","","","","","alanine amino-transférase, alanine transférase (ALT), glutamate pyruvate transaminase (GPT), sérum glutamo-pyruvate transaminase (SGPT)"]
["Albumine - Sang","albumine","","Sang","Chimie clinique","","","","",""]
["Albumine - Liquide pleural","albumine-1","","Liquide pleural","Chimie clinique","","","","",""]
["Albumine - Liquide d'ascite","albumine-2","","Liquide d'ascite","Chimie clinique","","","","",""]
["Albumine - Urine fraiche","albumine-3","protéines, urine","Urine fraiche","Chimie clinique","","","","","Microalbumine"]
["Alcool - médecine légale - Sang","alcool-medecine-legale","","Sang","Toxicologie","","Dosage demandé à des fins légales <br />La manupulation de ces kits est très importante d'un point de vue légal. Lire et suivre attentivement les instructions se touvant à l'intérieur du kit","Le kit peut-être obtenu auprès du laboratoire de toxicologie et chimie forensique","Pratiqué par le centre des urgences","alcoolémie, ETOH, IML"]
["Alcool (labo de chimie clinique) - Sang","alcool-labo-de-chimie-clinique","Ethanol, alcool éthylique, éthylalcool","Sang","Chimie clinique","","","Le résultat de cette prestation ne peut pas être utilisée à des fins légales<br />","",""]
["Aldostérone - Sang","aldosterone","Aldo, Al, aldosterone","Sang","Chimie clinique","","","","<p>J-15 arrêt médicaments J-5 régime normosode J-5 arrêt de médicaments diurétiques 4 sem. Patient à jeun. Patient couché pendant &gt;1h avant prélèvement (prélèvement en position couchée). Patient debout (déambulation) pendant &gt;30 minutes avant prélèvement (prélèvement en position debout).</p>",""]
["Aldostérone - Urine","aldosterone-1","Aldo, Al, aldosterone","Urine","Chimie clinique","","","","<p>J-15 arrêt médicaments antihypertenseurs. J-5 régime normosode, J-5 arrêt de médicaments diurétiques 4 sem.</p>",""]
["Alpelisib - Sang","alpelisib","Anticancéreux ciblés, TKI, inhibiteur tirosine kinase, inhibiteur des protéines kinases, PKI","Sang","Pharmacologie","","<p>Dosage du taux sanguin d'alpelisib</p>","<p>Sur avis du spécialiste. L’interprétation clinique (TDM) ou pharmacocinétique des dosage n’est actuellement pas validée.</p>","","Piqray®"]
["Alpha-1-antitrypsine - ","alpha-1-antitrypsine-1","Protéines sériques, néphélémétrie","","Immunologie et allergie","","","","",""]
["Alpha-1-antitrypsine, déficit - analyse - Analyse moléculaire","alpha-1-antitrypsine-deficit-analyse","AAT","Analyse moléculaire","Génétique moléculaire","","Anlayse de gène SERPINA1<br />OMIM 107400","","",""]
["Alpha-2 antiplasmine - ","alpha-2-antiplasmine","","","Hématologie - Hémostase spéciale","","Recherche d'une hyperfibrinolyse si﻿ déficience","","","A2AP"]
["Alpha-foetoprotéine (AFP) liquide amniotique - ","alpha-foetoproteine-afp-liquide-amniotique","Anencéphale, spina bifida, défaut de fermeture, omphalocèle, tube neural, atresie digestive","","Chimie clinique","","Tube neuronal - défauts de fermeture","sytématique sur les LA jusqu'à 26 6/7 SA","Amniocentèse.  Le patient doit se rendre aux US<br />",""]
["Amikacine - Sang","amikacine","antibiotique, antimicrobien, aminoside, aminoglycoside","Sang","Chimie clinique","Acheminer immédiatement le tube","<p>Dosage et interprétation pharmacologique (TDM) de taux sanguin d'amikacine (intervalle de référence pour une administration journalière unique).</p>","<p>Suivi thérapeutique, réponse insatisfaisante, suspicion de toxicité.</p>","","Amikin"]
["Amisulpride - Sang","amisulpride","Solian","Sang","UPPC Pharmacogénétique et psychopharmacologie","","Dosage et interprétation pharmacologique du taux sanguin","Réponse insatisfaisante, effets secondaires, interactions, doute sur l’adhésion, suspicion d’intoxication","",""]
["Amitriptyline - Sang","amitriptyline","Limbitrol, Saroten","Sang","UPPC Pharmacogénétique et psychopharmacologie","","Dosage et interprétation pharmacologique du taux sanguin","Réponse insatisfaisante, effets secondaires, interactions, doute sur l’adhésion, suspicion d’intoxication","",""]
["Ammonium - Sang","ammonium","Ammoniac, ammoniaque, NH3, NH4","Sang","Chimie clinique","Acheminer immédiatement le tube sur la glace","","","<p>Patient<br />à jeun.<br /><br /></p>\r\n<p><strong>ATTENTION<br />! Prélèvement sans garrot</strong>, jamais de manière<br />capillaire !</p>","NH4"]
["Amodiaquine  / Desethyl-amodiaquine - Sang","amodiaquine-/-desethyl-amodiaquine","Antimalarique, antipaludéen, malaria, paludisme, plasmodium","Sang","Pharmacologie","Contact nécessaire avant réalisation","<p>Dosage du taux sanguin d'amodiaquine et de son métabolite desethyl-amodiaquine</p>","<p>Sur avis du spécialiste. L’interprétation clinique (TDM) du dosage n’est actuellement pas validée.</p>","<p>Le patient doit être informé que cette analyse ne figure pas sur la liste des analyses en vigueur et qu'elle ne sera pas obligatoirement prise en charge par les caisses maladie</p>",""]
["Amoxicilline - Sang","amoxicilline","Antibiotique, antimicrobien, pénicilline","Sang","Pharmacologie","","Dosage et interprétation pharmacologique (TDM) de taux sanguin d'amoxicilline (intervalle de référence disponible)","TDM uniquement dans des cas spécifiques (i.e. difficultés d’adaptation des doses, épuration extrarénale, dialyse, interactions médicamenteuses, toxicité, résistances)","","Clamoxyl®\r\ndans Augmentin ®"]
["Amplification N-MYC moelle osseuse - Pédiatrie","amplification-n-myc-moelle-osseuse","","Pédiatrie","Onco-hématologie pédiatrique","","Détection d'une anomalie génétique liée au pronostic<br />cet examen n'est valable qui si la moelle est infiltrée par plus de 30% de cellules tumorales","Neuroblastome","",""]
["Amplification N-MYC tissu tumeur - Pédiatrie","amplification-n-myc-tissu-tumeur","","Pédiatrie","Onco-hématologie pédiatrique","","Détection d'une anomalie génétique liée au pronostic","Neuroblastome","",""]
["Amylase pancréatique - Sang","amylase-pancreatique","","Sang","Chimie clinique","","","","",""]
["Amylase pancréatique - Urine fraiche","amylase-pancreatique-1","","Urine fraiche","Chimie clinique","","","","",""]
["Amylase pancréatique - Liquide d'ascite","amylase-pancreatique-2","","Liquide d'ascite","Chimie clinique","","","","",""]
["Amylase pancréatique - Liquide pleural","amylase-pancreatique-3","","Liquide pleural","Chimie clinique","","","","",""]
["Analyse de distance génétique - Souche bactérienne","analyse-de-distance-genetique","","Souche bactérienne","Microbio génomique et métagénomique","","<p></p>\r\n<p>Analyse basée sur l’identification de variants (SNVs/SNPs) dans le génome, visant à estimer la proximité génétique entre deux ou plusieurs souches. Exemples d’indications :-\tInvestigation de suspicion de contamination-\tInvestigation de potentielles transmissions entre les patients-\tInvestigation d’infections récurrentes pour distinguer une rechute (échec de traitement) d’une récidive (nouvelle infection)Cette analyse inclut également le typage bactérien, visant à déterminer le « sequence type » (St) de pathogènes communs pour lesquels un schéma multi-locus sequence typing (MLST) est disponible à des fins de surveillance épidémiologique ou pour le placement d’une souche dans un contexte épidémiologique local, régional ou mondial.</p>","Justifications cliniques demandées idéalement par contact téléphonique au 44107<br />","","Typage, épidémiologie, phylogénétique"]
["Analyse FISH - FISH métaphasique / FISH interphasique","analyse-fish","Angelmann's, cri du chat S., rétinoblastome, microdélétion FISH, microdélétion 22q11.2, Miller-Dieker's, rétinoblastome, Smith-Magenis S., Williams Beurens, Wolf-Hirschhorn S, môle partielle, triploidie,catch22, DiGeorge","FISH métaphasique / FISH interphasique","Génétique constitutionnelle","","Analyse ciblée de région au moyen de sonde","suspicion de syndrome chromosomique ciblé","",""]
["Anaplasma sp PCR - Moelle osseuse","anaplasma-sp-pcr","","Moelle osseuse","Microbio moléculaire","","","","",""]
["Anaplasma sp PCR - Sang","anaplasma-sp-pcr-1","","Sang","Microbio moléculaire","","","","",""]
["Anaplasma sp PCR - Liquide céphalo-rachidien (LCR)","anaplasma-sp-pcr-2","","Liquide céphalo-rachidien (LCR)","Microbio moléculaire","","","","",""]
["Androstènedione - Sang","androstenedione","Hormone, stéroïde, stéroïdes, profil stéroïdes, profil stéroïdien, androgène","Sang","Chimie clinique","","","","","A4, Delta-4,  4-androstène-3,17-dione"]
["Angelman syndrome - Analyse moléculaire","angelman-syndrome","Cytogénétique, Fish, Prader Willi","Analyse moléculaire","Génétique moléculaire","","Analyse de la méthylationde la région chromosomique impliquée dans le syndrome<br />OMIM 105830","","",""]
["Anidulafungine - Sang","anidulafungine","Antifongique, échinocandine","Sang","Pharmacologie","","Dosage et interprétation pharmacologique (TDM) de taux sanguin d'anidulafungine (intervalle de référence disponible)","TDM uniquement dans des cas spécifiques (i.e. difficultés d’adaptation des doses, épuration extrarénale, dialyse, interactions médicamenteuses, toxicité, résistances)","","Eraxis®"]
["Anti-HMGCR - Dépistage","anti-hmgcr","auto-anticorps","Dépistage","Immunologie et allergie","","","Maladie auto-immune. Suspicion de myopathie nécrosante et/ou d'une exposition préalable aux statines.<br />","",""]
["Anti-tTG - ","anti-ttg","anti-transglutaminase, coeliaquie","","Immunologie et allergie","","","Suivi maladie cœliaque","","Ac anti-tissue transglutaminase"]
["Anticoagulant lupique - ","anticoagulant-lupique","anticoagulant circulant lupique lupus","","Hématologie - Hémostase spéciale","","<p>Cette recherche se base sur l'interprétation de 2 analyses:<br />DRVVT = temps de Russel dilué<br />PTTLA = PTT lupus sensible</p>\r\n<p>Elle fait partie de la recherche d'anticorps antiphospholipides qui sont une famille hétérogène d'anticorps comprenant entre autre: anticorps anti-cardiolipine, anticorps anti-beta2 glycoprotéines 1 et anticoagulants circulants de type lupique.<br /></p>\r\n<p><br /></p>","","","Ac lupique, anticoagulant circulant lupique, DRVVT, temps de Russel"]
["Anticorps anti-actine - ","anticorps-anti-actine","","","Immunologie et allergie","","","Hépatite auto-immune, présence d'anticorps anti-muscle lisse","",""]
["Anticorps anti-beta2 glycoprotéines 1 - (IgG, IgM)","anticorps-anti-beta2-glycoproteines-1","glycoprotéine, beta, beta2, phospholipide","(IgG, IgM)","Hématologie - Hémostase spéciale","","<p>La recherche des anticorps anti-beta2-glycoprotéines 1 fait partie de la recherche d'anticorps antiphospholipides qui sont une famille hétérogène d'anticorps comprenant entre autre: Anticorps anti-cardiolipines, anticorps anti-beta2 glycoprotéines 1 et anticoagulants circulants de type lupique.</p>","","","Ac B2 GP 1, B2GP1"]
["Anticorps anti-C1q - ","anticorps-anti-c1q","","","Immunologie et allergie","","Dépistage des patients lupiques à risque de développer une glomérulonéphrite","","",""]
["Anticorps anti-cardiolipine - (IgG, IgM)","anticorps-anti-cardiolipine","","(IgG, IgM)","Hématologie - Hémostase spéciale","","","","","Ac anti-cardiolipine, ac cardiolipine, anti-cardiolipine, anticorps anti-cardiolipine"]
["Anticorps anti-CCP - ","anticorps-anti-ccp","","","Immunologie et allergie","","","Polyarthrite rhumatoïde","","Anti-peptide citrulline"]
["Anticorps anti-cellules pariétales gastriques et facteur intrinsèques - ","anticorps-anti-cellules-parietales-gastriques-et-facteur-intrinseques","","","Immunologie et allergie","","","Anémie de Biermer","",""]
["Anticorps anti-cytoplasme neutrophile - ","anticorps-anti-cytoplasme-neutrophile","","","Immunologie et allergie","","","Vasculites, Wegener","","ANCA, C-ANCA, P-ANCA, X-ANCA"]
["Anticorps anti-diphtérie - ","anticorps-anti-diphterie","Vaccin, vaccination","","Immunologie et allergie","","","Contrôle de vaccinologie, immunodéficience","","Corynebacterium diphteriae"]
["Anticorps anti-DNA - ","anticorps-anti-dna","","","Immunologie et allergie","","","Lupus eryrthémateux<br />Présence d'anticorps anti-nucléaires","",""]
["Anticorps anti-facteur H - ","anticorps-anti-facteur-h","Complément","","Immunologie et allergie","","","","",""]
["Anticorps anti-GAD - Sang","anticorps-anti-gad","Diabète, GAD, glutamate decarboxylase, glutamic acid decarboxylase, GAD65, 65","Sang","Chimie clinique","","","﻿","",""]
["Anticorps anti-GBM - ","anticorps-anti-gbm","","","Immunologie et allergie","","","Syndrome de Goodpasture","","Anticorps anti-membrane basale glomérulaire"]
["Anticorps anti-Haemophilus (gr. B) - ","anticorps-anti-haemophilus-gr-b","Vaccin, vaccination","","Immunologie et allergie","","","Contrôle de vaccinologie, immunodéficience","","Haemophilus influenzae"]
["Anticorps anti-HLA - Dépistage et suivi","anticorps-anti-hla","Immunisation, transfusion","Dépistage et suivi","Immunologie et allergie - transplant","","","Transplantation d'organes, état réfractaire aux transfusion plaquettaires","",""]
["Anticorps anti-IA2 - Sang","anticorps-anti-ia2","AC Anti-thyrosine phosphatase","Sang","Chimie clinique","","","","",""]
["Anticorps anti-insuline - Sang","anticorps-anti-insuline","Diabète, Ab IAA, auto-anticorps anti-insuline","Sang","Chimie clinique","","","","",""]
["Anticorps anti-Jo-1 - Suivi","anticorps-anti-jo-1","","Suivi","Immunologie et allergie","","","Maladies auto-immunes, présence d'anticorps anti-nucléaires","",""]
["Anticorps anti-LKM1 - ","anticorps-anti-lkm1","","","Immunologie et allergie","","","Hépatite auto-immune","","Ac. Anti-microsome foie rein"]
["Anticorps anti-mitochondrie - ","anticorps-anti-mitochondrie","","","Immunologie et allergie","","","Cirrhose biliaire primitive","","Anti-M2"]
["Anticorps anti-MPO - ","anticorps-anti-mpo","","","Immunologie et allergie","","","","","Anticorps anti-myéloperoxydase"]
["Anticorps anti-muscle lisse - ","anticorps-anti-muscle-lisse","","","Immunologie et allergie","","","Hépatite auto-immune","","Anti-actine"]
["Anticorps anti-nucléaires - ","anticorps-anti-nucleaires","","","Immunologie et allergie","","","Maladies auto-immunes","","ANA, FAN"]
["Anticorps anti-nucléoprotéines - Dépistage","anticorps-anti-nucleoproteines","Anti-JO1, anti-RNP, anti-SCL70, anti-SSA, anti-SSB, anti-SM","Dépistage","Immunologie et allergie","","","Maladies auto-immunes, présence d'anticorps anti-nucléaires","",""]
["Anticorps anti-nucléosome - ","anticorps-anti-nucleosome","","","Immunologie et allergie","","","Lupus eryrthémateux<br />Présence d'anticorps anti-nucléaires","",""]
["Anticorps anti-PF4-héparine - ","anticorps-anti-pf4-heparine","","","Hématologie - Hémostase spéciale","","Détection d'anticorps anti-PF4 en cas de TIH","","","Ac PF4, anticorps-PF4, facteur 4 plaquettaire, PF4"]
["Anticorps anti-pneumocoques (23 sérotypes) - ","anticorps-anti-pneumocoques-23-serotypes","Vaccin, vaccination, immunodéficience","","Immunologie et allergie","","Titration simultanée des anticorps anti-pneumocoques spécifiques dirigés contre 23 sérotypes i.e. 1, 2, 3, 4, 5, 6A, 6B, 7F, 8, 9N, 9V, 10A, 11A, 12F, 14, 15B, 17F, 18C, 19A, 19F, 20, 23F et 33F.","Contrôle de vaccinologie, immunodéficience","","Streptoccocus pneumoniae"]
["Anticorps anti-PR3 - ","anticorps-anti-pr3","","","Immunologie et allergie","","","","","Anticorps anti-protéinase 3"]
["Anticorps anti-récepteur de la phospholipase A2 - ","anticorps-anti-recepteur-de-la-phospholipase-a2","","","Immunologie et allergie","","","Néphropathies, glomérulonéphrite extramembraneuse","","Anti-PLA2R"]
["Anticorps anti-récepteur TSH (TRAK) - Sang","anticorps-anti-recepteur-tsh-trak","Thyroïde, anticorps anti-thyroïdien, anticorps antithyroidien, anticorps anti-thyroïdiens, anticorps antithyroidiens, TSI, thyroid stimulating immunoglobulin, auto-anticorps anti-récepteurs de la TSH","Sang","Chimie clinique","","","","","TRAB"]
["Anticorps anti-RNP - Suivi","anticorps-anti-rnp","","Suivi","Immunologie et allergie","","","Maladies auto-immunes, présence d'anticorps anti-nucléaires","",""]
["Anticorps anti-Scl70 - Suivi","anticorps-anti-scl70","","Suivi","Immunologie et allergie","","","Maladies auto-immunes, présence d'anticorps anti-nucléaires","","Anti-Topoisomérase"]
["Anticorps anti-Sm - Suivi","anticorps-anti-sm","","Suivi","Immunologie et allergie","","","Maladies auto-immunes, présence d'anticorps anti-nucléaires","",""]
["Anticorps anti-SSA - Suivi","anticorps-anti-ssa","","Suivi","Immunologie et allergie","","","Maladies auto-immunes, présence d'anticorps anti-nucléaires","","Anti-Ro"]
["Anticorps anti-SSb - Suivi","anticorps-anti-ssb","","Suivi","Immunologie et allergie","","","Maladies auto-immunes, présence d'anticorps anti-nucléaires","","Anti-La"]
["Anticorps anti-streptolysines - ","anticorps-anti-streptolysines","","","Immunologie et allergie","","Recherche de foyers à Streptocoques <br />Recherche de carences  en anticorps","","",""]
["Anticorps anti-tétanos - ","anticorps-anti-tetanos","Vaccin, vaccination","","Immunologie et allergie","","","Contrôle de vaccinologie, immunodéficience","",""]
["Anticorps anti-thyroglobuline - Sang","anticorps-anti-thyroglobuline","Thyroïde, anticorps anti-thyroïdien, anticorps antithyroidien, anticorps anti-thyroïdiens, anticorps antithyroïdiens, anticorps anti-Tg, auto-anticorps anti-thyréoglobuline","Sang","Chimie clinique","","","","","anticorps anti-Tg"]
["Anticorps anti-TPO - Sang","anticorps-anti-tpo","Thyroïde, anticorps anti-thyroïdien, anticorps antithyroidien, anticorps anti-thyroïdiens, anticorps antithyroïdiens, Ag microsomal, auto-anticorps anti-microsome","Sang","Chimie clinique","","","","","anticorps anti-thyroperoxidase"]
["Anticorps associés à la maladie coeliaque - ","anticorps-associes-a-la-maladie-coeliaque","","","Immunologie et allergie","","","Maladie cœliaque, dermatite herpétiforme, entéropathie","","Ac anti-tissue transglutaminase, anti-DGP, anti-tTG"]
["Anticorps associés aux anti-synthétases - Dépistage","anticorps-associes-aux-anti-synthetases","Jo-1, PL-7, PL-12, EJ, OJ, KS, ZO, HA, SRP-54, Ribosome P0","Dépistage","Immunologie et allergie","","","Pneumopathie interstitielle","",""]
["Anticorps associés aux sclérodermies - Dépistage","anticorps-associes-aux-sclerodermies","SCL-70, CENP-A, CENP-B, centromères, KU, NOR-90, PM-SCL 75, PM-SCL 100, SSA 52 kDa, TH/TO, RNA Polymérase III, Fibrillarine, U1-RNP","Dépistage","Immunologie et allergie","","","Sclérodermies","",""]
["Antigène HLA-B27 - ","antigene-hla-b27","HLA classe I, Betcherew","","Immunologie et allergie","","","Bechterew, <br />Syndrome de Reiter,<br />Spondylarthrite ankylosante,  <br />uvéite","",""]
["Antigène HLA-B51(5) - ","antigene-hla-b515","HLA classe I, Behcet","","Immunologie et allergie","","","Maladie de Behçet","","B5"]
["Antigène HLA-B5701 - ","antigene-hla-b5701","HLA classe I, HIV, abacavir","","Immunologie et allergie","","","Hypersensibilité à l'Abacavir","",""]
["Antigènes HLA-DQ2 et DQ8 - ","antigenes-hla-dq2-et-dq8","Maladie cœliaque","","Immunologie et allergie","","","Maladie cœliaque","",""]
["Antithrombine fonctionnelle - ","antithrombine-fonctionnelle","","","Hématologie - Hémostase spéciale","","","","","Anti-thrombine, antithrombine, antithrombine III, antithrombine 3, AT III, AT3"]
["AP-50 - ","ap-50","Complément","","Immunologie et allergie","","","","",""]
["Apolipoprotéines A1 - Sang","apolipoproteines-a1","","Sang","Chimie clinique","","","Dyslipidémie<br />Hypo HDL cholestérolémie","","HDL, lipide lipides, lipoprotéine"]
["Apolipoprotéines B - Sang","apolipoproteines-b","","Sang","Chimie clinique","","","Dyslipidémie","","Lipides, lipide, lipoprotéine"]
["Aripiprazole - Sang","aripiprazole","Abilify, Abilify Maintena","Sang","UPPC Pharmacogénétique et psychopharmacologie","","Dosage et interprétation pharmacologique du taux sanguin","Réponse insatisfaisante, effets secondaires, interactions, doute sur l’adhésion, suspicion d’intoxication","",""]
["Artemether / Dihydroartemisinin (DHA) - Sang","artemether-/-dihydroartemisinin-dha","Antimalarique, antipaludéen, malaria, paludisme, plasmodium","Sang","Pharmacologie","","Dosage du taux sanguin  d'artemether et de son métabolite","Sur avis du spécialiste. L’interprétation clinique (TDM) du dosage n’est actuellement pas validée.","Le patient doit être informé que cette analyse ne figure pas sur la liste des analyses en vigueur et qu'elle ne sera pas obligatoirement prise en charge par les caisses maladie","Riamet® (+lumef.)"]
["Artesunate  / Dihydroartemisinin (DHA) - Sang","artesunate-/-dihydroartemisinin-dha","Antimalarique, antipaludéen, malaria, paludisme, plasmodium","Sang","Pharmacologie","","Dosage du taux sanguin  d'artesunate et de son métabolite","Sur avis du spécialiste. L’interprétation clinique (TDM) du dosage n’est actuellement pas validée.","Le patient doit être informé que cette analyse ne figure pas sur la liste des analyses en vigueur et qu'elle ne sera pas obligatoirement prise en charge par les caisses maladie",""]
["Asciminib - Sang","asciminib","Anticancéreux ciblés, STAMP inhibiteur, ABL Myristoyl Pocket inhibiteur, inhibiteur des protéines kinases, PKI","Sang","Pharmacologie","","<p>Dosage du taux sanguin d'asciminib</p>","<p>Sur avis du spécialiste. L’interprétation clinique (TDM) ou pharmacocinétique des dosage n’est actuellement pas validée.</p>","","Scemblix®"]
["Asénapine - Sang","asenapine","Sycrest","Sang","UPPC Pharmacogénétique et psychopharmacologie","","Dosage et interprétation pharmacologique du taux sanguin","Réponse insatisfaisante, effets secondaires, interactions, doute sur l’adhésion, suspicion d’intoxication","",""]
["Aspartate amino-transférase (ASAT), (GOT) - Sang","aspartate-amino-transferase-asat-got","transaminase, amino-transférase","Sang","Chimie clinique","","","","","aspartate amino-transférase, aspartate transférase (AST), glutamate oxalacétate transaminase (GOT), sérum glutamate oxalacétate transaminase (SGOT)"]
["Aspergillus antigène LBA - Sérodiagnostic","aspergillus-antigene-lba","","Sérodiagnostic","Microbio sérologie","","","","","Aspergillome  aspergillose  champignons filamenteux  fungus-ball  galactomannane"]
["Aspergillus antigène sang - Sérodiagnostic","aspergillus-antigene-sang","","Sérodiagnostic","Microbio sérologie","","","Si suspicion infection invasive à Aspergillus, les antigènes galactomannane de la paroi du champignon peuvent être recherchés dans le sérum","","Antigène aspergillome aspergillose  champignons filamenteux  fungus-ball galactomannane"]
["Aspergillus fumigatus  PCR - Liquide humeur aqueuse","aspergillus-fumigatus-pcr","","Liquide humeur aqueuse","Microbio moléculaire","","","","","Aspergillome, aspergillose, Aspergillus"]
["Aspergillus fumigatus  PCR - Liquide humeur vitrée","aspergillus-fumigatus-pcr-1","","Liquide humeur vitrée","Microbio moléculaire","","","","","Aspergillome, aspergillose, Aspergillus"]
["Aspergillus fumigatus  PCR - Sécrétions conjonctivales","aspergillus-fumigatus-pcr-2","","Sécrétions conjonctivales","Microbio moléculaire","","","","","Aspergillome, aspergillose, Aspergillus"]
["Aspergillus fumigatus  PCR - Abcès","aspergillus-fumigatus-pcr-3","Aspergillome, aspergillose, Aspergillus","Abcès","Microbio moléculaire","","","","","Aspergillome, aspergillose, Aspergillus"]
["Aspergillus fumigatus  PCR - Abcès / kyste, amygdale","aspergillus-fumigatus-pcr-4","","Abcès / kyste, amygdale","Microbio moléculaire","","","","","Aspergillome, aspergillose, Aspergillus"]
["Aspergillus fumigatus  PCR - Abcès / Kyste, cérébral","aspergillus-fumigatus-pcr-5","","Abcès / Kyste, cérébral","Microbio moléculaire","","","","","Aspergillome, aspergillose, Aspergillus"]
["Aspergillus fumigatus  PCR - Abcès / Kyste, cervical","aspergillus-fumigatus-pcr-6","","Abcès / Kyste, cervical","Microbio moléculaire","","","","","Aspergillome, aspergillose, Aspergillus"]
["Aspergillus fumigatus  PCR - Abcès / Kyste, dentaire","aspergillus-fumigatus-pcr-7","","Abcès / Kyste, dentaire","Microbio moléculaire","","","","","Aspergillome, aspergillose, Aspergillus"]
["Aspergillus fumigatus  PCR - Abcès / Kyste, foie","aspergillus-fumigatus-pcr-8","","Abcès / Kyste, foie","Microbio moléculaire","","","","","Aspergillome, aspergillose, Aspergillus"]
["Aspergillus fumigatus  PCR - Abcès / Kyste, para-anal","aspergillus-fumigatus-pcr-9","","Abcès / Kyste, para-anal","Microbio moléculaire","","","","","Aspergillome, aspergillose, Aspergillus"]
["Aspergillus fumigatus  PCR - Abcès / Kyste, paroi","aspergillus-fumigatus-pcr-10","","Abcès / Kyste, paroi","Microbio moléculaire","","","","","Aspergillome, aspergillose, Aspergillus"]
["Aspergillus fumigatus  PCR - Abcès / Kyste, pulmonaire","aspergillus-fumigatus-pcr-11","","Abcès / Kyste, pulmonaire","Microbio moléculaire","","","","","Aspergillome, aspergillose, Aspergillus"]
["Aspergillus fumigatus  PCR - Abcès / Kyste, sein","aspergillus-fumigatus-pcr-12","","Abcès / Kyste, sein","Microbio moléculaire","","","","","Aspergillome, aspergillose, Aspergillus"]
["Aspergillus fumigatus  PCR - Biopsie","aspergillus-fumigatus-pcr-13","","Biopsie","Microbio moléculaire","","","","","Aspergillome, aspergillose, Aspergillus"]
["Aspergillus fumigatus  PCR - Biopsie sinus","aspergillus-fumigatus-pcr-14","","Biopsie sinus","Microbio moléculaire","","","","","Aspergillome, aspergillose, Aspergillus"]
["Aspergillus fumigatus  PCR - Biopsie transbronchique","aspergillus-fumigatus-pcr-15","","Biopsie transbronchique","Microbio moléculaire","","","","","Aspergillome, aspergillose, Aspergillus"]
["Aspergillus fumigatus  PCR - Expectoration","aspergillus-fumigatus-pcr-16","","Expectoration","Microbio moléculaire","","","","","Aspergillome, aspergillose, Aspergillus"]
["Aspergillus fumigatus  PCR - Liquide natif","aspergillus-fumigatus-pcr-17","","Liquide natif","Microbio moléculaire","","","","","Aspergillome, aspergillose, Aspergillus"]
["Aspergillus fumigatus  PCR - Liquide sinus","aspergillus-fumigatus-pcr-18","","Liquide sinus","Microbio moléculaire","","","","","Aspergillome, aspergillose, Aspergillus"]
["Aspergillus fumigatus  PCR - Tissu cutané","aspergillus-fumigatus-pcr-19","","Tissu cutané","Microbio moléculaire","","","","","Aspergillome, aspergillose, Aspergillus"]
["Aspergillus fumigatus  PCR - Moelle osseuse","aspergillus-fumigatus-pcr-20","","Moelle osseuse","Microbio moléculaire","","","","","Aspergillome, aspergillose, Aspergillus"]
["Aspergillus fumigatus  PCR - Sang","aspergillus-fumigatus-pcr-21","","Sang","Microbio moléculaire","","","","","Aspergillome, aspergillose, Aspergillus"]
["Aspergillus fumigatus  PCR - Sécrétions endo-trachéales","aspergillus-fumigatus-pcr-22","","Sécrétions endo-trachéales","Microbio moléculaire","","","","","Aspergillome, aspergillose, Aspergillus"]
["Aspergillus fumigatus  PCR - Liquide céphalo-rachidien (LCR)","aspergillus-fumigatus-pcr-23","","Liquide céphalo-rachidien (LCR)","Microbio moléculaire","","","","","Aspergillome, aspergillose, Aspergillus"]
["Aspergillus fumigatus  PCR - Aspiration bronchique","aspergillus-fumigatus-pcr-24","","Aspiration bronchique","Microbio moléculaire","","","","","Aspergillome, aspergillose, Aspergillus"]
["Aspergillus fumigatus  PCR - Lavage broncho-alvéolaire (LBA)","aspergillus-fumigatus-pcr-25","","Lavage broncho-alvéolaire (LBA)","Microbio moléculaire","","","","","Aspergillome, aspergillose, Aspergillus"]
["Ataxie de Friedreich - Analyse moléculaire","ataxie-de-friedreich","Diagnostic prénatal, expansion de triplets","Analyse moléculaire","Génétique moléculaire","","Analyse de l'expansion de la région instable du gène FRDA. OMIM 229300","","",""]
["Ataxie spinocérébel. 1  (SCA1) - Analyse moléculaire","ataxie-spinocerebel-1-sca1","Expansion de triplets, spinocérébelleuse","Analyse moléculaire","Génétique moléculaire","","Analyse de l'expansion de la région instable du gène ATXN1. OMIM 164400","","",""]
["Ataxie spinocérébel. 2  (SCA2) - Analyse moléculaire","ataxie-spinocerebel-2-sca2","Expansion de triplets, spinocérébelleuse","Analyse moléculaire","Génétique moléculaire","","Analyse de l'expansion de la région instable du gène ATXN2. OMIM 183090","","",""]
["Ataxie spinocérébel. 3  (SCA3) - Analyse moléculaire","ataxie-spinocerebel-3-sca3","Expansion de triplets, Machado-Joseph disease, spinocérébelleuse","Analyse moléculaire","Génétique moléculaire","","Analyse de l'expansion de la région instable du gène ATXN3. OMIM 109150","","",""]
["Ataxie spinocérébel. 6  (SCA6) - Analyse moléculaire","ataxie-spinocerebel-6-sca6","Expansion de triplets, spinocérébelleuse","Analyse moléculaire","Génétique moléculaire","","Analyse de l'expansion de la région instable du gène CACNA1A. OMIM 183086","","",""]
["Ataxie spinocérébel. 7  (SCA17) - Analyse moléculaire","ataxie-spinocerebel-7-sca17","Expansion de triplets, spinocérébelleuse","Analyse moléculaire","Génétique moléculaire","","Analyse de l'expansion de la région instable du gène ATXN7. OMIM 164500","","",""]
["Ataxie spinocérébel. 7  (SCA7) - Analyse moléculaire","ataxie-spinocerebel-7-sca7","Expansion de triplets, spinocérébelleuse","Analyse moléculaire","Génétique moléculaire","","Analyse de l'expansion de la région instable du gène ATXN7. OMIM 164500","","",""]
["Atazanavir - Sang","atazanavir","Antirétroviraux, anti-HIV, Antirétroviral, PI, inhibiteur de la protéase","Sang","Pharmacologie","","<p>Dosage et interprétation pharmacologique (TDM) de taux sanguin d'atazanavir (intervalle de référence disponible)</p>","<p>Suivi thérapeutique, réponse insatisfaisante, suspicion de toxicité, suspicion d'interaction médicamenteuse, doute sur la compliance, grossesse, étude</p>","","Reyataz®"]
["Atomoxétine - Sang","atomoxetine","Strattera","Sang","UPPC Pharmacogénétique et psychopharmacologie","","Dosage et interprétation pharmacologique du taux sanguin","Réponse insatisfaisante, effets secondaires, interactions, doute sur l’adhésion, suspicion d’intoxication","",""]
["Autres antigènes HLA associès à une maladie - ","autres-antigenes-hla-associes-a-une-maladie","HLA, Carbamazepine, Narcolepsie,","","Immunologie et allergie","","Recherche d'antigène(s) HLA associé(s) à une maladie ou à une contre-indication pharmacogénétique<br />","","",""]
["Axitinib - Sang","axitinib","Anticancéreux ciblés, TKI, inhibiteur tirosine kinase, inhibiteur des protéines kinases, PKI","Sang","Pharmacologie","","<p>Dosage du taux sanguin de axitinib</p>","<p>Sur avis du spécialiste. L’interprétation clinique (TDM) ou pharmacocinétique des dosage n’est actuellement pas validée.</p>","","Inlyta®"]
["Azathioprine - Sang","azathioprine","Immunosupresseur, Anticancéreux","Sang","Pharmacologie","","<p>Dosage du taux sanguin (TDM) d'Azathioprine: 6-TG (6-Thioguanine) et 6-MMP (6-Methylmercaptopurine). ﻿</p>","<p>Sur avis du spécialiste. L’interprétation clinique (TDM) du dosage n’est actuellement pas validée pour toutes les indications thérapeutiques.</p>","","Imurek®, Azarek®, Azafalk®\r\n6-Mercaptopurine, 6-MP, 6-MMP, 6-Methylmercaptopurine, 6-TG, 6-Thioguanine, thiopurines, 6-TGN, 6-Thioguanine nucleotide, 6tg, 6mmp, 6tgn"]
["Azithromycin - Sang","azithromycin","Antibiotique, antimicrobien, céphalosporine","Sang","Pharmacologie","Ne pas prélever le week-end (vendredi dès 16h à dimanche midi).","<p>Dosage et interprétation pharmacocinétique de taux sanguin d'azithromycine (absence d'intervalle de référence, évaluation seulement de la plausibilité du taux)</p>","<p>TDM indiqué uniquement dans des situations spécifiques : il est recommandé de <strong>contacter le responsable TDM AVANT prélèvement </strong>: 021 314 22 41. En cas d’absence, téléphonez au : 021 314 25 00.</p>\r\n<p>Sur avis du spécialiste. L’interprétation clinique (TDM) du dosage n’est actuellement pas validée.</p>","","Zithromax"]
["B-D-glucan - Sérodiagnostic","b-d-glucan","","Sérodiagnostic","Microbio sérologie","","","Si suspicion d'infection fongique invasive ou d'une pneumonie à Pneumocystis, l'antigène 1,3-beta-D-glucan de la paroi du champignon peut être recherché dans le sérum","","Aspergillose candidose champignons filamenteux galactomannane infection fongique invasive pneumocystis"]
["Bactériologie - Angine de Plaut-Vincent (Microscopie) - Frottis de gorge","bacteriologie-angine-de-plaut-vincent-microscopie","angine ulcéro-nécrotique, association fuso-spirillaire, amygdale","Frottis de gorge","Microbiologie","","Recherche d'association fuso-spirillaire par microscopie.","","",""]
["Bactériologie - Culture - Abcès cérébral","bacteriologie-culture-36","pus","Abcès cérébral","Microbiologie","","Recherche par culture de bactéries aérobies et anaérobies dans l'abcès cérébral.","","",""]
["Bactériologie - Culture - Abcès cervical","bacteriologie-culture-37","pus","Abcès cervical","Microbiologie","","Recherche par culture de bactéries aérobies et anaérobies dans l'abcès cervical.","","",""]
["Bactériologie - Culture - Abcès du foie (hépatique)","bacteriologie-culture-38","pus","Abcès du foie (hépatique)","Microbiologie","","Recherche par culture de bactéries aérobies et anaérobies dans l'abcès du foie.","","",""]
["Bactériologie - Culture - Abcès anal, para-anal","bacteriologie-culture-39","pus","Abcès anal, para-anal","Microbiologie","","Recherche par culture de bactéries aérobies et anaérobies dans l'abcès anal, para-anal.","","",""]
["Bactériologie - Culture - Abcès paroi abdominale","bacteriologie-culture-40","pus","Abcès paroi abdominale","Microbiologie","","Recherche par culture de bactéries aérobies et anaérobies dans l'abcès de paroi abdominale.","","",""]
["Bactériologie - Culture - Abcès du poumon","bacteriologie-culture-41","pus, pulmonaire","Abcès du poumon","Microbiologie","","Recherche par culture de bactéries aérobies et anaérobies dans l'abcès pulmonaire.","","",""]
["Bactériologie - Culture - Abcès du sein","bacteriologie-culture-42","pus","Abcès du sein","Microbiologie","","Recherche par culture de bactéries aérobies et anaérobies dans l'abcès du sein.","","",""]
["Bactériologie - Culture - Frottis plaies profondes (opératoires et non opératoires)","bacteriologie-culture-43","Pus","Frottis plaies profondes (opératoires et non opératoires)","Microbiologie","","Recherche par culture de bactéries aérobies et anaérobies dans les échantillons de plaies profondes (opératoire et non opératoires).","","",""]
["Bactériologie - Culture - Frottis de peau chez les patients brûlés","bacteriologie-culture-44","","Frottis de peau chez les patients brûlés","Microbiologie","","Recherche par culture de bactéries aérobies dans les frottis de peau chez les patients brûlés.","","",""]
["Bactériologie - Culture - Liquide amniotique","bacteriologie-culture-45","","Liquide amniotique","Microbiologie","","Recherche par culture de bactéries aérobies et anaérobies dans le liquide amniotique.","","",""]
["Bactériologie - Culture - Liquide articulaire ou synovial","bacteriologie-culture-46","bursite","Liquide articulaire ou synovial","Microbiologie","","<ul><li>Recherche par culture de bactéries aérobies et anaérobies dans le liquide articulaire, synovial ou de bursite (natifs).</li><li>Possibilité d'ensemencer les flacons BACTEC (A envoyer en même temps que le liquide natif sur la même demande).﻿</li></ul>","","",""]
["Bactériologie - Culture - Liquide d'ascite","bacteriologie-culture-47","","Liquide d'ascite","Microbiologie","","<ul><li>Recherche par culture de bactéries aérobies et anaérobies dans le liquide d'ascite natif.</li><li>Possibilité d'ensemencer les flacons BACTEC (A envoyer en même temps que le liquide natif sur la même demande).﻿</li></ul>","","",""]
["Bactériologie - Culture - Liquide de bile","bacteriologie-culture-48","","Liquide de bile","Microbiologie","","Recherche par culture de bactéries aérobies et anaérobies dans le liquide de bile.","","",""]
["Bactériologie - Culture - Liquide de douglas","bacteriologie-culture-49","","Liquide de douglas","Microbiologie","","Recherche par culture de bactéries aérobies et anaérobies dans le liquide de douglas.","","",""]
["Bactériologie - Culture - Liquide duodénal","bacteriologie-culture-50","","Liquide duodénal","Microbiologie","","Recherche par culture de bactéries aérobies et anaérobies dans le liquide duodénal. ","","",""]
["Bactériologie - Culture - Moelle osseuse","bacteriologie-culture-51","","Moelle osseuse","Microbiologie","","Recherche par culture de bactéries aérobies et anaérobies dans la moelle osseuse.","","",""]
["Bactériologie - Culture - Liquide péricardique","bacteriologie-culture-52","","Liquide péricardique","Microbiologie","","Recherche par culture de bactéries aérobies et anaérobies dans le liquide péricardique.","","",""]
["Bactériologie - Culture - Liquide péritonéal","bacteriologie-culture-53","","Liquide péritonéal","Microbiologie","","Recherche par culture de bactéries aérobies et anaérobies dans le liquide péritonéal.","","",""]
["Bactériologie - Culture - Liquide pleural","bacteriologie-culture-54","","Liquide pleural","Microbiologie","","Recherche par culture de bactéries aérobies et anaérobies dans le liquide pleural.","","",""]
["Bactériologie - Culture - Biopsie transbronchique","bacteriologie-culture-55","","Biopsie transbronchique","Microbiologie","","Recherche par culture de bactéries aérobies et anaérobies dans la biopsie transbronchique.","","",""]
["Bactériologie - Culture - Capsule articulaire","bacteriologie-culture-56","fragment, os","Capsule articulaire","Microbiologie","","﻿Recherche par culture de bactéries aérobies et anaérobies dans la capsule articulaire.﻿","","",""]
["Bactériologie - Culture - Disque intervertébral","bacteriologie-culture-57","fragment, os, biopsie","Disque intervertébral","Microbiologie","","Recherche par culture de bactéries aérobies et anaérobies dans un disque intervertébral.","","",""]
["Bactériologie - Culture - Tissu (biopsie) articulaire","bacteriologie-culture-58","fragment, biopsie","Tissu (biopsie) articulaire","Microbiologie","","﻿Recherche par culture de bactéries aérobies et anaérobies dans du tissu articulaire.","","",""]
["Bactériologie - Culture - Tissu (biopsie) musculaire","bacteriologie-culture-59","fragment, biopsie, muscle","Tissu (biopsie) musculaire","Microbiologie","","﻿Recherche par culture de bactéries aérobies et anaérobies dans du tissu musculaire.","","",""]
["Bactériologie - Culture - Os (fragment - biopsie)","bacteriologie-culture-60","","Os (fragment - biopsie)","Microbiologie","","﻿Recherche par culture de bactéries aérobies et anaérobies dans un fragment (biopsie) d'os.","","",""]
["Bactériologie - Culture - Tissu (biopsie) de foie","bacteriologie-culture-61","fragment, hépatique","Tissu (biopsie) de foie","Microbiologie","","﻿Recherche par culture de bactéries aérobies et anaérobies dans du tissu (biopsie) du foie.","","",""]
["Bactériologie - Culture - Tissu (biopsie) d'anévrisme","bacteriologie-culture-62","fragment","Tissu (biopsie) d'anévrisme","Microbiologie","","﻿Recherche par culture de bactéries aérobies et anaérobies dans du tissu (biopsie) d'anévrisme.","","",""]
["Bactériologie - Culture - Tissu (biopsie) de valve cardiaque","bacteriologie-culture-63","fragment, biopsie, tissus, mitrale, coeur","Tissu (biopsie) de valve cardiaque","Microbiologie","","﻿Recherche par culture de bactéries aérobies et anaérobies dans une valve cardiaque.","","",""]
["Bactériologie - Culture - Tissu (biopsie) cérébral","bacteriologie-culture-64","fragment","Tissu (biopsie) cérébral","Microbiologie","","﻿Recherche par culture de bactéries aérobies et anaérobies dans du tissu cérébral.","","",""]
["Bactériologie - Culture - Pièces métalliques diverses (sauf prothèses cf. fiches correspondantes)","bacteriologie-culture-9","","Pièces métalliques diverses (sauf prothèses cf. fiches correspondantes)","Microbiologie","","Recherche par culture de bactéries aérobies et anaérobies.","","",""]
["Bactériologie - Culture - Tissu (biopsie) de ganglion","bacteriologie-culture-65","fragment","Tissu (biopsie) de ganglion","Microbiologie","","﻿Recherche par culture de bactéries aérobies et anaérobies dans du tissu (biopsie) de ganglion","","",""]
["Bactériologie - Culture - Tissu (biopsie) de plèvre ou poumon","bacteriologie-culture-66","fragment","Tissu (biopsie) de plèvre ou poumon","Microbiologie","","﻿Recherche par culture de bactéries aérobies et anaérobies dans du tissu (biopsie) de plèvre ou poumon.","","",""]
["Bactériologie - Culture - Tissu ou biopsie (spécifier le site anatomique)","bacteriologie-culture-67","fragment","Tissu ou biopsie (spécifier le site anatomique)","Microbiologie","","﻿Recherche par culture de bactéries aérobies et anaérobies dans du tissu ou biopsie. ","","",""]
["Bactériologie - Culture - Aiguille, fil","bacteriologie-culture-68","matériel opératoire","Aiguille, fil","Microbiologie","","Recherche par culture de bactéries aérobies et anaérobies.","","",""]
["Bactériologie - Culture - Frottis de gorge","bacteriologie-culture-10","maux de gorge, angine, mucoviscidose, amygdale","Frottis de gorge","Microbiologie","","Recherche de bactéries aérobies dans le frottis de gorge.","","",""]
["Bactériologie - Culture - Frottis placenta","bacteriologie-culture-11","","Frottis placenta","Microbiologie","","Recherche par culture de bactéries aérobies et anaérobies dans les frottis de placenta (face foetale et/ou maternelle).","","",""]
["Bactériologie - Culture - Liquide de dialyse péritonéale","bacteriologie-culture-12","CAPD","Liquide de dialyse péritonéale","Microbiologie","","<ul><li>Recherche par culture de bactéries aérobies et anaérobies dans le liquide de dialyse péritonéale natif.</li><li>﻿possibilité d'ensemencer les flacons BACTEC (A envoyer en même temps que le liquide natif sur la même demande).</li></ul>","","",""]
["Bactériologie - Culture - Chambre de Port-à-cath","bacteriologie-culture-13","PAC","Chambre de Port-à-cath","Microbiologie","","Recherche spécifique de bactéries aérobies et anaérobies dans la chambre de Port-à-Cath.","","",""]
["Bactériologie - Culture - Tubulures de drainage (autres que Cathéters)","bacteriologie-culture-14","drain, sonde, dérivation LCR, péricardique, péritonéal, tube endotrachéal, jackson, penrose, redon, monovac, sonde uréthrale, sonde suspubienne","Tubulures de drainage (autres que Cathéters)","Microbiologie","","Recherche spécifique de bactéries aérobies dans les Tubulures de drainage (autres que Cathéters)","","",""]
["Bactériologie - Culture - Tissu (biopsie) de peau","bacteriologie-culture-15","fragment","Tissu (biopsie) de peau","Microbiologie","","Recherche par culture de bactéries aérobies et anaérobies dans du tissu (biopsie) de peau.","","",""]
["Bactériologie - Culture - Prothèses vasculaires","bacteriologie-culture-16","","Prothèses vasculaires","Microbiologie","","Recherche par culture de bactéries aérobies et anaérobies.","","",""]
["Bactériologie - Culture - Liquides et ponctions de cavité normalement stérile (Préciser la nature de l'échantillon)","bacteriologie-culture-17","cytoponction","Liquides et ponctions de cavité normalement stérile (Préciser la nature de l'échantillon)","Microbiologie","","Recherche par culture de bactéries aérobies et anaérobies dans un liquide, une ponction ou cytoponction de cavité normalement stérile.","","",""]
["Bactériologie - Culture - Liquides de drainage (drain pleural, thoracique, péricardique, jackson, redon, monovac)","bacteriologie-culture-18","","Liquides de drainage (drain pleural, thoracique, péricardique, jackson, redon, monovac)","Microbiologie","","Recherche par culture de bactéries aérobies dans les échantillons de liquides de drainage.","","",""]
["Bactériologie - Culture - Frottis d'orifice et point de ponction (cathéter - drain)","bacteriologie-culture-19","peau","Frottis d'orifice et point de ponction (cathéter - drain)","Microbiologie","","Recherche par culture de bactéries aérobies dans les échantillons d'orifice de drain et point de ponction de cathéter.","","",""]
["Bactériologie - Culture - Frottis plaies superficielles (opératoires et non opératoires)","bacteriologie-culture-20","","Frottis plaies superficielles (opératoires et non opératoires)","Microbiologie","","Recherche par culture de bactéries aérobies dans les échantillons de plaies superficielles (opératoires et non opératoires).","","",""]
["Bactériologie - Culture - Expectorations, Aspirations bronchiques, Sécrétions endotrachéales","bacteriologie-culture-21","Sécrétions pulmonaires, respiratoires, mucoviscidose, induite, brurkholderia cepacia","Expectorations, Aspirations bronchiques, Sécrétions endotrachéales","Microbiologie","","<ul><li><em>﻿﻿</em>Recherche par culture de bactéries aérobies dans les échantillons d'expectorations, aspirations bronchiques et sécrétions endotrachéales.</li><li>Pour les patients \"mucoviscidose\", des cultures de<em> Burkholderia cepacia </em>et champignons moisissures﻿ sont effectuées.</li></ul>","","﻿",""]
["Bactériologie - Culture - Frottis de bronche","bacteriologie-culture-22","Sécrétions pulmonaires, respiratoires","Frottis de bronche","Microbiologie","","Recherche par culture de bactéries aérobies dans les échantillons de frottis de bronches.","","﻿",""]
["Bactériologie - Culture - Frottis anus","bacteriologie-culture-23","rectal","Frottis anus","Microbiologie","","Recherche par culture de bactéries aérobies dans les échantillons de frottis anus.","","",""]
["Bactériologie - Culture - Sperme","bacteriologie-culture-24","","Sperme","Microbiologie","","﻿Recherche par culture de bactéries aérobies dans les échantillons de sperme.","","",""]
["Bactériologie - Culture - Frottis d'oeil, bouche, nez, oreille","bacteriologie-culture-25","Sécrétions conjonctivales, narine, cae, ORL","Frottis d'oeil, bouche, nez, oreille","Microbiologie","","Recherche de bactéries aérobies dans les frottis d'oeil, bouche, nez, oreille","","",""]
["Bactériologie - Culture - Sécrétions nasopharyngées","bacteriologie-culture-26","","Sécrétions nasopharyngées","Microbiologie","","Recherche de bactéries aérobies dans les échantillons de sécrétions nasopharyngées.","","",""]
["Bactériologie - Culture - Brossage oesopahge","bacteriologie-culture-27","","Brossage oesopahge","Microbiologie","","Recherche de bactéries aérobies dans les échantillons de brossage oesophage","","",""]
["Bactériologie - Culture - Liquide verre de contact","bacteriologie-culture-28","","Liquide verre de contact","Microbiologie","","Recherche de bactéries aérobies et anaérobies dans les échantillons de liquide de verre de contact.","","",""]
["Bactériologie - Culture - Liquide humeur vitrée, humeur acqueuse","bacteriologie-culture-29","oeil","Liquide humeur vitrée, humeur acqueuse","Microbiologie","","Recherche par culture de bactéries aérobies et anaérobies dans les échantillons de liquides d'humeur vitrée et acqueuse.","","",""]
["Bactériologie - Culture - Liquide (frottis) de sinus","bacteriologie-culture-30","","Liquide (frottis) de sinus","Microbiologie","","Recherche par culture de bactéries aérobies et anaérobies dans les échantillons de liquides de sinus.","","",""]
["Bactériologie - Culture - Tissu (biopsie) de sinus","bacteriologie-culture-31","fragment","Tissu (biopsie) de sinus","Microbiologie","","<ul><li>Recherche par culture de bactéries aérobies et anaérobies dans les échantillons de fragment de sinus.</li><li>La recherche par culture et microscopie de champignons filamenteux est également effectuée.﻿</li></ul>","","",""]
["Bactériologie - Culture - Abcès dentaire","bacteriologie-culture-32","dent","Abcès dentaire","Microbiologie","","<ul><li>Recherche par culture de bactéries aérobies et anaérobies dans les échantillons d'abcès dentaires.</li><li>La recherche d'<em>Actinomyces</em> doit être demandées spécifiquement si elle est﻿ souhaitée.</li></ul>","﻿ ","",""]
["Bactériologie - Culture - Liquide céphalo-rachidien (LCR) par drain ventriculaire","bacteriologie-culture-33","drain de dérivation","Liquide céphalo-rachidien (LCR) par drain ventriculaire","Microbiologie","","<ul><li>﻿Recherche par culture de bactéries aérobies et anaérobies dans le LCR par drain ventriculaire.</li><li>En cas de forte suspicion de méningite / encéphalite, faire la demande en urgence du test rapide par PCR.</li></ul>","","",""]
["Bactériologie - Culture - Abcès amygdalien","bacteriologie-culture","gorge, phlegmon, amygdale, pus, rétropharyngé","Abcès amygdalien","Microbiologie","","<ul><li>Recherche par culture de bactéries aérobies et anaérobies dans les échantillons d'abcès amygdalien.﻿</li><li>Comprend la recherche de <em>Fusobacterium necrophorum</em>.﻿<br></li></ul>","Suspicion d'un syndrome de Lemierre. ","",""]
["Bactériologie - Culture - Cathéters - Sonde pacemaker","bacteriologie-culture-1","artériel, iv, central, centralisé, picc line, périphérique, venflon, port-à-cath, PAC, dialyse, CAPD, périnerveux,","Cathéters - Sonde pacemaker","Microbiologie","","Recherche spécifique de bactéries aérobies dans les cathéters intravasculaires, sondes pacemaker.","","",""]
["Bactériologie - Culture - Méconium - Selles du nouveau-né","bacteriologie-culture-2","ECN","Méconium - Selles du nouveau-né","Microbiologie","","<ul><li>﻿﻿﻿﻿﻿﻿Recherche par culture de bactéries aérobies et anaérobies dans le méconium ou </li><li>Dans les selles du nouveau-né, dans ﻿﻿﻿﻿﻿﻿﻿﻿un contexte de suspicion d'entérocolite nécrosante.</li></ul>","﻿","",""]
["Bactériologie - Culture - Frottis sphère génitale (sauf col et vagin)","bacteriologie-culture-3","verge,  urétral","Frottis sphère génitale (sauf col et vagin)","Microbiologie","","<ul><li>Recherche par culture de bactéries aérobies dans les échantillons de frottis anus et frottis de la sphère génitale.</li><li>Pour les frottis de col et vagin, consultez la fiche spécifique à ces 2 échantillons.﻿</li></ul>","","",""]
["Bactériologie - Culture - Liquide céphalo-rachidien (LCR) par ponction lombaire","bacteriologie-culture-4","PL, liquide céphalo rachidien","Liquide céphalo-rachidien (LCR) par ponction lombaire","Microbiologie","","<ul><li>﻿Recherche par culture de bactéries aérobies dans le LCR par ponction lombaire</li><li>En cas de forte suspicion de méningite / encéphalite, faire la demande en urgence du test rapide par PCR.</li></ul>","","",""]
["Bactériologie - Culture - Mousse VAC","bacteriologie-culture-69","","Mousse VAC","Microbiologie","","Recherche par culture de bactéries aérobies et anaérobies.","","",""]
["Bactériologie - Culture - mini LBA","bacteriologie-culture-34","Sécrétions pulmonaires, respiratoires","mini LBA","Microbiologie","","Recherche par culture de bactéries aérobies dans les échantillons de mini LBA.","","",""]
["Bactériologie - Culture - Brossage bronchique","bacteriologie-culture-35","Sécrétions pulmonaires, respiratoires","Brossage bronchique","Microbiologie","","Recherche par culture de bactéries aérobies dans les échantillons de brossage bronchique.","","",""]
["Bactériologie - Culture - Frottis de peau","bacteriologie-culture-5","","Frottis de peau","Microbiologie","","Recherche par culture de bactéries aérobies dans les frottis de peau.","","",""]
["Bactériologie - Culture - Abcès","bacteriologie-culture-6","Pus","Abcès","Microbiologie","","Recherche par culture de bactéries aérobies et anaérobies dans les échantillons d'abcès.","","",""]
["Bactériologie - Culture - Lavage broncho-alvéolaire (LBA)","bacteriologie-culture-7","Sécrétions pulmonaires, respiratoires","Lavage broncho-alvéolaire (LBA)","Microbiologie","","Recherche par culture de bactéries aérobies dans les échantillons de lavage broncho-alvéolaire (LBA).","","",""]
["Bactériologie - Culture - Urines","bacteriologie-culture-8","ponction vésicale, sus pubienne,","Urines","Microbiologie","","<ul><li>Les urines début du jet ne sont pas acceptées pour la culture (souvent contaminées).</li><li>Les urines natives doivent être acheminées rapidement au laboratoire durant les heures d'ouverture.</li><li>En dehors des heures d'ouverture, elle doivent impérativement être conservées à 4°C﻿</li></ul>","","",""]
["Bactériologie - Culture (Comprend la culture d'Actinomyces spp.) - Stérilet","bacteriologie-culture-comprend-la-culture-dactinomyces-spp","","Stérilet","Microbiologie","","<ul><li>Recherche par culture de bactéries aérobies et anaérobies dans les échantillons de stérilet.</li><li>La recherche d'<em>Actinomyces</em> spp. est également effectuée sur cet échantillon﻿</li></ul>","","",""]
["Bactériologie - Culture (Comprend la culture de Moisissures) - Tissu (biopsie) de peau chez les patients brûlés - Culture quantitative","bacteriologie-culture-comprend-la-culture-de-moisissures","fragment","Tissu (biopsie) de peau chez les patients brûlés - Culture quantitative","Microbiologie","","<ul><li>﻿﻿Recherche par culture de bactéries aérobies et anaérobies dans les échantillons de fragments de peau des patient-e-s brûlé-e-s﻿﻿.</li><li>La recherche de moisissures (<em>Aspergillus</em> ou autres) est également effectuée﻿.</li></ul>","IMPORTANT: Mentionner Biopsie quantitative","",""]
["Bactériologie - Culture (Flacon BACTEC) - Cellules souches - Leucaphérèse","bacteriologie-culture-flacon-bactec","","Cellules souches - Leucaphérèse","Microbiologie","","<p>Recherches de Bactéries (sauf Mycobactéries) et Levures.</p>","","",""]
["Bactériologie - Culture (Flacon BACTEC) - Plaquettes - Flacon de sang","bacteriologie-culture-flacon-bactec-1","","Plaquettes - Flacon de sang","Microbiologie","","Recherches de Bactéries (sauf Mycobactéries) et Levures.<br />","","",""]
["Bactériologie - Culture ciblée Streptocoque beta-hémolytique gr. A, C, G - Frottis de gorge","bacteriologie-culture-ciblee-streptocoque-beta-hemolytique-gr-a-c-g","angine, amygdale","Frottis de gorge","Microbiologie","","Recherche spécifique des Streptocoques beta-hémolytiques des groupes A, C et G uniquement.","Suspicion d'angine à Streptocoque","",""]
["Bactériologie - Hémoculture chez l'adulte - Bactéries (sauf Mycobactéries) et Levures","bacteriologie-hemoculture-chez-ladulte","","Bactéries (sauf Mycobactéries) et Levures","Microbiologie","","<ul><li>﻿﻿﻿﻿Recherche par culture de bactéries et levures dans le sang. </li><li>﻿﻿﻿﻿﻿La recherche de bactéries anaérobies n'est possible que dans le flacon Anaérobic, bouchon violet.</li><li>﻿﻿En cas de suspicion de germes à croissance lente ou endocardite, une prolongation d'incubation peut-être demandée mais uniquement par téléphone au 021 314 41 07.﻿</li></ul>","","",""]
["Bactériologie - Hémoculture pédiatrique < 18 kg - Bactéries (sauf Mycobactéries) et Levures","bacteriologie-hemoculture-pediatrique-18-kg","","Bactéries (sauf Mycobactéries) et Levures","Microbiologie","","<ul><li>Recherche par culture de bactéries et levures dans le sang.</li><li>La recherche de bactéries anaérobies n'est possible que dans le flacon Anaérobic, bouchon violet.</li><li>En cas de suspicion de germes à croissance lente ou endocardite, une prolongation peut être demandée mais uniquement par téléphone au 021 314 4107.﻿</li></ul>","","",""]
["Bactériologie - Hémoculture pédiatrique >= 18 kg - Bactéries (sauf Mycobactéries) et Levures","bacteriologie-hemoculture-pediatrique-18-kg-1","","Bactéries (sauf Mycobactéries) et Levures","Microbiologie","","<ul><li>Recherche par culture de bactéries et levures dans le sang.</li><li>La recherche de bactéries anaérobies n'est possible que dans le flacon Anaérobic, bouchon violet.</li><li>En cas de suspicion de germes à croissance lente ou endocardite, une prolongation d'incubation peut être demandée mais uniquement par téléphone au 021 314 41 07.﻿</li></ul>","<p>﻿</p>","",""]
["Bactériologie culture - Sonication - Matériel d'ostéosynthèse - Prothèses articulaires et mammaires","bacteriologie-culture-sonication","ostéosynthèse, articulaire, mammaire","Matériel d'ostéosynthèse - Prothèses articulaires et mammaires","Microbiologie","","<ul><li>Recherche par culture de bactéries aérobies et anaérobies.</li><li>Un retour du matériel peut-être effectué mais doit être expressément demandé.﻿ Il est facturé aux demandeurs externes, soit à 150 CHF.</li></ul>","","",""]
["Bandelette (stix) et sédiment automatisé - Urine fraiche","bandelette-stix-et-sediment-automatise","contraste de phase, status urinaire, Aspect urine semi-quantitatif\r\nBilirubine urine semi-quantitatif, \r\nCorps cétoniques urine semi-quantitatif, \r\nCouleur urine semi-quantitatif, \r\nDensité urine semi-quantitatif, \r\nGlucose urine semi-quantitatif, \r\nLeucocytes urine semi-quantitatif, \r\nNitrites urine semi-quantitatif, \r\npH urine semi-quantitatif, \r\nProtéines urines semi-quantitatif, \r\nSang urine semi-quantitatif, \r\nUrobilinogène semi-quantitatif, Sédiment automatisée (erys et leucos), \r\nPrestation supplémentaire: sédiment urinaire (microscopie)","Urine fraiche","Chimie clinique","","<p>Liste des paramètres:</p>\r\n<ul><li>Bandelette (stix) : couleur, aspect, densité (réflectométrie), pH, sang, leucocytes, nitrites, protéines, glucose, corps cétoniques, bilirubine, urobilinogène. </li></ul>\r\n<ul><li>Sédiment automatisée : érythrocytes, leucocytes, petites cellules, grandes cellules, cyl. hyalins, cyl. pathologiques, bactéries, levures, mucus, spermatozoïdes, cristaux (oxalate de Ca, phosphate de Ca, phosphate triple, acide urique, cholestérol, cystine).</li></ul>\r\n<ul><li>Prestation supplémentaire: sédiment urinaire (microscopie) pour l'identification des cylindres pathologiques et la recherche de lipides</li></ul>","<p>Le sédiment par microscopie n'est effectué qu'en cas de: </p>\r\n<ul><li>﻿﻿protéines &gt; 0.75 g/l </li><li>anomalie du sédiment automatisé </li><li>question spécifique ( yc recherche de trichomonas, autres cristaux). Sans motivation, seule l'analyse bandelette (stix) et sédiment automatisé sera effectuée.</li></ul>\r\n<p><br /></p>","","Examen d'urine, sédiment urinaire, status urinaire, stix urinaire, urine-examen, pH, pH urine, pH urinaire"]
["Bartonella  PCR - Sang","bartonella-pcr","Griffes, griffes de chat","Sang","Microbio moléculaire","","<p>La recherche de Bartonella henselae et quintana est effectuée en parallèle</p>","","","Bartonellose"]
["Bartonella  PCR - Abcès","bartonella-pcr-1","","Abcès","Microbio moléculaire","","La recherche de Bartonella henselae et quintana est effectuée en parallèle","","","Bartonellose, griffes, griffes de chat"]
["Bartonella  PCR - Abcès / kyste, amygdale","bartonella-pcr-2","","Abcès / kyste, amygdale","Microbio moléculaire","","La recherche de Bartonella henselae et quintana est effectuée en parallèle","","","Bartonellose, griffes, griffes de chat"]
["Bartonella  PCR - ","bartonella-pcr-3","","","Microbio moléculaire","","La recherche de Bartonella henselae et quintana est effectuée en parallèle","","","Bartonellose, griffes, griffes de chat"]
["Bartonella  PCR - Abcès / Kyste, cervical","bartonella-pcr-4","","Abcès / Kyste, cervical","Microbio moléculaire","","La recherche de Bartonella henselae et quintana est effectuée en parallèle","","","Bartonellose, griffes, griffes de chat"]
["Bartonella  PCR - Abcès / Kyste, dentaire","bartonella-pcr-5","","Abcès / Kyste, dentaire","Microbio moléculaire","","La recherche de Bartonella henselae et quintana est effectuée en parallèle","","","Bartonellose, griffes, griffes de chat"]
["Bartonella  PCR - Abcès / Kyste, foie","bartonella-pcr-6","","Abcès / Kyste, foie","Microbio moléculaire","","La recherche de Bartonella henselae et quintana est effectuée en parallèle","","","Bartonellose, griffes, griffes de chat"]
["Bartonella  PCR - Abcès / Kyste, para-anal","bartonella-pcr-7","","Abcès / Kyste, para-anal","Microbio moléculaire","","La recherche de Bartonella henselae et quintana est effectuée en parallèle","","","Bartonellose, griffes, griffes de chat"]
["Bartonella  PCR - Abcès / Kyste, paroi","bartonella-pcr-8","","Abcès / Kyste, paroi","Microbio moléculaire","","La recherche de Bartonella henselae et quintana est effectuée en parallèle","","","Bartonellose, griffes, griffes de chat"]
["Bartonella  PCR - Abcès / Kyste, pulmonaire","bartonella-pcr-9","","Abcès / Kyste, pulmonaire","Microbio moléculaire","","La recherche de Bartonella henselae et quintana est effectuée en parallèle","","","Bartonellose, griffes, griffes de chat"]
["Bartonella  PCR - Abcès / Kyste, sein","bartonella-pcr-10","","Abcès / Kyste, sein","Microbio moléculaire","","La recherche de Bartonella henselae et quintana est effectuée en parallèle","","","Bartonellose, griffes, griffes de chat"]
["Bartonella  PCR - Anévrisme","bartonella-pcr-11","","Anévrisme","Microbio moléculaire","","La recherche de Bartonella henselae et quintana est effectuée en parallèle","","","Bartonellose, griffes, griffes de chat"]
["Bartonella  PCR - Biopsie","bartonella-pcr-12","","Biopsie","Microbio moléculaire","","La recherche de Bartonella henselae et quintana est effectuée en parallèle","","","Bartonellose, griffes, griffes de chat"]
["Bartonella  PCR - Biopsie cérébrale","bartonella-pcr-13","","Biopsie cérébrale","Microbio moléculaire","","La recherche de Bartonella henselae et quintana est effectuée en parallèle","","","Bartonellose, griffes, griffes de chat"]
["Bartonella  PCR - Biopsie foie","bartonella-pcr-14","","Biopsie foie","Microbio moléculaire","","La recherche de Bartonella henselae et quintana est effectuée en parallèle","","","Bartonellose, griffes, griffes de chat"]
["Bartonella  PCR - Biopsie ganglion","bartonella-pcr-15","","Biopsie ganglion","Microbio moléculaire","","La recherche de Bartonella henselae et quintana est effectuée en parallèle","","","Bartonellose, griffes, griffes de chat"]
["Bartonella  PCR - Biopsie valve","bartonella-pcr-16","","Biopsie valve","Microbio moléculaire","","La recherche de Bartonella henselae et quintana est effectuée en parallèle","","","Bartonellose, griffes, griffes de chat"]
["Bartonella  PCR - Liquide natif","bartonella-pcr-17","","Liquide natif","Microbio moléculaire","","La recherche de Bartonella henselae et quintana est effectuée en parallèle","","","Bartonellose, griffes, griffes de chat"]
["Bartonella  PCR - Tissu cutané","bartonella-pcr-18","","Tissu cutané","Microbio moléculaire","","La recherche de Bartonella henselae et quintana est effectuée en parallèle","","","Bartonellose, griffes, griffes de chat"]
["Bartonella henselae - Sérodiagnostic","bartonella-henselae","","Sérodiagnostic","Microbio sérologie","","","","","Maladie des griffes du chat"]
["BCL1-JH - BCL1-JH - Lymphome du manteau, t(11;14)","bcl1-jh","","BCL1-JH - Lymphome du manteau, t(11;14)","Hématologie moléculaire","","Le BCL1 correspond à l'équivalent moléculaire de la translocation chromosomique t(11;14) qui peut être présente dans les lymphomes de la zone du manteau (mantle cell lymphoma)<br />L'analyse est complémentaire de l'analyse cytogénétique standard. Elle est qualitative","","","Lymphome du manteau, MCL, translocations chromosomiques, t(11;14)"]
["BCL2-JH - BCL2-JH - Lymphome folliculaire, t(14;18)","bcl2-jh","","BCL2-JH - Lymphome folliculaire, t(14;18)","Hématologie moléculaire","","Le BCL2 correspond à l'équivalent moléculaire de la translocation chromosomique t(14;18) qui peut être présente dans les lymphomes folliculaires.<br />L'analyse est complémentaire de l'analyse cytogénétique standard.","","","Lymphome folliculaire , translocations chromosomiques, T(14;18)"]
["BCR-ABL - Equivalent moléculaire translocation t(9;22)BCR-ABL diagnostic ou BCR-ABL quantitatif (MDR, %IS)","bcr-abl","","Equivalent moléculaire translocation t(9;22)BCR-ABL diagnostic ou BCR-ABL quantitatif (MDR, %IS)","Hématologie moléculaire","","<p>Le BCR-ABL correspond à l'équivalent moléculaire de la translocation chromosomique t(9;22) (chromosome Philadelphia) qui peut être présente dans les LMC et les LLA.<br /> L'analyse détecte la présence du BCR-ABL avec major break point (P210) et du BCR-ABL avec minor break point (P190).<br /> Cette analyse est complémentaire de l'analyse cytogénétique standard.</p>","","","Chromosome Philadelphia, Philadelphia, T(9;22), translocations chromosomiques"]
["Bedaquiline - Sang","bedaquiline","tuberculose, tuberculeux, anti-tuberculeux, Antibiotique, MDR, XDR","Sang","Pharmacologie","","Dosage et interprétation pharmacocinétique de taux sanguin de Bedaquiline ","<p>Sur avis du spécialiste. L’interprétation clinique (TDM) du dosage n’est actuellement pas validée. </p>\r\n<p><br /></p>","",""]
["Benzoate (acide benzoïque) - Sang","benzoate-acide-benzoique","","Sang","Chimie clinique","","","Intoxication au benzoate.","","Acide benzoïque, benzoate, benzoïque, hippuric acid, hippurate"]
["Benzoate / hippurate - Urine","benzoate-/-hippurate","","Urine","Chimie clinique","","","","","Acide benzoïque, benzoate, benzoïque, benzoic acid, acide hippurique, hippurate, hippurique, hippuric acid"]
["Beta-2 microglobuline - Sang","beta-2-microglobuline","Inflammation, protéine sérique, insuffisance rénale, tumeur","Sang","Immunologie et allergie","","","","",""]
["Beta-2 microglobuline - Urine fœtale","beta-2-microglobuline-1","","Urine fœtale","Immunologie et allergie","","Recherche de malformation urinaire chez le fœtus","","",""]
["Beta-2 microglobuline - LCR","beta-2-microglobuline-2","Albumines, inflammation, microalbumines, microprotéines, neurologie, protéines, SNC","LCR","Immunologie et allergie","","","","",""]
["Bêta-2 Transferrine - Liquides d'écoulements","beta-2-transferrine","LCR, liquides d'écoulements, otorrhée, rhinorrhée","Liquides d'écoulements","Chimie clinique","","<p>Cette analyse a été remplacée par la bêta trace protéine.<br /></p>\r\n<p>Recherche de LCR dans les liquides d'écoulements (otorrhée, rhinorrhée, autres...)<br /></p>","","","BTRF, bêta trace protéine, BTP"]
["Bêta-crosslaps - Sang","beta-crosslaps","Marqueur osseux, crosslaps, cross-laps, CTX, peptides de dégradation du collagène osseux, télopeptide C du procollagène I, télopeptide C terminal, beta-crosslaps","Sang","Chimie clinique","","","","En raison des variations circadiennes et de la grande influence de la nourriture, le patient doit être à jeun et le prélèvement effectué le matin, selon un moment standardisé situé si possible entre 08h00 et 10h00.","Télopeptide C-terminal du collagène I "]
["bêta-hCG libre - Sang","beta-hcg-libre","gonadotrophine chorionique humaine, gonadotrophine chorionique, HCG, free beta, sous-unité bêta, human chorionic gonadotrophin, marqueur tumoral, trisomie 21, trisomies 13/18, bhcg, beta-hcg","Sang","Chimie clinique","","","<p>Comme <strong>marqueur tumoral.</strong><br /></p>\r\n<p><em>Pour le <strong>dépistage prénatal des trisomies 21 et 13/18 au 1er trimestre</strong>,  consulter la fiche correspondante \"Dépistage des trisomies 21 et 13/18 - 1er trimestre\".</em></p>\r\n<p>NB:  <strong>Attention !</strong> cette analyse n'est pas recommandée pour le <strong>test et le suivi de grossesse </strong>:  pour une telle indication, demander la <strong>bêta-hCG totale</strong>.</p>","","sous-unité bêta libre de l'hormone chorionique gonadotrope humaine "]
["bêta-hCG totale - Sang","beta-hcg-totale","Grossesse, hormone, test de grossesse, marqueur tumoral, trisomie 21, gonadotrophine chorionique humaine, gonadotrophine chorionique, HCG, sous-unité bêta, human chorionic gonadotrophin, bhcg, beta-hcg","Sang","Chimie clinique","","","<p><strong>﻿﻿</strong>- pour le <strong>test et le suivi de grossesse</strong><br />- hors grossesse, comme <strong>marqueur tumoral</strong></p>\r\n<p><em>Pour le dépistage prénatal de la <strong>trisomie 21 au 2ème trimestre</strong>, consulter la fiche correspondante \"Dépistage de la trisomie 21 et de la NFTN - 2ème trimestre\". </em><strong><br /></strong></p>","","sous-unité bêta de l'hormone chorionique gonadotrope humaine "]
["Beta-trace protéine - Liquides d'écoulement/ Sérum","beta-trace-proteine","LCR, liquides d'écoulements, otorrhée, rhinorrhée, beta 2 transferrine, BTRF","Liquides d'écoulement/ Sérum","Chimie clinique","","<p>Recherche de LCR dans les liquides d'écoulements (otorrhée, rhinorrhée, autres...)</p>\r\n<p>Un tube sérum (sans gel) concomitant à l'écoulement est demandé.</p>","","","BTP"]
["Bicarbonate - Sang","bicarbonate","Trou anionique","Sang","Chimie clinique","","","","",""]
["Bictegravir - Sang","bictegravir","Antirétroviraux, anti-HIV, Antirétroviral, NRTI, analogue nucléosidique et nucléotidique, INI","Sang","Pharmacologie","","<p>Dosage et interprétation pharmacocinétique de taux sanguin de bictegravir (absence d'intervalle de référence, évaluation seulement de la plausibilité du taux)</p>","<p>Suivi thérapeutique, réponse insatisfaisante, suspicion de toxicité, suspicion d'interaction médicamenteuse, doute sur la compliance, grossesse, étude</p>","","Biktarvy®"]
["Bilan d'hémolyse - ","bilan-dhemolyse","Hémolyse, Coombs, TDA","","UMT","","Suspicion d'hémolyse<br />","","",""]
["Bilan lipidique spécialisé - Sang","bilan-lipidique-specialise","LDL, lipide, lipides, liproprotéine, ultracentrifugation","Sang","Chimie clinique","","Dyslipémies avec triglycérides >4,5 mmol/L","Cet examen a remplacé l'ultracentrifugation des lipoprotéines depuis le 11.09.2017<br />Le bilan comprend les analyses suivantes: cholestérol total, cholestérol-HDL, triglycérides, cholestérol-LDL mesuré","","LDL, lipide, lipides, liproprotéine, ultracentrifugation"]
["Bilirubine directe - Sang","bilirubine-directe","ictère","Sang","Chimie clinique","","","","",""]
["Bilirubine totale - Sang","bilirubine-totale","ictère","Sang","Chimie clinique","","","","",""]
["BK virus PCR - Sang","bk-virus-pcr","","Sang","Microbio moléculaire","","La recherche de Bartonella henselae et quintana est effectuée en parallèle","","","Bartonellose, griffes, griffes de chat"]
["BK virus PCR - Ponction vésicale","bk-virus-pcr-1","","Ponction vésicale","Microbio moléculaire","","","","","Polyomavirus"]
["BK virus PCR - Urine début du jet (PCR uniquement)","bk-virus-pcr-2","","Urine début du jet (PCR uniquement)","Microbio moléculaire","","","","","Polyomavirus"]
["BK virus PCR - Urine milieu du jet","bk-virus-pcr-3","","Urine milieu du jet","Microbio moléculaire","","","","","Polyomavirus"]
["BK virus PCR - Urine sac (enfant)","bk-virus-pcr-4","","Urine sac (enfant)","Microbio moléculaire","","","","","Polyomavirus"]
["BK virus PCR - Urine sondage aller retour","bk-virus-pcr-5","","Urine sondage aller retour","Microbio moléculaire","","","","","Polyomavirus"]
["BK virus PCR - Urine sonde à demeure","bk-virus-pcr-6","","Urine sonde à demeure","Microbio moléculaire","","","","","Polyomavirus"]
["Bordetella pertussis  PCR - Sang","bordetella-pertussis-pcr","","Sang","Microbio moléculaire","","Evaluation de la charge virale","Principalement c/o immunosupprimés","","Polyomavirus"]
["Bordetella pertussis  PCR - Frottis gorge","bordetella-pertussis-pcr-1","","Frottis gorge","Microbio moléculaire","","La recherche de Bordetella pertussis et parapertussis est effectué en parallèle","","","Coqueluche"]
["Bordetella pertussis  PCR - Frottis nez","bordetella-pertussis-pcr-2","","Frottis nez","Microbio moléculaire","","La recherche de Bordetella pertussis et parapertussis est effectué en parallèle","","","Coqueluche"]
["Bordetella pertussis  PCR - Biopsie transbronchique","bordetella-pertussis-pcr-3","","Biopsie transbronchique","Microbio moléculaire","","La recherche de Bordetella pertussis et parapertussis est effectué en parallèle","","","Coqueluche"]
["Bordetella pertussis  PCR - Expectoration","bordetella-pertussis-pcr-4","","Expectoration","Microbio moléculaire","","La recherche de Bordetella pertussis et parapertussis est effectué en parallèle","","","Coqueluche"]
["Bordetella pertussis  PCR - Sécrétions endo-trachéales","bordetella-pertussis-pcr-5","","Sécrétions endo-trachéales","Microbio moléculaire","","La recherche de Bordetella pertussis et parapertussis est effectué en parallèle","","","Coqueluche"]
["Bordetella pertussis  PCR - Sécrétions nasopharyngées","bordetella-pertussis-pcr-6","","Sécrétions nasopharyngées","Microbio moléculaire","","La recherche de Bordetella pertussis et parapertussis est effectué en parallèle","","","Coqueluche"]
["Bordetella pertussis  PCR - Aspiration bronchique","bordetella-pertussis-pcr-7","","Aspiration bronchique","Microbio moléculaire","","La recherche de Bordetella pertussis et parapertussis est effectué en parallèle","","","Coqueluche"]
["Bordetella pertussis  PCR - Lavage broncho-alvéolaire (LBA)","bordetella-pertussis-pcr-8","","Lavage broncho-alvéolaire (LBA)","Microbio moléculaire","","La recherche de Bordetella pertussis et parapertussis est effectué en parallèle","","","Coqueluche"]
["Borrelia burgdorferi LCR - Sérodiagnostic IgG + calcul de synthèse intrathécale","borrelia-burgdorferi-lcr","","Sérodiagnostic IgG + calcul de synthèse intrathécale","Microbio sérologie","","","","","Lyme, neuroborréliose"]
["Borrelia burgdorferi PCR - Liquide céphalorachidien (LCR)","borrelia-burgdorferi-pcr-12","","Liquide céphalorachidien (LCR)","Microbio moléculaire","","","","","Lyme, Lyme (maladie de …), erythème migrant"]
["Borrelia burgdorferi PCR - Abcès","borrelia-burgdorferi-pcr","","Abcès","Microbio moléculaire","","","","","Lyme, Lyme (maladie de …), erythème migrant"]
["Borrelia burgdorferi PCR - Abcès / kyste, amygdale","borrelia-burgdorferi-pcr-1","","Abcès / kyste, amygdale","Microbio moléculaire","","","","","Lyme, Lyme (maladie de …), erythème migrant"]
["Borrelia burgdorferi PCR - Abcès / Kyste, cérébral","borrelia-burgdorferi-pcr-2","","Abcès / Kyste, cérébral","Microbio moléculaire","","","","","Lyme, Lyme (maladie de …), erythème migrant"]
["Borrelia burgdorferi PCR - Abcès / Kyste, cervical","borrelia-burgdorferi-pcr-3","","Abcès / Kyste, cervical","Microbio moléculaire","","","","","Lyme, Lyme (maladie de …), erythème migrant"]
["Borrelia burgdorferi PCR - Abcès / Kyste, dentaire","borrelia-burgdorferi-pcr-4","","Abcès / Kyste, dentaire","Microbio moléculaire","","","","","Lyme, Lyme (maladie de …), erythème migrant"]
["Borrelia burgdorferi PCR - Abcès / Kyste, foie","borrelia-burgdorferi-pcr-5","","Abcès / Kyste, foie","Microbio moléculaire","","","","","Lyme, Lyme (maladie de …), erythème migrant"]
["Borrelia burgdorferi PCR - Abcès / Kyste, para-anal","borrelia-burgdorferi-pcr-6","","Abcès / Kyste, para-anal","Microbio moléculaire","","","","","Lyme, Lyme (maladie de …), erythème migrant"]
["Borrelia burgdorferi PCR - Abcès / Kyste, paroi","borrelia-burgdorferi-pcr-7","","Abcès / Kyste, paroi","Microbio moléculaire","","","","","Lyme, Lyme (maladie de …), erythème migrant"]
["Borrelia burgdorferi PCR - Abcès / Kyste, pulmonaire","borrelia-burgdorferi-pcr-8","","Abcès / Kyste, pulmonaire","Microbio moléculaire","","","","","Lyme, Lyme (maladie de …), erythème migrant"]
["Borrelia burgdorferi PCR - Abcès / Kyste, sein","borrelia-burgdorferi-pcr-9","","Abcès / Kyste, sein","Microbio moléculaire","","","","","Lyme, Lyme (maladie de …), erythème migrant"]
["Borrelia burgdorferi PCR - Biopsie","borrelia-burgdorferi-pcr-10","","Biopsie","Microbio moléculaire","","","","","Lyme, Lyme (maladie de …), erythème migrant"]
["Borrelia burgdorferi PCR - Liquide articulaire","borrelia-burgdorferi-pcr-11","","Liquide articulaire","Microbio moléculaire","","","","","Lyme, Lyme (maladie de …), erythème migrant"]
["Borrelia burgdorferi sang - Sérodiagnostic IgG et IgM","borrelia-burgdorferi-sang","","Sérodiagnostic IgG et IgM","Microbio sérologie","","","","","Lyme, borreliose"]
["Bosutinib - Sang","bosutinib","Anticancéreux ciblé, TKI, inhibiteur tirosine kinase","Sang","Pharmacologie","","Dosage de taux sanguin de bosutinib","Sur avis du spécialiste. L’interprétation clinique (TDM) ou pharmacocinétique des dosage n’est actuellement pas validée.","","Bosulif®"]
["Brexpiprazole - Sang","brexpiprazole","Rexulti","Sang","UPPC Pharmacogénétique et psychopharmacologie","","Dosage et interprétation pharmacologique du taux sanguin","Réponse insatisfaisante, effets secondaires, interactions, doute sur l’adhésion, suspicion d’intoxication","",""]
["Brivaracetam - Sang","brivaracetam","Antiépileptique, anticonvulsivant, anti-convulsivant, anti-épileptique, épilepsie,","Sang","Pharmacologie","","<p>Dosage et interprétation pharmacocinétique de taux sanguin de brivaracetam (absence d'intervalle de référence, évaluation seulement de la plausibilité du taux)</p>","<p>Sur avis du spécialiste. L’interprétation clinique (TDM) du dosage n’est actuellement pas validée.</p>","","Briviact"]
["Brucella - Culture - Abcès cérébral","brucella-culture","pus","Abcès cérébral","Microbiologie","","Recherche par culture de <em>Brucella</em><em> </em>dans l'abcès cérébral.","","",""]
["Brucella - Culture - Abcès du poumon","brucella-culture-1","pus","Abcès du poumon","Microbiologie","","Recherche par culture de <em>Brucella</em><em> </em>dans l'abcès pulmonaire.","","",""]
["Brucella - Culture - Abcès","brucella-culture-2","pus","Abcès","Microbiologie","","Recherche par culture de <em>Brucella</em><em> </em>dans les échantillons d'abcès.","","",""]
["Brucella - Culture - Liquide et ponction de cavité normalement stérile (préciser la nature de l'échantillon)","brucella-culture-3","","Liquide et ponction de cavité normalement stérile (préciser la nature de l'échantillon)","Microbiologie","","Recherche par culture de <em>Brucella</em><em> </em>dans un liquide, une ponction ou cytoponction de cavité normalement stérile. ","","",""]
["Brucella - Culture - Tissu (biopsie) d'anévrisme","brucella-culture-4","fragment","Tissu (biopsie) d'anévrisme","Microbiologie","","Recherche par culture de <em>Brucella</em><em> </em>dans du tissu (biopsie) d'anévrisme.","","",""]
["Brucella - Culture - Tissu (biopsie) cérébral","brucella-culture-5","fragment","Tissu (biopsie) cérébral","Microbiologie","","Recherche par culture de <em>Brucella</em><em> </em>dans du tissu (biopsie) cérébral.","","",""]
["Brucella - Culture - Tissu (biopsie) de ganglion","brucella-culture-6","fragment","Tissu (biopsie) de ganglion","Microbiologie","","Recherche par culture de <em>Brucella</em><em> </em>dans du tissu (biopsie) de ganglion.","","",""]
["Brucella - Culture - Tissu ou biopsie (spécifier le site)","brucella-culture-7","fragment","Tissu ou biopsie (spécifier le site)","Microbiologie","","Recherche par culture de <em>Brucella</em><em> </em>dans du tissu ou biopsie.","","",""]
["Brucella PCR - Liquide céphalo-rachidien (LCR)","brucella-pcr","","Liquide céphalo-rachidien (LCR)","Microbio moléculaire","","","","","Lyme, Lyme (maladie de …), erythème migrant"]
["Brucella PCR - Abcès","brucella-pcr-1","","Abcès","Microbio moléculaire","","","","",""]
["Brucella PCR - Abcès / kyste, amygdale","brucella-pcr-2","","Abcès / kyste, amygdale","Microbio moléculaire","","","","",""]
["Brucella PCR - Abcès / Kyste, cérébral","brucella-pcr-3","","Abcès / Kyste, cérébral","Microbio moléculaire","","","","",""]
["Brucella PCR - Abcès / Kyste, cervical","brucella-pcr-4","","Abcès / Kyste, cervical","Microbio moléculaire","","","","",""]
["Brucella PCR - Abcès / Kyste, dentaire","brucella-pcr-5","","Abcès / Kyste, dentaire","Microbio moléculaire","","","","",""]
["Brucella PCR - Abcès / Kyste, foie","brucella-pcr-6","","Abcès / Kyste, foie","Microbio moléculaire","","","","",""]
["Brucella PCR - Abcès / Kyste, para-anal","brucella-pcr-7","","Abcès / Kyste, para-anal","Microbio moléculaire","","","","",""]
["Brucella PCR - Abcès / Kyste, paroi","brucella-pcr-8","","Abcès / Kyste, paroi","Microbio moléculaire","","","","",""]
["Brucella PCR - Abcès / kyste, pulmonaire","brucella-pcr-9","","Abcès / kyste, pulmonaire","Microbio moléculaire","","","","",""]
["Brucella PCR - Abcès / Kyste, sein","brucella-pcr-10","","Abcès / Kyste, sein","Microbio moléculaire","","","","",""]
["Brucella PCR - Biopsie","brucella-pcr-11","","Biopsie","Microbio moléculaire","","","","",""]
["Brucella PCR - Biopsie cérébrale","brucella-pcr-12","","Biopsie cérébrale","Microbio moléculaire","","","","",""]
["Brucella PCR - Biopsie disque intervertébral","brucella-pcr-13","","Biopsie disque intervertébral","Microbio moléculaire","","","","",""]
["Brucella PCR - Biopsie foie","brucella-pcr-14","","Biopsie foie","Microbio moléculaire","","","","",""]
["Brucella PCR - Biopsie ganglion","brucella-pcr-15","","Biopsie ganglion","Microbio moléculaire","","","","",""]
["Brucella PCR - Biopsie tissu articulaire","brucella-pcr-16","","Biopsie tissu articulaire","Microbio moléculaire","","","","",""]
["Brucella PCR - Biopsie valve","brucella-pcr-17","","Biopsie valve","Microbio moléculaire","","","","",""]
["Brucella PCR - Liquide natif","brucella-pcr-18","","Liquide natif","Microbio moléculaire","","","","",""]
["Brucella PCR - Os","brucella-pcr-19","","Os","Microbio moléculaire","","","","",""]
["Brucellose - Sérodiagnostic Ig totales","brucellose","","Sérodiagnostic Ig totales","Microbio sérologie","","","","",""]
["Buprénorphine - Sang","buprenorphine","subutex, suboxone, buprenorphin, transtec, temgesic","Sang","UPPC Pharmacogénétique et psychopharmacologie","","Dosage et interprétation pharmacologique du taux sanguin","Réponse insatisfaisante, effets secondaires, interactions, doute sur l’adhésion, suspicion d’intoxication","",""]
["Bupropion - Sang","bupropion","Wellbutrin, Zyban","Sang","UPPC Pharmacogénétique et psychopharmacologie","","Dosage et interprétation pharmacologique du taux sanguin","Réponse insatisfaisante, effets secondaires, interactions, doute sur l’adhésion, suspicion d’intoxication","",""]
["Burkholderia cepacia - Culture - Lavage broncho-alvéolaire (LBA)","burkholderia-cepacia-culture","Sécrétions pulmonaires, respiratoires","Lavage broncho-alvéolaire (LBA)","Microbiologie","","Recherche par culture de Burkholderia cepacia dans les échantillons de lavage broncho-alvéolaire (LBA).","","",""]
["Burkholderia cepacia - Culture - Expectorations (chez patient mucoviscidose)","burkholderia-cepacia-culture-1","Sécrétions pulmonaires, respiratoires, mucoviscidose, brurkholderia cepacia","Expectorations (chez patient mucoviscidose)","Microbiologie","","Recherche par culture de <em>Burkholderia cepacia</em> dans les expectorations chez le patient mucoviscidose.","","﻿",""]
["Burkholderia cepacia - Culture - Aspirations bronchiques, Sécrétions endotrachéales","burkholderia-cepacia-culture-2","Sécrétions pulmonaires, respiratoires","Aspirations bronchiques, Sécrétions endotrachéales","Microbiologie","","Recherche par culture de Burkholderia cepacia﻿ dans les aspirations bronchiques et sécrétions endotrachéales.","","",""]
["C-peptide - Sang","c-peptide","Diabète","Sang","Chimie clinique","","","<strong>Attention! Si demande concomitante avec l'insuline, ce sont les conditions préanalytiques de l'insuline qui prévalent !</strong>","A jeun pour taux basal","peptide-C"]
["C1 inactivateur - ","c1-inactivateur","Complément","","Immunologie et allergie","","","Œdème angioneurotique héréditaire","","C1-estérase inhibiteur, C1s-inhibiteur"]
["C1 inactivateur fonctionnel - ","c1-inactivateur-fonctionnel","Complément","","Immunologie et allergie","","","","",""]
["C1Q - ","c1q","Complément","","Immunologie et allergie","","","","",""]
["C3 - ","c3","Complément, C3c","","Immunologie et allergie","","","","",""]
["C4 - ","c4","Complément","","Immunologie et allergie","","","","",""]
["CA 125 - Sang","ca-125","marqueur tumoral","Sang","Chimie clinique","","","","","antigène tumoral 125, cancer antigen 125, carbohydrate antigen 125"]
["CA 15-3 - Sang","ca-15-3","cancer antigen 15-3, marqueur tumoral","Sang","Chimie clinique","","","","","Antigène carbohydrate 15-3, antigène de cancer 15-3"]
["CA 19-9 - Sang","ca-19-9","cancer antigen 19-9, marqueur tumoral","Sang","Chimie clinique","","","","","Antigène carbohydrate 19-9,  antigène de cancer 19-9"]
["Cabotegravir - Sang","cabotegravir","Antirétroviraux, anti-HIV, Antirétroviral, NRTI, analogue nucléosidique et nucléotidique, INI","Sang","Pharmacologie","","<p>Dosage et interprétation pharmacocinétique de taux sanguin de cabotegravir (absence d'intervalle de référence, évaluation seulement de la plausibilité du taux)</p>","<p>Suivi thérapeutique, réponse insatisfaisante, suspicion de toxicité, suspicion d'interaction médicamenteuse, doute sur la compliance, grossesse, étude</p>","",""]
["Calcitonine (CT) - Sang","calcitonine-ct","Marqueur tumoral, calcitonin, thyrocalcitonin, test au calcium, test à la pentagastrine","Sang","Chimie clinique","Acheminer immédiatement le tube","","","<p>Effectuer le prélèvement de préférence à jeun (ou au moins à distance des repas pour éviter l'hypergastrinémie).</p>\r\n<p>En cas de traitement aux Inhibiteurs de la Pompe à Protons, effectuer le prélèvement avant la prise de médicament, mais idéalement, si l'arrêt du traitement est possible, effectuer le prélèvement après 2 semaines d'arrêt.<br /></p>","Thyrocalcitonine"]
["Calcium corrigé - Sang","calcium-corrige","électrolytes, calcémie, albumine","Sang","Chimie clinique","","<p>Si le calcium total et l'albumine sang sont demandés, le calcium corrigé est calculé automatiquement.</p>","","","Ca"]
["Calcium ionisé - Sang","calcium-ionise","électrolyte, calcémie","Sang","Chimie clinique","","","","",""]
["Calcium total - Sang","calcium-total","électrolyte, calcémie","Sang","Chimie clinique","","","","",""]
["Calcium total - Dialysat","calcium-total-1","électrolyte, calcémie","Dialysat","Chimie clinique","","","","",""]
["Calcium total - Urine fraiche","calcium-total-2","électrolyte, calcémie","Urine fraiche","Chimie clinique","","","","",""]
["Calcium total - Selles","calcium-total-3","électrolytes","Selles","Chimie clinique","","","","","Ca"]
["Calcium total - Urine 24h","calcium-total-4","électrolyte, calcémie","Urine 24h","Chimie clinique","","","","",""]
["Calprotéctine - ","calprotectine","IBD, IBS, MICI, inflammation, intestin","","Immunologie et allergie","","Recherche et suivi de MICI","Diarrhées inflammatoires","",""]
["Calréticuline - CALR","calreticuline","Calréticuline, CALR, TE, MP myélofibrose primaire, thrombocytémie essentielle, SMP,  NMP, mutation","CALR","Hématologie moléculaire","","Cette analyse permet de mettre en évidence des mutations dans une partie de l'exon de la calréticuline dans les syndromes myéloprolifératifs JAK-2 MUT et MPL négatifs.<br />La première mutation de type 1 est constituée d'une délétion de 52 nucléotides. Il existe d'autres mutations beaucoup plus rares. Cette analyse est de grand intérêt dans le diagnostic de le thrombocytémie essentielle et de la myélofibrose primaire .","","","Mutation CALR"]
["Campylobacter, Salmonella, Shigella - Culture - Biopsies anus ou colon","campylobacter-salmonella-shigella-culture","anal, anale, colique","Biopsies anus ou colon","Microbiologie","","Recherche par culture de <em>Campylobacter, Salmonella, Shigella</em>﻿ dans les échantillons de Biopsies anus, colon ou rectum﻿","","",""]
["Campylobacter, Salmonella, Shigella, Shiga toxine - PCR (test rapide) - Selles","campylobacter-salmonella-shigella-shiga-toxine-pcr-test-rapide","salmonelle, shigelle, campylobacter, e.coli, entérohémorragique,","Selles","Microbiologie","","﻿Détection par PCR dans les Selles de <em>Campylobacter, Salmonella, Shigella</em>, Shiga toxine. Si PCR positive, la culture du germe détecté est effectuée.","Diarrhées acquises à domicile ou durant les 3 premiers jours d'hospitalisation.","",""]
["Candida PCR - Sang","candida-pcr","","Sang","Microbio moléculaire","","","","",""]
["Candida PCR - Liquide humeur aqueuse","candida-pcr-1","","Liquide humeur aqueuse","Microbio moléculaire","","Recherche de Candida albicans, parapsilosis, kruseii, glabrata, tropicalis, dubliniensis","","","Candida, champignon"]
["Candida PCR - Liquide humeur vitrée","candida-pcr-2","","Liquide humeur vitrée","Microbio moléculaire","","Recherche de Candida albicans, parapsilosis, kruseii, glabrata, tropicalis, dubliniensis","","","Candida, champignon"]
["Candida PCR - Sécrétions conjonctivales","candida-pcr-3","","Sécrétions conjonctivales","Microbio moléculaire","","Recherche de Candida albicans, parapsilosis, kruseii, glabrata, tropicalis, dubliniensis","","","Candida, champignon"]
["Candida PCR - Abcès","candida-pcr-4","","Abcès","Microbio moléculaire","","Recherche de Candida albicans, parapsilosis, kruseii, glabrata, tropicalis, dubliniensis","","","Candida, champignon"]
["Candida PCR - Abcès / kyste, amygdale","candida-pcr-5","","Abcès / kyste, amygdale","Microbio moléculaire","","Recherche de Candida albicans, parapsilosis, kruseii, glabrata, tropicalis, dubliniensis","","","Candida, champignon"]
["Candida PCR - Abcès / Kyste, cérébral","candida-pcr-6","","Abcès / Kyste, cérébral","Microbio moléculaire","","Recherche de Candida albicans, parapsilosis, kruseii, glabrata, tropicalis, dubliniensis","","","Candida, champignon"]
["Candida PCR - Abcès / Kyste, cervical","candida-pcr-7","","Abcès / Kyste, cervical","Microbio moléculaire","","Recherche de Candida albicans, parapsilosis, kruseii, glabrata, tropicalis, dubliniensis","","","Candida, champignon"]
["Candida PCR - Abcès / Kyste, dentaire","candida-pcr-8","","Abcès / Kyste, dentaire","Microbio moléculaire","","Recherche de Candida albicans, parapsilosis, kruseii, glabrata, tropicalis, dubliniensis","","","Candida, champignon"]
["Candida PCR - Abcès / Kyste, foie","candida-pcr-9","","Abcès / Kyste, foie","Microbio moléculaire","","Recherche de Candida albicans, parapsilosis, kruseii, glabrata, tropicalis, dubliniensis","","","Candida, champignon"]
["Candida PCR - Abcès / Kyste, para-anal","candida-pcr-10","","Abcès / Kyste, para-anal","Microbio moléculaire","","Recherche de Candida albicans, parapsilosis, kruseii, glabrata, tropicalis, dubliniensis","","","Candida, champignon"]
["Candida PCR - Abcès / Kyste, paroi","candida-pcr-11","","Abcès / Kyste, paroi","Microbio moléculaire","","Recherche de Candida albicans, parapsilosis, kruseii, glabrata, tropicalis, dubliniensis","","","Candida, champignon"]
["Candida PCR - Abcès / kyste, pulmonaire","candida-pcr-12","","Abcès / kyste, pulmonaire","Microbio moléculaire","","Recherche de Candida albicans, parapsilosis, kruseii, glabrata, tropicalis, dubliniensis","","","Candida, champignon"]
["Candida PCR - Abcès / Kyste, sein","candida-pcr-13","","Abcès / Kyste, sein","Microbio moléculaire","","Recherche de Candida albicans, parapsilosis, kruseii, glabrata, tropicalis, dubliniensis","","","Candida, champignon"]
["Candida PCR - Anévrisme","candida-pcr-14","","Anévrisme","Microbio moléculaire","","Recherche de Candida albicans, parapsilosis, kruseii, glabrata, tropicalis, dubliniensis","","","Candida, champignon"]
["Candida PCR - Biopsie","candida-pcr-15","","Biopsie","Microbio moléculaire","","Recherche de Candida albicans, parapsilosis, kruseii, glabrata, tropicalis, dubliniensis","","","Candida, champignon"]
["Candida PCR - Biopsie foie","candida-pcr-16","","Biopsie foie","Microbio moléculaire","","Recherche de Candida albicans, parapsilosis, kruseii, glabrata, tropicalis, dubliniensis","","","Candida, champignon"]
["Candida PCR - Biopsie quantitative (patient brûlé)","candida-pcr-17","","Biopsie quantitative (patient brûlé)","Microbio moléculaire","","Recherche de Candida albicans, parapsilosis, kruseii, glabrata, tropicalis, dubliniensis","","","Candida, champignon"]
["Candida PCR - Biopsie valve","candida-pcr-18","","Biopsie valve","Microbio moléculaire","","Recherche de Candida albicans, parapsilosis, kruseii, glabrata, tropicalis, dubliniensis","","","Candida, champignon"]
["CAR-T cells - Quantification des CAR-T cells par PCR digitale et cytométrie en flux","car-t-cells","","Quantification des CAR-T cells par PCR digitale et cytométrie en flux","Hématologie moléculaire","","<p>Le traitement des hémopathies par cellules CAR-T est une nouvelle forme de thérapie immunocellulaire. La quantification des cellules CAR-T est essentielle pour évaluer l'efficacité du traitement. La ﻿technique de PCR digitale (ddPCR) permet de quantifier le transgène CAR-T et la technique de cytométrie en flux de quantifier les cellules CAR-T.</p>","","","CAR-T, CarT, CARTCELL, Yescarta, Kymriah, Tecartus, Breyanzi, Abecma, ide-cel, liso-cel, Tisa-cel, Brexu-cel, Axi-cel, transgène CAR-T"]
["Carbamazépine - Sang","carbamazepine","Anticonvulsivant, anti-convulsivant, antiépileptique, anti-épileptique, épilepsie","Sang","Chimie clinique","","<p>Dosage et interprétation pharmacologique (TDM) de taux sanguin de carbamazépine (intervalle de référence disponible).</p>\r\n<ul> \t<li>﻿﻿Pour le dosage de \"Carbamazépine et métabolites\", cf. bon N°17 de la Pharmacologie Clinique et fiche correspondante du fichier des examens.</li> \t<li>Pour le dosage de \"Carbamazépine libre\", cf. fiche correspondante du fichier des examens.</li> </ul>","<p>Suivi thérapeutique, réponse insatisfaisante, suspicion de toxicité, suspicion d'interaction médicamenteuse, doute sur la compliance, grossesse.</p>","","Tegretol, Timonil"]
["Carbamazépine et métabolite - Sang","carbamazepine-et-metabolite","Antiépileptique, anticonvulsivant, anti-convulsivant, anti-épileptique, épilepsie","Sang","Pharmacologie","","<p>Dosage et interprétation pharmacologique (TDM) de taux sanguin de carbamazépine (intervalle de référence disponible) et dosage de son métabolite actif voire toxique : carbamazépine-10, 11-epoxide. </p>\r\n<p><br />-Pour le dosage standard de la carbamazépine seule, cf. bon 13 du LCC <br />-\"Carbamazépine seule\": cf. Fiche correspondante</p>","Symptômes de toxicité inexpliquée; particulièrement : en cas d'interactions médicamenteuses potentielles pouvant augmenter le taux du métabolite et leur toxicité.<br />Pédiatrie: probable prédominance de l'espèce carbamazépine-10, 11-epoxide.","","Tegretol, Timonil"]
["Carbohydrate deficient transferrine (CDT) - Sang","carbohydrate-deficient-transferrine-cdt","","Sang","Chimie clinique","","","Suivi d'une consommation abusive et chronique d'alcool.<br />","","CDT"]
["Carboxyhémoglobine - Sang","carboxyhemoglobine","","Sang","Chimie clinique","","<p></p>\r\n<p>L' hémoglobine totale, la methémoglobine, l'oxyhémoglobine et l'hémoglobine réduite sont mesurées en même temps.<br /></p>\r\n<p></p>\r\n<p></p>","","",""]
["Cariprazine - Sang","cariprazine","Reagila","Sang","UPPC Pharmacogénétique et psychopharmacologie","","Dosage et interprétation pharmacologique du taux sanguin","Réponse insatisfaisante, effets secondaires, interactions, doute sur l’adhésion, suspicion d’intoxication","",""]
["Carnitine libre - Urine","carnitine-libre","","Urine","Chimie clinique","","Paramètres : Carnitine libre-urine﻿<br />","","","Carnitine"]
["Carnitines (libre et totale) - Sang","carnitines-libre-et-totale","","Sang","Chimie clinique","","","","","carnitine"]
["Caryotype constitutionnel liquide Amniotique / FISH aneuploidie - ","caryotype-constitutionnel-liquide-amniotique-/-fish-aneuploidie","Anomalies chromosomiques, délétion. duplication, FISH, monosomie, translocation, trisomie","","Génétique constitutionnelle","","Caryotype constitutionnel amniotique et/ou aneuploide XY/13/18/21/(FISH)","Signes échographiques, anamnèse familiale, dépistage à risque (1er tiers, 2ème tiers et TPNI)","Prélèvement aux US",""]
["Caryotype constitutionnel peau / FISH aneuploidie - ","caryotype-constitutionnel-peau-/-fish-aneuploidie","Anomalies chromosomiques, délétion, duplication, monosomie, translocation, trisomie","","Génétique constitutionnelle","","Caryotype constitutionnel amniotique et/ou aneuploide XY/13/18/21/(FISH)","Grossesse arrêtée, analyse de mosaïque","",""]
["Caryotype constitutionnel sang / FISH aneuploidie - ","caryotype-constitutionnel-sang-/-fish-aneuploidie","Anomalies chromosomiques, délétion, duplication, monosomie, translocation, trisomie","","Génétique constitutionnelle","","Caryotype constitutionnel amniotique et/ou aneuploide XY/13/18/21/(FISH)","infertilité/stérilité , anamnèse familiale, suspicion de syndrome chromosomique","",""]
["Caryotype constitutionnel villosités / FISH aneuploidie - ","caryotype-constitutionnel-villosites-/-fish-aneuploidie","Anomalies chromosomiques, délétion, duplication, monosomie, translocation, trisomie","","Génétique constitutionnelle","","Caryotype constitutionnel villosités choriales et /ou aneuploïdie XY/13/18/21 (FISCH)","Signes échographiques, anamnèse familiale, dépistage à risque (1er tiers, TPNI). Fausse couche","Prélèvement aux US","trophoblaste placenta"]
["Caryotype moléculaire - ","caryotype-moleculaire","Anomalies chromosomiques, délétion, duplication, monosomie, translocation, trisomie","","Génétique constitutionnelle","","Caryotype moléculaire: array CGH","Détection des pertes et des gains d'ADN","","Puce à ADN, array CGH"]
["Caspofungin - Sang","caspofungin","Antifongique, échinocandine","Sang","Pharmacologie","","Dosage et interprétation pharmacologique (TDM) de taux sanguin de caspofungin (intervalle de référence disponible)","TDM uniquement dans des cas spécifiques (i.e. difficultés d’adaptation des doses, épuration extrarénale, dialyse, interactions médicamenteuses, toxicité, résistances)","","Cancidas®"]
["Catécholamines - Urine 24 h","catecholamines","","Urine 24 h","Catécholamines","","","<p>Phéochromocytome, paragangliome, neuroblastome</p>","<p>J-3 arrêt médicaments suivants, selon OM : Adelphan, Aldomet, Artérénol, dopamine, isoprénaline, Isuprel, Novadral﻿</p>\r\n<p>Aucune préparation pour d'autres examens (lavement, urographie,…).</p>\r\n<p>Eviter les situations de stress.</p>\r\n<p>24h avant et pendant la collecte, ne pas absorber de café, thé, chocolat, banane, noix, amandes, ananas, aubergine, kiwi, avocat, prune, tomate et alcool.</p>","Adrénaline, épinéphrine, noradrénaline, norépinéphrines, dopamine"]
["Catécholamines - Sang","catecholamines-1","","Sang","Catécholamines","","","<p>Phéochromocytome, paragangliome, neuroblastome</p>","<p>24h avant le prélèvement, ne pas absorber de café, thé, chocolat, banane, alcool et cigarette.</p>\r\n<p>Etre à jeûn.</p>\r\n<p>Allonger le patient, poser un Venflon (pour éviter le stress de la piqûre) et prélever le sang 15 minutes plus tard.</p>","Catecholamines, adrénaline, épinéphrine, noradrénaline, norépinéphrine, dopamine"]
["Catécholamines - Spot Urinaire - Neuroblastome","catecholamines-2","","Spot Urinaire - Neuroblastome","Catécholamines","","","<p>Neuroblastome</p>","<p>J-3 arrêt médicaments suivants, selon OM : Adelphan, Aldomet, Artérénol, dopamine, isoprénaline, Isuprel, Novadral</p>\r\n<p>Aucune préparation pour d'autres examens (lavement, urographie,…).</p>\r\n<p>Eviter les situations de stress.</p>\r\n<p>24h avant et pendant la collecte, ne pas absorber de café, thé, chocolat, banane, noix, amandes, ananas, aubergine, kiwi, avocat, prune, tomate et alcool.</p>","Adrénaline, épinéphrine, noradrénaline, norépinéphrine, dopamine"]
["CBAVD - Analyse moléculaire","cbavd","Adn, analyse moléculaire, CFTR, ICSI, mucoviscidose, OTA, stérilité","Analyse moléculaire","Génétique moléculaire","","Analyse du gène CFTR OMIM 277180","CBAVD = Congenital Bilateral Aplasia of Vas Deferens","",""]
["CBFB-MYH11 - Equivalent moléculaire translocation inv (16)","cbfb-myh11","","Equivalent moléculaire translocation inv (16)","Hématologie moléculaire","","Le CBFB-MYH11 correspond à l'équivalent moléculaire de l'inversion du chromosome 16 qui est recherchée dans les LMA. <br />L'analyse est complémentaire de l'analyse cytogénétique standard","","","Translocations chromosomiques"]
["CD34 - Cellules souches périphériques- dosage dans le cadre des autogreffes de CSP","cd34","","Cellules souches périphériques- dosage dans le cadre des autogreffes de CSP","Hématologie spéciale","","Quantification des  cellules souches hématopoïétiques sur sang périphérique ou poche de leucaphérèse","Autogreffe de cellules souches hématopoïétiques périphériques. (CSP)<br />Autogreffe de moelle osseuse","Pour un résultat urgent en vue d'une leucaphérèse, le tube pour la mesure du CD34 et pour grand statut hématologique doit être réceptionné avant 07h00","CD 34, cellules souches CD34, cellules souches hématopoïétiques, CSP, Cellules souches périphérique, autogreffe"]
["CEA - Sang","cea","carcinoembryonic antigen, marqueur tumoral","Sang","Chimie clinique","","","","","ACE, antigène carcinoembryonnaire"]
["Cefazoline - Sang","cefazoline","Antibiotique, antimicrobien, céphalosporine","Sang","Pharmacologie","Contact nécessaire avant réalisation","<p>Dosage et interprétation pharmacocinétique de taux sanguin de cefazoline (absence d'intervalle de référence, évaluation seulement de la plausibilité du taux)</p>","<p>TDM indiqué uniquement dans des situations spécifiques : il est recommandé de <strong>contacter le responsable TDM AVANT prélèvement </strong>: 021 314 22 41. En cas d’absence, téléphonez au : 021 314 25 00.</p>\r\n<p>Sur avis du spécialiste. L’interprétation clinique (TDM) du dosage n’est actuellement pas validée.</p>","","Kefzol®"]
["Cefepime - Sang","cefepime","Antibiotique, antimicrobien, céphalosporine","Sang","Pharmacologie","","Dosage et interprétation pharmacologique (TDM) de taux sanguin de cefepime (intervalle de référence disponible)","Suivi thérapeutique, Réponse insatisfaisante, suspicion de toxicité, suspicion d'interaction médicamenteuse, doute sur la compliance, étude","","Maxipime®"]
["Céfidérocol - Sang","cefiderocol","Antibiotique, antimicrobien, céphalosporine","Sang","Pharmacologie","Contact nécessaire avant réalisation","<p>Dosage et interprétation pharmacocinétique de taux sanguin de cefiderocol (absence d'intervalle de référence, évaluation seulement de la plausibilité du taux)</p>","<p>TDM indiqué uniquement dans des situations spécifiques : il est recommandé de <strong>contacter le responsable TDM AVANT prélèvement </strong>: 021 314 22 41. En cas d’absence, téléphonez au : 021 314 25 00.</p>\r\n<p>Sur avis du spécialiste. L’interprétation clinique (TDM) du dosage n’est actuellement pas validée.</p>","","Fetcroja"]
["Ceftaroline - Sang","ceftaroline","Antibiotique, antimicrobien, céphalosporine","Sang","Pharmacologie","Contact nécessaire avant réalisation","<p>Dosage et interprétation pharmacocinétique de taux sanguin de ceftaroline (absence d'intervalle de référence, évaluation seulement de la plausibilité du taux)</p>","<p>TDM indiqué uniquement dans des situations spécifiques : il est recommandé de <strong>contacter le responsable TDM AVANT prélèvement </strong>: 021 314 22 41. En cas d’absence, téléphonez au : 021 314 25 00.</p>\r\n<p>Sur avis du spécialiste. L’interprétation clinique (TDM) du dosage n’est actuellement pas validée.</p>","","Zinforo®"]
["Ceftazidime - Sang","ceftazidime","Antibiotique, antimicrobien, céphalosporine","Sang","Pharmacologie","","Dosage et interprétation pharmacologique (TDM) de taux sanguin de ceftazidime (intervalle de référence disponible)","TDM uniquement dans des cas spécifiques (i.e. difficultés d’adaptation des doses, épuration extrarénale, dialyse, interactions médicamenteuses, toxicité, résistances)","","Fortam®"]
["Ceftobiprole - Sang","ceftobiprole","Antibiotique, antimicrobien, céphalosporine","Sang","Pharmacologie","Contact nécessaire avant réalisation","<p>Dosage et interprétation pharmacocinétique de taux sanguin de ceftobiprole (absence d'intervalle de référence, évaluation seulement de la plausibilité du taux)</p>","<p>TDM indiqué uniquement dans des situations spécifiques : il est recommandé de <strong>contacter le responsable TDM AVANT prélèvement </strong>: 021 314 22 41. En cas d’absence, téléphonez au : 021 314 25 00.</p>\r\n<p>Sur avis du spécialiste. L’interprétation clinique (TDM) du dosage n’est actuellement pas validée.</p>","","Zevtera®"]
["Ceftolozane - Sang","ceftolozane","Antibiotique, antimicrobien, céphalosporine","Sang","Pharmacologie","Contact nécessaire avant réalisation","<p>Dosage et interprétation pharmacocinétique de taux sanguin de ceftolozane (absence d'intervalle de référence, évaluation seulement de la plausibilité du taux)</p>","<p>TDM indiqué uniquement dans des situations spécifiques : il est recommandé de <strong>contacter le responsable TDM AVANT prélèvement </strong>: 021 314 22 41. En cas d’absence, téléphonez au : 021 314 25 00.</p>\r\n<p>Sur avis du spécialiste. L’interprétation clinique (TDM) du dosage n’est actuellement pas validée.</p>","","Zerbaxa®"]
["Ceftriaxone - Sang","ceftriaxone","Antibiotique, antimicrobien, céphalosporine","Sang","Pharmacologie","","Dosage et interprétation pharmacologique (TDM) de taux sanguin de ceftriaxone (intervalle de référence disponible)","TDM uniquement dans des cas spécifiques (i.e. difficultés d’adaptation des doses, épuration extrarénale, dialyse, interactions médicamenteuses, toxicité, résistances)","","Rocéphine®"]
["Cefuroxime - Sang","cefuroxime","Antibiotique, antimicrobien, céphalosporine","Sang","Pharmacologie","Contact nécessaire avant réalisation","<p>Dosage et interprétation pharmacocinétique de taux sanguin de cefuroxime (absence d'intervalle de référence, évaluation seulement de la plausibilité du taux)</p>","<p>TDM indiqué uniquement dans des situations spécifiques : il est recommandé de <strong>contacter le responsable TDM AVANT prélèvement </strong>: 021 314 22 41. En cas d’absence, téléphonez au : 021 314 25 00.</p>\r\n<p>Sur avis du spécialiste. L’interprétation clinique (TDM) du dosage n’est actuellement pas validée.</p>","","Zinat®"]
["Certolizumab - Taux résiduel du médicament, détection d'anticorps anti-médicaments","certolizumab","","Taux résiduel du médicament, détection d'anticorps anti-médicaments","Immunologie et allergie","","Suivi thérapeutique","","","Cimzia, médicaments biologiques"]
["Céruloplasmine - ","ceruloplasmine","","","Chimie clinique","","","","",""]
["CH-50 - ","ch-50","Complément","","Immunologie et allergie","","En cas de suivi de traitement à l'Eculizumab :  ajouter le SC5b-9 (EDTA)","","","CH50"]
["Chaines légères kappa et lambda - Urine 24 h","chaines-legeres-kappa-et-lambda","Immunoglobulines, expansion clonale, monoclonal, réarrangement immunoglobulines","Urine 24 h","Immunologie et allergie","","Recherche / suivi gammapathie monoclonale","","","Bence Jones, chaine kappa-lambda"]
["Chaines légères libres kappa et lambda - Sang","chaines-legeres-libres-kappa-et-lambda","Immunoglobulines, expansion clonale, monoclonal, réarrangement immunoglobulines","Sang","Immunologie et allergie","","Recherche/suivi de gammapathie monoclonale","","","Chaine kappa-lambda"]
["Charcot Marie-Tooth - Analyse moléculaire","charcot-marie-tooth","","Analyse moléculaire","Génétique moléculaire","","Analyse des genes: PMP22, MPZ,  CX32/GJB1,  OMIM 118220, OMIM 162500, OMIM  605253, OMIM  607677, OMIM 302800","","",""]
["Chlamydia abortus PCR - Frottis vulve","chlamydia-abortus-pcr","","Frottis vulve","Microbio moléculaire","","","","",""]
["Chlamydia abortus PCR - Frottis col","chlamydia-abortus-pcr-1","","Frottis col","Microbio moléculaire","","","","",""]
["Chlamydia abortus PCR - Frottis lochies","chlamydia-abortus-pcr-2","","Frottis lochies","Microbio moléculaire","","","","",""]
["Chlamydia abortus PCR - Frottis placenta","chlamydia-abortus-pcr-3","","Frottis placenta","Microbio moléculaire","","","","",""]
["Chlamydia abortus PCR - Frottis urètre","chlamydia-abortus-pcr-4","","Frottis urètre","Microbio moléculaire","","","","",""]
["Chlamydia abortus PCR - Frottis vaginal","chlamydia-abortus-pcr-5","","Frottis vaginal","Microbio moléculaire","","","","",""]
["Chlamydia pneumoniae / Mycoplasma pneumoniae PCR - Biopsie transbronchique","chlamydia-pneumoniae-/-mycoplasma-pneumoniae-pcr","","Biopsie transbronchique","Microbio moléculaire","","","","","Chlamydia pneumoniae, Mycoplasma pneumoniae"]
["Chlamydia pneumoniae / Mycoplasma pneumoniae PCR - Expectoration","chlamydia-pneumoniae-/-mycoplasma-pneumoniae-pcr-1","","Expectoration","Microbio moléculaire","","","","","Chlamydia pneumoniae, Mycoplasma pneumoniae"]
["Chlamydia pneumoniae / Mycoplasma pneumoniae PCR - Sécrétions endo-trachéales","chlamydia-pneumoniae-/-mycoplasma-pneumoniae-pcr-2","","Sécrétions endo-trachéales","Microbio moléculaire","","","","","Chlamydia pneumoniae, Mycoplasma pneumoniae"]
["Chlamydia pneumoniae / Mycoplasma pneumoniae PCR - Sécrétions nasopharyngées","chlamydia-pneumoniae-/-mycoplasma-pneumoniae-pcr-3","","Sécrétions nasopharyngées","Microbio moléculaire","","","","","Chlamydia pneumoniae, Mycoplasma pneumoniae"]
["Chlamydia pneumoniae / Mycoplasma pneumoniae PCR - Aspiration bronchique","chlamydia-pneumoniae-/-mycoplasma-pneumoniae-pcr-4","","Aspiration bronchique","Microbio moléculaire","","","","","Chlamydia pneumoniae, Mycoplasma pneumoniae"]
["Chlamydia psittaci PCR - Biopsie transbronchique","chlamydia-psittaci-pcr-1","","Biopsie transbronchique","Microbio moléculaire","","","","",""]
["Chlamydia psittaci PCR - Expectoration","chlamydia-psittaci-pcr-2","","Expectoration","Microbio moléculaire","","","","",""]
["Chlamydia psittaci PCR - Sécrétions endo-trachéales","chlamydia-psittaci-pcr-3","","Sécrétions endo-trachéales","Microbio moléculaire","","","","",""]
["Chlamydia psittaci PCR - Sécrétions nasopharyngées","chlamydia-psittaci-pcr-4","","Sécrétions nasopharyngées","Microbio moléculaire","","","","",""]
["Chlamydia psittaci PCR - Aspiration bronchique","chlamydia-psittaci-pcr-5","","Aspiration bronchique","Microbio moléculaire","","","","",""]
["Chlamydia psittaci PCR - Lavage broncho-alvéolaire (LBA)","chlamydia-psittaci-pcr","","Lavage broncho-alvéolaire (LBA)","Microbio moléculaire","","","","","Chlamydia pneumoniae, Mycoplasma pneumoniae"]
["Chlamydia trachomatis / Neisseria gonorrhoeae PCR - Frottis anus","chlamydia-trachomatis-/-neisseria-gonorrhoeae-pcr","","Frottis anus","Microbio moléculaire","","","","","Chlamydia trachomatis, Neisseria gonorrhoeae, gonorrhée"]
["Chlamydia trachomatis / Neisseria gonorrhoeae PCR - Frottis col","chlamydia-trachomatis-/-neisseria-gonorrhoeae-pcr-1","","Frottis col","Microbio moléculaire","","","","","Chlamydia trachomatis, Neisseria gonorrhoeae, gonorrhée"]
["Chlamydia trachomatis / Neisseria gonorrhoeae PCR - Frottis gland","chlamydia-trachomatis-/-neisseria-gonorrhoeae-pcr-2","","Frottis gland","Microbio moléculaire","","","","","Chlamydia trachomatis, Neisseria gonorrhoeae, gonorrhée"]
["Chlamydia trachomatis / Neisseria gonorrhoeae PCR - Frottis urètre","chlamydia-trachomatis-/-neisseria-gonorrhoeae-pcr-3","","Frottis urètre","Microbio moléculaire","","","","","Chlamydia trachomatis, Neisseria gonorrhoeae, gonorrhée"]
["Chlamydia trachomatis / Neisseria gonorrhoeae PCR - Frottis vaginal","chlamydia-trachomatis-/-neisseria-gonorrhoeae-pcr-4","","Frottis vaginal","Microbio moléculaire","","","","","Chlamydia trachomatis, Neisseria gonorrhoeae, gonorrhée"]
["Chlamydia trachomatis / Neisseria gonorrhoeae PCR - Frottis vulve","chlamydia-trachomatis-/-neisseria-gonorrhoeae-pcr-5","","Frottis vulve","Microbio moléculaire","","","","","Chlamydia trachomatis, Neisseria gonorrhoeae, gonorrhée"]
["Chlamydia trachomatis / Neisseria gonorrhoeae PCR - Liquide humeur aqueuse","chlamydia-trachomatis-/-neisseria-gonorrhoeae-pcr-6","","Liquide humeur aqueuse","Microbio moléculaire","","","","","Chlamydia trachomatis, Neisseria gonorrhoeae, gonorrhée"]
["Chlamydia trachomatis / Neisseria gonorrhoeae PCR - Liquide humeur vitrée","chlamydia-trachomatis-/-neisseria-gonorrhoeae-pcr-7","","Liquide humeur vitrée","Microbio moléculaire","","","","","Chlamydia trachomatis, Neisseria gonorrhoeae, gonorrhée"]
["Chlamydia trachomatis / Neisseria gonorrhoeae PCR - Sécrétions conjonctivales","chlamydia-trachomatis-/-neisseria-gonorrhoeae-pcr-8","","Sécrétions conjonctivales","Microbio moléculaire","","","","","Chlamydia trachomatis, Neisseria gonorrhoeae, gonorrhée"]
["Chlamydia trachomatis / Neisseria gonorrhoeae PCR - Abcès","chlamydia-trachomatis-/-neisseria-gonorrhoeae-pcr-9","","Abcès","Microbio moléculaire","","","","","Chlamydia trachomatis, Neisseria gonorrhoeae, gonorrhée"]
["Chlamydia trachomatis / Neisseria gonorrhoeae PCR - Abcès / kyste, amygdale","chlamydia-trachomatis-/-neisseria-gonorrhoeae-pcr-10","","Abcès / kyste, amygdale","Microbio moléculaire","","","","","Chlamydia trachomatis, Neisseria gonorrhoeae, gonorrhée"]
["Chlamydia trachomatis / Neisseria gonorrhoeae PCR - Abcès / Kyste, cérébral","chlamydia-trachomatis-/-neisseria-gonorrhoeae-pcr-11","","Abcès / Kyste, cérébral","Microbio moléculaire","","","","","Chlamydia trachomatis, Neisseria gonorrhoeae, gonorrhée"]
["Chlamydia trachomatis / Neisseria gonorrhoeae PCR - Abcès / Kyste, cervical","chlamydia-trachomatis-/-neisseria-gonorrhoeae-pcr-12","","Abcès / Kyste, cervical","Microbio moléculaire","","","","","Chlamydia trachomatis, Neisseria gonorrhoeae, gonorrhée"]
["Chlamydia trachomatis / Neisseria gonorrhoeae PCR - Abcès / Kyste, dentaire","chlamydia-trachomatis-/-neisseria-gonorrhoeae-pcr-13","","Abcès / Kyste, dentaire","Microbio moléculaire","","","","","Chlamydia trachomatis, Neisseria gonorrhoeae, gonorrhée"]
["Chlamydia trachomatis / Neisseria gonorrhoeae PCR - Abcès / Kyste, foie","chlamydia-trachomatis-/-neisseria-gonorrhoeae-pcr-14","","Abcès / Kyste, foie","Microbio moléculaire","","","","","Chlamydia trachomatis, Neisseria gonorrhoeae, gonorrhée"]
["Chlamydia trachomatis / Neisseria gonorrhoeae PCR - Abcès / Kyste, para-anal","chlamydia-trachomatis-/-neisseria-gonorrhoeae-pcr-15","","Abcès / Kyste, para-anal","Microbio moléculaire","","","","","Chlamydia trachomatis, Neisseria gonorrhoeae, gonorrhée"]
["Chlamydia trachomatis / Neisseria gonorrhoeae PCR - Abcès / Kyste, paroi","chlamydia-trachomatis-/-neisseria-gonorrhoeae-pcr-16","","Abcès / Kyste, paroi","Microbio moléculaire","","","","","Chlamydia trachomatis, Neisseria gonorrhoeae, gonorrhée"]
["Chlamydia trachomatis / Neisseria gonorrhoeae PCR - Abcès / kyste, pulmonaire","chlamydia-trachomatis-/-neisseria-gonorrhoeae-pcr-17","","Abcès / kyste, pulmonaire","Microbio moléculaire","","","","","Chlamydia trachomatis, Neisseria gonorrhoeae, gonorrhée"]
["Chlamydia trachomatis / Neisseria gonorrhoeae PCR - Abcès / Kyste, sein","chlamydia-trachomatis-/-neisseria-gonorrhoeae-pcr-18","","Abcès / Kyste, sein","Microbio moléculaire","","","","","Chlamydia trachomatis, Neisseria gonorrhoeae, gonorrhée"]
["Chlamydia trachomatis / Neisseria gonorrhoeae PCR - Biopsie","chlamydia-trachomatis-/-neisseria-gonorrhoeae-pcr-19","","Biopsie","Microbio moléculaire","","","","","Chlamydia trachomatis, Neisseria gonorrhoeae, gonorrhée"]
["Chlamydia trachomatis / Neisseria gonorrhoeae PCR - Biopsie anale","chlamydia-trachomatis-/-neisseria-gonorrhoeae-pcr-20","","Biopsie anale","Microbio moléculaire","","","","","Chlamydia trachomatis, Neisseria gonorrhoeae, gonorrhée"]
["Chlamydia trachomatis / Neisseria gonorrhoeae PCR - Biopsie tissu articulaire","chlamydia-trachomatis-/-neisseria-gonorrhoeae-pcr-21","","Biopsie tissu articulaire","Microbio moléculaire","","","","","Chlamydia trachomatis, Neisseria gonorrhoeae, gonorrhée"]
["Chlamydia trachomatis / Neisseria gonorrhoeae PCR - Liquide articulaire","chlamydia-trachomatis-/-neisseria-gonorrhoeae-pcr-22","","Liquide articulaire","Microbio moléculaire","","","","","Chlamydia trachomatis, Neisseria gonorrhoeae, gonorrhée"]
["Chlamydia trachomatis / Neisseria gonorrhoeae PCR - Liquide ascite","chlamydia-trachomatis-/-neisseria-gonorrhoeae-pcr-23","","Liquide ascite","Microbio moléculaire","","","","","Chlamydia trachomatis, Neisseria gonorrhoeae, gonorrhée"]
["Chlamydia trachomatis / Neisseria gonorrhoeae PCR - Liquide douglas","chlamydia-trachomatis-/-neisseria-gonorrhoeae-pcr-24","","Liquide douglas","Microbio moléculaire","","","","","Chlamydia trachomatis, Neisseria gonorrhoeae, gonorrhée"]
["Chlamydia trachomatis / Neisseria gonorrhoeae PCR - Liquide natif","chlamydia-trachomatis-/-neisseria-gonorrhoeae-pcr-25","","Liquide natif","Microbio moléculaire","","","","","Chlamydia trachomatis, Neisseria gonorrhoeae, gonorrhée"]
["Chlamydia trachomatis / Neisseria gonorrhoeae PCR - Sperme","chlamydia-trachomatis-/-neisseria-gonorrhoeae-pcr-26","","Sperme","Microbio moléculaire","","","","","Chlamydia trachomatis, Neisseria gonorrhoeae, gonorrhée"]
["Chlamydia trachomatis / Neisseria gonorrhoeae PCR - Urine début du jet (PCR uniquement)","chlamydia-trachomatis-/-neisseria-gonorrhoeae-pcr-27","","Urine début du jet (PCR uniquement)","Microbio moléculaire","","","","","Chlamydia trachomatis, Neisseria gonorrhoeae, gonorrhée"]
["Chlamydia trachomatis / Neisseria gonorrhoeae PCR - Frottis gorge","chlamydia-trachomatis-/-neisseria-gonorrhoeae-pcr-28","","Frottis gorge","Microbio moléculaire","","","","","Chlamydia trachomatis, Neisseria gonorrhoeae, gonorrhée"]
["Chloroquine - Sang","chloroquine","Antimalarique, antipaludéen, malaria, paludisme, plasmodium","Sang","Pharmacologie","","Dosage du taux sanguin  de chloroquine","Sur avis du spécialiste. L’interprétation clinique (TDM) du dosage n’est actuellement pas validée.","Le patient doit être informé que cette analyse ne figure pas sur la liste des analyses en vigueur et qu'elle ne sera pas obligatoirement prise en charge par les caisses maladie","Nivaquine®"]
["Chlorprothixène - Sang","chlorprothixene","Truxal","Sang","UPPC Pharmacogénétique et psychopharmacologie","","Dosage et interprétation pharmacologique du taux sanguin","Réponse insatisfaisante, effets secondaires, interactions, doute sur l’adhésion, suspicion d’intoxication","",""]
["Chlorure - Urine 24h","chlorure-5","","Urine 24h","Chimie clinique","","","","","Chlore, CL"]
["Chlorure - Selles","chlorure","Chlorure, selles","Selles","Chimie clinique","","","","","Chlore, Cl"]
["Chlorure - Dialysat","chlorure-1","Dialysat, chlorure","Dialysat","Chimie clinique","","","","","Chlore, Cl"]
["Chlorure - Sueur","chlorure-2","Fibrose cystique, fibrose kystique, mucoviscidose, test de la sueur","Sueur","Chimie clinique","","","","","Test de la sueur"]
["Chlorure - Sang","chlorure-3","chlore, électrolyte","Sang","Chimie clinique","","","","",""]
["Chlorure - Urine fraîche","chlorure-4","","Urine fraîche","Chimie clinique","","","","","Chlore, CL"]
["Cholestérol - Sang","cholesterol","lipides","Sang","Chimie clinique","","","","",""]
["Cholestérol - Liquide pleural","cholesterol-1","lipides","Liquide pleural","Chimie clinique","","","","",""]
["Cholestérol - Liquide d'ascite","cholesterol-2","lipides","Liquide d'ascite","Chimie clinique","","","","",""]
["Cholestérol-HDL - Sang","cholesterol-hdl","lipides","Sang","Chimie clinique","","","","","HDL-cholestérol"]
["Cholestérol-LDL - Sang","cholesterol-ldl","","Sang","Chimie clinique","","Si le cholestérol, le cholestérol-HDL et les triglycérides sont demandés, le cholestérol-LDL est calculé automatiquement  (si triglycérides &lt;4.5 mmol/l).","","Patient à jeun",""]
["Chorée de Huntington - Analyse moléculaire","choree-de-huntington","Ataxie, DRPLA, expansion de triplets","Analyse moléculaire","Génétique moléculaire","","Analyse de l'expansion de la région instable du gène HD. OMIM 143100","","",""]
["Ciclosporine - Sang","ciclosporine","Immunosuppresseurs","Sang","Chimie clinique","","<p>Dosage et interprétation pharmacologique (TDM) de taux sanguin de ciclosporine (intervalle de référence greffe dépendant).</p>","<p>Suivi thérapeutique, suspicion de taux insuffisant, suspicion de toxicité, suspicion d'interaction médicamenteuse.</p>","","Ciclosol, cyclosporine, Sandimmun, Sandimmun Neoral"]
["Ciprofloxacine - Sang","ciprofloxacine","Antibiotique, antimicrobien, quinolone","Sang","Pharmacologie","Contact nécessaire avant réalisation","<p>Dosage et interprétation pharmacologique (TDM) de taux sanguin de ciprofloxacine (intervalle de référence disponible)</p>","<p>TDM uniquement dans des cas spécifiques (i.e. difficultés d’adaptation des doses, épuration extrarénale, dialyse, interactions médicamenteuses, toxicité, résistances).</p>\r\n<p>Il est recommandé de <strong>contacter le responsable TDM AVANT prélèvement </strong>: 021 314 22 41. En cas d’absence, téléphonez au : 021 314 25 00.</p>\r\n<p>Sur avis du spécialiste. L’interprétation clinique (TDM) du dosage n’est actuellement pas validée.</p>\r\n\r\n","","Ciproxine®"]
["Citalopram - Sang","citalopram","Seropram","Sang","UPPC Pharmacogénétique et psychopharmacologie","","<p>Dosage et interprétation pharmacologique du taux sanguin</p>","<p>Réponse insatisfaisante, effets secondaires, interactions, doute sur l’adhésion, suspicion d’intoxication</p>","",""]
["Citrate - Urine fraîche","citrate","","Urine fraîche","Chimie clinique","","","","","Acide citrique"]
["Citrate - Urine 24h","citrate-1","","Urine 24h","Chimie clinique","","","","","Acide citrique"]
["Clarithromycin - Sang","clarithromycin","Antibiotique, antimicrobien, céphalosporine","Sang","Pharmacologie","Ne pas prélever le week-end (vendredi dès 16h à dimanche midi).","<p>Dosage et interprétation pharmacocinétique de taux sanguin de clarithromycine (absence d'intervalle de référence, évaluation seulement de la plausibilité du taux)</p>","<p>TDM indiqué uniquement dans des situations spécifiques : il est recommandé de <strong>contacter le responsable TDM AVANT prélèvement </strong>: 021 314 22 41. En cas d’absence, téléphonez au : 021 314 25 00.</p>\r\n<p>Sur avis du spécialiste. L’interprétation clinique (TDM) du dosage n’est actuellement pas validée.</p>","","Klacid"]
["Clearance inuline et PAH - Pédiatrie","clearance-inuline-et-pah","","Pédiatrie","Néphrologie pédiatrique","","","","Unité métabolique prépare le patient, prélève et achemine le prélèvement <br />J-3: arrêt bactrim ou sulfamidés<br />J-2: arrêt UIV (produit de contraste)<br />J-1: arrêt du fructose ou saccharose<br />Patient à jeun",""]
["Clindamycine - Sang","clindamycine","Antibiotique, antimicrobien","Sang","Pharmacologie","Contact nécessaire avant réalisation","<p>Dosage et interprétation pharmacocinétique de taux sanguin de clindamycine (absence d'intervalle de référence, évaluation seulement de la plausibilité du taux)</p>","<p>TDM indiqué uniquement dans des situations spécifiques : il est recommandé de <strong>contacter le responsable TDM AVANT prélèvement </strong>: 021 314 22 41. En cas d’absence, téléphonez au : 021 314 25 00.</p>\r\n<p>Sur avis du spécialiste. L’interprétation clinique (TDM) du dosage n’est actuellement pas validée.</p>","","Dalacin®"]
["Clofazimine - Sang","clofazimine","tuberculose, tuberculeux, anti-tuberculeux, Antibiotique, MDR, XDR","Sang","Pharmacologie","","Dosage et interprétation pharmacocinétique de taux sanguin de Clofazimine ","<p>Sur avis du spécialiste. L’interprétation clinique (TDM) du dosage n’est actuellement pas validée. </p>\r\n<p><br /></p>","","Lamprene"]
["Clomipramine - Sang","clomipramine","Anafranil","Sang","UPPC Pharmacogénétique et psychopharmacologie","","Dosage et interprétation pharmacologique du taux sanguin","Réponse insatisfaisante, effets secondaires, interactions, doute sur l’adhésion, suspicion d’intoxication","",""]
["Clonidine - Sang","clonidine","CATAPRESAN","Sang","UPPC Pharmacogénétique et psychopharmacologie","","Dosage et interprétation pharmacologique du taux sanguin","Réponse insatisfaisante, effets secondaires, interactions, doute sur l’adhésion, suspicion d’intoxication","",""]
["Clostridioides difficile - PCR (test rapide) - Selles","clostridioides-difficile-pcr-test-rapide","Clostridium","Selles","Microbiologie","","﻿﻿Détection par PCR de 3 cibles de <em>C.difficile </em>(Toxine B, Toxine binaire, Ribotype O27). En cas de PCR positive, un test immunochromatographique est effectué pour la mise en évidence de l'antigène GDH.","Colite pseudo-membraneuse ou diarrhée acquise sous antibiothérapie ou chimiothérapie.<br />La recherche de <em>C. difficile </em>n'est pas indiquée chez l'enfant de &lt; 1 an, ni chez les patient-e-s atteint-e-s de mucoviscidose (% élévé de portage asymptomatique)","",""]
["Clozapine - Sang","clozapine","Clopin Eco, Leponex","Sang","UPPC Pharmacogénétique et psychopharmacologie","","Dosage et interprétation pharmacologique du taux sanguin","Réponse insatisfaisante, effets secondaires, interactions, doute sur l’adhésion, suspicion d’intoxication","",""]
["CMI - ","cmi","","","Microbiologie","","Déterminer la concentration minimale inhibitrice (CMI) d'un antibiotique pour des souches non conventionnelles.","Lors de situations cliniques particulières (demande motivée), permettant d'établir une correlation avec l'activité in vivo de cet antibiotique","","Concentration minimale inhibitrice"]
["Cobimetinib - Sang","cobimetinib","Anticancéreux ciblés, TKI, inhibiteur tirosine kinase, inhibiteur des protéines kinases, PKI","Sang","Pharmacologie","","<p>Dosage de taux sanguin de cobimetinib</p>","<p>Sur avis du spécialiste. L’interprétation clinique (TDM) ou pharmacocinétique des dosage n’est actuellement pas validée.</p>","","Cotellic®"]
["Coefficient saturation de la transferrine - Sang","coefficient-saturation-de-la-transferrine","transferrine, fer","Sang","Chimie clinique","","Si la tranferrine et le fer sang sont demandés, le coefficient de saturation de la transferrine sang est automatiquement calculé.","","","sidérophiline"]
["Colistine (+ colistine methanesulfonate) - Sang","colistine-colistine-methanesulfonate","Antibiotique, antimicrobien, polymyxines","Sang","Pharmacologie","","Dosage et interprétation pharmacologique (TDM) de taux sanguin de colistine et de sa prodrogue, le colistiméthate (CMS) (intervalle de référence disponible)","TDM uniquement dans des cas spécifiques (i.e. difficultés d’adaptation des doses, épuration extrarénale, dialyse, interactions médicamenteuses, toxicité, résistances)","","Colimycine®"]
["Complexe thrombine antithrombine - ","complexe-thrombine-antithrombine","","","Hématologie - Hémostase spéciale","","","","","TAT"]
["Congenital disorders of glycosylation (CDG) - Sang","congenital-disorders-of-glycosylation-cdg","Glycoformes de la transferrine, transferrine déglycosylée, IEM, EIM, erreurs innées du métabolisme, Inborn Errors of Metabolism","Sang","Chimie clinique","","","","","CDGS, CDG"]
["Conversion du C3 - ","conversion-du-c3","Complément","","Immunologie et allergie","","﻿","","","C3 nef"]
["Copeptine - Sang","copeptine","Vasopressine, ADH, Co-peptine, Antidiuretic hormone, hormone antidiurétique","Sang","Chimie clinique","","","","<p>Patient à jeun. Patient couché pendant &gt;1 heure avant prélèvement</p>","Copeptine proAVP, Provasopressine C-terminale, Co-peptine"]
["Coronavirus MERS-COV  PCR - Lavage broncho-alvéolaire (LBA)","coronavirus-mers-cov-pcr","","Lavage broncho-alvéolaire (LBA)","Microbio moléculaire","","Recherche du virus coronavirus <br />Syndrome Respiratoire du Moyen-Orient (MERS-COV)","suspicion d'infection par  le coronavirus<br />MERS-COV <br />pour la définition du cas voir procédure <br />(SMPH_W_DIR_00015)--> HPCI","",""]
["Coronavirus MERS-COV PCR - Sécrétions nasopharyngées","coronavirus-mers-cov-pcr-1","","Sécrétions nasopharyngées","Microbiologie","","Recherche du virus coronavirus <br />Syndrome Respiratoire du Moyen-Orient (MERS-COV)","suspicion d'infection par  le coronavirus<br />MERS-COV <br />pour la définition du cas voir procédure <br />(<a href=\"http://tribu.intranet.chuv/vdoc.htm?url=http%3A%2F%2Fgedchuv.intranet.chuv%2Fvdocopenweb%2Fasp%2Fcenter.asp%3FUserLogin%3DPublic%26DBIndex%3D%257b9CF397AD-894F-4ECE-94F3-CA5DB7B59846%257d%26RedirectTo%3DLoadHttpLinkByRef.asp%253fiddoc%253d923382\" target=\"_blank\">SMPH_W_DIR_00015</a>)--&gt; HPCI","",""]
["Coronavirus MERS-COV PCR - Frottis nez","coronavirus-mers-cov-pcr-2","","Frottis nez","Microbiologie","","Recherche du virus coronavirus <br />Syndrome Respiratoire du Moyen-Orient (MERS-COV)","suspicion d'infection par  le coronavirus<br />MERS-COV <br />pour la définition du cas voir procédure <br />(<a href=\"http://tribu.intranet.chuv/vdoc.htm?url=http%3A%2F%2Fgedchuv.intranet.chuv%2Fvdocopenweb%2Fasp%2Fcenter.asp%3FUserLogin%3DPublic%26DBIndex%3D%257b9CF397AD-894F-4ECE-94F3-CA5DB7B59846%257d%26RedirectTo%3DLoadHttpLinkByRef.asp%253fiddoc%253d923382\" target=\"_blank\">SMPH_W_DIR_00015</a>)--&gt; HPCI","",""]
["Coronavirus SARS-CoV-2 - Sécrétions salivaire","coronavirus-sars-cov-2-2","F.bouche; salive","Sécrétions salivaire","Microbio moléculaire","","Recherche de virus respiratoire  Coronavirus SARS-CoV-2\r\n<div>respiratoire </div>","<p>Ce test est d'un usage restreint pour la recherche de SARS-CoV-2.</p>\r\n<p>Il est réservé à des patients remplissant des critères cliniques et épidémiologiques associés au CoVID-19﻿.</p>","","Nouveau coronavirus, CoVID-19, SARS-CoV-2"]
["Coronavirus SARS-CoV-2 - Frottis anus","coronavirus-sars-cov-2-3","","Frottis anus","Microbio moléculaire","","Recherche de virus respiratoire  Coronavirus SARS-CoV-2\r\n<div>respiratoire </div>","<p>Ce test est d'un usage restreint pour la recherche de SARS-CoV-2.</p>\r\n<p>Il est réservé à des patient-e-s remplissant des critères cliniques et épidémiologiques associés au CoVID-19﻿.</p>","","Nouveau coronavirus, CoVID-19, SARS-CoV-2"]
["Coronavirus SARS-CoV-2 - Frottis placenta","coronavirus-sars-cov-2-4","","Frottis placenta","Microbio moléculaire","","Recherche de virus respiratoire  Coronavirus SARS-CoV-2\r\n<div>respiratoire </div>","<p>Ce test est d'un usage restreint pour la recherche de SARS-CoV-2.</p>\r\n<p>Il est réservé à des patient-e-s remplissant des critères cliniques et épidémiologiques associés au CoVID-19﻿.</p>","","Nouveau coronavirus, CoVID-19, SARS-CoV-2"]
["Coronavirus SARS-CoV-2 - Liquide céphalo-rachidien (LCR)","coronavirus-sars-cov-2-5","LCR","Liquide céphalo-rachidien (LCR)","Microbio moléculaire","","Recherche de virus respiratoire  Coronavirus SARS-CoV-2\r\n<div>respiratoire </div>","<p>Ce test est d'un usage restreint pour la recherche de SARS-CoV-2.</p>\r\n<p>Il est réservé à des patient-e-s remplissant des critères cliniques et épidémiologiques associés au CoVID-19﻿.</p>","","Nouveau coronavirus, CoVID-19, SARS-CoV-2"]
["Coronavirus SARS-CoV-2 - Sécrétions nasopharyngées","coronavirus-sars-cov-2","","Sécrétions nasopharyngées","Microbio moléculaire","","Recherche de virus respiratoire  Coronavirus SARS-CoV-2\r\n<div>respiratoire </div>","<p>Ce test est d'un usage restreint pour la recherche de SARS-CoV-2.</p>\r\n<p>Il est réservé à des patients remplissant des critères cliniques et épidémiologiques associés au CoVID-19﻿.</p>","","Nouveau coronavirus, CoVID-19, SARS-CoV-2"]
["Coronavirus SARS-CoV-2 - Sérodiagnostic IgG","coronavirus-sars-cov-2-1","covid-19,covid, spike, nucléocapside","Sérodiagnostic IgG","Immunologie et allergie","","<p>Recherche d'anticorps IgG anti-SARS-CoV-2 (anti-Spike et anti-Nucléocapside)﻿</p>","<p>Apporte une aide diagnostic lors des critères cliniques et épidémiologiques (associés) spécifiques au CoviD-19 suivants :</p>\r\n<ul> \t<li>Deux RT-PCR négatives et clinique suggestive</li> \t<li>Patient-e hospitalisé-e, symptomatique depuis &gt;10 jours</li> \t<li>Doute ou discordance diagnostic</li> \t<li>Possible CoviD-19 de présentation clinique inhabituelle tel que : vasculite cutanée, Guillain-Barré, méningoencéphalite,...</li> \t<li>Patient-e vulnérable à haut risque, par exemple bilan pré-greffe﻿</li> </ul>","","covid-19,covid,spike, nucléocapside"]
["Corps cétoniques (quantitatifs) - Sang","corps-cetoniques-quantitatifs","","Sang","Chimie clinique","","","<p>Les corps cétoniques﻿ comprennent les analyses suivantes: acetoacetate et le beta-hydroxybutyrate﻿ (D-3-hydroxybutyrate)</p>","","Acide acétoacétique, acide beta-hydroxybutyrique, acide 3-hydroxybutyrique, acide 3-oxobutyrique, acétoacétate, 3-hydroxybutyrate"]
["Cortisol - Sang","cortisol","Hormone, stéroïde, stéroïdes, profil stéroïdes, profil stéroïdien, minéralocorticoïde, corticoïde, test CRH ovin 1 microgramme/kg IV, test dexaméthasone 1 mg po, test insuline 010-015 U/kg IV, tets synacthen 0.25 mg IV","Sang","Chimie clinique","","","","","Cortisol, hydrocortisone, "]
["Cortisol - Salive","cortisol-1","","Salive","Chimie clinique","","","","1 heure après arrêt aliments et boissons et brossage de dents","Cortisol salivaire"]
["Cortisol libre - Urine","cortisol-libre","Hormone, urine, stéroide, stéroïde, corticotrope, Cushing, hormonologie, récolte 24h, urine 24h","Urine","Chimie clinique","","","","","Hydrocortisone, cortisol urine 24h"]
["Coxiella burnetii - Sérodiagnostic","coxiella-burnetii","","Sérodiagnostic","Microbio sérologie","","","Suspicion d'endocardite","","Fièvre Q"]
["Coxiella burnetii PCR - Abcès","coxiella-burnetii-pcr","","Abcès","Microbio moléculaire","","","","","Fièvre Q"]
["Coxiella burnetii PCR - Abcès / kyste, amygdale","coxiella-burnetii-pcr-1","","Abcès / kyste, amygdale","Microbio moléculaire","","","","","Fièvre Q"]
["Coxiella burnetii PCR - Abcès / Kyste, cérébral","coxiella-burnetii-pcr-2","","Abcès / Kyste, cérébral","Microbio moléculaire","","","","","Fièvre Q"]
["Coxiella burnetii PCR - Abcès / Kyste, cervical","coxiella-burnetii-pcr-3","","Abcès / Kyste, cervical","Microbio moléculaire","","","","","Fièvre Q"]
["Coxiella burnetii PCR - Abcès / Kyste, dentaire","coxiella-burnetii-pcr-4","","Abcès / Kyste, dentaire","Microbio moléculaire","","","","","Fièvre Q"]
["Coxiella burnetii PCR - Abcès / Kyste, foie","coxiella-burnetii-pcr-5","","Abcès / Kyste, foie","Microbio moléculaire","","","","","Fièvre Q"]
["Coxiella burnetii PCR - Abcès / Kyste, para-anal","coxiella-burnetii-pcr-6","","Abcès / Kyste, para-anal","Microbio moléculaire","","","","","Fièvre Q"]
["Coxiella burnetii PCR - Abcès / Kyste, paroi","coxiella-burnetii-pcr-7","","Abcès / Kyste, paroi","Microbio moléculaire","","","","","Fièvre Q"]
["Coxiella burnetii PCR - Abcès / kyste, pulmonaire","coxiella-burnetii-pcr-8","","Abcès / kyste, pulmonaire","Microbio moléculaire","","","","","Fièvre Q"]
["Coxiella burnetii PCR - Abcès / Kyste, sein","coxiella-burnetii-pcr-9","","Abcès / Kyste, sein","Microbio moléculaire","","","","","Fièvre Q"]
["Coxiella burnetii PCR - Biopsie","coxiella-burnetii-pcr-10","","Biopsie","Microbio moléculaire","","","","","Fièvre Q"]
["Coxiella burnetii PCR - Biopsie transbronchique","coxiella-burnetii-pcr-11","","Biopsie transbronchique","Microbio moléculaire","","","","","Fièvre Q"]
["Coxiella burnetii PCR - Biopsie valve","coxiella-burnetii-pcr-12","","Biopsie valve","Microbio moléculaire","","","","","Fièvre Q"]
["Coxiella burnetii PCR - Expectoration","coxiella-burnetii-pcr-13","","Expectoration","Microbio moléculaire","","","","","Fièvre Q"]
["Coxiella burnetii PCR - Liquide amniotique","coxiella-burnetii-pcr-14","","Liquide amniotique","Microbio moléculaire","","","","","Fièvre Q"]
["Coxiella burnetii PCR - Liquide natif","coxiella-burnetii-pcr-15","","Liquide natif","Microbio moléculaire","","","","","Fièvre Q"]
["Coxiella burnetii PCR - Liquide péricardique","coxiella-burnetii-pcr-16","","Liquide péricardique","Microbio moléculaire","","","","","Fièvre Q"]
["Coxiella burnetii PCR - Moelle osseuse","coxiella-burnetii-pcr-17","","Moelle osseuse","Microbio moléculaire","","","","","Fièvre Q"]
["Coxiella burnetii PCR - Sang","coxiella-burnetii-pcr-18","","Sang","Microbio moléculaire","","","","","Fièvre Q"]
["Coxiella burnetii PCR - Sécrétions endo-trachéales","coxiella-burnetii-pcr-19","","Sécrétions endo-trachéales","Microbio moléculaire","","","","","Fièvre Q"]
["Coxiella burnetii PCR - Aspiration bronchique","coxiella-burnetii-pcr-20","","Aspiration bronchique","Microbio moléculaire","","","","","Fièvre Q"]
["Coxiella burnetii PCR - Lavage broncho-alvéolaire (LBA)","coxiella-burnetii-pcr-21","","Lavage broncho-alvéolaire (LBA)","Microbio moléculaire","","","","","Fièvre Q"]
["Créatine / guanidinoacétate - Urine","creatine-/-guanidinoacetate","GAMT, AGAT, déficit en créatine","Urine","Chimie clinique","","","Erreurs innées du métabolisme - Déficiences en créatine","","Créatine, GAA, guanidinoacetic acid."]
["Créatine / guanidinoacétate - LCR","creatine-/-guanidinoacetate-1","GAMT, AGAT, déficit en créatine","LCR","Chimie clinique","","","Erreurs innées du métabolisme -<br />Déficiences en créatine","","Créatine, GAA, guanidinoacetic acid"]
["Créatine / guanidinoacétate - Sang","creatine-/-guanidinoacetate-2","GAMT, AGAT, déficit en créatine","Sang","Chimie clinique","","","Erreurs innées du métabolisme - Déficiences en créatine","","Créatine, GAA, guanidinoacetic acid"]
["Créatine kinase MB (CK-MB) - Sang","creatine-kinase-mb-ck-mb","CKMB","Sang","Chimie clinique","","","","",""]
["Créatine kinase totale (CK) - Sang","creatine-kinase-totale-ck","","Sang","Chimie clinique","","","","","CK"]
["Créatinine - Urine fraiche","creatinine","","Urine fraiche","Chimie clinique","","","","",""]
["Créatinine - Sang","creatinine-1","eGFR","Sang","Chimie clinique","","","","",""]
["Créatinine - Urine 24h","creatinine-2","","Urine 24h","Chimie clinique","","","","",""]
["Créatinine - Dialysat","creatinine-3","","Dialysat","Chimie clinique","","","","",""]
["CRP - Sang","crp","","Sang","Chimie clinique","","","<p>Infections, inflammations systémiques et traumatiques, risques cardiovasculaires.<br /></p>","","Protéine C réactive"]
["Cryoconservation de spermatozoïdes - ","cryoconservation-de-spermatozoides","","","Andrologie et de biologie de la reproduction","","La cryoconservation de spermatozoïdes permet de préserver la fertilité d’un homme dans le cadre d’un traitement oncologique/médical ou de PMA. Après examen microscopique de la concentration et de la mobilité des spermatozoïdes dans l’éjaculat, celui-ci est congelé puis stocké dans de l’azote liquide à -196°C.","Les résultats des sérologies HIV, HBV, HCV et syphilis doivent compléter la demande d’examen.","Abstinence 2-4 jours<br />Déplacement du patient au laboratoire",""]
["Cryoglobuline - ","cryoglobuline","Gammapathie, immunoglobulines, monoclonal","","Immunologie et allergie","","","<p>Maladie autoimmune dans le contexte de l'hépatite C</p>","<p>A jeun</p>",""]
["Cryptococcus - Culture - Aspirations bronchiques, Sécrétions endotrachéales","cryptococcus-culture-2","Sécrétions pulmonaires, respiratoires","Aspirations bronchiques, Sécrétions endotrachéales","Microbiologie","","Recherche par culture de<em> Cryptococcus</em> dans les aspirations bronchiques et sécrétions endotrachéales.","","",""]
["Cryptococcus - Culture - Abcès cérébral","cryptococcus-culture-3","pus","Abcès cérébral","Microbiologie","","Recherche par culture de <em>Cryptococcus</em> dans l'abcès cérébral.","","",""]
["Cryptococcus - Culture - Abcès du poumon","cryptococcus-culture-4","pus","Abcès du poumon","Microbiologie","","Recherche par culture de <em>Cryptococcus</em> dans l'abcès pulmonaire.","","",""]
["Cryptococcus - Culture - Abcès","cryptococcus-culture-5","pus","Abcès","Microbiologie","","Recherche par culture de <em>Cryptococcus</em> dans les échantillons d'abcès.","","",""]
["Cryptococcus - Culture - Moelle osseuse","cryptococcus-culture-6","","Moelle osseuse","Microbiologie","","Recherche par culture de <em>Cryptococcus</em> dans la moelle osseuse.","","",""]
["Cryptococcus - Culture - Liquide pleural","cryptococcus-culture-7","","Liquide pleural","Microbiologie","","Recherche par culture de<em> Cryptococcus</em> dans le liquide pleural.","","",""]
["Cryptococcus - Culture - Liquide et ponction de cavité normalement stérile (préciser la nature de l'échantillon)","cryptococcus-culture-8","cytoponction","Liquide et ponction de cavité normalement stérile (préciser la nature de l'échantillon)","Microbiologie","","Recherche par culture de<em> Cryptococcus</em> dans un liquide, une ponction ou cytoponction de cavité normalement stérile.","","",""]
["Cryptococcus - Culture - Biopsie transbronchique","cryptococcus-culture-9","","Biopsie transbronchique","Microbiologie","","Recherche par culture de <em>Cryptococcus</em> dans la biopsie transbronchique.","","",""]
["Cryptococcus - Culture - Tissu (biopsie) d'anévrisme","cryptococcus-culture-10","fragment","Tissu (biopsie) d'anévrisme","Microbiologie","","Recherche par culture de<em> Cryptococcus</em> dans du tissu (biopsie) d'anévrisme.","","",""]
["Cryptococcus - Culture - Tissu (biopsie) cérébral","cryptococcus-culture-11","fragment","Tissu (biopsie) cérébral","Microbiologie","","Recherche par culture de<em> Cryptococcus</em> dans du tissu (biopsie) cérébral.","","",""]
["Cryptococcus - Culture - Tissu (biopsie) de ganglion","cryptococcus-culture-12","fragment","Tissu (biopsie) de ganglion","Microbiologie","","Recherche par culture de<em> Cryptococcus</em> dans du tissu (biopsie) de ganglion.","","",""]
["Cryptococcus - Culture - Tissu (biopsie) de peau","cryptococcus-culture-13","fragment","Tissu (biopsie) de peau","Microbiologie","","Recherche par culture de<em> Cryptococcus</em> dans du tissu (biopsie) de peau.","","",""]
["Cryptococcus - Culture - Tissu (biopsie) de plèvre ou poumon","cryptococcus-culture-14","fragment","Tissu (biopsie) de plèvre ou poumon","Microbiologie","","Recherche par culture de<em> Cryptococcus</em> dans du tissu (biopsie) de peau ou de poumon","","",""]
["Cryptococcus - Culture - Tissu ou biopsie (spécifier le site)","cryptococcus-culture-15","fragment","Tissu ou biopsie (spécifier le site)","Microbiologie","","Recherche par culture de<em> Cryptococcus</em> dans du tissu ou biopsie.","","",""]
["Cryptococcus - Culture - Liquide céphalo-rachidien (LCR)","cryptococcus-culture","cryptocoque","Liquide céphalo-rachidien (LCR)","Microbiologie","","Recherche par culture spécifique de <em>Cryptococcus</em> dans le LCR","","",""]
["Cryptococcus - Culture - Lavage broncho-alvéolaire (LBA)","cryptococcus-culture-1","Sécrétions pulmonaires, respiratoires","Lavage broncho-alvéolaire (LBA)","Microbiologie","","Recherche par culture de <em>Cryptococcus</em> dans les échantillons de lavage broncho-alvéolaire (LBA).","","",""]
["Cryptococcus neoformans - Détection d'antigènes (Test rapide) - Liquide céphalo-rachidien (LCR)","cryptococcus-neoformans-detection-dantigenes-test-rapide","cryptocoque","Liquide céphalo-rachidien (LCR)","Microbiologie","","<ul><li><em>﻿﻿</em>Détection par test immunochromatographique des antigènes capsulaires de <em>Cryptococcus neoformans </em>dans le LCR﻿﻿.</li><li>﻿La détection doit également être demandée dans le sang.</li><li>En cas de résultat positif, une titration est effectuée.﻿</li></ul>","","",""]
["Cryptococcus neoformans antigènes - Test rapide - Sang","cryptococcus-neoformans-antigenes-test-rapide","cryptocoque","Sang","Microbiologie","","Détection par test immunochromatographique des antigènes capsulaires de <em>Cryptococcus neoformans </em>dans le sang.","﻿","",""]
["Cuivre - Sang","cuivre","Eléments traces, métal, métalloïde, métaux, oligo-éléments, oligoéléments","Sang","Chimie clinique","","","","","Cuprémie, Cu"]
["Cuivre - Urine","cuivre-1","Eléments traces, métal, métalloïde, métaux, oligo-éléments, oligoéléments","Urine","Chimie clinique","","","","","Cuprémie, Cu"]
["Cycloserine - Sang","cycloserine","tuberculose, tuberculeux, anti-tuberculeux, Antibiotique, MDR, XDR","Sang","Pharmacologie","","Dosage et interprétation pharmacocinétique de taux sanguin de cycloserine ","<p>Sur avis du spécialiste. L’interprétation clinique (TDM) du dosage n’est actuellement pas validée. </p>\r\n<p><br /></p>","",""]
["Cystatine C - ","cystatine-c","","","Chimie clinique","","","","",""]
["Cytokines - ","cytokines","inflammation","","Immunologie et allergie - transplant","","","Etat inflammatoire","",""]
["Cytomégalovirus - Sérodiagnostic IgG et IgM","cytomegalovirus","","Sérodiagnostic IgG et IgM","Microbio sérologie","","","","","CMV"]
["Cytomégalovirus  PCR - Liquide humeur aqueuse","cytomegalovirus-pcr","","Liquide humeur aqueuse","Microbio moléculaire","","","","","CMV"]
["Cytomégalovirus  PCR - Liquide humeur vitrée","cytomegalovirus-pcr-1","","Liquide humeur vitrée","Microbio moléculaire","","","","","CMV"]
["Cytomégalovirus  PCR - Sécrétions conjonctivales","cytomegalovirus-pcr-2","","Sécrétions conjonctivales","Microbio moléculaire","","","","","CMV"]
["Cytomégalovirus  PCR - Anévrisme","cytomegalovirus-pcr-3","","Anévrisme","Microbio moléculaire","","","","","CMV"]
["Cytomégalovirus  PCR - Biopsie anale","cytomegalovirus-pcr-4","","Biopsie anale","Microbio moléculaire","","","","","CMV"]
["Cytomégalovirus  PCR - Biopsie cérébrale","cytomegalovirus-pcr-5","","Biopsie cérébrale","Microbio moléculaire","","","","","CMV"]
["Cytomégalovirus  PCR - Biopsie colique","cytomegalovirus-pcr-6","","Biopsie colique","Microbio moléculaire","","","","","CMV"]
["Cytomégalovirus  PCR - Biopsie disque intervertébral","cytomegalovirus-pcr-7","","Biopsie disque intervertébral","Microbio moléculaire","","","","","CMV"]
["Cytomégalovirus  PCR - Biopsie foie","cytomegalovirus-pcr-8","","Biopsie foie","Microbio moléculaire","","","","","CMV"]
["Cytomégalovirus  PCR - Biopsie ganglion","cytomegalovirus-pcr-9","","Biopsie ganglion","Microbio moléculaire","","","","","CMV"]
["Cytomégalovirus  PCR - Biopsie gastrique","cytomegalovirus-pcr-10","","Biopsie gastrique","Microbio moléculaire","","","","","CMV"]
["Cytomégalovirus  PCR - Biopsie plèvre","cytomegalovirus-pcr-11","","Biopsie plèvre","Microbio moléculaire","","","","","CMV"]
["Cytomégalovirus  PCR - Biopsie poumon","cytomegalovirus-pcr-12","","Biopsie poumon","Microbio moléculaire","","","","","CMV"]
["Cytomégalovirus  PCR - Biopsie sinus","cytomegalovirus-pcr-13","","Biopsie sinus","Microbio moléculaire","","","","","CMV"]
["Cytomégalovirus  PCR - Biopsie tissu articulaire","cytomegalovirus-pcr-14","","Biopsie tissu articulaire","Microbio moléculaire","","","","","CMV"]
["Cytomégalovirus  PCR - Biopsie transbronchique","cytomegalovirus-pcr-15","","Biopsie transbronchique","Microbio moléculaire","","","","","CMV"]
["Cytomégalovirus  PCR - Biopsie valve","cytomegalovirus-pcr-16","","Biopsie valve","Microbio moléculaire","","","","","CMV"]
["Cytomégalovirus  PCR - Liquide péricardique","cytomegalovirus-pcr-17","","Liquide péricardique","Microbio moléculaire","","","","","CMV"]
["Cytomégalovirus  PCR - Ponction vésicale","cytomegalovirus-pcr-18","","Ponction vésicale","Microbio moléculaire","","","","","CMV"]
["Cytomégalovirus  PCR - Liquide sinus","cytomegalovirus-pcr-19","","Liquide sinus","Microbio moléculaire","","","","","CMV"]
["Cytomégalovirus  PCR - Urine début du jet (PCR uniquement)","cytomegalovirus-pcr-20","","Urine début du jet (PCR uniquement)","Microbio moléculaire","","Recherche de cytomégalovirus dans l'urine chez l'enfant de moins de 3 semaines","","","CMV"]
["Cytomégalovirus  PCR - Urine milieu du jet","cytomegalovirus-pcr-21","","Urine milieu du jet","Microbio moléculaire","","Recherche de cytomégalovirus dans l'urine chez l'enfant de moins de 3 semaines","","","CMV"]
["Cytomégalovirus  PCR - Urine sac (enfant)","cytomegalovirus-pcr-22","","Urine sac (enfant)","Microbio moléculaire","","Recherche de cytomégalovirus dans l'urine chez l'enfant de moins de 3 semaines","","","CMV"]
["Cytomégalovirus  PCR - Urine sondage aller retour","cytomegalovirus-pcr-23","","Urine sondage aller retour","Microbio moléculaire","","Recherche de cytomégalovirus dans l'urine chez l'enfant de moins de 3 semaines","","","CMV"]
["Cytomégalovirus  PCR - Urine sonde à demeure","cytomegalovirus-pcr-24","","Urine sonde à demeure","Microbio moléculaire","","Recherche de cytomégalovirus dans l'urine chez l'enfant de moins de 3 semaines","","","CMV"]
["Cytomégalovirus  PCR - Sang","cytomegalovirus-pcr-25","","Sang","Microbio moléculaire","","Evaluation de la charge virale","Principalement c/o immunosupprimés","","CMV"]
["Cytomégalovirus  PCR - Liquide céphalo-rachidien (LCR)","cytomegalovirus-pcr-26","","Liquide céphalo-rachidien (LCR)","Microbio moléculaire","","","","","CMV"]
["Cytomégalovirus  PCR - Lavage broncho-alvéolaire (LBA)","cytomegalovirus-pcr-27","","Lavage broncho-alvéolaire (LBA)","Microbio moléculaire","","","","","CMV"]
["Cytomégalovirus  PCR - Sécrétions salivaires (enfant)","cytomegalovirus-pcr-28","","Sécrétions salivaires (enfant)","Microbio moléculaire","","Recherche de cytomégalovirus dans la salive chez l'enfant de moins de 3 semaines","","<p>Les échantillons de salive sont à prélever chez le nouveau-né au moins une heure après l’alimentation en tamponnant l’intérieur de la bouche jusqu’à ce que l’écouvillon soit imbibé de salive.</p>","CMV"]
["Cytomégalovirus Avidité - Sérodiagnostic IgG","cytomegalovirus-avidite","","Sérodiagnostic IgG","Microbio sérologie","","<p>Permettre de dater plus précisément une infection (en particulier lors de ﻿découverte d'infection récente durant la grossesse)</p>","<ul><li>Analyse non effectuée chez les enfants de moins d'1 an</li><li>Noter que la maturation d'avidité peut être retardée chez les patient-e-s immunocompromis-es﻿</li></ul>","","CMV"]
["Cytopathologie - Aspiration bronchique, brossage bronchique, expectoration","cytopathologie","Crachat, Cytologie, Expectorations, Sputum, aspiration","Aspiration bronchique, brossage bronchique, expectoration","Pathologie - Pathologie Cytopathologie","","Caractérisation de critères cytologiques et/ou de recherche de cellules malignes dans une expectoration","","",""]
["Cytopathologie - Liquide Céphalo-Rachidien (LCR)","cytopathologie-1","Cytologie, LCR, Liquide céphalo-rachidien, Ponction lombaire","Liquide Céphalo-Rachidien (LCR)","Pathologie - Pathologie Cytopathologie","","<p>﻿Caractérisation cytologique et/ou de recherche de cellules malignes dans un liquide céphalo-rachidien (LCR)<br /> <br />Attention: la numération, répartition cellulaire et l'hématocrite sont effectuées par le laboratoire LCH, pour cela remplir la prescription « LCR numération et différentiation leucocytaire »</p>","","",""]
["Cytopathologie - Liquide d'épanchement (pleural, ascite, péricardique) - Rinçage abdominal – Lavage vésical, urine","cytopathologie-2","Cytologie, Liquide Péricardique,  Ponction,  Epanchement, Ascite, Pleural, Rinçage abdominal, Lavage, Urine, Vessie, Vésical","Liquide d'épanchement (pleural, ascite, péricardique) - Rinçage abdominal – Lavage vésical, urine","Pathologie - Pathologie Cytopathologie","","Caractérisation cytologique et/ou de recherche de cellules malignes sur un épanchement (pleural, ascite, péricardique), un rinçage abdominal, lavage vésical ou urine","","",""]
["Cytopathologie - Lavage Broncho-Alvéolaire (LBA)","cytopathologie-3","Cytologie, Lavage, LBA","Lavage Broncho-Alvéolaire (LBA)","Pathologie - Pathologie Cytopathologie","","Caractérisation cytologique et/ou de recherche de cellules malignes dans un lavage broncho-alvéolaire (LBA)","","",""]
["Cytopathologie - Liquide synovial","cytopathologie-4","Cytologie, Articulaire, Ponction, Numération, Répartition cellulaires, Cristaux","Liquide synovial","Pathologie - Pathologie Cytopathologie","","Recherche de cristaux d'urate de sodium, de pyrophosphate de calcium, de cholestérol par lumière polarisée compensée<br />Recherche de cristaux d'hydroxyapatite par coloration de rouge alizarine<br />Numération et répartition cellulaire","","",""]
["Cytopathologie - Frottis de dépistage gynécologique","cytopathologie-5","Cytologie, Frottis, Gynécologique,  Exocol, Endocol, Vulve, Vagin, Anus, Col utérin","Frottis de dépistage gynécologique","Pathologie - Pathologie Cytopathologie","","Caractérisation de critères cytologiques et/ou de recherche de cellules malignes sur frottis gynécologique","","",""]
["Cytopathologie - Cytoponction d'organe solide ou de collection liquidienne","cytopathologie-6","Cytologie, Cytoponction, Ponction, Kyste, Liquide, Thyroide, Ganglion, Glande, Salivaire","Cytoponction d'organe solide ou de collection liquidienne","Pathologie - Pathologie Cytopathologie","","Caractérisation cytologique et/ou de recherche de cellules malignes dans une cytoponction d'organe solide (organe profond ou lésion superficielle) ou de collection liquidienne","","",""]
["D-dimères - ","d-dimeres","PDF, produit de dégradation fibrine, DDICS, DDimer, DDimère, DD","","Hématologie générale 24/7","","","Exclusion de l'embolie pulmonaire et/ou de la thrombose veineuse profonde CIVD","","DDIME, D-dimères ELISA, PDF, produit de dégrad. fibrine"]
["D-Lactate (dépistage) - Estimation du D-Lactate urinaire","d-lactate-depistage","acidose métabolique","Estimation du D-Lactate urinaire","Chimie clinique","Contact nécessaire avant réalisation","Estimation du D-Lactate urinaire ","Dans un contexte d'acidose métabolique sans augmentation d'un anion connu (L-Lactate, OHBU, ...) et chez des patients ayant des apports de Glucose importants et ayant des possibilités de pullulation bactérienne (intestin court, bypass).","","D Lactate"]
["Dabrafenib - Sang","dabrafenib","Anticancéreux ciblés, TKI, inhibiteur tirosine kinase, inhibiteur des protéines kinases, PKI","Sang","Pharmacologie","","<p>Dosage du taux sanguin de dabrafenib</p>","<p>Sur avis du spécialiste. L’interprétation clinique (TDM) ou pharmacocinétique des dosage n’est actuellement pas validée.</p>","","Tafinlar®"]
["Daptomycine - Sang","daptomycine","Antibiotique, antimicrobien","Sang","Pharmacologie","","Dosage et interprétation pharmacologique (TDM) de taux sanguin de daptomycine (intervalle de référence disponible)","TDM uniquement dans des cas spécifiques (i.e. difficultés d’adaptation des doses, épuration extrarénale, dialyse, interactions médicamenteuses, toxicité, résistances)","","Cubicin®"]
["Darunavir - Sang","darunavir","Antirétroviraux, anti-HIV, Antirétroviral, PI, inhibiteur de la protéase","Sang","Pharmacologie","","<p>Dosage et interprétation pharmacologique (TDM) de taux sanguin de darunavir (intervalle de référence disponible)</p>","<p>Suivi thérapeutique, réponse insatisfaisante, suspicion de toxicité, suspicion d'interaction médicamenteuse, doute sur la compliance, grossesse, étude</p>","","Prezista®"]
["Dasatinib - Sang","dasatinib","Anticancéreux ciblés, TKI, inhibiteur tirosine kinase, inhibiteur des protéines kinases, PKI","Sang","Pharmacologie","","<p>Dosage et interprétation pharmacologique (TDM) de taux sanguin de dasatinib (intervalle de référence disponible)</p>","<p>Suivi thérapeutique, réponse insatisfaisante, suspicion de toxicité, suspicion d'interaction médicamenteuse, doute sur la compliance, grossesse, étude</p>","","Sprycel®"]
["Delamanid - Sang","delamanid","tuberculose, tuberculeux, anti-tuberculeux, Antibiotique, MDR, XDR","Sang","Pharmacologie","","Dosage et interprétation pharmacocinétique de taux sanguin de délamanide et de son métabolite (DM6705)","<p>Sur avis du spécialiste. L’interprétation clinique (TDM) du dosage n’est actuellement pas validée. </p>\r\n<p><br /></p>","","Deltyba (Allemagne)"]
["Délétion du chromosome 1P (bras court) - ","deletion-du-chromosome-1p-bras-court","","","Onco-hématologie pédiatrique","","Détection d'une anomalie génétique liée au pronostic","Neuroblastome","",""]
["Dépistage de germes producteurs d'ESBL ou carbapénémase - ","depistage-de-germes-producteurs-desbl-ou-carbapenemase","Germe, Germes multi-résitants, ESBL, CEP, BLSE, CPO, EPC, BMR","","Epidémiologie","","Cet examen comprend une recherche spécifique de germes producteurs d'ESBL ou de carbapenemase","Cette recherche s'effectue selon les directives de l'unité Hygiène Prévention et Contrôle de l'Infection (HPCI). Les motivations pour cette recherche figurent sur le bon d'analyse. Elles peuvent être effectuées en urgence pour des motifs appropriés selon les mêmes directives.","",""]
["Dépistage hépatites aigües - Sérologie","depistage-hepatites-aiguees","Anticorps, foie, ictère, dépistage","Sérologie","Immunologie et allergie - HIV","","Recherche des marqueurs suivants : antigène HBs, anticorps anti-HBc totaux, anticorps anti-HAV IgM, anticorps anti-HCV, anticorps anti-HEV IgM, anticorps anti-HEV IgG","Hépatites aigües","","Hépatite A, hépatite B, hépatite C, hépatite E, HAV, HBV, HCV, HEV"]
["Dépistage MRSA - Frottis pour recherche de MRSA","depistage-mrsa","Germe, Germes multi-résitants, methicilin, metticilline, sarm, staphylocoque doré, staphylocoques, BMR","Frottis pour recherche de MRSA","Epidémiologie","","Cet examen comprend une recherche spécifique de <em>Staphylococcus aureus </em>résistant à la méticiline (MRSA)","Cette recherche s'effectue selon les directives de l'unité Hygiène Prévention et Contrôle de l'Infection (HPCI). Les motivations pour cette recherche figurent sur le bon d'analyse. Elle peut être effectuée en urgence pour des motifs appropriés selon les mêmes directives.﻿","",""]
["Dépistage prénatal des trisomies 21 et 13/18 - 1er trimestre - Sang","depistage-prenatal-des-trisomies-21-et-13/18-1er-trimestre","syndrome de Down, bêta-hCG libre, PAPP-A","Sang","Chimie clinique","","","<p><strong>﻿﻿</strong>Le calcul des risques de <strong>trisomie 21</strong> et de <strong>trisomies 13/18</strong> est effectué à l'aide du logiciel Fast Screen qui nécessite :<br /> 1. la détermination des taux sériques de ßhCG libre et de PAPP-A<br /> 2. les mesures échographiques : LCC (longueur crânio-caudale) et CN (clarté nucale)<br /> 3. les données démographiques et cliniques de la patiente (âge, origine ethnique, poids, diabète, antécédents de T21, de T13 ou de T18, tabagisme, FIV, gémellarité et chorionicité)<br /> Ce calcul n'est possible que si la <strong>LCC</strong> est comprise entre <strong>45 et 84 mm </strong>(ce qui correspond dans Fast Screen aux semaines de grossesse (SG) 11 1/7 à 14 0/7).</p>\r\n<p>Les 2 modes suivants sont possibles:<br /> - <strong>test simultané </strong>: prélèvement sanguin et mesures échographiques simultanés de SG 11 1/7 à 14 0/7<br /> - <strong>test séquentiel </strong>: prélèvement sanguin de SG 9 0/7 à 11 0/7 et mesures échographiques de SG 11 1/7 à 14 0/7<br /> &nbsp;</p>","","Test du 1er trimestre, TPT"]
["Dépistage prénatal des trisomies 21 et 18 - 2ème trimestre - Sang","depistage-prenatal-des-trisomies-21-et-18-2eme-trimestre","syndrome de Down, AFP, alpha-foetoprotéine, bêta-hCG libre","Sang","Chimie clinique","","<p>Le calcul des risques de <strong>trisomie 21</strong> et de <strong>trisomie 18</strong> au 2ème trimestre de la grossesse est effectué à l'aide du logiciel Fast Screen qui nécessite:</p>\r\n<ol> \t<li>﻿la détermination des taux sériques d'AFP et de ßhCG libre</li> \t<li>l'âge gestationnel ﻿basé sur la date des dernières règles ou sur les mesures échographiques (en cas de FIV, sur la date de fécondation﻿)</li> \t<li>les données démographiques et cliniques de la patiente (âge, origine ethnique, poids, diabète, antécédent de T21 ou de T18, tabagisme, FIV, gémellarité et chorionicité) ﻿</li> </ol>\r\n<p>Ce dépistage peut être réalisé entre les semaines de grossesse<strong> 14 0/7 à 19 6/7</strong>.﻿</p>","","","Test du 2ème trimestre"]
["Dépistage rapide de toxiques - Urine","depistage-rapide-de-toxiques","Acétaminophène, cannabinoïdes, ecstasy, héroïne, intoxication, morphine, opioïdes, PCP, screening des drogues, THC","Urine","Chimie clinique","Formulaire annexe à remplir (voir rubrique Informations Générales - Prescription)","Test qualitatif pour la détection des paramètres suivants dans l'urine : amphétamines, méthamphétamines, barbituriques, benzodiazépines, cocaïne, cannabis, méthadone, opiacés, antidépresseurs tricycliques.","<p>Analyse réservée aux <strong>Urgences</strong>, aux <strong>Soins Intensifs adultes et pédiatriques</strong>, à la <strong>Néonatologie</strong>.</p>\r\n<p>Pour<br />le <strong>suivi des toxicodépendances</strong>, cf. la fiche <strong>\"Dépistage<br />semi-quantitatif des drogues (screening)\"</strong> du laboratoire UPPC de Cery.</p>","",""]
["Dépistage semi-quantitatif des drogues (screening) - Urines","depistage-semi-quantitatif-des-drogues-screening","amphétamine, barbiturique, benzodiazepine, buprenorphine, cannabis, cocaine, ecstasy, haschisch, héroine, lsd, méthadone, morphine, opiacés, pcp, phencyclidine, screening, toxicodépendances, toxique","Urines","UPPC Pharmacogénétique et psychopharmacologie","","<p>Suivi des toxicodépendances</p>","<p>Dosage demandé à des fin non légales</p>","",""]
["Dépistage VRE - Recherche d'entérocoques résistant à la vancomycine","depistage-vre","Germe, Germes multi-résitants, BMR, VRE, Enterococcus, faecium, faecalis, BMR","Recherche d'entérocoques résistant à la vancomycine","Epidémiologie","","<p>Cet examen comprend une recherche spécique d'enterocoques résistants à la vancomycine (VRE).</p>","<p>Cette recherche s'effectue selon les directives de l'unité Hygiène Prévention et Contrôle de l'Infection (HPCI). Les motivations pour cette recherche figurent sur le bon d'analyse. Elle peut être effectuée en urgence pour des motifs appropriés selon les même directives.</p>","",""]
["Détermination du statut mutationnel IGHV avec primers Leaders - ","determination-du-statut-mutationnel-ighv-avec-primers-leaders","LLC, statut mutationnel, hypermuté, leucémie lymphoïde chronique","","Hématologie moléculaire","","<p>Cette technique de séquençage haut débit (sur Miseq) permet de déterminer 2 facteurs pronostiques chez les patients atteints de leucémie lymphoïde chronique, avant traitement. </p>","","",""]
["Dexamphétamine - Sang","dexamphetamine","Dexamphétamine, Dexamfétamine, ATTENTIN, amphétamine, amfétamine","Sang","UPPC Pharmacogénétique et psychopharmacologie","","Dosage et interprétation pharmacologique du taux sanguin","Réponse insatisfaisante, effets secondaires, interactions, doute sur l’adhésion, suspicion d’intoxication","",""]
["Dexméthylphénidate - Sang","dexmethylphenidate","Focalin, Focalin XR","Sang","UPPC Pharmacogénétique et psychopharmacologie","Condition particulière d'acheminement, Acheminer immédiatement le tube","<p>Dosage et interprétation pharmacologique du taux sanguin</p>","<p>Réponse insatisfaisante, effets secondaires, interactions, doute sur l’adhésion, suspicion d’intoxication</p>","",""]
["DHEA-S - Sang","dhea-s","Hormone, stéroïde, stéroïdes, profil stéroïdes, profil stéroïdien, androgène, DHEA","Sang","Chimie clinique","","","","","Déhydroépiandrostérone sulfate,DHEAS, prastérone"]
["Digoxine - Sang","digoxine","","Sang","Chimie clinique","","<p>Dosage et interprétation pharmacologique (TDM) de taux sanguin de digoxine (intervalle de référence disponible).</p>","<p>Suivi thérapeutique, réponse insatisfaisante, suspicion de toxicité, suspicion d'interaction médicamenteuse, doute sur la compliance.</p>","","Lanoxin"]
["Diphtérie Recherche de la toxine - PCR","diphterie-recherche-de-la-toxine","","PCR","Microbiologie","","Recherche par PCR du gène de la toxine de Corynebacteirum diphteriae","Clinique compatible avec une diphtérie<br />Ananmnèse de voyage dans un pays endémique","",""]
["Dolutegravir - Sang","dolutegravir","Antiretroviraux, anti-HIV, Antirétroviral, INI, inhibiteur de l'intégrase","Sang","Pharmacologie","","<p>Dosage et interprétation pharmacologique (TDM) de taux sanguin de dolutegravir (intervalle de référence disponible)</p>","<p>Suivi thérapeutique, réponse insatisfaisante, suspicion de toxicité, suspicion d'interaction médicamenteuse, doute sur la compliance, grossesse, étude</p>","","Tivicay®, dans Triumeq®"]
["Donepézil - Sang","donepezil","Aricept","Sang","UPPC Pharmacogénétique et psychopharmacologie","","Dosage et interprétation pharmacologique du taux sanguin","Réponse insatisfaisante, effets secondaires, interactions, doute sur l’adhésion, suspicion d’intoxication","Le patient doit être informé que cette analyse ne figure pas sur la liste des analyses en vigueur et qu'elle ne sera pas obligatoirement prise en charge par les caisses maladie",""]
["Doravirine - Sang","doravirine","Antiretroviraux, anti-HIV, Antirétroviral, NNRTI, analogue non nucléosidique","Sang","Pharmacologie","","<p>Dosage et interprétation pharmacologique (TDM) de taux sanguin de doravirine(intervalle de référence disponible)</p>","<p>Suivi thérapeutique, réponse insatisfaisante, suspicion de toxicité, suspicion d'interaction médicamenteuse, doute sur la compliance, grossesse, étude</p>","","Pifektro®, dans Delstrigo®"]
["Doxycyclin - Sang","doxycyclin","Antibiotique, antimicrobien, tétracycline","Sang","Pharmacologie","Contact nécessaire avant réalisation","<p>Dosage et interprétation pharmacocinétique de taux sanguin de doxycycline (absence d'intervalle de référence, évaluation seulement de la plausibilité du taux)</p>","<p>TDM indiqué uniquement dans des situations spécifiques : il est recommandé de <strong>contacter le responsable TDM AVANT prélèvement </strong>: 021 314 22 41. En cas d’absence, téléphonez au : 021 314 25 00.</p>\r\n<p>Sur avis du spécialiste. L’interprétation clinique (TDM) du dosage n’est actuellement pas validée.</p>","","Vibramycin®"]
["DRPLA - Analyse moléculaire","drpla","Ataxie, chorée de Humtington, dentatorubral, expansion de triplets, pallidoluysian atrophy","Analyse moléculaire","Génétique moléculaire","","Analyse de l'expansion de la région instable du DRPLA. OMIM 125370","","",""]
["Duloxétine - Sang","duloxetine","Cymbalta","Sang","UPPC Pharmacogénétique et psychopharmacologie","","Dosage et interprétation pharmacologique du taux sanguin","Réponse insatisfaisante, effets secondaires, interactions, doute sur l’adhésion, suspicion d’intoxication","",""]
["Dystr. myotonique de Steinert - Analyse moléculaire","dystr-myotonique-de-steinert","Diagnostic prénatal, dystrophe, expansion de triplets, myotonie","Analyse moléculaire","Génétique moléculaire","","Analyse de l'expansion de la région instable du gène DMPK. OMIM 160900","","",""]
["E2A-PBX - Equivalent moléculaire translocation t(1;19)","e2a-pbx","","Equivalent moléculaire translocation t(1;19)","Hématologie moléculaire","","Le E2A-PBX correspond à l'équivalent moléculaire de la translocation chromosomique (1;19) qui est recherchée dans les LLA.<br />Cette analyse est complémentaire de l'analyse cytogénétique standard.","","","t (1;19), translocations chromosomiques"]
["Efavirenz - Sang","efavirenz","Antiretroviraux, anti-HIV, Antirétroviral, NNRTI, analogue non nucléosidique","Sang","Pharmacologie","","<p>Dosage et interprétation pharmacologique (TDM) de taux sanguin d'efavirenz (intervalle de référence disponible)</p>","","","Viramune®"]
["Electrophorèse des protéines - Urine fraîche","electrophorese-des-proteines","Electrophorèse, protéines urinaires","Urine fraîche","Chimie clinique","","","","",""]
["Electrophorèse des protéines - Sang","electrophorese-des-proteines-1","Electrophorèse, protéines sériques, protéines","Sang","Chimie clinique","","","","",""]
["Electrophorèse des protéines - Urine 24h","electrophorese-des-proteines-2","Electrophorèses, protéines urinaires, urine 24h","Urine 24h","Chimie clinique","","","","","Electrophorèse-protéines, protéines-électrophorèse, lipoprotéines-électrophorèse, électrophorèse-lipoprotéines"]
["Elispot CMV - Recherche d'immunité cellulaire","elispot-cmv","","Recherche d'immunité cellulaire","Immunologie et allergie","Ne pas envoyer par poste pneumatique","","Suspicion d'infection","","T-spot"]
["Elispot EBV - Recherche d'immunité cellulaire","elispot-ebv","","Recherche d'immunité cellulaire","Immunologie et allergie","Ne pas envoyer par poste pneumatique","","Suspicion d'infection","","T-SPOT"]
["Elvitegravir - Sang","elvitegravir","Antiretroviraux, anti-HIV, Antirétroviral, INI, inhibiteur de l'intégrase","Sang","Pharmacologie","","<p>Dosage et interprétation pharmacologique (TDM) de taux sanguin d'elvitegravir (intervalle de référence disponible)</p>","<p>Suivi thérapeutique, réponse insatisfaisante, suspicion de toxicité, suspicion d'interaction médicamenteuse, doute sur la compliance, grossesse, étude</p>","","Stribild®, dans Genvoya®"]
["Emtricitabine - Sang","emtricitabine","Antirétroviraux, anti-HIV, Antirétroviral, NRTI, analogue nucléosidique et nucléotidique","Sang","Pharmacologie","","<p>Dosage et interprétation pharmacocinétique de taux sanguin d'emtricitabine (absence d'intervalle de référence, évaluation seulement de la plausibilité du taux)</p>","<p>Suivi thérapeutique, réponse insatisfaisante, suspicion de toxicité, suspicion d'interaction médicamenteuse, doute sur la compliance, grossesse, étude</p>","","Emtriva® , dans Atripla ® , dans Truvada®, dans Descovy®, dans Genvoya®, dans Stribild® , dans Eviplera®"]
["Encéphalite à tiques - Sérodiagnostic IgG et IgM","encephalite-a-tiques","","Sérodiagnostic IgG et IgM","Microbio sérologie","","","","","FSME, TBE"]
["Entamoeba histolytica  PCR - Abcès / Kyste, foie","entamoeba-histolytica-pcr","parasitologie, amibes","Abcès / Kyste, foie","Microbio moléculaire","","","","",""]
["Enterovirus PCR - Frottis gorge","enterovirus-pcr","","Frottis gorge","Microbio moléculaire","","","","",""]
["Enterovirus PCR - Sang","enterovirus-pcr-1","","Sang","Microbio moléculaire","","Evaluation de la charge virale","","",""]
["Enterovirus Test rapide PCR - Liquide céphalo-rachidien (LCR)","enterovirus-test-rapide-pcr","","Liquide céphalo-rachidien (LCR)","Microbio moléculaire","","","Méningite","",""]
["Enzyme de conversion - Sang","enzyme-de-conversion-1","ECA, Enzyme de conversion de l'angiotensine, ACE, Angiotensin converting enzyme","Sang","Chimie clinique","","","","<p>Arrêt médicaments inhibiteur de l'ECA. Patient à jeun.</p>","ECA, Enzyme de conversion de l'angiotensine, ACE, Angiotensin converting enzyme"]
["Epstein-Barr virus - Sérodiagnostic IgG et IgM","epstein-barr-virus","","Sérodiagnostic IgG et IgM","Microbio sérologie","","","","","EBV"]
["Epstein-Barr virus  PCR - Abcès","epstein-barr-virus-pcr","","Abcès","Microbio moléculaire","","","","","EBV"]
["Epstein-Barr virus  PCR - Biopsie","epstein-barr-virus-pcr-1","","Biopsie","Microbio moléculaire","","","","","EBV"]
["Epstein-Barr virus  PCR - Biopsie cérébrale","epstein-barr-virus-pcr-2","","Biopsie cérébrale","Microbio moléculaire","","","","","EBV"]
["Epstein-Barr virus  PCR - Biopsie ganglion","epstein-barr-virus-pcr-3","","Biopsie ganglion","Microbio moléculaire","","","","","EBV"]
["Epstein-Barr virus  PCR - Moelle osseuse","epstein-barr-virus-pcr-4","","Moelle osseuse","Microbio moléculaire","","","","","EBV"]
["Epstein-Barr virus  PCR - Sang","epstein-barr-virus-pcr-5","","Sang","Microbio moléculaire","","Evaluation de la charge virale","Principalement c/o immunosupprimés","","EBV"]
["Epstein-Barr virus  PCR - Liquide céphalo-rachidien (LCR)","epstein-barr-virus-pcr-6","","Liquide céphalo-rachidien (LCR)","Microbio moléculaire","","","","","EBV"]
["Erlotinib - Sang","erlotinib","Anticancéreux ciblés, TKI, inhibiteur tirosine kinase, inhibiteur des protéines kinases, PKI","Sang","Pharmacologie","","<p>Dosage et interprétation pharmacocinétique de taux sanguin d'erlotinib (absence d'intervalle de référence, évaluation seulement de la plausibilité du taux)</p>","<p>Suivi thérapeutique, réponse insatisfaisante, suspicion de toxicité, suspicion d'interaction médicamenteuse, doute sur la compliance, grossesse, étude</p>","","Tarceva®"]
["Ertapenem - Sang","ertapenem","Antibiotique, antimicrobien, carbapénème","Sang","Pharmacologie","","Dosage et interprétation pharmacologique (TDM) de taux sanguin d'ertapenem (intervalle de référence disponible)","TDM uniquement dans des cas spécifiques (i.e. difficultés d’adaptation des doses, épuration extrarénale, dialyse, interactions médicamenteuses, toxicité, résistances)","","Invanz®"]
["Erythromycine - Sang","cefiderocol-1","Antibiotique, antimicrobien, macrolide","Sang","Pharmacologie","Ne pas prélever le week-end (vendredi dès 16h à dimanche midi).","<p>Dosage et interprétation pharmacocinétique de taux sanguin d'érythromycine (absence d'intervalle de référence, évaluation seulement de la plausibilité du taux)</p>","<p>TDM indiqué uniquement dans des situations spécifiques : il est recommandé de <strong>contacter le responsable TDM AVANT prélèvement </strong>: 021 314 22 41. En cas d’absence, téléphonez au : 021 314 25 00.</p>\r\n<p>Sur avis du spécialiste. L’interprétation clinique (TDM) du dosage n’est actuellement pas validée.</p>","","Erythrocin"]
["Erythropoïétine - Sang","erythropoietine","Erthyropoïétine, EPO","Sang","Chimie clinique","","","","<p>Contre-indications: 15j arrêt prise EPO exogène</p>","EPO"]
["Escitalopram - Sang","escitalopram","Cipralex","Sang","UPPC Pharmacogénétique et psychopharmacologie","","<p>Dosage et interprétation pharmacologique du taux sanguin</p>","<p>Réponse insatisfaisante, effets secondaires, interactions, doute sur l’adhésion, suspicion d’intoxication</p>","",""]
["Eslicarbazepine - Sang","eslicarbazepine","Antiépileptique, anticonvulsivant, anti-convulsivant, anti-épileptique, épilepsie\r\nlicarbazepine, s-hydroxy-oxcarbazépine, s-MHD","Sang","Pharmacologie","","<p>Dosage du taux sanguin d'eslicarbazepine﻿.﻿</p>\r\n<p>L'eslicarbazépine acétate est métabolisée en sa substance active, la s-licarbazépine (synonyme: s-hydroxy-oxcarbazépine, ou s-MHD). Les marges thérapeutiques du MHD sont prise en compte dans l'interprétation (TDM).</p>\r\n<p>﻿</p>","","","Zebinix"]
["Estradiol (E2) - Sang","estradiol-e2","hormone, oestriol non conjugé, œstrogène, oestrogènes, stéroïde, stéroïdes, fertilité","Sang","Chimie clinique","","","","","Oestradiol, E2"]
["Etanercept - Taux résiduel du médicament, détection d'anticorps anti-médicaments","etanercept","","Taux résiduel du médicament, détection d'anticorps anti-médicaments","Immunologie et allergie","","Suivi thérapeutique","","","Enbrel, médicaments, biologiques"]
["Ethambutol - Sang","ethambutol","tuberculose, tuberculeux, anti-tuberculeux, Antibiotique","Sang","Pharmacologie","","Dosage et interprétation pharmacocinétique de taux sanguin de l'éthambutol","<p>Sur avis du spécialiste. L’interprétation clinique (TDM) du dosage n’est actuellement pas validée. </p>\r\n<p><br /></p>","","Rimstar, Myambutol"]
["Etravirine - Sang","etravirine","Antiretroviraux, anti-HIV, Antirétroviral, NNRTI, analogue non nucléosidique","Sang","Pharmacologie","","<p>Dosage et interprétation pharmacocinétique de taux sanguin d'etravirine (absence d'intervalle de référence, évaluation seulement de la plausibilité du taux)</p>","<p>Suivi thérapeutique, réponse insatisfaisante, suspicion de toxicité, suspicion d'interaction médicamenteuse, doute sur la compliance, grossesse, étude</p>","","Intelence®"]
["Eubactérienne directe PCR - Abcès","eubacterienne-directe-pcr","","Abcès","Microbio moléculaire","","<p>            </p>\r\n<table><tbody><tr><td></td></tr></tbody></table>\r\n<p>Recherche à large spectre de DNA bactérien dans un échantillon clinique  1. Normalement stérile 2. Avec cultures négatives Les prélèvements non normalement stériles ne sont pas acceptés (muqueuses, urines, prélèvements respiratoires, selles)  La sensibilité d'une PCR eubactérienne est inférieure à une PCR spécifique en conséquence privilégier une PCR spécifique si elle existe. Un résultat négatif n'exclut pas une infection bactérienne Justifications cliniques demandées idéalement par contact téléphonique au 021 314 41 07</p>\r\n<p><br /></p>","","","Large spectre, broad spectrum PCR"]
["Eubactérienne directe PCR - Abcès / kyste, amygdale","eubacterienne-directe-pcr-1","","Abcès / kyste, amygdale","Microbio moléculaire","","Recherche à large spectre de DNA bactérien dans un échantillon clinique <br />1. Normalement stérile<br />2. Avec cultures négatives<br />Les prélèvements non normalement stériles ne sont pas acceptés (muqueuses, urines, prélèvements respiratoires, selles) <br />La sensibilité d'une PCR eubactérienne est inférieure à une PCR spécifique en conséquence privilégier une PCR spécifique si elle existe.<br />Un résultat négatif n'exclut pas une infection bactérienne<br />Justifications cliniques demandées idéalement par contact téléphonique au 021 314 41 07","","","Large spectre, broad spectrum PCR"]
["Eubactérienne directe PCR - Abcès / Kyste, cérébral","eubacterienne-directe-pcr-2","","Abcès / Kyste, cérébral","Microbio moléculaire","","Recherche à large spectre de DNA bactérien dans un échantillon clinique <br />1. Normalement stérile<br />2. Avec cultures négatives<br />Les prélèvements non normalement stériles ne sont pas acceptés (muqueuses, urines, prélèvements respiratoires, selles) <br />La sensibilité d'une PCR eubactérienne est inférieure à une PCR spécifique en conséquence privilégier une PCR spécifique si elle existe.<br />Un résultat négatif n'exclut pas une infection bactérienne<br />Justifications cliniques demandées idéalement par contact téléphonique au 021 314 41 07","","","Large spectre, broad spectrum PCR"]
["Eubactérienne directe PCR - Abcès / Kyste, cervical","eubacterienne-directe-pcr-3","","Abcès / Kyste, cervical","Microbio moléculaire","","Recherche à large spectre de DNA bactérien dans un échantillon clinique <br />1. Normalement stérile<br />2. Avec cultures négatives<br />Les prélèvements non normalement stériles ne sont pas acceptés (muqueuses, urines, prélèvements respiratoires, selles) <br />La sensibilité d'une PCR eubactérienne est inférieure à une PCR spécifique en conséquence privilégier une PCR spécifique si elle existe.<br />Un résultat négatif n'exclut pas une infection bactérienne<br />Justifications cliniques demandées idéalement par contact téléphonique au 021 314 41 07","","","Large spectre, broad spectrum PCR"]
["Eubactérienne directe PCR - Abcès / Kyste, dentaire","eubacterienne-directe-pcr-4","","Abcès / Kyste, dentaire","Microbio moléculaire","","Recherche à large spectre de DNA bactérien dans un échantillon clinique <br />1. Normalement stérile<br />2. Avec cultures négatives<br />Les prélèvements non normalement stériles ne sont pas acceptés (muqueuses, urines, prélèvements respiratoires, selles) <br />La sensibilité d'une PCR eubactérienne est inférieure à une PCR spécifique en conséquence privilégier une PCR spécifique si elle existe.<br />Un résultat négatif n'exclut pas une infection bactérienne<br />Justifications cliniques demandées idéalement par contact téléphonique au 021 314 41 07","","","Large spectre, broad spectrum PCR"]
["Eubactérienne directe PCR - Abcès / Kyste, foie","eubacterienne-directe-pcr-5","","Abcès / Kyste, foie","Microbio moléculaire","","Recherche à large spectre de DNA bactérien dans un échantillon clinique <br />1. Normalement stérile<br />2. Avec cultures négatives<br />Les prélèvements non normalement stériles ne sont pas acceptés (muqueuses, urines, prélèvements respiratoires, selles) <br />La sensibilité d'une PCR eubactérienne est inférieure à une PCR spécifique en conséquence privilégier une PCR spécifique si elle existe.<br />Un résultat négatif n'exclut pas une infection bactérienne<br />Justifications cliniques demandées idéalement par contact téléphonique au 021 314 41 07","","","Large spectre, broad spectrum PCR"]
["Eubactérienne directe PCR - Abcès / Kyste, para-anal","eubacterienne-directe-pcr-6","","Abcès / Kyste, para-anal","Microbio moléculaire","","Recherche à large spectre de DNA bactérien dans un échantillon clinique <br />1. Normalement stérile<br />2. Avec cultures négatives<br />Les prélèvements non normalement stériles ne sont pas acceptés (muqueuses, urines, prélèvements respiratoires, selles) <br />La sensibilité d'une PCR eubactérienne est inférieure à une PCR spécifique en conséquence privilégier une PCR spécifique si elle existe.<br />Un résultat négatif n'exclut pas une infection bactérienne<br />Justifications cliniques demandées idéalement par contact téléphonique au 021 314 41 07","","","Large spectre, broad spectrum PCR"]
["Eubactérienne directe PCR - Abcès / Kyste, paroi","eubacterienne-directe-pcr-7","","Abcès / Kyste, paroi","Microbio moléculaire","","Recherche à large spectre de DNA bactérien dans un échantillon clinique <br />1. Normalement stérile<br />2. Avec cultures négatives<br />Les prélèvements non normalement stériles ne sont pas acceptés (muqueuses, urines, prélèvements respiratoires, selles) <br />La sensibilité d'une PCR eubactérienne est inférieure à une PCR spécifique en conséquence privilégier une PCR spécifique si elle existe.<br />Un résultat négatif n'exclut pas une infection bactérienne<br />Justifications cliniques demandées idéalement par contact téléphonique au 021 314 41 07","","","Large spectre, broad spectrum PCR"]
["Eubactérienne directe PCR - Abcès / kyste, pulmonaire","eubacterienne-directe-pcr-8","","Abcès / kyste, pulmonaire","Microbio moléculaire","","Recherche à large spectre de DNA bactérien dans un échantillon clinique <br />1. Normalement stérile<br />2. Avec cultures négatives<br />Les prélèvements non normalement stériles ne sont pas acceptés (muqueuses, urines, prélèvements respiratoires, selles) <br />La sensibilité d'une PCR eubactérienne est inférieure à une PCR spécifique en conséquence privilégier une PCR spécifique si elle existe.<br />Un résultat négatif n'exclut pas une infection bactérienne<br />Justifications cliniques demandées idéalement par contact téléphonique au 021 314 41 07","","","Large spectre, broad spectrum PCR"]
["Eubactérienne directe PCR - Abcès / Kyste, sein","eubacterienne-directe-pcr-9","","Abcès / Kyste, sein","Microbio moléculaire","","Recherche à large spectre de DNA bactérien dans un échantillon clinique <br />1. Normalement stérile<br />2. Avec cultures négatives<br />Les prélèvements non normalement stériles ne sont pas acceptés (muqueuses, urines, prélèvements respiratoires, selles) <br />La sensibilité d'une PCR eubactérienne est inférieure à une PCR spécifique en conséquence privilégier une PCR spécifique si elle existe.<br />Un résultat négatif n'exclut pas une infection bactérienne<br />Justifications cliniques demandées idéalement par contact téléphonique au 021 314 41 07","","","Large spectre, broad spectrum PCR"]
["Eubactérienne directe PCR - Anévrisme","eubacterienne-directe-pcr-10","","Anévrisme","Microbio moléculaire","","Recherche à large spectre de DNA bactérien dans un échantillon clinique <br />1. Normalement stérile<br />2. Avec cultures négatives<br />Les prélèvements non normalement stériles ne sont pas acceptés (muqueuses, urines, prélèvements respiratoires, selles) <br />La sensibilité d'une PCR eubactérienne est inférieure à une PCR spécifique en conséquence privilégier une PCR spécifique si elle existe.<br />Un résultat négatif n'exclut pas une infection bactérienne<br />Justifications cliniques demandées idéalement par contact téléphonique au 021 314 41 07","","","Large spectre, broad spectrum PCR"]
["Eubactérienne directe PCR - Biopsie","eubacterienne-directe-pcr-11","","Biopsie","Microbio moléculaire","","Recherche à large spectre de DNA bactérien dans un échantillon clinique <br />1. Normalement stérile<br />2. Avec cultures négatives<br />Les prélèvements non normalement stériles ne sont pas acceptés (muqueuses, urines, prélèvements respiratoires, selles) <br />La sensibilité d'une PCR eubactérienne est inférieure à une PCR spécifique en conséquence privilégier une PCR spécifique si elle existe.<br />Un résultat négatif n'exclut pas une infection bactérienne<br />Justifications cliniques demandées idéalement par contact téléphonique au 021 314 41 07","","","Large spectre, broad spectrum PCR"]
["Eubactérienne directe PCR - Biopsie cérébrale","eubacterienne-directe-pcr-12","","Biopsie cérébrale","Microbio moléculaire","","Recherche à large spectre de DNA bactérien dans un échantillon clinique <br />1. Normalement stérile<br />2. Avec cultures négatives<br />Les prélèvements non normalement stériles ne sont pas acceptés (muqueuses, urines, prélèvements respiratoires, selles) <br />La sensibilité d'une PCR eubactérienne est inférieure à une PCR spécifique en conséquence privilégier une PCR spécifique si elle existe.<br />Un résultat négatif n'exclut pas une infection bactérienne<br />Justifications cliniques demandées idéalement par contact téléphonique au 021 314 41 07","","","Large spectre, broad spectrum PCR"]
["Eubactérienne directe PCR - Biopsie disque intervertébral","eubacterienne-directe-pcr-13","","Biopsie disque intervertébral","Microbio moléculaire","","Recherche à large spectre de DNA bactérien dans un échantillon clinique <br />1. Normalement stérile<br />2. Avec cultures négatives<br />Les prélèvements non normalement stériles ne sont pas acceptés (muqueuses, urines, prélèvements respiratoires, selles) <br />La sensibilité d'une PCR eubactérienne est inférieure à une PCR spécifique en conséquence privilégier une PCR spécifique si elle existe.<br />Un résultat négatif n'exclut pas une infection bactérienne<br />Justifications cliniques demandées idéalement par contact téléphonique au 021 314 41 07","","","Large spectre, broad spectrum PCR"]
["Eubactérienne directe PCR - Biopsie foie","eubacterienne-directe-pcr-14","","Biopsie foie","Microbio moléculaire","","Recherche à large spectre de DNA bactérien dans un échantillon clinique <br />1. Normalement stérile<br />2. Avec cultures négatives<br />Les prélèvements non normalement stériles ne sont pas acceptés (muqueuses, urines, prélèvements respiratoires, selles) <br />La sensibilité d'une PCR eubactérienne est inférieure à une PCR spécifique en conséquence privilégier une PCR spécifique si elle existe.<br />Un résultat négatif n'exclut pas une infection bactérienne<br />Justifications cliniques demandées idéalement par contact téléphonique au 021 314 41 07","","","Large spectre, broad spectrum PCR"]
["Eubactérienne directe PCR - Biopsie ganglion","eubacterienne-directe-pcr-15","","Biopsie ganglion","Microbio moléculaire","","Recherche à large spectre de DNA bactérien dans un échantillon clinique <br />1. Normalement stérile<br />2. Avec cultures négatives<br />Les prélèvements non normalement stériles ne sont pas acceptés (muqueuses, urines, prélèvements respiratoires, selles) <br />La sensibilité d'une PCR eubactérienne est inférieure à une PCR spécifique en conséquence privilégier une PCR spécifique si elle existe.<br />Un résultat négatif n'exclut pas une infection bactérienne<br />Justifications cliniques demandées idéalement par contact téléphonique au 021 314 41 07","","","Large spectre, broad spectrum PCR"]
["Eubactérienne directe PCR - Biopsie plèvre","eubacterienne-directe-pcr-16","","Biopsie plèvre","Microbio moléculaire","","Recherche à large spectre de DNA bactérien dans un échantillon clinique <br />1. Normalement stérile<br />2. Avec cultures négatives<br />Les prélèvements non normalement stériles ne sont pas acceptés (muqueuses, urines, prélèvements respiratoires, selles) <br />La sensibilité d'une PCR eubactérienne est inférieure à une PCR spécifique en conséquence privilégier une PCR spécifique si elle existe.<br />Un résultat négatif n'exclut pas une infection bactérienne<br />Justifications cliniques demandées idéalement par contact téléphonique au 021 314 41 07","","","Large spectre, broad spectrum PCR"]
["Eubactérienne directe PCR - Biopsie poumon","eubacterienne-directe-pcr-17","","Biopsie poumon","Microbio moléculaire","","Recherche à large spectre de DNA bactérien dans un échantillon clinique <br />1. Normalement stérile<br />2. Avec cultures négatives<br />Les prélèvements non normalement stériles ne sont pas acceptés (muqueuses, urines, prélèvements respiratoires, selles) <br />La sensibilité d'une PCR eubactérienne est inférieure à une PCR spécifique en conséquence privilégier une PCR spécifique si elle existe.<br />Un résultat négatif n'exclut pas une infection bactérienne<br />Justifications cliniques demandées idéalement par contact téléphonique au 021 314 41 07","","","Large spectre, broad spectrum PCR"]
["Eubactérienne directe PCR - Biopsie tissu articulaire","eubacterienne-directe-pcr-18","","Biopsie tissu articulaire","Microbio moléculaire","","Recherche à large spectre de DNA bactérien dans un échantillon clinique <br />1. Normalement stérile<br />2. Avec cultures négatives<br />Les prélèvements non normalement stériles ne sont pas acceptés (muqueuses, urines, prélèvements respiratoires, selles) <br />La sensibilité d'une PCR eubactérienne est inférieure à une PCR spécifique en conséquence privilégier une PCR spécifique si elle existe.<br />Un résultat négatif n'exclut pas une infection bactérienne<br />Justifications cliniques demandées idéalement par contact téléphonique au 021 314 41 07","","","Large spectre, broad spectrum PCR"]
["Eubactérienne directe PCR - Biopsie valve","eubacterienne-directe-pcr-19","","Biopsie valve","Microbio moléculaire","","Recherche à large spectre de DNA bactérien dans un échantillon clinique <br />1. Normalement stérile<br />2. Avec cultures négatives<br />Les prélèvements non normalement stériles ne sont pas acceptés (muqueuses, urines, prélèvements respiratoires, selles) <br />La sensibilité d'une PCR eubactérienne est inférieure à une PCR spécifique en conséquence privilégier une PCR spécifique si elle existe.<br />Un résultat négatif n'exclut pas une infection bactérienne<br />Justifications cliniques demandées idéalement par contact téléphonique au 021 314 41 07","","","Large spectre, broad spectrum PCR"]
["Eubactérienne directe PCR - Liquide articulaire","eubacterienne-directe-pcr-20","","Liquide articulaire","Microbio moléculaire","","Recherche à large spectre de DNA bactérien dans un échantillon clinique <br />1. Normalement stérile<br />2. Avec cultures négatives<br />Les prélèvements non normalement stériles ne sont pas acceptés (muqueuses, urines, prélèvements respiratoires, selles) <br />La sensibilité d'une PCR eubactérienne est inférieure à une PCR spécifique en conséquence privilégier une PCR spécifique si elle existe.<br />Un résultat négatif n'exclut pas une infection bactérienne<br />Justifications cliniques demandées idéalement par contact téléphonique au 021 314 41 07","","","Large spectre, broad spectrum PCR"]
["Eubactérienne directe PCR - Liquide péritonéal","eubacterienne-directe-pcr-21","","Liquide péritonéal","Microbio moléculaire","","Recherche à large spectre de DNA bactérien dans un échantillon clinique <br />1. Normalement stérile<br />2. Avec cultures négatives<br />Les prélèvements non normalement stériles ne sont pas acceptés (muqueuses, urines, prélèvements respiratoires, selles) <br />La sensibilité d'une PCR eubactérienne est inférieure à une PCR spécifique en conséquence privilégier une PCR spécifique si elle existe.<br />Un résultat négatif n'exclut pas une infection bactérienne<br />Justifications cliniques demandées idéalement par contact téléphonique au 021 314 41 07","","","Large spectre, broad spectrum PCR"]
["Eubactérienne directe PCR - Liquide pleural","eubacterienne-directe-pcr-22","","Liquide pleural","Microbio moléculaire","","Recherche à large spectre de DNA bactérien dans un échantillon clinique <br />1. Normalement stérile<br />2. Avec cultures négatives<br />Les prélèvements non normalement stériles ne sont pas acceptés (muqueuses, urines, prélèvements respiratoires, selles) <br />La sensibilité d'une PCR eubactérienne est inférieure à une PCR spécifique en conséquence privilégier une PCR spécifique si elle existe.<br />Un résultat négatif n'exclut pas une infection bactérienne<br />Justifications cliniques demandées idéalement par contact téléphonique au 021 314 41 07","","","Large spectre, broad spectrum PCR"]
["Eubactérienne directe PCR - Moelle osseuse","eubacterienne-directe-pcr-23","","Moelle osseuse","Microbio moléculaire","","Recherche à large spectre de DNA bactérien dans un échantillon clinique <br />1. Normalement stérile<br />2. Avec cultures négatives<br />Les prélèvements non normalement stériles ne sont pas acceptés (muqueuses, urines, prélèvements respiratoires, selles) <br />La sensibilité d'une PCR eubactérienne est inférieure à une PCR spécifique en conséquence privilégier une PCR spécifique si elle existe.<br />Un résultat négatif n'exclut pas une infection bactérienne<br />Justifications cliniques demandées idéalement par contact téléphonique au 021 314 41 07","","","Large spectre, broad spectrum PCR"]
["Eubactérienne directe PCR - Liquide céphalo-rachidien (LCR)","eubacterienne-directe-pcr-24","","Liquide céphalo-rachidien (LCR)","Microbio moléculaire","","Recherche à large spectre de DNA bactérien dans un échantillon clinique <br />1. Normalement stérile<br />2. Avec cultures négatives<br />Les prélèvements non normalement stériles ne sont pas acceptés (muqueuses, urines, prélèvements respiratoires, selles) <br />La sensibilité d'une PCR eubactérienne est inférieure à une PCR spécifique en conséquence privilégier une PCR spécifique si elle existe.<br />Un résultat négatif n'exclut pas une infection bactérienne<br />Justifications cliniques demandées idéalement par contact téléphonique au 021 314 41 07","","","Large spectre, broad spectrum PCR"]
["Eubactérienne directe PCR - Prothèse","eubacterienne-directe-pcr-25","","Prothèse","Microbio moléculaire","","Recherche à large spectre de DNA bactérien dans un échantillon clinique <br />1. Normalement stérile<br />2. Avec cultures négatives<br />Les prélèvements non normalement stériles ne sont pas acceptés (muqueuses, urines, prélèvements respiratoires, selles) <br />La sensibilité d'une PCR eubactérienne est inférieure à une PCR spécifique en conséquence privilégier une PCR spécifique si elle existe.<br />Un résultat négatif n'exclut pas une infection bactérienne<br />Justifications cliniques demandées idéalement par contact téléphonique au 021 314 41 07","","","Large spectre, broad spectrum PCR"]
["Eubactérienne directe PCR - Prothèse vasculaire","eubacterienne-directe-pcr-26","","Prothèse vasculaire","Microbio moléculaire","","Recherche à large spectre de DNA bactérien dans un échantillon clinique <br />1. Normalement stérile<br />2. Avec cultures négatives<br /><br />Les prélèvements non normalement stériles ne sont pas accéptés (muqueuses, urines,prélèvement respiratoires, selles <br />La sensibilité d'une PCR eubactérienne est inférieure à une PCR spécifique en conséquience privilégier une PCR spécifique si elle existe.<br />Un résultat négatif n'exclut pas une infection bactérienne<br />Justifications cliniques demandées idéalement par contact téléphonique au 021 314 41 07","","","Large spectre, broad spectrum PCR"]
["Everolimus - Sang","everolimus","Immunosuppresseurs","Sang","Chimie clinique","","<p>Dosage et interprétation pharmacologique (TDM) de taux sanguin d'everolimus (intervalle de référence greffe dépendant).</p>","<p>Suivi thérapeutique, suspicion de taux insuffisant, suspicion de toxicité, suspicion d'interaction médicamenteuse.</p>","","Certican, SDZ RAD"]
["EVI-1 - Hyperexpression EVI-1","evi-1","","Hyperexpression EVI-1","Hématologie moléculaire","","Le gène EVI1 est hyperexprimé dans environ 10% des LMA et est un facteur indépendant de mauvais pronostic","","","EVI1, hyper-expression, LMA"]
["Extraction ADN de cultures de cellules - ","extraction-adn-de-cultures-de-cellules","DNA","","Génétique moléculaire","","Obtention de l'ADN pour analyses moléculaires","","",""]
["Extraction ADN du sang - ","extraction-adn-du-sang","DNA","","Génétique moléculaire","","Obtention de l'ADN pour analyses moléculaires","","",""]
["Facteur B - ","facteur-b","Complément","","Immunologie et allergie","","","","",""]
["Facteur Bb - ","facteur-bb","Complément","","Immunologie et allergie","","","","",""]
["Facteur H - ","facteur-h","Complément","","Immunologie et allergie","","","","",""]
["Facteur I - ","facteur-i","Complément","","Immunologie et allergie","","","","",""]
["Facteur rhumatoïde - ","facteur-rhumatoide","","","Immunologie et allergie","","","","",""]
["Facteurs de coagulation (activité fonctionnelle) - ","facteurs-de-coagulation-activite-fonctionnelle","Crase spéciale, facteur extrinsèque, facteur II, facteur V, facteur VII, facteur X, facteur VIII, facteur IX, facteur XI, facteur XII, facteur XIII, facteur 13, facteurs, grande crase, hémostase, hémostase-tests complémentaire, hémostases tests de base, hémostase-tests spéciaux, II, V, VII, X, VIII, IX, XI, XII, XIII, facteur, FII, FV, FVII, FX, FVIII, FIX, FXI, FXII, FXIII, F2, F5, F10, F8, F9, F11, F12, F13,  investigation aPTT pathologique","","Hématologie - Hémostase spéciale","","Les facteurs de coagulation comprennent:<br />FII, FV, FVII, FX, FVIII, FIX, FXI, FXII, FXIII","","","Crase spéciale, facteur extrinsèque, facteur intrinsèque, grande crase, hémostase tests complémentaire, hémostase tests spéciaux, investigation PTT pathologique,  investigation TP pathologique, "]
["Fer - Sang","fer","Coefficient saturation","Sang","Chimie clinique","","","","",""]
["Ferritine - Sang","ferritine","","Sang","Chimie clinique","","","","Arrêt médicaments à base de fer 15 jours avant le prélèvement.<br />","Apoferritine"]
["FHV Ebola - PCR","fhv-ebola","","PCR","Microbiologie","","Recherche du virus Ebola (fièvre hémorragique)<br />Analyse d'hématologie, chimie clinique, hémostase, microbologie","Suspicion avérée d'infection par le virus Ebola<br />voir procédure \"prise en charge de la fièvre hémorragique virale (FHV)<br />(<a href=\"http://tribu.intranet.chuv/vdoc.htm?url=http%3A%2F%2Fgedchuv.intranet.chuv%2Fvdocopenweb%2Fasp%2Fcenter.asp%3FUserLogin%3DPublic%26DBIndex%3D%257b9CF397AD-894F-4ECE-94F3-CA5DB7B59846%257d%26RedirectTo%3DLoadHttpLinkByRef.asp%253fiddoc%253d912822\" target=\"_blank\">SMPH_W_DIR_00012</a>) pour la définition du cas","",""]
["Fibrinogène - ","fibrinogene","fibri, fibrine, fibrinogene, facteur 1, FI","","Hématologie générale 24/7","","","","","FI, fibri"]
["Fièvre méditerranéenne familiale - Analyse moléculaire","fievre-mediterraneenne-familiale","Amyloïdose","Analyse moléculaire","Génétique moléculaire","","Analyse de 12 mutations de gène MEFV. OMIM 249100","","",""]
["FLT3 - ","flt3","LMA, mutation, marqueurs moléculaires, FLT3-ITD, FLT3, ITD, FLT3 TKD, TKD D835, I836","","Hématologie moléculaire","","<p>Lors de certaines leucémies myéloïdes aigues (LMA), on peut observer des mutations de type ITD (duplication interne en tandem) et des mutations ponctuelles (D835 et I836) du gène du récepteur <em>FLT3</em>. La présence de telles mutations suggère un pronostic défavorable pour le patient.</p>","<p>LMA</p>","","LMA caryotype normal"]
["Flucloxacilline - Sang","flucloxacilline","Antibiotique, antimicrobien, pénicilline","Sang","Pharmacologie","","Dosage et interprétation pharmacologique (TDM) de taux sanguin de flucloxacilline (intervalle de référence disponible)","TDM uniquement dans des cas spécifiques (i.e. difficultés d’adaptation des doses, épuration extrarénale, dialyse, interactions médicamenteuses, toxicité, résistances)","","Floxapen®"]
["Fluconazole - Sang","fluconazole","Antifongique, triazolé","Sang","Pharmacologie","","Dosage et interprétation pharmacologique (TDM) de taux sanguin de fluconazole (intervalle de référence disponible)","TDM uniquement dans des cas spécifiques (i.e. difficultés d’adaptation des doses, épuration extrarénale, dialyse, interactions médicamenteuses, toxicité, résistances)","","Diflucan®"]
["Fluoxétine - Sang","fluoxetine","Fluctine, Norfluoxetine","Sang","UPPC Pharmacogénétique et psychopharmacologie","","<p>Dosage et interprétation pharmacologique du taux sanguin</p>","<p>Réponse insatisfaisante, effets secondaires, interactions, doute sur l’adhésion, suspicion d’intoxication</p>","",""]
["Flupentixol - Sang","flupentixol","Deanxit, Fluanxol, Flupenthixol","Sang","UPPC Pharmacogénétique et psychopharmacologie","","Dosage et interprétation pharmacologique du taux sanguin","Réponse insatisfaisante, effets secondaires, interactions, doute sur l’adhésion, suspicion d’intoxication","",""]
["Fluvoxamine - Sang","fluvoxamine","Floxyfral","Sang","UPPC Pharmacogénétique et psychopharmacologie","","<p>Dosage et interprétation pharmacologique du taux sanguin</p>","<p>Réponse insatisfaisante, effets secondaires, interactions, doute sur l’adhésion, suspicion d’intoxication</p>","",""]
["Folate (B9) - Sang","folate","","Sang","Chimie clinique","","","","","Acide folique, folacine, folates, vitamine B9"]
["Formule sanguine simple - FSS","formule-sanguine-simple","Erythrocyte FS FSS globule blanc rouge Hb hematie hematocrite hemoglobine hemogramme ht hte leucocyte thrombocyte plaquette","FSS","Hématologie générale 24/7","","","","","FS, FSS, hémogramme"]
["Francisella tularensis PCR - Abcès","francisella-tularensis-pcr","","Abcès","Microbio moléculaire","","","","",""]
["Francisella tularensis PCR - Abcès / kyste, amygdale","francisella-tularensis-pcr-1","","Abcès / kyste, amygdale","Microbio moléculaire","","","","",""]
["Francisella tularensis PCR - Abcès / Kyste, cérébral","francisella-tularensis-pcr-2","","Abcès / Kyste, cérébral","Microbio moléculaire","","","","",""]
["Francisella tularensis PCR - Abcès / Kyste, cervical","francisella-tularensis-pcr-3","","Abcès / Kyste, cervical","Microbio moléculaire","","","","",""]
["Francisella tularensis PCR - Abcès / Kyste, dentaire","francisella-tularensis-pcr-4","","Abcès / Kyste, dentaire","Microbio moléculaire","","","","",""]
["Francisella tularensis PCR - Abcès / Kyste, foie","francisella-tularensis-pcr-5","","Abcès / Kyste, foie","Microbio moléculaire","","","","",""]
["Francisella tularensis PCR - Abcès / Kyste, para-anal","francisella-tularensis-pcr-6","","Abcès / Kyste, para-anal","Microbio moléculaire","","","","",""]
["Francisella tularensis PCR - Abcès / Kyste, paroi","francisella-tularensis-pcr-7","","Abcès / Kyste, paroi","Microbio moléculaire","","","","",""]
["Francisella tularensis PCR - Abcès / kyste, pulmonaire","francisella-tularensis-pcr-8","","Abcès / kyste, pulmonaire","Microbio moléculaire","","","","",""]
["Francisella tularensis PCR - Abcès / Kyste, sein","francisella-tularensis-pcr-9","","Abcès / Kyste, sein","Microbio moléculaire","","","","",""]
["Francisella tularensis PCR - Biopsie","francisella-tularensis-pcr-10","","Biopsie","Microbio moléculaire","","","","",""]
["Francisella tularensis PCR - Biopsie foie","francisella-tularensis-pcr-11","","Biopsie foie","Microbio moléculaire","","","","",""]
["Francisella tularensis PCR - Biopsie ganglion","francisella-tularensis-pcr-12","","Biopsie ganglion","Microbio moléculaire","","","","",""]
["Francisella tularensis PCR - Liquide natif","francisella-tularensis-pcr-13","","Liquide natif","Microbio moléculaire","","","","",""]
["Francisella tularensis PCR - Tissu cutané","francisella-tularensis-pcr-14","","Tissu cutané","Microbio moléculaire","","","","",""]
["Fructosamine - Sang","fructosamine","","Sang","Chimie clinique","","","","",""]
["FSH - Sang","fsh","hormone folicullostimulante, follitropine, follicle stimulating hormone, gonadotrophine, gonadotropine, hormone gonadotrope","Sang","Chimie clinique","","","","","hormone folliculo-stimulante"]
["Gabapentine - Sang","gabapentine","Antiépileptique, anticonvulsivant, anti-convulsivant, anti-épileptique, épilepsie,","Sang","Pharmacologie","","Dosage  et interprétation pharmacocinétique de taux sanguin de gabapentine (absence d'intervalle de référence, évaluation seulement de la plausibilité du taux)","Sur avis du spécialiste. L’interprétation clinique (TDM) du dosage n’est actuellement pas validée.","","Neurontin"]
["Galantamine - Sang","galantamine","Reminyl","Sang","UPPC Pharmacogénétique et psychopharmacologie","","Dosage et interprétation pharmacologique du taux sanguin","Réponse insatisfaisante, effets secondaires, interactions, doute sur l’adhésion, suspicion d’intoxication","Le patient doit être informé que cette analyse ne figure pas sur la liste des analyses en vigueur et qu'elle ne sera pas obligatoirement prise en charge par les caisses maladie",""]
["Gamma-glutamyl-transférase (GGT) - Sang","gamma-glutamyl-transferase-ggt","","Sang","Chimie clinique","","","","",""]
["Gammapathie monoclonale - ","gammapathie-monoclonale","Immunoélectrophorèse, immunoglobulines, immunosoustraction","","Immunologie et allergie","","Dépistage / suivi de gammapathie monoclonale","","",""]
["Ganciclovir - Sang","ganciclovir","Antiviraux, antiviral","Sang","Pharmacologie","","Dosage et interprétation pharmacologique (TDM) de taux sanguin de ganciclovir (intervalle de référence disponible)","Suivi thérapeutique, réponse insatisfaisante, suspicion de toxicité, suspicion d'interaction médicamenteuse, doute sur la compliance, grossesse, étude","","Cymevene®"]
["Gastrine - Sang","gastrine","","Sang","Chimie clinique","Acheminer immédiatement le tube","﻿","","<p>- patient à jeun (si possible &gt; 12 heures)</p>\r\n<p>- stopper le traitement par des antiacides ou des anti-H2 24 heures avant le prélèvement </p>\r\n<p>- stopper le traitement par ﻿des inhibiteur de pompes à proton une semaine avant﻿ le prélèvement</p>",""]
["Gazométrie - Cordon ombilical","gazometrie","","Cordon ombilical","Foetologie - maternité","","","Prélévement effectué par  le médecin en salle d'accouchement","",""]
["Gazométrie - Sang matérnité","gazometrie-1","","Sang matérnité","Foetologie - maternité","","","Le sang fœtal est prélevé par le médecin en salle d'ultrasons","",""]
["Gazométrie artérielle - Sang","gazometrie-arterielle","gazo, pH, pO2, pCO2, lactate, calcium ionisé, bicarbonate, saturation","Sang","Chimie clinique","","<p>Le pH, la pO2 et la pCO2 rendus sont corrigés à la température du patient.</p>\r\n<p>L' oxymétrie (dérivés de l'hémoglobine) est mesurée avec la gazométrie pour la détermination de la saturation.</p>\r\n<p>Le lactate et le calcium ionisé peuvent être effectués sur le même prélèvement.</p>\r\n<p>Paramètres calculés déduits:</p>\r\n<ul> \t<li>Saturation en O2</li> \t<li>Base excess</li> \t<li>Base excess standard</li> \t<li>Bicarbonate actuel</li> \t<li>Bicarbonate standard</li> \t<li>CO2 total</li> \t<li>Contenu en O2</li> \t<li>p50</li> </ul>","","","gaz du sang"]
["Gazométrie capillaire pédiatrie (LCC) - Sang","gazometrie-capillaire-pediatrie-lcc","","Sang","Chimie clinique","","<p>Le pH, la pO2 et la pCO2 rendus sont corrigés à la température du patient.<br /></p>\r\n<p>L' oxymétrie (dérivés de l'hémoglobine) est mesurée avec la gazométrie pour la détermination de la saturation.<br /></p>\r\n<p>Le lactate et le calcium ionisé peuvent être effectués sur le même prélèvement. <br /></p>\r\n<p>Paramètres calculés déduits:<br /></p>\r\n<ul>  <li><span>Saturation      en O2</span></li>  <li><span>Base      excess</span></li>  <li><span>Base      excess standard</span></li>  <li><span>Bicarbonate      actuel</span></li>  <li><span>Bicarbonate      standard</span></li>  <li><span>CO2      total</span></li>  <li><span>Contenu      en O2</span></li>  <li><span>p50</span></li> </ul>\r\n<br />","","","gaz du sang"]
["Gazométrie urine - Pédiatrie","gazometrie-urine","","Pédiatrie","Néphrologie pédiatrique","","","","",""]
["Gazométrie veineuse - Sang","gazometrie-veineuse","","Sang","Chimie clinique","","<p>Le pH, la pO2 et la pCO2 rendus sont corrigés à la température du patient.<br /></p>\r\n<p>L' oxymétrie (dérivés de l'hémoglobine) est mesurée avec la gazométrie pour la détermination de la saturation.<br /></p>\r\n<p>Le lactate et le calcium ionisé peuvent être effectués sur le même prélèvement. <br /></p>\r\n<p>Paramètres calculés déduits:<br /></p>\r\n<ul>  <li><span>Saturation      en O2</span></li>  <li><span>Base      excess</span></li>  <li><span>Base      excess standard</span></li>  <li><span>Bicarbonate      actuel</span></li>  <li><span>Bicarbonate      standard</span></li>  <li><span>CO2      total</span></li>  <li><span>Contenu      en O2</span></li>  <li><span>p50</span></li> </ul>","","","gaz du sang"]
["Gefitinib - Sang","gefitinib","Anticancéreux ciblés, TKI, inhibiteur tirosine kinase, inhibiteur des protéines kinases, PKI","Sang","Pharmacologie","","<p>Dosage de taux sanguin de gefitinib</p>","<p>Sur avis du spécialiste. L’interprétation clinique (TDM) ou pharmacocinétique des dosage n’est actuellement pas validée.</p>","","Iressa®"]
["Genotypage Cytochrome P450 - Sang","genotypage-cytochrome-p450","Allèles, CYP2C19, CYP2C9, CYP2D6, cytochrome, génotype, 2C19, 2C9, 2D6","Sang","UPPC Pharmacogénétique et psychopharmacologie","","Déterminations des allèles","Suspicion de métabolisme déficient ou rapide","Feuille de consentement obligatoire",""]
["Génotypage érythrocytaire - ","genotypage-erythrocytaire","Antigènes érythrocytaires","","UMT","","<p>Bilan transfusionnel chez le patient drépanocytaire, complément d'analyse lors de phénotype ininterprétable</p>","","","Antigènes érythrocytaires"]
["Gentamicine - Sang","gentamicine","antibiotique, antimicrobien, aminoside, aminoglycoside","Sang","Chimie clinique","Acheminer immédiatement le tube","<p>Dosage et interprétation pharmacologique (TDM) de taux sanguin de gentamicine (intervalle de référence pour une administration journalière unique).</p>","<p>Suivi thérapeutique, réponse insatisfaisante, suspicion de toxicité.</p>\r\n<p><em>Néonatologie:</em> protocole 1ère dose.</p>","","Garamycine, Garamycin, gentamycine"]
["Giardia lamblia - Suc duodénal - Microscopie","giardia-lamblia-suc-duodenal","","Microscopie","Microbiologie","","","","",""]
["Glucagon - Sang","glucagon","Hormone","Sang","Chimie clinique","Acheminer immédiatement le tube sur la glace","﻿","","Patient à jeun",""]
["Glucose - Dialysat","glucose-6","","Dialysat","Chimie clinique","","","","",""]
["Glucose - Urine","glucose","glycémie","Urine","Chimie clinique","","","","",""]
["Glucose - Liquide d'ascite","glucose-1","","Liquide d'ascite","Chimie clinique","","","","","Glucides, sucres"]
["Glucose - Liquide pleural","glucose-2","","Liquide pleural","Chimie clinique","","","","","Glucides, sucres"]
["Glucose - LCR","glucose-3","","LCR","Chimie clinique","","","","",""]
["Glucose - Sang","glucose-4","glycémie","Sang","Chimie clinique","","","","",""]
["Glucose - Sang capillaire adulte","glucose-5","glycémie","Sang capillaire adulte","Chimie clinique","","","","",""]
["Glucose 6-phosphate déshydrogénase qualitative - G6PD qualitative","glucose-6-phosphate-deshydrogenase-qualitative","","G6PD qualitative","Hématologie spéciale","","Le but de cette analyse est le dépistage d'un déficit en G-6-PD et le résultat rendu est qualitatif (normal ou déficient). En cas de déficit, un dosage quantitatif peut être envisagé (analyse externalisée)﻿.<br />Préalable indispensable: FSS et dosage des réticulocytes.","","","G6PD, glucose-6-PD, G6PDH, G-6-phosphate-déshydrogénase, G6PD QUALITATIVE"]
["Golimumab - Taux résiduel du médicament, détection d'anticorps anti-médicaments et TNFalpha","golimumab","","Taux résiduel du médicament, détection d'anticorps anti-médicaments et TNFalpha","Immunologie et allergie","","Suivi thérapeutique","","","Simponi, médicaments biologiques"]
["Gonocoques - Culture","gonocoques","Anus, cervix, col, endocol, urètre","Culture","Microbiologie","","","","","Neisseria gonorrhoeae"]
["Grand status hématologique - Formule sanguine complète, FSC","grand-status-hematologique","formule leucocytaire FSC hématologique repartition complete différenciation","Formule sanguine complète, FSC","Hématologie générale 24/7","","","","","Différenciation leucocytaire, formule sanguine complète"]
["Groupes sanguins ABO et Rhésus D (RH1) - ","groupes-sanguins-abo-et-rhesus-d-rh1","Groupe, GR, RH, détermination","","UMT","","<p>Préalable à la transfusion de produits sanguins labiles</p>\r\n<p>Les groupes sanguins ABO et Rhésus D (RH1) du patient doivent être confirmés (2 prélèvements distincts)</p>","","",""]
["Guanfacine - Sang","guanfacine","INTUNIV","Sang","UPPC Pharmacogénétique et psychopharmacologie","","Dosage et interprétation pharmacologique du taux sanguin","Réponse insatisfaisante, effets secondaires, interactions, doute sur l’adhésion, suspicion d’intoxication","",""]
["Halopéridol - Sang","haloperidol","Decanoas, Haldol","Sang","UPPC Pharmacogénétique et psychopharmacologie","","Dosage et interprétation pharmacologique du taux sanguin","Réponse insatisfaisante, effets secondaires, interactions, doute sur l’adhésion, suspicion d’intoxication","",""]
["Haptoglobine - Sang","haptoglobine","","Sang","Chimie clinique","","","","",""]
["Hb fœtale - test de Kleihauer - Test de Kleihauer","hb-foetale-test-de-kleihauer","","Test de Kleihauer","Hématologie spéciale","","Ce test permet de détecter la présence de globules rouges fœtaux dans le sang maternel. Ne pas confondre avec le dosage quantitatif qui peut se faire dans le cadre de l'électrophorèse de l'hémoglobine ou chez les patients drépanocytaires traités pour augmenter le taux d'HBF","","","ABT-test, HbF, hémoglobine fœtale"]
["Helicobacter pylori - Sérodiagnostic IgG","helicobacter-pylori-1","","Sérodiagnostic IgG","Microbio sérologie","","","","",""]
["Helicobacter pylori - Culture - Biopsie gastrique","helicobacter-pylori-culture","gastrique, antre, corps, fundus","Biopsie gastrique","Microbiologie","Acheminer immédiatement le tube","Recherche spécifique d'Helicobacter pylori dans les échantillons de biopsie gastrique.","Echec de tentative d'éradication.","<ol><li>﻿﻿Il est important que les biopsies parviennent le plus rapidement au laboratoire (&lt; 2 heures) durant les heures d'ouverture (08h00 - 17h00).</li><li>Hors de cet horaire, un milieu de transport adéquat doit être utilisé﻿ (germes fragiles).</li></ol>",""]
["Hématocrite - Liquide de ponction","hematocrite","hémoglobine, ascite, pleural","Liquide de ponction","Hématologie générale 24/7","","","","",""]
["Hémochromatose gène HLA-H/HFE dépistage C282Y + H63D - ","hemochromatose-gene-hla-h/hfe-depistage-c282y-h63d","","","Hématologie moléculaire","","Détection du polymorphisme C282Y et H63D","","","Polymorphisme, typage moléculaire"]
["Hémochromatose héréditaire - Analyse moléculaire","hemochromatose-hereditaire","Ferritine, siderophiline, transferrine","Analyse moléculaire","Génétique moléculaire","","Analyse du gène HFE (3 mutations) OMIM 235200","","",""]
["Hémoglobine - Liquide de ponction","hemoglobine","hématocrite, ascite, pleural","Liquide de ponction","Hématologie générale 24/7","","","","",""]
["Hémoglobine fœtale - Test d'APT - Méconium ou vomissures","hemoglobine-foetale-test-dapt","ABT APT fœtal hb hemoglobine","Méconium ou vomissures","Hématologie générale 24/7","","","<p>Présence visible de sang.</p>","","APT, APT-test, hb fœtale, HBF,"]
["Hémoglobine glyquée (HbA1c) - Sang","hemoglobine-glyquee-hba1c","Diabète, Hb glyquée","Sang","Chimie clinique","","","","",""]
["Hémopathies malignes (analyses oncogénomiques) - ","hemopathies-malignes-analyses-oncogenomiques","hémopathies malignes, analyses oncogénomiques, LOG","","Oncogénomique -  hématologie","","<p>Le Laboratoire d’oncogénomique (anciennement Unité de cytogénétique du cancer) est le plus grand laboratoire de génétique oncologique de Suisse grâce à la diversité des prestations proposées. Il reçoit de plus des prélèvements de l’ensemble de la Suisse. Son activité est principalement consacrée à l’analyse dans un but diagnostique et pronostique des leucémies de l’enfant et de l’adulte, ainsi que des tumeurs solides pédiatriques. Les analyses utilisées sont des méthodes de cytogénétique et de génétique moléculaire.<br /></p>\r\n<p><br /></p>\r\n<p>Pour toutes informations concernant les domaines d'analyse et les prestations, notre site internet est à disposition à l'adresse suivante: <a href=\"https://www.chuv.ch/fr/log/accueil/\">http://www.chuv.ch/log</a><br /></p>","Tout type d'hémopathie maligne de l'adulte et de l'enfant","","hémopathies malignes, analyses oncogénomiques, LOG"]
["Hépatite A - Sérologie, anti- HAV totaux","hepatite-a","Anticorps, foie, ictère, dépistage","Sérologie, anti- HAV totaux","Immunologie et allergie - HIV","","Dépistage hépatite A","Vaccination","","HAV"]
["Hépatite A - Sérologie, anti- HAV IgM","hepatite-a-1","Anticorps, foie, ictère, dépistage","Sérologie, anti- HAV IgM","Immunologie et allergie - HIV","","Dépistage hépatite A","Hépatite aigües","","HAV"]
["Hépatite B - Sérologie, anti-HBc IgM","hepatite-b","Anticorps, foie, ictère, dépistage","Sérologie, anti-HBc IgM","Immunologie et allergie - HIV","","Suivi hépatite B","Hépatites aigues, hépatites chroniques","","HBV"]
["Hépatite B - Sérologie, antigène HBe","hepatite-b-1","Antigène, foie, ictère, dépistage","Sérologie, antigène HBe","Immunologie et allergie","","Suivi hépatite B","Hépatites aigues, hépatites chroniques","","HBV"]
["Hépatite B - Sérologie, anti-HBe","hepatite-b-2","Anticorps, foie, ictère, dépistage","Sérologie, anti-HBe","Immunologie et allergie","","Suivi hépatite B","Hépatites aigues, hépatites chroniques","","HBV"]
["Hépatite B - Sérologie, anti-HBs","hepatite-b-3","Anticorps, foie, ictère, dépistage, post-vaccination","Sérologie, anti-HBs","Immunologie et allergie - HIV","","Dépistage et suivi hépatite B","Hépatites aigues, hépatites chroniques, vaccination","","HBV"]
["Hépatite B - Sérologie,  antigène HBs","hepatite-b-4","Antigène, foie, ictère, dépistage","Sérologie,  antigène HBs","Immunologie et allergie - HIV","","Dépistage et suivi hépatite B","Hépatites aigues, hépatites chroniques","","HBV"]
["Hépatite B - Sérologie, anti-HBc totaux","hepatite-b-5","Anticorps, foie, ictère, dépistage","Sérologie, anti-HBc totaux","Immunologie et allergie - HIV","","Dépistage et suivi hépatite B","Hépatites aigues, hépatites chroniques","","HBV"]
["Hépatite B - Sérologie, confirmation antigène HBs","hepatite-b-6","Anticorps, foie, ictère, dépistage","Sérologie, confirmation antigène HBs","Immunologie et allergie","","Dépistage et suivi hépatite B","Antigène HBs positif","","HBV"]
["Hépatite B - Sérologie, antigène HBs quantitatif","hepatite-b-7","Anticorps, foie, ictère, dépistage","Sérologie, antigène HBs quantitatif","Immunologie et allergie","","Suivi hépatite B","Hépatites aigues, hépatites chroniques,","","HBV"]
["Hépatite B - Résistance et génotype","hepatite-b-10","PCR, reverse transcriptase, polymérase, mutations, HBV","Résistance et génotype","Immunologie et allergie","","Suivi thérapeutique","<p>Bilan avant traitement, échec thérapeutique</p>\r\n<p>Recherche de résistances (Transcriptase inverse, polymérase et antigène HBs). Les acides aminés suivant sont évalués: L80, I169,V173,L180,A181,T184,S202,M204,N236,M250.<br /></p>","",""]
["Hépatite B - Sérologie, dépistage HBV","hepatite-b-8","Antigène, anticorps, foie, ictère, dépistage","Sérologie, dépistage HBV","Immunologie et allergie - HIV","","Dépistage hépatite B","Hépatites aigues, hépatites chroniques","","HBV, antigène HBs, anticorps anti-HBs, anticorps anti-HBc totaux"]
["Hépatite B - Virémie par PCR quantitative","hepatite-b-9","","Virémie par PCR quantitative","Immunologie et allergie - HIV","","Suivi hépatite B","Hépatites aigües, hépatites chroniques, suivi thérapeutique","","HBV"]
["Hépatite C - Confirmation","hepatite-c","Anticorps, foie, ictère, , confirmation, immunodot, HCV","Confirmation","Immunologie et allergie - HIV","","Confirmation anticorps anti-HCV","Hépatites aigues, hépatites chroniques,","","HCV"]
["Hépatite C - Sérologie","hepatite-c-1","Anticorps, foie, ictère, dépistage","Sérologie","Immunologie et allergie - HIV","","Dépistage hépatite C","Hépatites aigues, hépatites chroniques","","HCV"]
["Hépatite C - Génotypage","hepatite-c-2","Sous type","Génotypage","Immunologie et allergie","","Suivi thérapeutique","Hépatites aigües, hépatites chroniques, suivi thérapeutique","","HCV, génotype"]
["Hépatite C - Virémie par PCR quantitative","hepatite-c-3","Foie,","Virémie par PCR quantitative","Immunologie et allergie - HIV","","Suivi hépatite C","Hépatites aigües, hépatites chroniques, suivi thérapeutique","","HCV"]
["Hépatite C - Résistance","hepatite-c-4","NS3, NS5A, polymérase, NS5B, protéase, mutations","Résistance","Immunologie et allergie","","Suivi thérapeutique","Bilan avant traitement, échec thérapeutique","","HCV"]
["Hépatite D - Virémie par PCR quantitative","hepatite-d-1","HDV, Delta","Virémie par PCR quantitative","Immunologie et allergie","","Evaluation de la charge virale HDV","<p>Suivi thérapeutique, \"staging\" de la maladie<br /></p>","",""]
["Hépatite D - Anticorps, dépistage","hepatite-d","HDV","Anticorps, dépistage","Immunologie et allergie","","Dépistage hépatite D","Hépatites aigues, hépatites chroniques","","HDV"]
["Hépatite E - Détection de l'ARN viral","hepatite-e-1","HEV","Détection de l'ARN viral","Immunologie et allergie","","Détection de l'ARN viral HEV et en cas de positivité, évaluation de la charge virale﻿","<p>Confirmation de infection, suivi thérapeutique, \"staging\" de la maladie<br /></p>","",""]
["Hépatite E - Sérologie, anti-HEV IgG + IgM","hepatite-e","Anticorps, dépistage hépatite, foie, ictère","Sérologie, anti-HEV IgG + IgM","Immunologie et allergie","","Dépistage hépatite E","Hépatites aigües, ictères, hépatite post voyage","","HEV"]
["Hépatite E (Selles) - PCR quantitative","hepatite-e-selles","HEV","PCR quantitative","Immunologie et allergie","","Evaluation de la charge virale HEV","<p>Suivi thérapeutique</p>","",""]
["Hépatopathies autoimmunes - Dépistage","hepatopathies-autoimmunes","Ac. Anti-microsome foie rein, anti-LKM1, actine, antigènes solubles hépatiques, anti-LC1, anti-mitochondrie, anti muscle lisse, anti-M2, anti-SLA, cystosol hépatique","Dépistage","Immunologie et allergie","","","Hépatites autoimmunes","",""]
["Herpes simplex - Sérodiagnostic IgG et IgM","herpes-simplex","","Sérodiagnostic IgG et IgM","Microbio sérologie","","","","","HSV"]
["Herpes simplex virus  PCR - Liquide humeur aqueuse","herpes-simplex-virus-pcr","","Liquide humeur aqueuse","Microbio moléculaire","","La recherche d'Herpès 1 et 2 se fait en parallèle. ","","","HSV"]
["Herpes simplex virus  PCR - Liquide humeur vitrée","herpes-simplex-virus-pcr-1","","Liquide humeur vitrée","Microbio moléculaire","","La recherche d'Herpès 1 et 2 se fait en parallèle. ﻿","","","HSV"]
["Herpes simplex virus  PCR - Biopsie","herpes-simplex-virus-pcr-2","","Biopsie","Microbio moléculaire","","La recherche d'Herpès 1 et 2 se fait en parallèle. ","","","HSV"]
["Herpes simplex virus  PCR - Biopsie anale","herpes-simplex-virus-pcr-3","","Biopsie anale","Microbio moléculaire","","La recherche d'Herpès 1 et 2 se fait en parallèle.","","","HSV"]
["Herpes simplex virus  PCR - Biopsie cérébrale","herpes-simplex-virus-pcr-4","","Biopsie cérébrale","Microbio moléculaire","","La recherche d'Herpès 1 et 2 se fait en parallèle.","","","HSV"]
["Herpes simplex virus  PCR - Biopsie colique","herpes-simplex-virus-pcr-5","","Biopsie colique","Microbio moléculaire","","La recherche d'Herpès 1 et 2 se fait en parallèle.","","","HSV"]
["Herpes simplex virus  PCR - Biopsie ganglion","herpes-simplex-virus-pcr-6","","Biopsie ganglion","Microbio moléculaire","","La recherche d'Herpès 1 et 2 se fait en parallèle.","","","HSV"]
["Herpes simplex virus  PCR - Biopsie gastrique","herpes-simplex-virus-pcr-7","","Biopsie gastrique","Microbio moléculaire","","La recherche d'Herpès 1 et 2 se fait en parallèle.","","","HSV"]
["Herpes simplex virus  PCR - Biopsie transbronchique","herpes-simplex-virus-pcr-8","","Biopsie transbronchique","Microbio moléculaire","","La recherche d'Herpès 1 et 2 se fait en parallèle.","","","HSV"]
["Herpes simplex virus  PCR - Liquide amniotique","herpes-simplex-virus-pcr-9","","Liquide amniotique","Microbio moléculaire","","La recherche d'Herpès 1 et 2 se fait en parallèle. ﻿","","","HSV"]
["Herpes simplex virus  PCR - Liquide natif","herpes-simplex-virus-pcr-10","","Liquide natif","Microbio moléculaire","","La recherche d'Herpès 1 et 2 se fait en parallèle.","","","HSV"]
["Herpes simplex virus  PCR - Sperme","herpes-simplex-virus-pcr-11","","Sperme","Microbio moléculaire","","La recherche d'Herpès 1 et 2 se fait en parallèle.","","","HSV"]
["Herpes simplex virus  PCR - Liquide céphalo-rachidien (LCR)","herpes-simplex-virus-pcr-12","","Liquide céphalo-rachidien (LCR)","Microbio moléculaire","","La recherche d'Herpès 1 et 2 se fait en parallèle. ﻿","Méningite","","HSV"]
["Herpes simplex virus  PCR - Frottis vulve","herpes-simplex-virus-pcr-13","","Frottis vulve","Microbio moléculaire","","La recherche d'Herpès 1 et 2 se fait en parallèle.","","","HSV"]
["Herpes simplex virus  PCR - Frottis anus","herpes-simplex-virus-pcr-14","","Frottis anus","Microbio moléculaire","","La recherche d'Herpès 1 et 2 se fait en parallèle.","","","HSV"]
["Herpes simplex virus  PCR - Frottis bouche","herpes-simplex-virus-pcr-15","","Frottis bouche","Microbio moléculaire","","La recherche d'Herpès 1 et 2 se fait en parallèle.","","","HSV"]
["Herpes simplex virus  PCR - Frottis col","herpes-simplex-virus-pcr-16","","Frottis col","Microbio moléculaire","","La recherche d'Herpès 1 et 2 se fait en parallèle.","","","HSV"]
["Herpes simplex virus  PCR - Frottis peau","herpes-simplex-virus-pcr-17","","Frottis peau","Microbio moléculaire","","La recherche d'Herpès 1 et 2 se fait en parallèle.","","","HSV"]
["Herpes simplex virus  PCR - Frottis gland","herpes-simplex-virus-pcr-18","","Frottis gland","Microbio moléculaire","","La recherche d'Herpès 1 et 2 se fait en parallèle.","","","HSV"]
["Herpes simplex virus  PCR - Frottis gorge","herpes-simplex-virus-pcr-19","","Frottis gorge","Microbio moléculaire","","La recherche d'Herpès 1 et 2 se fait en parallèle.","","","HSV"]
["Herpes simplex virus  PCR - Frottis nez","herpes-simplex-virus-pcr-20","","Frottis nez","Microbio moléculaire","","La recherche d'Herpès 1 et 2 se fait en parallèle.","","","HSV"]
["Herpes simplex virus  PCR - Frottis oreille","herpes-simplex-virus-pcr-21","","Frottis oreille","Microbio moléculaire","","La recherche d'Herpès 1 et 2 se fait en parallèle.","","","HSV"]
["Herpes simplex virus  PCR - Frottis périnée","herpes-simplex-virus-pcr-22","","Frottis périnée","Microbio moléculaire","","La recherche d'Herpès 1 et 2 se fait en parallèle.","","","HSV"]
["Herpes simplex virus  PCR - Frottis urètre","herpes-simplex-virus-pcr-23","","Frottis urètre","Microbio moléculaire","","La recherche d'Herpès 1 et 2 se fait en parallèle.","","","HSV"]
["Herpes simplex virus  PCR - Frottis vaginal","herpes-simplex-virus-pcr-24","","Frottis vaginal","Microbio moléculaire","","La recherche d'Herpès 1 et 2 se fait en parallèle.","","","HSV"]
["Herpes simplex virus  PCR - Sécrétions conjonctivales","herpes-simplex-virus-pcr-25","","Sécrétions conjonctivales","Microbio moléculaire","","La recherche d'Herpès 1 et 2 se fait en parallèle.","","","HSV"]
["Herpes simplex virus  PCR - Lavage broncho-alvéolaire (LBA)","herpes-simplex-virus-pcr-26","","Lavage broncho-alvéolaire (LBA)","Microbio moléculaire","","La recherche d'Herpès 1 et 2 se fait en parallèle.","","","HSV"]
["HGH (STH) - Sang","hgh-sth","Croissance, hormone somatotrope, somatotrophine, somatropine, human growth hormone","Sang","Chimie clinique","","","<strong>Attention! </strong>Sous traitement de Pegvisomant (= Somavert®), le suivi ne doit pas se faire avec l'HGH car le résultat est ininterprétable; utiliser l'IGF-1.",""," hormone de croissance humaine,  somatotropine"]
["HHV6 PCR - Moelle osseuse","hhv6-pcr","","Moelle osseuse","Microbio moléculaire","","","","","Herpès virus 6"]
["HHV6 PCR - Sang","hhv6-pcr-1","","Sang","Microbio moléculaire","","Evaluation de la charge virale","Principalement c/o immunosupprimés","","Herpès virus 6"]
["HHV6 PCR - Liquide céphalo-rachidien (LCR)","hhv6-pcr-2","","Liquide céphalo-rachidien (LCR)","Microbio moléculaire","","","","","Herpès virus 6"]
["HHV8 PCR - Abcès","hhv8-pcr","","Abcès","Microbio moléculaire","","","","","Herpès virus 8\r\nMaladie de Castelman, sarcome de Kaposi"]
["HHV8 PCR - Biopsie","hhv8-pcr-1","","Biopsie","Microbio moléculaire","","","","","Herpès virus 8\r\nMaladie de Castelman, sarcome de Kaposi"]
["HHV8 PCR - Biopsie ganglion","hhv8-pcr-2","","Biopsie ganglion","Microbio moléculaire","","","","","Herpès virus 8\r\nMaladie de Castelman, sarcome de Kaposi"]
["HHV8 PCR - Liquide natif","hhv8-pcr-3","","Liquide natif","Microbio moléculaire","","","","","Herpès virus 8\r\nMaladie de Castelman, sarcome de Kaposi"]
["HHV8 PCR - Moelle osseuse","hhv8-pcr-4","","Moelle osseuse","Microbio moléculaire","","","","","Herpès virus 8\r\nMaladie de Castelman, sarcome de Kaposi"]
["HHV8 PCR - Sang","hhv8-pcr-5","","Sang","Microbio moléculaire","","Evaluation de la charge virale","Principalement c/o immunosupprimés","","Herpès virus 8\r\nMaladie de Castelman, sarcome de Kaposi"]
["HIV-1 - Virémie par PCR quantitative","hiv-1","","Virémie par PCR quantitative","Immunologie et allergie - HIV","","Suivi HIV","Suivi thérapeutique, \"staging\" de la maladie","","VIH"]
["HIV-1 - Virorachie par PCR quantitative","hiv-1-1","","Virorachie par PCR quantitative","Immunologie et allergie","","Suivi HIV","Suivi thérapeutique, \"staging\" de la maladie","","VIH"]
["HIV-1 - Résistance","hiv-1-2","PCR, reverse transcriptase, protéase, intégrase, mutations","Résistance","Immunologie et allergie","","Suivi thérapeutique","Bilan avant traitement, échec thérapeutique","",""]
["HIV-1/-2 - Sérologie","hiv-1/-2","Anticorps, dépistage, HIVDUO","Sérologie","Immunologie et allergie - HIV","","Dépistage infection HIV-1/-2","","","VIH, dépistage HIV, antigène HIV 1 P24, HIVDUO"]
["HIV-1/-2 - Confirmation","hiv-1/-2-1","Anticorps, confirmation, immunodot, HIV","Confirmation","Immunologie et allergie - HIV","","Confirmation infection HIV-1/-2. Les analyses réalisées dépendent des résultats antérieurs.","","","HIV"]
["Homocystéine totale - Sang","homocysteine-totale","deficience cobalamine, methylmalonic aciduria, homocystinurie","Sang","Chimie clinique","Acheminer immédiatement le tube sur la glace","","","Patient à jeun durant 12 heures",""]
["Hormone anti-Müllerienne (AMH) - Sang","hormone-anti-muellerienne-amh","hormone anti-müllérienne, hormone de régression müllérienne, anti-Mullerian hormone, anti-Müllerian hormone, mullerian inhibiting substance","Sang","Chimie clinique","","","","<p>Attention !  Analyse non prise en charge par l'assurance obligatoire des soins. ﻿Par sa prescription, le médecin atteste que le/la patient(e) en a été informé(e) et a donné son accord pour la facturation de l’analyse.<br /></p>","Hormone de régression müllerienne, MIS (Müllerian inhibiting substance)"]
["HTLV 1-2 - Sérologie","htlv-1-2","Antigène, dépistage","Sérologie","Immunologie et allergie","","Dépistage HTLV 1-2","Donneur d'organes, leucémie T, paraparésie spastique","","Virus T-lymphotropique humain"]
["Hydroxychloroquine - Sang","hydroxychloroquine","Antibiotique, antimicrobien, antimalarique, antipaludéen, malaria, paludisme, plasmodium, Fièvre Q","Sang","Pharmacologie","Contact nécessaire avant réalisation","<p>Dosage et interprétation pharmacocinétique de taux sanguin de hydroxychloroquine (absence d'intervalle de référence, évaluation seulement de la plausibilité du taux)</p>","<p>TDM indiqué uniquement dans des situations spécifiques : il est recommandé de <strong>contacter le responsable TDM AVANT prélèvement </strong>: 021 314 22 41. En cas d’absence, téléphonez au : 021 314 25 00.</p>\r\n<p>Sur avis du spécialiste. L’interprétation clinique (TDM) du dosage n’est actuellement pas validée.</p>","","Plaquenil®"]
["Ibrutinib - Sang","ibrutinib","Anticancéreux ciblés, TKI, inhibiteur tirosine kinase, inhibiteur des protéines kinases, PKI","Sang","Pharmacologie","","<p>Dosage du taux sanguin d'ibrutinb</p>","<p>Sur avis du spécialiste. L’interprétation clinique (TDM) ou pharmacocinétique des dosage n’est actuellement pas validée.</p>","","Imbruvica®"]
["IDH1,2 - Mutation IDH1,2","idh12","","Mutation IDH1,2","Hématologie moléculaire","","<p>Les mutations d'IDH1 et  IDH2 sont recherchées dans les cas de leucémies méyloïdes aiguës.<br /></p>\r\n<p><br /></p>\r\n<p><br /></p>\r\n<p></p>","","",""]
["IgA - ","iga","Anticorps, immunité humorale","","Immunologie et allergie","","","","","Immunoglobulines"]
["IgD - ","igd","Anticorps, immunité humorale","","Immunologie et allergie","","","","","Immunoglobulines"]
["IgE spécifique - Par technologie ISAC","ige-specifique","Allergènes recombinants, allergie, hypersensibilité","Par technologie ISAC","Immunologie et allergie","","Recherche d'infection allergique complexe","Affections allergiques croisées","",""]
["IgE spécifique - ","ige-specifique-1","Hypersensibilité,  lait, vache","","Immunologie et allergie","","Dépistage allergique","Affections allergiques","","CAP"]
["IgE spécifiques mélange d'allergènes respiratoires - ","ige-specifiques-melange-dallergenes-respiratoires","Hypersensibilité, Phadiatop, allergie","","Immunologie et allergie","","Dépistage allergique","Affections allergiques","","Pneumoallergènes"]
["IgE totales - ","ige-totales","Atopie, allergie","","Immunologie et allergie","","","Affections allergiques<br />Syndrome hyper-IgE","","Immunoglobulines"]
["IGF-1 (somatomédine C) - Sang","igf-1-somatomedine-c","Croissance, IGF1,","Sang","Chimie clinique","","","","","insulin-like growth factor-1"]
["IGFBP-3 - Sang","igfbp-3","croissance, IGFBP3","Sang","Chimie clinique","","","","","Insulin-like growth factor-binding protein 3"]
["IgG - Sang","igg","Anticorps, immunité humorale","Sang","Immunologie et allergie","","","","","Immunoglobulines"]
["IgG et IgM - LCR / sérum","igg-et-igm","Anticorps, immunité humorale","LCR / sérum","Immunologie et allergie","","","<p>Infections ou inflammations neurologiques</p>","","Immunoglobulines"]
["IgM - Urine fœtale","igm","Anticorps, immunité humorale","Urine fœtale","Immunologie et allergie","","","","","Immunoglobulines"]
["IgM - Sang","igm-1","Anticorps, immunité humorale","Sang","Immunologie et allergie","","","","","Immunoglobulines"]
["IL-6 - ","il-6","inflammation, CRP, Tocilizumab, Actemra, cytokine, taux résiduel, médicament biologique, interleukine","","Immunologie et allergie","","Dosage du taux sérique d'une cytokine pro-inflammatoire.","","",""]
["Imatinib - Sang","imatinib","Anticancéreux ciblés, TKI, inhibiteur tirosine kinase, inhibiteur des protéines kinases, PKI","Sang","Pharmacologie","","<p>Dosage et interprétation pharmacologique (TDM) de taux sanguin d'imatinib (intervalle de référence disponible)</p>","<p>Suivi thérapeutique, réponse insatisfaisante, suspicion de toxicité, suspicion d'interaction médicamenteuse, doute sur la compliance, grossesse, étude</p>","","Glivec®"]
["Imipénème - Sang","imipeneme","Antibiotique, antimicrobien, carbapénème","Sang","Pharmacologie","","Dosage et interprétation pharmacologique (TDM) de taux sanguin d'imipénème (intervalle de référence disponible)","TDM uniquement dans des cas spécifiques (i.e. difficultés d’adaptation des doses, épuration extrarénale, dialyse, interactions médicamenteuses, toxicité, résistances)","","Tienam®"]
["Immunohistochimie moelle osseuse - Pédiatrie","immunohistochimie-moelle-osseuse","","Pédiatrie","Onco-hématologie pédiatrique","","Détection de cellules tumorales (neuroblastome) métastatiques résiduelles au moment du diagnostic","Bilan pré ou post-greffe","",""]
["Immunohistochimie tissu tumeur - Pédiatrie","immunohistochimie-tissu-tumeur","","Pédiatrie","Onco-hématologie pédiatrique","","Diagnostic différentiel des tumeurs à petites cellules <br />analyse pronostique de certains marqeurs","Tumeur","",""]
["Index séléctivité protéinurie - Pédiatrie","index-selectivite-proteinurie","","Pédiatrie","Néphrologie pédiatrique","","","","",""]
["Infliximab - Taux résiduel du médicament, détection d'anticorps anti-médicaments et TNFalpha","infliximab","","Taux résiduel du médicament, détection d'anticorps anti-médicaments et TNFalpha","Immunologie et allergie","","Suivi thérapeutique","","","Remicade, Inflectra, médicaments biologiques"]
["Influenza (Grippe)  Test rapide PCR - Sécrétions nasopharyngées","influenza-grippe-test-rapide-pcr","","Sécrétions nasopharyngées","Microbio moléculaire","","Recherche rapide des virus <br />Influenza A (saisonnier et pandémique) et B","Ce test est d'un usage restreint (patient avec état grippal et devant être hospitalisés, ou immunocompromis, ou admis pour pneumopathie)<br />Il s'agit d'un test rapide et son coût est substantiel.<br /><a href=\"https://tribu.chuv.ch/docs?UniqueId=25A7B89A-F16C-44C4-B88A-0D0D0FA13184\" target=\"_blank\">Critères d'acceptation</a>﻿﻿","","Influenza, grippe"]
["Influenza (Grippe)  Test rapide PCR - Frottis nez","influenza-grippe-test-rapide-pcr-1","","Frottis nez","Microbio moléculaire","","Recherche rapide des virus <br />Influenza A (saisonnier et pandémique) et B","<p>Ce test est d'un usage restreint (patient avec état grippal et devant être hospitalisés, ou immunocompromis, ou admis pour pneumopathie)<br />Il s'agit d'un test rapide et son coût est substantiel. <a href=\"https://tribu.chuv.ch/docs?UniqueId=25A7B89A-F16C-44C4-B88A-0D0D0FA13184\" target=\"_blank\">Critères d'acceptation</a>﻿﻿<br /></p>\r\n<p><br /></p>","","Influenza, grippe"]
["Influenza (Grippe)  Test rapide PCR - Lavage broncho-alvéolaire (LBA)","influenza-grippe-test-rapide-pcr-2","","Lavage broncho-alvéolaire (LBA)","Microbio moléculaire","","Recherche rapide des virus <br />Influenza A (saisonnier et pandémique) et B","Ce test est d'un usage restreint (patient avec état grippal et devant être hospitalisés, ou immunocompromis, ou admis pour pneumopathie)<br />Il s'agit d'un test rapide et son coût est substantiel.<br /><a href=\"https://tribu.chuv.ch/docs?UniqueId=25A7B89A-F16C-44C4-B88A-0D0D0FA13184\" target=\"_blank\">Critères d'acceptation</a>﻿﻿","","Influenza, grippe"]
["Inhibine B - Sang","inhibine-b","Cancer, Malignome, Marqueurs tumoraux,\r\nOvaire, Tumeur, Fertilité","Sang","","","","","<p>Chez les femmes préménopausées, la détermination devrait être effectuée de manière standardisée entre J3 et J5 de leur cycle.</p>\r\n<p>Par sa prescription de l’analyse, le prescripteur atteste que le patient a été informé et a donné son accord pour la facturation de l’analyse.</p>",""]
["Inhibiteurs  du facteur VIII et IX - ","inhibiteurs-du-facteur-viii-et-ix","FVIII, FIX, F8, F9,","","Hématologie - Hémostase spéciale","","","","","IF8, IF9"]
["Insuline - Sang","insuline","Diabète","Sang","Chimie clinique","Ne pas envoyer par poste pneumatique, Acheminer immédiatement le tube","","","<p>A jeun pour taux basal</p>",""]
["Interféron signature - ","interferon-signature","Immunodeficience","","Immunologie et allergie","","Recherche d'interféronopathie de type I (gènes IFI27, IFI44L, IFIT1, ISG15, RSAD2 et SIGLEC)","","",""]
["Investigation réaction transfusionnelle - ","investigation-reaction-transfusionnelle","Transfusion, réaction, fièvre","","UMT","","Réaction transfusionnelle","","",""]
["Isavuconazole - Sang","isavuconazole","Antifongique, triazolé","Sang","Pharmacologie","Contact nécessaire avant réalisation","Dosage du taux sanguin d'isavuconazole","<p>TDM indiqué uniquement dans des situations spécifiques : il est recommandé de <strong>contacter le responsable TDM AVANT prélèvement </strong>: 021 314 22 41. En cas d’absence, téléphonez au : 021 314 25 00. <br /></p>\r\n<p>Sur avis du spécialiste. L’interprétation clinique (TDM) du dosage n’est actuellement pas validée. <br /></p>","",""]
["Isoniazide - Sang","isoniazide","tuberculose, tuberculeux, anti-tuberculeux, Antibiotique","Sang","Pharmacologie","","Dosage et interprétation pharmacocinétique de taux sanguin de l'isoniazide et de son métabolite N-acétyl-isoniazide","<p>Sur avis du spécialiste. L’interprétation clinique (TDM) du dosage n’est actuellement pas validée. </p>\r\n<p><br /></p>","","Rimstar, Rimactazid"]
["Itraconazole / Hydroxy-Itraconazole - Sang","itraconazole-/-hydroxy-itraconazole","Antifongique, triazolé","Sang","Pharmacologie","","<p>Dosage et interprétation pharmacologique (TDM) de taux sanguin de l'itraconazole et son métabolite actif l'hydroxy-Itraconazole (intervalle de référence disponible)</p>","<p>TDM uniquement dans des cas spécifiques (i.e. difficultés d’adaptation des doses, épuration extrarénale, dialyse, interactions médicamenteuses, toxicité, résistances)</p>","","Sporanox®"]
["JAK2 - JAKK (V617F)","jak2","","JAKK (V617F)","Hématologie moléculaire","","Cette analyse permet de mettre en évidence une substitution d'un acide aminé en  position 617 sur le gène JAK2. Cette mutation est retrouvée dans les syndromes myéloprolifératis. Cette analyse est de grand intérêt dans le diagnostic de la Polycythémia vera, de la thrombocytémie essentielle et de la myélofibrose primaire","","","MP, mutation, polycythemia, PV,SMP,Vaquez,V617F, NMP"]
["Kennedy - Analyse moléculaire","kennedy","Expansion de triplets, SBMA, spinal and bulbar muscular and bulbar","Analyse moléculaire","Génétique moléculaire","","Analyse de la région instable du gène AR OMIM 313200","","",""]
["Kingella kingae PCR - Frottis bouche","kingella-kingae-pcr","","Frottis bouche","Microbio moléculaire","","","","",""]
["Kingella kingae PCR - Frottis gorge","kingella-kingae-pcr-1","","Frottis gorge","Microbio moléculaire","","","","",""]
["Kingella kingae PCR - Biopsie tissu articulaire","kingella-kingae-pcr-2","","Biopsie tissu articulaire","Microbio moléculaire","","","","",""]
["Kingella kingae PCR - Liquide articulaire","kingella-kingae-pcr-3","","Liquide articulaire","Microbio moléculaire","","","","",""]
["Kit hypoglycémie - ","kit-hypoglycemie","hypoglycémie, glucose, kit","","Chimie clinique","Condition particulière de préparation","<p>Réaliser un bilan métabolique complet lors d'un épisode d'hypoglycémie.</p>\r\n<p>Utiliser les enveloppes de kit prévues à cet effet. Ces enveloppes sont disponibles dans les services d'urgence de HEL, SIPI, Soins continus et étage de pédiatrie ainsi qu'au laboratoire de Chimie clinique BH18-101.<br /></p>\r\n<p>Des volumes minimaux ont été calculés, merci de les respecter afin que la totalité des analyses soient effectuées.<br /></p>","Se référer au document suivant : <strong><a href=\"https://www.chuv.ch/fileadmin/sites/dl/documents/dmlp-lcc-kit-hypoglycemies.pdf\">Kit Hypoglycémies</a></strong><br />","A prélever obligatoirement avant resucrage.",""]
["Kyste hydatique - Microscopie","kyste-hydatique","","Microscopie","Microbiologie","","","Radiologie typique d'un kyste hydatique","",""]
["Lacosamide - Sang","lacosamide","Antiépileptique, anticonvulsivant, anti-convulsivant, anti-épileptique, épilepsie,","Sang","Pharmacologie","","Dosage et interprétation pharmacologique (TDM) de taux sanguin de lacosamide (intervalle de référence disponible)","Suivi thérapeutique, réponse insatisfaisante, suspicion de toxicité, suspicion d'interaction médicamenteuse, doute sur la compliance, grossesse, étude","","Vimpat"]
["Lactate - Sang","lactate","","Sang","Chimie clinique","","","","","Acide lactique"]
["Lactate - Liquide pleural","lactate-1","","Liquide pleural","Chimie clinique","","","","","Acide lactique"]
["Lactate - LCR","lactate-2","","LCR","Chimie clinique","","","","","Acide lactique"]
["Lactate - Liquide d'ascite","lactate-3","","Liquide d'ascite","Chimie clinique","","","","","Acide lactique"]
["Lactate déshydrogénase (LDH) - Liquide pleural","lactate-deshydrogenase-ldh","","Liquide pleural","Chimie clinique","","","","",""]
["Lactate deshydrogénase (LDH) - LCR","lactate-deshydrogenase-ldh-1","","LCR","Chimie clinique","","","","",""]
["Lactate deshydrogénase (LDH) - Liquide d'ascite","lactate-deshydrogenase-ldh-2","","Liquide d'ascite","Chimie clinique","","","","",""]
["Lactate déshydrogénase (LDH) - Sang","lactate-deshydrogenase-ldh-3","","Sang","Chimie clinique","","","","",""]
["Lactate/Pyruvate - Sang","lactate/pyruvate","","Sang","Chimie clinique","","","","","Acide lactique, acide pyruvique, lactate, L-lactate, pyruvate"]
["Lactate/Pyruvate - LCR","lactate/pyruvate-1","","LCR","Chimie clinique","","","","","Acide lactique, acide pyruvique, lactate, L-lactate, pyruvate"]
["Lame pour hématologue - Consultation hématologique","lame-pour-hematologue","formule leucocytaire, FSC, grand statut hématologique, répartition éléments figurés, répartition leucocytes, frottis sanguin","Consultation hématologique","Hématologie générale 24/7","","Cette analyse peut être demandée uniquement si vous avez besoin d'un avis médical. <br />L'interprétation du frottis sanguin par l'hématologue nécessite une consultation préalable<br />Pour une simple répartition leucocytaire il faut demander l'analyse \"Grand status hématologique\".","","","Frottis pour hématologue"]
["Lamivudine - Sang","lamivudine","Antirétroviraux, anti-HIV, Antirétroviral, NRTI, analogue nucléosidique et nucléotidique","Sang","Pharmacologie","","<p>Dosage et interprétation pharmacocinétique de taux sanguin de lamivudine (absence d'intervalle de référence, évaluation seulement de la plausibilité du taux)</p>","<p>Suivi thérapeutique, réponse insatisfaisante, suspicion de toxicité, suspicion d'interaction médicamenteuse, doute sur la compliance, grossesse, étude</p>","","Zeffix®, dans Triumeq®, Trizivir®, dans Kivexa®, dans Combivir®"]
["Lamotrigine - Sang","lamotrigine","Antiépileptique, anticonvulsivant, anti-convulsivant, anti-épileptique, épilepsie,","Sang","Pharmacologie","","Dosage et interprétation pharmacologique (TDM) de taux sanguin de lamotrigine (intervalle de référence disponible)","Suivi thérapeutique, réponse insatisfaisante, suspicion de toxicité, suspicion d'interaction médicamenteuse, doute sur la compliance, grossesse, étude","","Lamictal"]
["Legionella - Culture","legionella","","Culture","Microbiologie","","","","","Legionella pneumophila, légionellose, légionnaires, maladie des légionnaires"]
["Legionella - Culture - Abcès du poumon","legionella-culture-2","pus, legionelle","Abcès du poumon","Microbiologie","","Recherche par culture de <em>Legionella</em><em> </em>dans l'abcès pulmonaire.","","",""]
["Legionella - Culture - Abcès","legionella-culture-3","pus, legionelle","Abcès","Microbiologie","","Recherche par culture de <em>Legionella</em><em> </em>dans les échantillons d'abcès.","","",""]
["Legionella - Culture - Liquide et ponction de cavité normalement stérile (préciser la nature de l'échantillon)","legionella-culture-4","cytoponction","Liquide et ponction de cavité normalement stérile (préciser la nature de l'échantillon)","Microbiologie","","Recherche par culture de <em>Legionella</em> dans un liquide, une ponction ou cytoponction de cavité normalement stérile.","","",""]
["Legionella - Culture - Tissu (biopsie) de plèvre ou poumon","legionella-culture-5","fragment","Tissu (biopsie) de plèvre ou poumon","Microbiologie","","Recherche par culture de <em>Legionella</em> dans du tissu (biopsie) de plèvre ou de poumon.","","",""]
["Legionella - Culture - Tissu ou biopsie (spécifier le site)","legionella-culture-6","fragment","Tissu ou biopsie (spécifier le site)","Microbiologie","","Recherche par culture de <em>Legionella</em> dans du tissu ou biopsie.","","",""]
["Legionella - Culture - Expectorations, Aspirations bronchiques, Sécrétions endotrachéales","legionella-culture","Sécrétions pulmonaires, respiratoires, induite, légionelle, légionellose","Expectorations, Aspirations bronchiques, Sécrétions endotrachéales","Microbiologie","","Recherche par culture de<em> Legionella</em> dans les expectorations, aspirations bronchiques et sécrétions endotrachéales.","","",""]
["Legionella - Culture - Lavage broncho-alvéolaire (LBA)","legionella-culture-1","Sécrétions pulmonaires, respiratoires","Lavage broncho-alvéolaire (LBA)","Microbiologie","","Recherche par culture de <em>Legionella</em> dans les échantillons de lavage broncho-alvéolaire (LBA).","","",""]
["Legionella pneumophila  PCR - Biopsie transbronchique","legionella-pneumophila-pcr","","Biopsie transbronchique","Microbio moléculaire","","","","","Légionnaire, légionnellose"]
["Legionella pneumophila  PCR - Expectoration","legionella-pneumophila-pcr-1","","Expectoration","Microbio moléculaire","","","","","Légionnaire, légionnellose"]
["Legionella pneumophila  PCR - Sécrétions endo-trachéales","legionella-pneumophila-pcr-2","","Sécrétions endo-trachéales","Microbio moléculaire","","","","","Légionnaire, légionnellose"]
["Legionella pneumophila  PCR - Aspiration bronchique","legionella-pneumophila-pcr-3","","Aspiration bronchique","Microbio moléculaire","","","","","Légionnaire, légionnellose"]
["Legionella pneumophila  PCR - Lavage broncho-alvéolaire (LBA)","legionella-pneumophila-pcr-4","","Lavage broncho-alvéolaire (LBA)","Microbio moléculaire","","","","","Légionnaire, légionnellose"]
["Legionella pneumophila antigènes - Test rapide - Urines","legionella-pneumophila-antigenes-test-rapide","Legionnelle, antigènes urinaires","Urines","Microbiologie","","<ul><li>Détection par test immunochromatographique d'antigènes de <em>Legionella pneumophila</em> dans les urines natives.<br></li></ul>","Suspicion de Légionellose﻿","",""]
["Leishmania sp PCR - Abcès","leishmania-sp-pcr","","Abcès","Microbio moléculaire","","","","",""]
["Leishmania sp PCR - Biopsie","leishmania-sp-pcr-1","","Biopsie","Microbio moléculaire","","","","",""]
["Leishmania sp PCR - Biopsie foie","leishmania-sp-pcr-2","","Biopsie foie","Microbio moléculaire","","","","",""]
["Leishmania sp PCR - Biopsie poumon","leishmania-sp-pcr-3","","Biopsie poumon","Microbio moléculaire","","","","",""]
["Leishmania sp PCR - Biopsie sinus","leishmania-sp-pcr-4","","Biopsie sinus","Microbio moléculaire","","","","",""]
["Leishmania sp PCR - Liquide natif","leishmania-sp-pcr-5","","Liquide natif","Microbio moléculaire","","","","",""]
["Leishmania sp PCR - Tissu cutané","leishmania-sp-pcr-6","","Tissu cutané","Microbio moléculaire","","","","",""]
["Leishmania sp PCR - Moelle osseuse","leishmania-sp-pcr-7","","Moelle osseuse","Microbio moléculaire","","","","",""]
["Leishmania sp PCR - Sang","leishmania-sp-pcr-8","","Sang","Microbio moléculaire","","","","",""]
["Leptine - Sang","leptine","","Sang","Chimie clinique","","","","Par sa prescription de l’analyse, le prescripteur atteste que le patient a été informé et a donné son accord pour la facturation de l’analyse.",""]
["Leptospira sp PCR - Abcès / Kyste, cérébral","leptospira-sp-pcr","","Abcès / Kyste, cérébral","Microbio moléculaire","","","","","Leptospirose"]
["Leptospira sp PCR - Abcès / Kyste, cervical","leptospira-sp-pcr-1","","Abcès / Kyste, cervical","Microbio moléculaire","","","","","Leptospirose"]
["Leptospira sp PCR - Abcès / Kyste, foie","leptospira-sp-pcr-2","","Abcès / Kyste, foie","Microbio moléculaire","","","","","Leptospirose"]
["Leptospira sp PCR - Abcès / Kyste, paroi","leptospira-sp-pcr-3","","Abcès / Kyste, paroi","Microbio moléculaire","","","","","Leptospirose"]
["Leptospira sp PCR - Abcès / kyste, pulmonaire","leptospira-sp-pcr-4","","Abcès / kyste, pulmonaire","Microbio moléculaire","","","","","Leptospirose"]
["Leptospira sp PCR - Anévrisme","leptospira-sp-pcr-5","","Anévrisme","Microbio moléculaire","","","","","Leptospirose"]
["Leptospira sp PCR - Biopsie","leptospira-sp-pcr-6","","Biopsie","Microbio moléculaire","","","","","Leptospirose"]
["Leptospira sp PCR - Biopsie cérébrale","leptospira-sp-pcr-7","","Biopsie cérébrale","Microbio moléculaire","","","","","Leptospirose"]
["Leptospira sp PCR - Biopsie colique","leptospira-sp-pcr-8","","Biopsie colique","Microbio moléculaire","","","","","Leptospirose"]
["Leptospira sp PCR - Biopsie disque intervertébral","leptospira-sp-pcr-9","","Biopsie disque intervertébral","Microbio moléculaire","","","","","Leptospirose"]
["Leptospira sp PCR - Biopsie foie","leptospira-sp-pcr-10","","Biopsie foie","Microbio moléculaire","","","","","Leptospirose"]
["Leptospira sp PCR - Biopsie ganglion","leptospira-sp-pcr-11","","Biopsie ganglion","Microbio moléculaire","","","","","Leptospirose"]
["Leptospira sp PCR - Biopsie gastrique","leptospira-sp-pcr-12","","Biopsie gastrique","Microbio moléculaire","","","","","Leptospirose"]
["Leptospira sp PCR - Biopsie plèvre","leptospira-sp-pcr-13","","Biopsie plèvre","Microbio moléculaire","","","","","Leptospirose"]
["Leptospira sp PCR - Biopsie sinus","leptospira-sp-pcr-14","","Biopsie sinus","Microbio moléculaire","","","","","Leptospirose"]
["Leptospira sp PCR - Biopsie tissu articulaire","leptospira-sp-pcr-15","","Biopsie tissu articulaire","Microbio moléculaire","","","","","Leptospirose"]
["Leptospira sp PCR - Biopsie transbronchique","leptospira-sp-pcr-16","","Biopsie transbronchique","Microbio moléculaire","","","","","Leptospirose"]
["Leptospira sp PCR - Biopsie valve","leptospira-sp-pcr-17","","Biopsie valve","Microbio moléculaire","","","","","Leptospirose"]
["Leptospira sp PCR - Liquide articulaire","leptospira-sp-pcr-18","","Liquide articulaire","Microbio moléculaire","","","","","Leptospirose"]
["Leptospira sp PCR - Liquide boursite","leptospira-sp-pcr-19","","Liquide boursite","Microbio moléculaire","","","","","Leptospirose"]
["Leptospira sp PCR - Liquide natif","leptospira-sp-pcr-20","","Liquide natif","Microbio moléculaire","","","","","Leptospirose"]
["Leptospira sp PCR - Liquide péricardique","leptospira-sp-pcr-21","","Liquide péricardique","Microbio moléculaire","","","","","Leptospirose"]
["Leptospira sp PCR - Liquide pleural","leptospira-sp-pcr-22","","Liquide pleural","Microbio moléculaire","","","","","Leptospirose"]
["Leptospira sp PCR - Ponction vésicale","leptospira-sp-pcr-23","","Ponction vésicale","Microbio moléculaire","","","","","Leptospirose"]
["Leptospira sp PCR - Urine début du jet (PCR uniquement)","leptospira-sp-pcr-24","","Urine début du jet (PCR uniquement)","Microbio moléculaire","","","","","Leptospirose"]
["Leptospira sp PCR - Urine milieu du jet","leptospira-sp-pcr-25","","Urine milieu du jet","Microbio moléculaire","","","","","Leptospirose"]
["Leptospira sp PCR - Urine sac (enfant)","leptospira-sp-pcr-26","","Urine sac (enfant)","Microbio moléculaire","","","","","Leptospirose"]
["Leptospira sp PCR - Urine sondage aller retour","leptospira-sp-pcr-27","","Urine sondage aller retour","Microbio moléculaire","","","","","Leptospirose"]
["Leptospira sp PCR - Urine sonde à demeure","leptospira-sp-pcr-28","","Urine sonde à demeure","Microbio moléculaire","","","","","Leptospirose"]
["Leptospira sp PCR - Moelle osseuse","leptospira-sp-pcr-29","","Moelle osseuse","Microbio moléculaire","","","","","Leptospirose"]
["Leptospira sp PCR - Sang","leptospira-sp-pcr-30","","Sang","Microbio moléculaire","","","","","Leptospirose"]
["Leptospira sp PCR - Liquide céphalo-rachidien (LCR)","leptospira-sp-pcr-31","","Liquide céphalo-rachidien (LCR)","Microbio moléculaire","","","","","Leptospirose"]
["Leptospira sp PCR - Aspiration bronchique","leptospira-sp-pcr-32","","Aspiration bronchique","Microbio moléculaire","","","","","Leptospirose"]
["Leptospira sp PCR - Lavage broncho-alvéolaire (LBA)","leptospira-sp-pcr-33","","Lavage broncho-alvéolaire (LBA)","Microbio moléculaire","","","","","Leptospirose"]
["Letermovir - Sang","letermovir","Antiviraux, antiviral","Sang","Pharmacologie","","Dosage du taux sanguin de letermovir<br />","Sur avis du spécialiste. L’interprétation clinique (TDM) du dosage n’est actuellement pas validée.<br />","","Prevymis®"]
["Levetiracetam - Sang","levetiracetam","Antiépileptique, anticonvulsivant, anti-convulsivant, anti-épileptique, épilepsie,","Sang","Pharmacologie","","Dosage et interprétation pharmacologique (TDM) de taux sanguin de levetiracetam (intervalle de référence disponible)","Suivi thérapeutique, réponse insatisfaisante, suspicion de toxicité, suspicion d'interaction médicamenteuse, doute sur la compliance, grossesse, étude","","Keppra"]
["Levofloxacine - Sang","levofloxacine","Antibiotique, antimicrobien, quinolone, tuberculose, antituberculeux, tuberculeux, anti-tuberculeux","Sang","Pharmacologie","Contact nécessaire avant réalisation","Dosage et interprétation pharmacocinétique de taux sanguin de levofloxacine (absence d'intervalle de référence, évaluation seulement de la plausibilité du taux)","<p>Sur avis du spécialiste. L’interprétation clinique (TDM) du dosage de levofloxacine n’est actuellement pas validée.</p>\r\n<p>﻿Indication <strong>antituberculeux</strong>: utiliser le bon 18</p>\r\n<p>Indication <strong>antibiotique</strong>: utiliser le bon 16. Comme antibiotique: TDM indiqué uniquement dans des situations spécifiques : il est recommandé de <strong>contacter le responsable TDM AVANT prélèvement </strong>: 021 314 22 41. En cas d’absence, ﻿au : 021 314 25 00. <br /></p>\r\n<p><br /></p>","","Tavanic®"]
["Levomépromazine - Sang","levomepromazine","Nozinan","Sang","UPPC Pharmacogénétique et psychopharmacologie","","Dosage et interprétation pharmacologique du taux sanguin","Réponse insatisfaisante, effets secondaires, interactions, doute sur l’adhésion, suspicion d’intoxication","",""]
["Levure (Candida) culture - Sonication - Matériel d'ostéosynthèse - Prothèses articulaires et mammaires","levure-candida-culture-sonication","ostéosynthèse, articulaire, mammaire","Matériel d'ostéosynthèse - Prothèses articulaires et mammaires","Microbiologie","","<ul><li>Recherche par culture de levures (<em>Candida</em> ou autres).</li><li>Un retour du matériel peut-être effectué mais doit être expressément demandé.﻿ Il est facturé aux demandeurs externes, soit à 150 CHF.</li></ul>","","",""]
["Levures (Candida) - Culture - Abcès cérébral","levures-candida-culture-33","pus","Abcès cérébral","Microbiologie","","Recherche par culture de levures (<em>Candida</em> ou autres) dans l'abcès cérébral.","","",""]
["Levures (Candida) - Culture - Abcès cervical","levures-candida-culture-34","pus","Abcès cervical","Microbiologie","","Recherche par culture de levures (<em>Candida</em> ou autres) dans l'abcès cervical.","","",""]
["Levures (Candida) - Culture - Abcès du foie (hépatique)","levures-candida-culture-35","pus","Abcès du foie (hépatique)","Microbiologie","","Recherche par culture de levures (<em>Candida</em> ou autres) dans l'abcès du foie.","","",""]
["Levures (Candida) - Culture - Abcès anal, para-anal","levures-candida-culture-36","pus","Abcès anal, para-anal","Microbiologie","","Recherche par culture de levures (<em>Candida</em> ou autres) dans l'abcès anal, para-anal.","","",""]
["Levures (Candida) - Culture - Abcès paroi abdominale","levures-candida-culture-37","pus","Abcès paroi abdominale","Microbiologie","","Recherche par culture de levures (<em>Candida</em> ou autres) dans l'abcès de paroi abdominale.","","",""]
["Levures (Candida) - Culture - Abcès du poumon","levures-candida-culture-38","pus","Abcès du poumon","Microbiologie","","Recherche par culture de levures (<em>Candida</em> ou autres) dans l'abcès pulmonaire.","","",""]
["Levures (Candida) - Culture - Abcès du sein","levures-candida-culture-39","pus","Abcès du sein","Microbiologie","","Recherche par culture de levures (<em>Candida</em> ou autres) dans l'abcès du sein.","","",""]
["Levures (Candida) - Culture - Frottis de peau","levures-candida-culture-40","","Frottis de peau","Microbiologie","","Recherche par culture de levures (<em>Candida</em> ou autres) dans les frottis de peau.","","",""]
["Levures (Candida) - Culture - Frottis de peau chez les patients brûlés","levures-candida-culture-41","","Frottis de peau chez les patients brûlés","Microbiologie","","Recherche par culture de levures (<em>Candida</em> ou autres) dans les frottis de peau chez les patients brûlés.","","",""]
["Levures (Candida) - Culture - Liquide articulaire ou synovial","levures-candida-culture-42","bursite","Liquide articulaire ou synovial","Microbiologie","","Recherche par culture de levures (<em>Candida</em> ou autres) dans le liquide articulaire, synovial ou de bursite.","","",""]
["Levures (Candida) - Culture - Liquide d'ascite","levures-candida-culture-43","","Liquide d'ascite","Microbiologie","","Recherche par culture de levures (<em>Candida</em> ou autres) dans le liquide d'ascite.","","",""]
["Levures (Candida) - Culture - Liquide de bile","levures-candida-culture-44","","Liquide de bile","Microbiologie","","Recherche par culture de levures (<em>Candida</em> ou autres) dans le liquide de bile.","","",""]
["Levures (Candida) - Culture - Liquide de dialyse péritonéale","levures-candida-culture-45","","Liquide de dialyse péritonéale","Microbiologie","","Recherche par culture de levures (<em>Candida</em> ou autres) dans le liquide de dialyse péritonéale.","","",""]
["Levures (Candida) - Culture - Liquide de douglas","levures-candida-culture-46","","Liquide de douglas","Microbiologie","","Recherche spécifique de levures (<em>Candida</em> ou autres) dans le liquide de douglas.","","",""]
["Levures (Candida) - Culture - Liquide duodénal","levures-candida-culture-47","","Liquide duodénal","Microbiologie","","Recherche spécifique de levures (<em>Candida</em> ou autres) dans le liquide duodénal.","","",""]
["Levures (Candida) - Culture - Moelle osseuse","levures-candida-culture-48","","Moelle osseuse","Microbiologie","","Recherche spécifique de levures (<em>Candida</em> ou autres) dans la moelle osseuse.","","",""]
["Levures (Candida) - Culture - Liquide péricardique","levures-candida-culture-49","","Liquide péricardique","Microbiologie","","Recherche spécifique de levures (<em>Candida</em> ou autres) dans le liquide péricardique.","","",""]
["Levures (Candida) - Culture - Liquide péritonéal","levures-candida-culture-50","","Liquide péritonéal","Microbiologie","","Recherche spécifique de levures (<em>Candida</em> ou autres) dans le liquide péritonéal.","","",""]
["Levures (Candida) - Culture - Liquide pleural","levures-candida-culture-51","","Liquide pleural","Microbiologie","","Recherche spécifique de levures (<em>Candida</em> ou autres) dans le liquide pleural.","","",""]
["Levures (Candida) - Culture - Biopsie transbronchique","levures-candida-culture-52","","Biopsie transbronchique","Microbiologie","","Recherche spécifique de levures (<em>Candida</em> ou autres) dans la biopsie transbronchique.","","",""]
["Levures (Candida) - Culture - Biopsies anus ou colon","levures-candida-culture-53","anal, anale, colique","Biopsies anus ou colon","Microbiologie","","Recherche spécifique de levures (<em>Candida</em> ou autres) dans la biopsie d'anus ou de colon.","","",""]
["Levures (Candida) - Culture - Tissu (biopsie) de peau chez les patients brûlés - Culture quantitative","levures-candida-culture-54","fragment","Tissu (biopsie) de peau chez les patients brûlés - Culture quantitative","Microbiologie","","Recherche spécifique de levures (<em>Candida</em> ou autres) dans les fragments de peau des patient-e-s brûlé-e-s.","","",""]
["Levures (Candida) - Culture - Capsule articulaire","levures-candida-culture-55","fragment, os","Capsule articulaire","Microbiologie","","Recherche spécifique de levures (<em>Candida</em> ou autres) dans la capsule articulaire.","","",""]
["Levures (Candida) - Culture - Disque intervertébral","levures-candida-culture-56","fragment, os, biopsie","Disque intervertébral","Microbiologie","","Recherche par culture de levures (<em>Candida</em> ou autre) dans un disque intervertébral.","","",""]
["Levures (Candida) - Culture - Tissu (biopsie) articulaire","levures-candida-culture-57","fragment, biopsie","Tissu (biopsie) articulaire","Microbiologie","","Recherche spécifique de levures (<em>Candida</em> ou autres) dans du tissu articulaire.","","",""]
["Levures (Candida) - Culture - Tissu (biopsie) musculaire","levures-candida-culture-58","fragment, biopsie, muscle","Tissu (biopsie) musculaire","Microbiologie","","Recherche spécifique de levures (<em>Candida</em> ou autres) dans du tissu musculaire.","","",""]
["Levures (Candida) - Culture - Os (fragment - biopsie)","levures-candida-culture-59","","Os (fragment - biopsie)","Microbiologie","","Recherche spécifique de levures (<em>Candida</em> ou autres) dans un fragment (biopsie) d'os.","","",""]
["Levures (Candida) - Culture - Tissu (biopsie) de foie","levures-candida-culture-60","fragment, hépatique","Tissu (biopsie) de foie","Microbiologie","","Recherche spécifique de levures (<em>Candida</em> ou autres) dans du tissu (biopsie) de foie.","","",""]
["Levures (Candida) - Culture - Tissu (biopsie) d'anévrisme","levures-candida-culture-61","fragment","Tissu (biopsie) d'anévrisme","Microbiologie","","Recherche spécifique de levures (<em>Candida</em> ou autres) dans du tissu (biopsie) d'anévrisme.","","",""]
["Levures (Candida) - Culture - Tissu (biopsie) de valve cardiaque","levures-candida-culture-62","fragment, biopsie, tissu, mitrale, coeur","Tissu (biopsie) de valve cardiaque","Microbiologie","","Recherche spécifique de levures (<em>Candida</em> ou autres) dans une valve cardiaque.","","",""]
["Levures (Candida) - Culture - Tissu (biopsie) cérébral","levures-candida-culture-63","fragment","Tissu (biopsie) cérébral","Microbiologie","","Recherche spécifique de levures (<em>Candida</em> ou autres) dans du tissu cérébral.","","",""]
["Levures (Candida) - Culture - Frottis d'oeil, bouche, nez, oreille","levures-candida-culture-2","sécrétions conjonctivales, narine, cae, ORL","Frottis d'oeil, bouche, nez, oreille","Microbiologie","","Recherche par culture de levures (<em>Candida</em> ou autres) dans les frottis d'oeil, bouche, nez, oreille.","","",""]
["Levures (Candida) - Culture - Urines","levures-candida-culture-3","ponction vésicale, sus pubienne","Urines","Microbiologie","","<ul><li>﻿﻿﻿﻿﻿Recherche spécifique de levures (<em>Candida</em> ou autres) dans les échantillons d'urines.</li><li>Les urines natives doivent être acheminées rapidement au laboratoire durant les heures d'ouverture.﻿</li><li>En dehors des heures d'ouverture, elles doivent impérativement être conservées à 4°C.﻿</li></ul>","","",""]
["Levures (Candida) - Culture - Frottis sphère génitale","levures-candida-culture-4","verge, urétral","Frottis sphère génitale","Microbiologie","","Recherche par culture de levures (<em>Candida</em> ou autres) dans les échantillons de la sphère génitale.","","",""]
["Levures (Candida) - Culture - Tissu (biopsie) de peau","levures-candida-culture-5","fragment","Tissu (biopsie) de peau","Microbiologie","","Recherche spécifique de levures (<em>Candida</em> ou autres) dans du tissu (biopsie) de peau.","","",""]
["Levures (Candida) - Culture - Tissu (biopsie) de ganglion","levures-candida-culture-64","fragment","Tissu (biopsie) de ganglion","Microbiologie","","Recherche spécifique de levures (<em>Candida</em> ou autres) dans du tissu de ganglion.","","",""]
["Levures (Candida) - Culture - Tissu (biopsie) de plèvre ou poumon","levures-candida-culture-65","fragment","Tissu (biopsie) de plèvre ou poumon","Microbiologie","","Recherche spécifique de levures (<em>Candida</em> ou autres) dans du tissu (biopsie)  de plèvre ou de poumon.","","",""]
["Levures (Candida) - Culture - Tissu ou biopsie (spécifier le site)","levures-candida-culture-66","fragment","Tissu ou biopsie (spécifier le site)","Microbiologie","","Recherche spécifique de levures (<em>Candida</em> ou autres) dans du tissu ou biopsie.","","",""]
["Levures (Candida) - Culture - Aiguille, fil","levures-candida-culture-67","matériel opératoire","Aiguille, fil","Microbiologie","","Recherche spécifique par culture de levures (<em>Candida</em> ou autres).","","",""]
["Levures (Candida) - Culture - Abcès","levures-candida-culture-6","pus","Abcès","Microbiologie","","Recherche par culture de levures (<em>Candida</em> ou autres) dans les échantillons d'abcès","","",""]
["Levures (Candida) - Culture - Cathéters - Sonde pacemaker","levures-candida-culture-7","intra-vasculaire, artériel, iv, central, picc line, périphérique, venflon, port-à-cath, PAC, dialyse,   CAPD, sonde pace maker, péridural, périnerveux","Cathéters - Sonde pacemaker","Microbiologie","","Recherche spécifique de levures (<em>Candida</em> ou autres) dans les cathéters (intra-vasculaire et dialyse) et chambre de port-à-cath","","",""]
["Levures (Candida) - Culture - Tubulures de drainage (autres que Cathéters)","levures-candida-culture-8","drain, sonde, dérivation LCR, péricardique, péritonéal, tube endotrachéal, jackson, penrose, redon, monovac, sonde uréthrale, sonde suspubienne","Tubulures de drainage (autres que Cathéters)","Microbiologie","","Recherche spécifique de levures (<em>Candida</em> ou autres) dans les Tubulures de drainages (autres que Cathéters)","","",""]
["Levures (Candida) - Culture - Liquide céphalo-rachidien (LCR) par ponction lombaire","levures-candida-culture-9","PL","Liquide céphalo-rachidien (LCR) par ponction lombaire","Microbiologie","","Recherche spécifique de levures (<em>Candida</em> ou autres) dans le LCR par ponction lombaire.","","",""]
["Levures (Candida) - Culture - Liquide et ponction de cavité normalement stérile (préciser la nature de l'échantillon)","levures-candida-culture-10","cytoponction","Liquide et ponction de cavité normalement stérile (préciser la nature de l'échantillon)","Microbiologie","","Recherche spécifique de levures (<em>Candida</em> ou autres) dans un liquide, une ponction ou cytoponction de cavité normalement stérile.","","",""]
["Levures (Candida) - Culture - Liquide de drainages (drain pleural, thoracique, péricardique, jackson, redon, monovac)","levures-candida-culture-11","","Liquide de drainages (drain pleural, thoracique, péricardique, jackson, redon, monovac)","Microbiologie","","Recherche par culture de levures (<em>Candida</em> ou autres) dans les échantillons de liquides de drainage.","","",""]
["Levures (Candida) - Culture - Frottis d'orifice et point de ponction (cathéter - drain)","levures-candida-culture-12","","Frottis d'orifice et point de ponction (cathéter - drain)","Microbiologie","","Recherche spécifique de levures (<em>Candida</em> ou autres) dans les échantillons d'orifice de drain et de point de ponction de cathéter.","","",""]
["Levures (Candida) - Culture - Frottis plaies superficielles (opératoires et non opératoires)","levures-candida-culture-13","","Frottis plaies superficielles (opératoires et non opératoires)","Microbiologie","","Recherche par culture de levures (<em>Candida</em> ou autres) dans les échantillons de plaies superficielles (opératoires et non opératoires).","","",""]
["Levures (Candida) - Culture - Frottis plaies profondes (opératoires et non opératoires)","levures-candida-culture-14","","Frottis plaies profondes (opératoires et non opératoires)","Microbiologie","","Recherche par culture de levures (<em>Candida</em> ou autres) dans les échantillons de plaies profondes (opératoires et non opératoires).","","",""]
["Levures (Candida) - Culture - Expectorations, Aspirations bronchiques, Sécrétions endotrachéales","levures-candida-culture-15","Sécrétions pulmonaires, respiratoires, mucoviscidose, induite","Expectorations, Aspirations bronchiques, Sécrétions endotrachéales","Microbiologie","","Recherche par culture de levures (<em>Candida</em> ou autres) dans les expectorations, aspirations bronchiques et sécrétions endotrachéales.","","",""]
["Levures (Candida) - Culture - Selles","levures-candida-culture-16","","Selles","Microbiologie","","Recherche par culture de levures (<em>Candida</em> ou autres) dans les selles","","",""]
["Levures (Candida) - Culture - Abcès amygdalien","levures-candida-culture-17","gorge, phlegmon, amygdale, pus, rétropharyngé","Abcès amygdalien","Microbiologie","","Recherche par culture de levures (Candida ou autres) dans les abcès amygdalien.﻿﻿","","",""]
["Levures (Candida) - Culture - Liquide céphalo-rachidien (LCR) par drain ventriculaire","levures-candida-culture-18","drain de dérivation","Liquide céphalo-rachidien (LCR) par drain ventriculaire","Microbiologie","","Recherche par culture spécifique de levures (<em>Candida</em> ou autres) dans les échantillons de LCR par drain ventriculaire.","","",""]
["Levures (Candida) - Culture - Frottis de gorge","levures-candida-culture-19","angine, mucoviscidose, amygdale, muguet","Frottis de gorge","Microbiologie","","Recherche par culture de levures (<em>Candida</em> ou autres) dans les frottis de gorge.","","",""]
["Levures (Candida) - Culture - Brossage oesopahge","levures-candida-culture-20","","Brossage oesopahge","Microbiologie","","Recherche par culture de levures (<em>Candida</em> ou autres) dans les échantillons de brossage d'oesophage","","",""]
["Levures (Candida) - Culture - Liquide (frottis) de sinus","levures-candida-culture-21","","Liquide (frottis) de sinus","Microbiologie","","Recherche par culture de levures (<em>Candida</em> ou autres) dans les échantillons de liquide de sinus.","","",""]
["Levures (Candida) - Culture - Tissu (biopsie) de sinus","levures-candida-culture-22","fragment","Tissu (biopsie) de sinus","Microbiologie","","Recherche par culture de levures (<em>Candida</em> ou autres) dans les fragments (biopsies) de sinus.","","",""]
["Levures (Candida) - Culture - Sécrétions nasopharyngées","levures-candida-culture-23","","Sécrétions nasopharyngées","Microbiologie","","Recherche par culture de levures (<em>Candida</em> ou autres) dans les échantillons de sécrétions nasopharyngées.","","",""]
["Levures (Candida) - Culture - Liquide humeur vitrée, humeur aqueuse","levures-candida-culture-24","oeil","Liquide humeur vitrée, humeur aqueuse","Microbiologie","","Recherche par culture de levures (<em>Candida</em> ou autres) dans les liquides d'humeur vitrée et aqueuse.","","",""]
["Levures (Candida) - Culture - Liquide verre de contact","levures-candida-culture-25","","Liquide verre de contact","Microbiologie","","Recherche par culture de levures (<em>Candida </em>ou autres) dans les liquides de verre de contact.","","",""]
["Levures (Candida) - Culture - Stérilet","levures-candida-culture-26","","Stérilet","Microbiologie","","Recherche par culture de levures (<em>Candida</em> ou autres) dans les échantillons de stérilet.","","",""]
["Levures (Candida) - Culture - Frottis anus","levures-candida-culture-27","rectal","Frottis anus","Microbiologie","","Recherche par culture de levures (<em>Candida</em> ou autres) dans les échantillons de frottis anus.","","",""]
["Levures (Candida) - Culture - Méconium - Selles du nouveau-né","levures-candida-culture-28","ECN","Méconium - Selles du nouveau-né","Microbiologie","","Recherche par culture de levures (<em>Candida</em> ou autres) dans les selles du nouveau-né.","﻿","",""]
["Levures (Candida) - Culture - Prothèses vasculaires","levures-candida-culture-68","","Prothèses vasculaires","Microbiologie","","Recherche par culture spécifique de levures (<em>Candida</em> ou autres).","","",""]
["Levures (Candida) - Culture - Lavage broncho-alvéolaire (LBA)","levures-candida-culture-29","Sécrétions pulmonaires, respiratoires","Lavage broncho-alvéolaire (LBA)","Microbiologie","","Recherche par culture de levures (<em>Candida</em> ou autre) dans les échantillons de lavage broncho-alvéolaire (LBA).","","",""]
["Levures (Candida) - Culture - Mousse VAC","levures-candida-culture-69","","Mousse VAC","Microbiologie","","Recherche par culture spécifique de levures (<em>Candida</em> ou autres).","","",""]
["Levures (Candida) - Culture - mini LBA","levures-candida-culture-30","Sécrétions pulmonaires, respiratoires","mini LBA","Microbiologie","","Recherche par culture de levures (<em>Candida</em> ou autre) dans les échantillons de mini LBA.","","",""]
["Levures (Candida) - Culture - Frottis de placenta","levures-candida-culture","","Frottis de placenta","Microbiologie","","Recherche par culture de levures (Candida ou autres) dans les frottis de placenta (face foetale et/ou maternelle).","","",""]
["Levures (Candida) - Culture - Brossage bronchique","levures-candida-culture-31","Sécrétions pulmonaires, respiratoires","Brossage bronchique","Microbiologie","","Recherche par culture de levures (<em>Candida</em> ou autre) dans les échantillons de brossage bronchique.","","",""]
["Levures (Candida) - Culture - Frottis de bronche","levures-candida-culture-32","Sécrétions pulmonaires, respiratoires","Frottis de bronche","Microbiologie","","Recherche par culture de levures (<em>Candida</em> ou autres) dans les échantillons de frottis de bronches.","","﻿",""]
["Levures (Candida) - Culture - Sperme","levures-candida-culture-1","","Sperme","Microbiologie","","Recherche par culture de levures (<em>Candida</em> ou autres) dans les échantillons de sperme.","","",""]
["LH (lutéotrophine) - Sang","lh-luteotrophine","lutéotrophine, lutéotropine, ICSH, interstitial cell stimulating hormone, luteinizing hormone, gonadotrophine, gonadotropine, hormone gonadotrope","Sang","Chimie clinique","","","","","hormone lutéinisante"]
["Linezolide - Sang","linezolide","Antibiotique, antimicrobien, tuberculose, tuberculeux, anti-tuberculeux, antituberculeux","Sang","Pharmacologie","Contact nécessaire avant réalisation","<p>Dosage et interprétation pharmacocinétique de taux sanguin de linezolide (absence d'intervalle de référence, évaluation seulement de la plausibilité du taux)</p>","<p>Sur avis du spécialiste. L’interprétation clinique (TDM) du dosage de levofloxacine n’est actuellement pas validée.</p>\r\n<p>Indication <strong>antituberculeux</strong>: utiliser le bon 18.</p>\r\n<p>Indication <strong>antibiotique</strong>: utiliser le bon 16. Comme antibiotique: TDM indiqué uniquement dans des situations spécifiques : il est recommandé de <strong>contacter le responsable TDM AVANT prélèvement </strong>: 021 314 22 41. En cas d’absence, au : 021 314 25 00.</p>\r\n\r\n","","Zyvoxid®"]
["Lipase - Sang","lipase","","Sang","Chimie clinique","","","","",""]
["Lipoprotéine Lp (a) - Sang","lipoproteine-lp-a","","Sang","Chimie clinique","","","Dyslipidémie, athérosclérose prématurée","","Lipides, lipide, lipoprotéine"]
["Lisdexamphétamine - Sang","lisdexamphetamine","Elvance, lisdexamfétamine","Sang","UPPC Pharmacogénétique et psychopharmacologie","","<p>Dosage et interprétation pharmacologique du taux sanguin</p>","<p>Réponse insatisfaisante, effets secondaires, interactions, doute sur l’adhésion, suspicion d’intoxication</p>","",""]
["Lithium - Sang - Patients Cery uniquement","lithium-sang","","Patients Cery uniquement","UPPC Pharmacogénétique et psychopharmacologie","","<p>Dosage et interprétation pharmacologique du taux sanguin</p>","<p>Réponse insatisfaisante, effets secondaires, interactions, doute sur l’adhésion, suspicion d’intoxication</p>","",""]
["Lithium - Sang - Patients CHUV uniquement","lithium-sang-1","Li","Patients CHUV uniquement","Chimie clinique","","<p>Dosage et interprétation pharmacologique (TDM) de taux sanguin de lithium (intervalle de référence disponible).</p>","<p>Suivi thérapeutique, réponse insatisfaisante, suspicion de toxicité, doute sur la compliance.</p>","","Litarex, Lithiofor, Priadel, Quilonorm"]
["Lumefantrine / Desbutyl-lumefantrine - Sang","lumefantrine-/-desbutyl-lumefantrine","Antimalarique, antipaludéen, malaria, paludisme, plasmodium","Sang","Pharmacologie","","Dosage du taux sanguin de lumefantrine et de son métabolite","Sur avis du spécialiste. L’interprétation clinique (TDM) du dosage n’est actuellement pas validée.","Le patient doit être informé que cette analyse ne figure pas sur la liste des analyses en vigueur et qu'elle ne sera pas obligatoirement prise en charge par les caisses maladie","Riamet® (+artem.)"]
["Lurasidone - Sang","lurasidone","Latuda","Sang","UPPC Pharmacogénétique et psychopharmacologie","","Dosage et interprétation pharmacologique du taux sanguin","Réponse insatisfaisante, effets secondaires, interactions, doute sur l’adhésion, suspicion d’intoxication","",""]
["Macroprolactine - Sang","macroprolactine","hormone lactotrope, macroenzyme","Sang","Chimie clinique","","﻿","","","big-big prolactine, big prolactine"]
["Magnésium total - Urine 24h","magnesium-total","","Urine 24h","Chimie clinique","","","","",""]
["Magnésium total - Selles","magnesium-total-1","","Selles","Chimie clinique","","","","",""]
["Magnésium total - Sang","magnesium-total-2","","Sang","Chimie clinique","","","","",""]
["Magnésium total - Urine fraiche","magnesium-total-3","","Urine fraiche","Chimie clinique","","","","",""]
["Maladie de Crohn/RCUH - ","maladie-de-crohn/rcuh","ASCA, ANCA","","Immunologie et allergie","","La recherche simultanée d'ASCA et d'ANCA permet le diagnostic différentiel de la maladie de Crohn et la rectocolite hémorragique","Maladie de Crohn, rectocolite hémorragique","","Anti-saccharomyces cerevisiae"]
["Maladie de von Willebrand - ","maladie-de-von-willebrand","Hémostase, tests de base, tests complémentaires","","Hématologie - Hémostase spéciale","","Cette recherche se base sur l'interprétation de 3 prestations:<br />Facteur VIII = FVIII<br />Facteur von Willebrand antigénique = FWAG<br />Facteur von Willebrand activé","","","Cofacteur, cofacteur à la ristocétine, Facteur von Willebrand, Facteur FW, RCO, von Willebrand, vWAg, Willebrand"]
["Malaria - Malaria dépistage Malaria positive (suivi)","malaria","malaria rapide falciparum malariae ovale plasmodium vivax plasmodie plasmodium","Malaria dépistage Malaria positive (suivi)","Hématologie générale 24/7","","Dépistage: le test rapide de dépistage est effectué par le laboratoire d'hématologie. Après analyse, transmission du test de dépistage et lames au laboratoire de parasitologie  tél 079 55 60 348. Un examen microscopique systématique est effectué lors du premier dépistage par le laboratoire de parasitologie ainsi que le diagnostic d'espèce et la détermination de la densité parasitaire ( P. falciparum).<br />Suivi malaria positive: seul l'examen microscopique est effectué.","Présence d'un pic fébrile, retour d'un pays endémique pour la malaria","","Recherche de Malaria falciparum, malariae, ovale ou vivax,"]
["Maraviroc - Sang","maraviroc","Antirétroviraux, anti-HIV, Antirétroviral, CCR5 Antagoniste, inhibiteur du co-récepteur","Sang","Pharmacologie","","<p>Dosage et interprétation pharmacocinétique de taux sanguin de maraviroc (absence d'intervalle de référence, évaluation seulement de la plausibilité du taux)</p>","<p>Suivi thérapeutique, réponse insatisfaisante, suspicion de toxicité, suspicion d'interaction médicamenteuse, doute sur la compliance, grossesse, étude</p>","","Celsentri®"]
["Marqueurs immunologiques - ","marqueurs-immunologiques","","","Hématologie spéciale","","le laboratoire spécialisé d'hématologie effectue l'analyse des marqueurs immunologiques dans le cadre des hémopathies malignes, de la recherche d'hémoglobinurie paroxystique <br /> nocturne et dans la détermination des cellules souches CD34. Pour ces deux dernières applications voir les fiches correspondantes, respectivement code de recherche \"HPN\" et \"CD34\". <br /> Les dosages de CD4/CD8 dans le cadre du suivi HIV, de même que les marqueurs dans le cadre des immunodéficiences sont effectués par le service d'immunologie.","Immunophénotypisation par cytométrie de flux dans les cas de lymphocytose, recherche de  lymphomes, monoytoses, leucémies aigües, recherche de cellules blastiques dans les cas de Syndromes myélodysplasiques (SMD), Néoplasie myéloproliférative (NMP),","","Immunophénotypisation, lymphocytaire, marqueurs immunocellulaires, marqueurs lymphocytaires, typisation"]
["MBL - ","mbl","Complément","","Immunologie et allergie","","","","",""]
["Médullogramme - ","medullogramme","","","Hématologie spéciale","","","","","coloration cytochimiques, examen de la moelle osseuse, hématopoïèse, moelle, moelle hématopoïétique, moelle osseuse, myélogramme"]
["Mefloquine - Sang","mefloquine","Antimalarique, antipaludéen, malaria, paludisme, plasmodium","Sang","Pharmacologie","","Dosage du taux sanguin de mefloquine","Sur avis du spécialiste. L’interprétation clinique (TDM) du dosage n’est actuellement pas validée.","Le patient doit être informé que cette analyse ne figure pas sur la liste des analyses en vigueur et qu'elle ne sera pas obligatoirement prise en charge par les caisses maladie","Lactab®"]
["Mélatonine Libre - Sang","melatonine-libre","","Sang","Catécholamines","","","Exploration des troubles du rythme du sommeil, dans les cas de décalage de cycles, et le diagnostic des pinéalomes<br />","<p>24h avant le prélèvement, ne pas absorber de noix, banane, chocolat, prune, avocat, aubergine, tomate,<br />ananas, kiwi, plantain, caféine (café, thé), nicotine, alcool.<br />Etre à jeûn.<br /><br /></p>","Melatonin, N-Acetyl-5-methoxytryptamine, N-acétyl-5-méthoxytryptamine"]
["Memantine - Sang","memantine","Axura, Ebixa","Sang","UPPC Pharmacogénétique et psychopharmacologie","","Dosage et interprétation pharmacologique du taux sanguin","Réponse insatisfaisante, effets secondaires, interactions, doute sur l’adhésion, suspicion d’intoxication","Le patient doit être informé que cette analyse ne figure pas sur la liste des analyses en vigueur et qu'elle ne sera pas obligatoirement prise en charge par les caisses maladie",""]
["Méningite/Encéphalite  PCR en Urgence - Liquide céphalo-rachidien (LCR)","meningite/encephalite-pcr-en-urgence","","Liquide céphalo-rachidien (LCR)","Microbio moléculaire","","Détection par système de PCR rapide réalisé en urgence  pour un panel bactérien, viral et fongique..","Méningite/ Encéphalite","","Neisseria meningitidis, Streptococcus pneumoniae, Listeria monocytogenes, Haemophilus influenzae, Streptococcus agalactiae, E.coli K1,  Herpès simplex, varicelle zoster, Enterovirus, Parechovirus, HHV6, Cytomégalovirus. "]
["Meropénem - Sang","meropenem","Antibiotique, antimicrobien, carbapénème","Sang","Pharmacologie","","Dosage et interprétation pharmacologique (TDM) de taux sanguin de meropenem (intervalle de référence disponible)","TDM uniquement dans des cas spécifiques (i.e. difficultés d’adaptation des doses, épuration extrarénale, dialyse, interactions médicamenteuses, toxicité, résistances)","","Meronem®"]
["Métanéphrines - Urine 24 h","metanephrines","","Urine 24 h","Catécholamines","","","<p>Phéochromocytome, paragangliome, neuroblastome</p>\r\n<p>L’examen de première intention réside dans la quantification des métanéphrines plasmatiques libres, selon la nouvelle directive de l’OPAS.</p>\r\n<p>Les métanéphrines plasmatiques totales et les métanéphrines urinaires sont utilisées comme test de confirmation exclusivement.</p>","<p>J-3 arrêt médicaments suivants, selon OM: Adelphan, Aldomet, artérénol, dopamine, isoprénaline, Isuprel, Novadral.</p>\r\n<p>Aucune préparation pour d'autres examens (lavement, urographie,…).</p>\r\n<p>Eviter les situations de stress.</p>\r\n<p>24h avant et pendant la collecte, ne pas absorber de café, thé, chocolat, banane, noix, amandes, ananas, aubergine, kiwi, avocat, prune, tomate et alcool.</p>","Métanéphrines, métanéphrine, normétanéphrine, méthoxytyramine"]
["Métanéphrines - Spot Urinaire - Neuroblastome","metanephrines-1","","Spot Urinaire - Neuroblastome","Catécholamines","","","<p>Neuroblastome</p>\r\n<p>L’examen de première intention réside dans la quantification des métanéphrines plasmatiques libres, selon la nouvelle directive de l’OPAS.</p>\r\n<p>Les métanéphrines plasmatiques totales et les métanéphrines urinaires sont utilisées comme test de confirmation exclusivement.</p>","<p>J-3 arrêt médicaments suivants, selon OM : Adelphan, Aldomet, Artérénol, dopamine, isoprénaline, Isuprel, Novadral</p>\r\n<p>Aucune préparation pour d'autres examens (lavement, urographie,…).</p>\r\n<p>Eviter les situations de stress.</p>\r\n<p>24h avant et pendant la collecte, ne pas absorber de café, thé, chocolat, banane, noix, amandes, ananas, aubergine, kiwi, avocat, prune, tomate et alcool.</p>","Métanéphrines, métanéphrine, normétanéphrine, méthoxytyramine"]
["Métanéphrines libres - Sang","metanephrines-libres","","Sang","Catécholamines","","","<p>Phéochromocytome, paragangliome, neuroblastome</p>\r\n<p>L’examen de première intention réside dans la quantification des métanéphrines plasmatiques libres, selon la nouvelle directive de l’OPAS.</p>\r\n<p>Les métanéphrines plasmatiques totales et les métanéphrines urinaires sont utilisées comme test de confirmation exclusivement.</p>","<p>24h avant le prélèvement, ne pas absorber de café, thé, chocolat, banane,<br /> alcool et cigarette.<br /> &nbsp;</p>\r\n<p>Etre à jeûn.<br /> &nbsp;</p>\r\n<p>Allonger le patient, poser un Venflon (pour éviter le stress de la piqûre) et<br /> prélever le sang 15 minutes plus tard.<br /> &nbsp;</p>","Métanéphrines, métanéphrine, normétanéphrine, Méthoxytyramine"]
["Métanéphrines totales - Sang","metanephrines-totales","","Sang","Catécholamines","","","<p>Phéochromocytome, paragangliome, neuroblastome</p>\r\n<p>L’examen de première intention réside dans la quantification des métanéphrines plasmatiques libres, selon la nouvelle directive de l’OPAS.</p>\r\n<p>Les métanéphrines plasmatiques totales et les métanéphrines urinaires sont utilisées comme test de confirmation exclusivement.</p>","<p>24h avant le prélèvement, ne pas absorber de café, thé, chocolat, banane,<br /> alcool et cigarette.<br /> &nbsp;</p>\r\n<p>Etre à jeûn.<br /> &nbsp;</p>\r\n<p>Allonger le patient, poser un Venflon (pour éviter le stress de la piqûre) et<br /> prélever le sang 15 minutes plus tard.<br /> &nbsp;</p>","Métanéphrines, métanéphrine, normétanéphrine, méthoxytyramine"]
["Méthadone - Sang","methadone","Ketalgine, Levomethadone, L-Polamidon, Polamidon","Sang","UPPC Pharmacogénétique et psychopharmacologie","","Dosage et interprétation pharmacologique du taux sanguin","Réponse insatisfaisante, effets secondaires, interactions, doute sur l’adhésion, suspicion d’intoxication","",""]
["Méthémoglobine - Sang","methemoglobine","","Sang","Chimie clinique","","<p>L' hémoglobine totale, la methémogolbine, l'oxyhémoglobine et l'hémoglobine réduite sont mesurées en même temps.<br /></p>\r\n<p></p>","","",""]
["Méthotrexate - Sang","methotrexate","","Sang","Chimie clinique","Condition particulière d'acheminement","<p>Dosage et interprétation pharmacologique (TDM) de taux sanguin de méthotrexate (taux visé dépendant du protocole oncologique).</p>","<p>Lors d'administration de méthotrexate à haute dose pour guider le sauvetage par l'acide folinique (Leucovorin).</p>","","Améthoptérine, Methotrexat,  Metoject"]
["Méthylmalonate - Sang","methylmalonate","IEM, EIM, erreurs innées du métabolisme, Inborn Errors of Metabolism, methylmalonate, mma, MMA","Sang","Chimie clinique","","","Contrôle acidémie méthylmalonique -<br />Déficit en vitamine B12","","Acide méthylmalonique, méthylmalonate, MMA, methylmalonic acid"]
["Méthylphénidate - Sang","methylphenidate-1","ritaline, medikinet, concerta, methylphenidat, equasym","Sang","UPPC Pharmacogénétique et psychopharmacologie","Condition particulière d'acheminement, Acheminer immédiatement le tube","<p>Dosage et interprétation pharmacologique du taux sanguin</p>","<p>Réponse insatisfaisante, effets secondaires, interactions, doute sur l’adhésion, suspicion d’intoxication</p>","",""]
["Miansérine - Sang","mianserine","Tolvon","Sang","UPPC Pharmacogénétique et psychopharmacologie","","Dosage et interprétation pharmacologique du taux sanguin","Réponse insatisfaisante, effets secondaires, interactions, doute sur l’adhésion, suspicion d’intoxication","",""]
["Microdélétion du chromosome Y - Analyse moléculaire","microdeletion-du-chromosome-y","Azoospermie, ICSI, oligospermie, spermatogénèse, stérilité","Analyse moléculaire","Génétique moléculaire","","Analyse des microdélétion du chromosome Y OMIM 415000","","",""]
["Mirtazapine - Sang","mirtazapine","Remeron","Sang","UPPC Pharmacogénétique et psychopharmacologie","","Dosage et interprétation pharmacologique du taux sanguin","Réponse insatisfaisante, effets secondaires, interactions, doute sur l’adhésion, suspicion d’intoxication","",""]
["MLL-AF4 - Equivalent moléculaire translocation t(4;11)","mll-af4","","Equivalent moléculaire translocation t(4;11)","Hématologie moléculaire","","Le MLL-AF4 correspond à l'équivalent moléculaire de la translocation chromosomique (4;11) qui est recherchée dans les LLA.<br />Cette analyse est complémentaire de l'analyse cytogénétique standard.","","","t (4;11), translocations chromosomiques"]
["Moclobémide - Sang","moclobemide","Aurorix","Sang","UPPC Pharmacogénétique et psychopharmacologie","","Dosage et interprétation pharmacologique du taux sanguin","Réponse insatisfaisante, effets secondaires, interactions, doute sur l’adhésion, suspicion d’intoxication","",""]
["Moisissures (Champignons filamenteux)  - Culture - Frottis d'oeil, oreille","moisissures-champignons-filamenteux-culture","sécrétions conjonctivales, cae, ORL","Frottis d'oeil, oreille","Microbiologie","","Recherche par culture de moisissures (<em>Aspergillus</em> ou autres) dans les frottis d'oeil et d'oreille.","","",""]
["Moisissures (Champignons filamenteux) - Culture - Abcès cérébral","moisissures-champignons-filamenteux-culture-12","pus","Abcès cérébral","Microbiologie","","Recherche par culture de moisissures (<em>Aspergillu</em>s ou autres)<em> </em>dans l'abcès cérébral.","","",""]
["Moisissures (Champignons filamenteux) - Culture - Abcès du foie (hépatique)","moisissures-champignons-filamenteux-culture-13","pus","Abcès du foie (hépatique)","Microbiologie","","Recherche par culture de moisissures (<em>Aspergillu</em>s ou autres)<em> </em>dans l'abcès du foie.","","",""]
["Moisissures (Champignons filamenteux) - Culture - Abcès anal, para-anal","moisissures-champignons-filamenteux-culture-14","pus","Abcès anal, para-anal","Microbiologie","","Recherche par culture de moisissures (<em>Aspergillu</em>s ou autres)<em> </em>dans l'abcès anal, para-anal.","","",""]
["Moisissures (Champignons filamenteux) - Culture - Abcès du poumon","moisissures-champignons-filamenteux-culture-15","pus","Abcès du poumon","Microbiologie","","Recherche par culture de moisissures (<em>Aspergillu</em>s ou autres)<em> </em>dans l'abcès pulmonaire.","","",""]
["Moisissures (Champignons filamenteux) - Culture - Abcès","moisissures-champignons-filamenteux-culture-16","pus","Abcès","Microbiologie","","Recherche par culture de moisissures (<em>Aspergillus</em> ou autres) dans les échantillons d'abcès.","","",""]
["Moisissures (Champignons filamenteux) - Culture - Frottis plaies profondes non opératoires","moisissures-champignons-filamenteux-culture-17","pus","Frottis plaies profondes non opératoires","Microbiologie","","Recherche par culture de moisissures (<em>Aspergillus</em> ou autres) dans les frottis de plaies profondes non opératoires.","","",""]
["Moisissures (Champignons filamenteux) - Culture - Liquide articulaire ou synovial","moisissures-champignons-filamenteux-culture-18","bursite","Liquide articulaire ou synovial","Microbiologie","","Recherche par culture de moisissures (<em>Aspergillus</em> ou autres) dans le liquide articulaire, synovial ou de bursite.","","",""]
["Moisissures (Champignons filamenteux) - Culture - Liquide d'ascite","moisissures-champignons-filamenteux-culture-19","","Liquide d'ascite","Microbiologie","","Recherche par culture de moisissures (<em>Aspergillus</em> ou autres) dans le liquide d'ascite.","","",""]
["Moisissures (Champignons filamenteux) - Culture - Liquide de dialyse péritonéale","moisissures-champignons-filamenteux-culture-20","","Liquide de dialyse péritonéale","Microbiologie","","Recherche par culture de moisissures (<em>Aspergillus</em> ou autres) dans le liquide de dialyse péritonéale.","","",""]
["Moisissures (Champignons filamenteux) - Culture - Moelle osseuse","moisissures-champignons-filamenteux-culture-21","","Moelle osseuse","Microbiologie","","Recherche par culture de moisissures (Aspergillus ou autres) dans la moelle osseuse.","","",""]
["Moisissures (Champignons filamenteux) - Culture - Liquide péricardique","moisissures-champignons-filamenteux-culture-22","oeil","Liquide péricardique","Microbiologie","","Recherche par culture de moisissures (<em>Aspergillus</em> ou autres) dans le liquide péricardique.","","",""]
["Moisissures (Champignons filamenteux) - Culture - Liquide pleural","moisissures-champignons-filamenteux-culture-23","oeil","Liquide pleural","Microbiologie","","Recherche par culture de moisissures (<em>Aspergillus</em> ou autres) dans le liquide pleural.","","",""]
["Moisissures (Champignons filamenteux) - Culture - Liquide et ponction de cavité normalement stérile (préciser la nature de l'échantillon)","moisissures-champignons-filamenteux-culture-24","cytoponction","Liquide et ponction de cavité normalement stérile (préciser la nature de l'échantillon)","Microbiologie","","Recherche par culture de moisissures (<em>Aspergillus</em> ou autres) dans un liquide, une ponction ou cytoponction de cavité normalement stérile.","","",""]
["Moisissures (Champignons filamenteux) - Culture - Biopsie transbronchique","moisissures-champignons-filamenteux-culture-25","","Biopsie transbronchique","Microbiologie","","Recherche par culture de moisissures (Aspergillus ou autres) dans la biopsie transbronchique.","","",""]
["Moisissures (Champignons filamenteux) - Culture - Biopsies anus ou colon","moisissures-champignons-filamenteux-culture-26","anal, anale, colique","Biopsies anus ou colon","Microbiologie","","Recherche par culture de moisissures (<em>Aspergillus</em> ou autres) dans la biopsie d'anus ou colique.","","",""]
["Moisissures (Champignons filamenteux) - Culture - Capsule articulaire","moisissures-champignons-filamenteux-culture-27","fragment, os","Capsule articulaire","Microbiologie","","Recherche par culture de moisissures (Aspergillus ou autres) dans la capsule articulaire.","","",""]
["Moisissures (Champignons filamenteux) - Culture - Disque intervertébral","moisissures-champignons-filamenteux-culture-28","fragment, os, biopsie","Disque intervertébral","Microbiologie","","Recherche par culture de moisissures (<em>Aspergillus</em> ou autres) dans un disque intervertébral.","","",""]
["Moisissures (Champignons filamenteux) - Culture - Tissu (biopsie) articulaire","moisissures-champignons-filamenteux-culture-29","fragment, biopsie","Tissu (biopsie) articulaire","Microbiologie","","Recherche par culture de moisissures (Aspergillus ou autres) dans du tissu articulaire.","","",""]
["Moisissures (Champignons filamenteux) - Culture - Tissu (biopsie) musculaire","moisissures-champignons-filamenteux-culture-30","fragment, biopsie, muscle","Tissu (biopsie) musculaire","Microbiologie","","Recherche par culture de moisissures (Aspergillus ou autres) dans du tissu musculaire.","","",""]
["Moisissures (Champignons filamenteux) - Culture - Os (fragment - biopsie)","moisissures-champignons-filamenteux-culture-31","","Os (fragment - biopsie)","Microbiologie","","Recherche par culture de moisissures (Aspergillus ou autres) dans un fragment (biopsie) d'os.","","",""]
["Moisissures (Champignons filamenteux) - Culture - Tissu (biopsie) d'anévrisme","moisissures-champignons-filamenteux-culture-32","fragment","Tissu (biopsie) d'anévrisme","Microbiologie","","Recherche par culture de moisissures (Aspergillus ou autres) dans du tissu (biopsie) d'anévrisme.","","",""]
["Moisissures (Champignons filamenteux) - Culture - Tissu (biopsie) de valve cardiaque","moisissures-champignons-filamenteux-culture-33","fragment, biopsie, tissu, mitrale, coeur","Tissu (biopsie) de valve cardiaque","Microbiologie","","Recherche par culture de moisissures (Aspergillus ou autres) dans une valve cardiaque.","","",""]
["Moisissures (Champignons filamenteux) - Culture - Tissu (biopsie) cérébral","moisissures-champignons-filamenteux-culture-34","fragment","Tissu (biopsie) cérébral","Microbiologie","","Recherche par culture de moisissures (Aspergillus ou autres) dans du tissu (biopsie) cérébral.","","",""]
["Moisissures (Champignons filamenteux) - Culture - Tissu (biopsie) de ganglion","moisissures-champignons-filamenteux-culture-35","fragment","Tissu (biopsie) de ganglion","Microbiologie","","Recherche par culture de moisissures (Aspergillus ou autres) dans du tissu (biopsie) de ganglion.","","",""]
["Moisissures (Champignons filamenteux) - Culture - Tissu (biopsie) de peau","moisissures-champignons-filamenteux-culture-36","fragment","Tissu (biopsie) de peau","Microbiologie","","Recherche par culture de moisissures (Aspergillus ou autres) dans du tissu (biopsie) de peau.","","",""]
["Moisissures (Champignons filamenteux) - Culture - Tissu (biopsie) de plèvre ou poumon","moisissures-champignons-filamenteux-culture-37","fragment","Tissu (biopsie) de plèvre ou poumon","Microbiologie","","Recherche par culture de moisissures (Aspergillus ou autres) dans du tissu (biopsie) de plèvre ou de poumon.","","",""]
["Moisissures (Champignons filamenteux) - Culture - Tissu ou biopsie (spécifier le site)","moisissures-champignons-filamenteux-culture-38","fragment","Tissu ou biopsie (spécifier le site)","Microbiologie","","Recherche par culture de moisissures (Aspergillus ou autres) dans du tissu ou biopsie.","","",""]
["Moisissures (Champignons filamenteux) - Culture - Frottis de gorge (chez patient mucoviscidose)","moisissures-champignons-filamenteux-culture-1","","Frottis de gorge (chez patient mucoviscidose)","Microbiologie","","Recherche par culture de moisissures (<em>Aspergillus</em> ou autres) dans le frottis de gorge des patients mucoviscidoses.","","",""]
["Moisissures (Champignons filamenteux) - Culture - Liquide (frottis) de sinus","moisissures-champignons-filamenteux-culture-2","","Liquide (frottis) de sinus","Microbiologie","","Recherche par culture de moisissures (Aspergillus ou autres) dans les échantillons de liquide de sinus.","","",""]
["Moisissures (Champignons filamenteux) - Culture - Tissu (biopsie) de sinus","moisissures-champignons-filamenteux-culture-3","fragment","Tissu (biopsie) de sinus","Microbiologie","","Recherche par culture de moisissures (Aspergillus ou autres) dans du tissu (biopsie) de sinus.","","",""]
["Moisissures (Champignons filamenteux) - Culture - Liquide humeur vitrée, humeur aqueuse","moisissures-champignons-filamenteux-culture-4","oeil","Liquide humeur vitrée, humeur aqueuse","Microbiologie","","Recherche par culture de moisissures (<em>Aspergillus</em> ou autres) dans les liquides d'humeur vitrée et aqueuse.","","",""]
["Moisissures (Champignons filamenteux) - Culture - Liquide verre de contact","moisissures-champignons-filamenteux-culture-5","","Liquide verre de contact","Microbiologie","","Recherche par culture de moisissures (<em>Aspergillus</em> ou autres) dans les liquides de verre de contact.","","",""]
["Moisissures (Champignons filamenteux) - Culture - Selles","moisissures-champignons-filamenteux-culture-6","","Selles","Microbiologie","","Recherche par culture de moisissures (<em>Aspergillus</em> ou autres) dans les selles","","",""]
["Moisissures (Champignons filamenteux) - Culture - Liquides de drainage (drain pleural, thoracique, péricardique, jackson, redon, monovac)","moisissures-champignons-filamenteux-culture-7","","Liquides de drainage (drain pleural, thoracique, péricardique, jackson, redon, monovac)","Microbiologie","","Recherche par culture de moisissures (<em>Aspergillus</em> ou autres) dans les échantillons de liquides de drainage.","","",""]
["Moisissures (Champignons filamenteux) - Culture - Expectorations, Aspirations bronchiques, Sécrétions endotrachéales","moisissures-champignons-filamenteux-culture-8","Sécrétions pulmonaires, respiratoires, mucoviscidose, induite","Expectorations, Aspirations bronchiques, Sécrétions endotrachéales","Microbiologie","","Recherche par culture de moisissures (<em>Aspergillus</em> ou autres) dans les expectorations, aspirations bronchiques et sécrétions endotrachéales.","","",""]
["Moisissures (Champignons filamenteux) - Culture - Brossage bronchique","moisissures-champignons-filamenteux-culture-9","Sécrétions pulmonaires, respiratoires","Brossage bronchique","Microbiologie","","Recherche par culture de moisissures (<em>Aspergillus</em> ou autres) dans les échantillons de brossage bronchique.","","",""]
["Moisissures (Champignons filamenteux) - Culture - Frottis de bronche","moisissures-champignons-filamenteux-culture-10","Sécrétions pulmonaires, respiratoires","Frottis de bronche","Microbiologie","","Recherche par culture de moisissures (<em>Aspergillus</em> ou autres) dans les échantillons de frottis de bronches.","","﻿",""]
["Moisissures (Champignons filamenteux) - Culture - Lavage broncho-alvéolaire (LBA)","moisissures-champignons-filamenteux-culture-11","Sécrétions pulmonaires, respiratoires","Lavage broncho-alvéolaire (LBA)","Microbiologie","","Recherche par culture de moisissures (<em>Aspergillus</em> ou autres) dans les échantillons de lavage broncho-alvéolaire (LBA).","","",""]
["Monkeypox PCR - Frottis bouche","monkeypox-pcr","Monkeypox virus, MPXV, variole du singe, variole simienne","Frottis bouche","Microbio moléculaire","","Recherche du Monkeypox Virus ( variole du singe ) par PCR","<p>Suspicion d'infection par le Monkeypox Virus: pour les demandeurs CHUV, merci de vous référer à la procédure de l'HPCI (SMPH_W_DIR_00017) pour la définition du cas.</p>\r\n<p>Pour les demandeurs externe, merci de contacter le laboratoire.</p>","","Variole du singe, MPXV, Variole simienne"]
["Monkeypox PCR - Frottis anus","monkeypox-pcr-1","Monkeypox virus, MPXV, variole du singe, variole simienne","Frottis anus","Microbio moléculaire","","Recherche du Monkeypox Virus ( variole du singe ) par PCR","<p>Suspicion d'infection par le Monkeypox Virus: pour les demandeurs CHUV, merci de vous référer à la procédure de l'HPCI (SMPH_W_DIR_00017) pour la définition du cas.</p>\r\n<p>Pour les demandeurs externe, merci de contacter le laboratoire.</p>","","Variole du singe, MPXV, Variole simienne"]
["Monkeypox PCR - Frottis urètre","monkeypox-pcr-2","Monkeypox virus, MPXV, variole du singe, variole simienne","Frottis urètre","Microbio moléculaire","","Recherche du Monkeypox Virus ( variole du singe ) par PCR","<p>Suspicion d'infection par le Monkeypox Virus: pour les demandeurs CHUV, merci de vous référer à la procédure de l'HPCI (SMPH_W_DIR_00017) pour la définition du cas.</p>\r\n<p>Pour les demandeurs externe, merci de contacter le laboratoire.  </p>","","Variole du singe, MPXV, Variole simienne"]
["Monkeypox PCR - Frottis gorge","monkeypox-pcr-3","Monkeypox virus, MPXV, variole du singe, variole simienne","Frottis gorge","Microbio moléculaire","","Recherche du Monkeypox Virus ( variole du singe ) par PCR","<p>Suspicion d'infection par le Monkeypox Virus: pour les demandeurs CHUV, merci de vous référer à la procédure de l'HPCI (SMPH_W_DIR_00017) pour la définition du cas.</p>\r\n<p>Pour les demandeurs externe, merci de contacter le laboratoire.</p>","","Variole du singe, MPXV, Variole simienne"]
["Monkeypox PCR - Frottis peau","monkeypox-pcr-4","Monkeypox virus, MPXV, variole du singe, variole simienne","Frottis peau","Microbio moléculaire","","Recherche du Monkeypox Virus ( variole du singe ) par PCR","<p>Suspicion d'infection par le Monkeypox Virus: pour les demandeurs CHUV, merci de vous référer à la procédure de l'HPCI (SMPH_W_DIR_00017) pour la définition du cas.</p>\r\n<p>Pour les demandeurs externe, merci de contacter le laboratoire.</p>","","Variole du singe, MPXV, Variole simienne"]
["Monomères de fibrine - ","monomeres-de-fibrine","fibrinogène","","Hématologie - Hémostase spéciale","","","<p>Permet le diagnostic de la CIVD</p>","","CIVD, FM,"]
["Morphine - Sang","morphine","Morphine, MORPHIN, KAPANOL, MST, CONTINUS, SEVRE-LONG, SEVREDOL, M RETARD, M-RETARD","Sang","UPPC Pharmacogénétique et psychopharmacologie","","Dosage et interprétation pharmacologique du taux sanguin","Réponse insatisfaisante, effets secondaires, interactions, doute sur l’adhésion, suspicion d’intoxication","",""]
["Moxifloxacin - Sang","moxifloxacin","tuberculose, tuberculeux, anti-tuberculeux, Antibiotique","Sang","Pharmacologie","","Dosage et interprétation pharmacocinétique de taux sanguin de moxifloxacin\t ","<p>Sur avis du spécialiste. L’interprétation clinique (TDM) du dosage n’est actuellement pas validée.</p>\r\n<p>Indication <strong>antituberculeux</strong>: utiliser le bon 18.</p>\r\n<p>Indication <strong>antibiotique</strong>: utiliser le bon 16.<br /></p>","","Avalox"]
["Mucoviscidose - Analyse moléculaire","mucoviscidose","CBAVD, diagnostic prénatal, fibrose kystique, pancréatite, stérilité","Analyse moléculaire","Génétique moléculaire","","Analyse du gène CFTR (36 mutations + TN)<br />OMIM 219700","CBAVD = Congenital Bilateral Aplasia of Vas Deferens","",""]
["Mutation du facteur II prothrombine - ","mutation-du-facteur-ii-prothrombine","","","Hématologie - Hémostase spéciale","","Détection de la mutation prothrombine (facteur II) par typage moléculaire","","","Facteur 2, F2 mut, mutation prothrombine"]
["Mutation du facteur V Leiden - ","mutation-du-facteur-v-leiden","","","Hématologie - Hémostase spéciale","","Détection de  la mutation du facteur V Leiden","","","Facteur 5, F5 Leiden, F%L,"]
["Mycobactérie - Hémoculture","mycobacterie","","Hémoculture","Microbio moléculaire","","","","","Mycobactérie atypique,  bacilles de Koch, tuberculose"]
["Mycobactérie Culture - Abcès / Kyste, cérébral","mycobacterie-culture-1","","Abcès / Kyste, cérébral","Microbio moléculaire","","","","","Mycobactérie atypique,  bacilles de Koch, tuberculose"]
["Mycobactérie Culture - Abcès / Kyste, cervical","mycobacterie-culture-2","","Abcès / Kyste, cervical","Microbio moléculaire","","","","","Mycobactérie atypique,  bacilles de Koch, tuberculose"]
["Mycobactérie Culture - Abcès / Kyste, dentaire","mycobacterie-culture-3","","Abcès / Kyste, dentaire","Microbio moléculaire","","","","","Mycobactérie atypique,  bacilles de Koch, tuberculose"]
["Mycobactérie Culture - Abcès / Kyste, foie","mycobacterie-culture-4","","Abcès / Kyste, foie","Microbio moléculaire","","","","","Mycobactérie atypique,  bacilles de Koch, tuberculose"]
["Mycobactérie Culture - Abcès / Kyste, para-anal","mycobacterie-culture-5","","Abcès / Kyste, para-anal","Microbio moléculaire","","","","","Mycobactérie atypique,  bacilles de Koch, tuberculose"]
["Mycobactérie Culture - Abcès / Kyste, paroi","mycobacterie-culture-6","","Abcès / Kyste, paroi","Microbio moléculaire","","","","","Mycobactérie atypique,  bacilles de Koch, tuberculose"]
["Mycobactérie Culture - Abcès / kyste, pulmonaire","mycobacterie-culture-7","","Abcès / kyste, pulmonaire","Microbio moléculaire","","","","","Mycobactérie atypique,  bacilles de Koch, tuberculose"]
["Mycobactérie Culture - Abcès / Kyste, sein","mycobacterie-culture-8","","Abcès / Kyste, sein","Microbio moléculaire","","","","","Mycobactérie atypique,  bacilles de Koch, tuberculose"]
["Mycobactérie Culture - Anévrisme","mycobacterie-culture-9","","Anévrisme","Microbio moléculaire","","","","","Mycobactérie atypique,  bacilles de Koch, tuberculose"]
["Mycobactérie Culture - Biopsie","mycobacterie-culture-10","","Biopsie","Microbio moléculaire","","","","","Mycobactérie atypique,  bacilles de Koch, tuberculose"]
["Mycobactérie Culture - Biopsie anale","mycobacterie-culture-11","","Biopsie anale","Microbio moléculaire","","","","","Mycobactérie atypique,  bacilles de Koch, tuberculose"]
["Mycobactérie Culture - Biopsie cérébrale","mycobacterie-culture-12","","Biopsie cérébrale","Microbio moléculaire","","","","","Mycobactérie atypique,  bacilles de Koch, tuberculose"]
["Mycobactérie Culture - Biopsie colique","mycobacterie-culture-13","","Biopsie colique","Microbio moléculaire","","","","","Mycobactérie atypique,  bacilles de Koch, tuberculose"]
["Mycobactérie Culture - Biopsie foie","mycobacterie-culture-14","","Biopsie foie","Microbio moléculaire","","","","","Mycobactérie atypique,  bacilles de Koch, tuberculose"]
["Mycobactérie Culture - Biopsie ganglion","mycobacterie-culture-15","","Biopsie ganglion","Microbio moléculaire","","","","","Mycobactérie atypique,  bacilles de Koch, tuberculose"]
["Mycobactérie Culture - Biopsie gastrique","mycobacterie-culture-16","","Biopsie gastrique","Microbio moléculaire","","","","","Mycobactérie atypique,  bacilles de Koch, tuberculose"]
["Mycobactérie Culture - Biopsie plèvre","mycobacterie-culture-17","","Biopsie plèvre","Microbio moléculaire","","","","","Mycobactérie atypique,  bacilles de Koch, tuberculose"]
["Mycobactérie Culture - Biopsie poumon","mycobacterie-culture-18","","Biopsie poumon","Microbio moléculaire","","","","","Mycobactérie atypique,  bacilles de Koch, tuberculose"]
["Mycobactérie Culture - Biopsie sinus","mycobacterie-culture-19","","Biopsie sinus","Microbio moléculaire","","","","","Mycobactérie atypique,  bacilles de Koch, tuberculose"]
["Mycobactérie Culture - Biopsie transbronchique","mycobacterie-culture-20","","Biopsie transbronchique","Microbio moléculaire","","","","","Mycobactérie atypique,  bacilles de Koch, tuberculose"]
["Mycobactérie Culture - Biopsie valve","mycobacterie-culture-21","","Biopsie valve","Microbio moléculaire","","","","","Mycobactérie atypique,  bacilles de Koch, tuberculose"]
["Mycobactérie Culture - Capsule articulaire","mycobacterie-culture-22","","Capsule articulaire","Microbio moléculaire","","","","","Mycobactérie atypique,  bacilles de Koch, tuberculose"]
["Mycobactérie Culture - Biopsie disque intervertébral","mycobacterie-culture-23","","Biopsie disque intervertébral","Microbio moléculaire","","","","","Mycobactérie atypique,  bacilles de Koch, tuberculose"]
["Mycobactérie Culture - Expectoration","mycobacterie-culture-24","","Expectoration","Microbio moléculaire","","","","","Mycobactérie atypique,  bacilles de Koch, tuberculose"]
["Mycobactérie Culture - Liquide articulaire","mycobacterie-culture-25","","Liquide articulaire","Microbio moléculaire","","","","","Mycobactérie atypique,  bacilles de Koch, tuberculose"]
["Mycobactérie Culture - Liquide ascite","mycobacterie-culture-26","","Liquide ascite","Microbio moléculaire","","","","","Mycobactérie atypique,  bacilles de Koch, tuberculose"]
["Mycobactérie Culture - Liquide bile","mycobacterie-culture-27","","Liquide bile","Microbio moléculaire","","","","","Mycobactérie atypique,  bacilles de Koch, tuberculose"]
["Mycobactérie Culture - Liquide boursite","mycobacterie-culture-28","","Liquide boursite","Microbio moléculaire","","","","","Mycobactérie atypique,  bacilles de Koch, tuberculose"]
["Mycobactérie Culture - Liquide dialyse péritonéale","mycobacterie-culture-29","","Liquide dialyse péritonéale","Microbio moléculaire","","","","","Mycobactérie atypique,  bacilles de Koch, tuberculose"]
["Mycobactérie Culture - Liquide douglas","mycobacterie-culture-30","","Liquide douglas","Microbio moléculaire","","","","","Mycobactérie atypique,  bacilles de Koch, tuberculose"]
["Mycobactérie Culture - Liquide duodénal","mycobacterie-culture-31","","Liquide duodénal","Microbio moléculaire","","","","","Mycobactérie atypique,  bacilles de Koch, tuberculose"]
["Mycobactérie Culture - Liquide natif","mycobacterie-culture-32","","Liquide natif","Microbio moléculaire","","","","","Mycobactérie atypique,  bacilles de Koch, tuberculose"]
["Mycobactérie Culture - Liquide péricardique","mycobacterie-culture-33","","Liquide péricardique","Microbio moléculaire","","","","","Mycobactérie atypique,  bacilles de Koch, tuberculose"]
["Mycobactérie Culture - Liquide péritonéal","mycobacterie-culture-34","","Liquide péritonéal","Microbio moléculaire","","","","","Mycobactérie atypique,  bacilles de Koch, tuberculose"]
["Mycobactérie Culture - Liquide pleural","mycobacterie-culture-35","","Liquide pleural","Microbio moléculaire","","","","","Mycobactérie atypique,  bacilles de Koch, tuberculose"]
["Mycobactérie Culture - Os","mycobacterie-culture-36","","Os","Microbio moléculaire","","","","","Mycobactérie atypique,  bacilles de Koch, tuberculose"]
["Mycobactérie Culture - Liquide sinus","mycobacterie-culture-37","","Liquide sinus","Microbio moléculaire","","","","","Mycobactérie atypique,  bacilles de Koch, tuberculose"]
["Mycobactérie Culture - Tissu articulaire","mycobacterie-culture-38","","Tissu articulaire","Microbio moléculaire","","","","","Mycobactérie atypique,  bacilles de Koch, tuberculose"]
["Mycobactérie Culture - Abcès / kyste, amygdale","mycobacterie-culture-39","","Abcès / kyste, amygdale","Microbio moléculaire","","","","","Mycobactérie atypique,  bacilles de Koch, tuberculose"]
["Mycobactérie Culture - Tubage gastrique","mycobacterie-culture-40","","Tubage gastrique","Microbio moléculaire","","","","","Mycobactérie atypique,  bacilles de Koch, tuberculose"]
["Mycobactérie Culture - Sécrétions endo-trachéales","mycobacterie-culture-41","","Sécrétions endo-trachéales","Microbio moléculaire","","","","","Mycobactérie atypique,  bacilles de Koch, tuberculose"]
["Mycobactérie Culture - Liquide céphalo-rachidien (LCR)","mycobacterie-culture-42","","Liquide céphalo-rachidien (LCR)","Microbio moléculaire","","","","","Mycobactérie atypique,  bacilles de Koch, tuberculose"]
["Mycobactérie Culture - Aspiration bronchique","mycobacterie-culture-43","","Aspiration bronchique","Microbio moléculaire","","","","","Mycobactérie atypique,  bacilles de Koch, tuberculose"]
["Mycobactérie Culture - Lavage broncho-alvéolaire (LBA)","mycobacterie-culture-44","","Lavage broncho-alvéolaire (LBA)","Microbio moléculaire","","","","","Mycobactérie atypique,  bacilles de Koch, tuberculose"]
["Mycobactérie Culture - Prothèse","mycobacterie-culture-45","","Prothèse","Microbio moléculaire","","","","","Mycobactérie atypique,  bacilles de Koch, tuberculose"]
["Mycobactérie Culture - Prothèse vasculaire","mycobacterie-culture-46","","Prothèse vasculaire","Microbio moléculaire","","","","","Mycobactérie atypique,  bacilles de Koch, tuberculose"]
["Mycobactérie Culture - Abcès (préciser localisation)","mycobacterie-culture","","Abcès (préciser localisation)","Microbio moléculaire","","","","","Mycobactérie atypique,  bacilles de Koch, tuberculose"]
["Mycobacterium tuberculosis PCR - Urine totale du matin, première miction","mycobacterium-tuberculosis-pcr","","Urine totale du matin, première miction","Microbio moléculaire","","<em>﻿﻿</em>Recherche de <em>Mycobacterium tuberculosis complex</em>.<br />Une culture mycobactérie du matériel natif est toujours effectuée en parallèle","","","TBC, bacille de Koch, tuberculose, complex tuberculosis"]
["Mycobacterium tuberculosis PCR - Abcès","mycobacterium-tuberculosis-pcr-1","","Abcès","Microbio moléculaire","","Recherche de Mycobacterium tuberculosis complex.<br />Une culture mycobactérie du matériel natif est toujours effectuée en parallèle","","","TBC, bacille de Koch, tuberculose, complex tuberculosis"]
["Mycobacterium tuberculosis PCR - Abcès / kyste, amygdale","mycobacterium-tuberculosis-pcr-2","","Abcès / kyste, amygdale","Microbio moléculaire","","Recherche de Mycobacterium tuberculosis complex.<br />Une culture mycobactérie du matériel natif est toujours effectuée en parallèle","","","TBC, bacille de Koch, tuberculose, complex tuberculosis"]
["Mycobacterium tuberculosis PCR - Abcès / Kyste, cérébral","mycobacterium-tuberculosis-pcr-3","","Abcès / Kyste, cérébral","Microbio moléculaire","","Recherche de Mycobacterium tuberculosis complex.<br />Une culture mycobactérie du matériel natif est toujours effectuée en parallèle","","","TBC, bacille de Koch, tuberculose, complex tuberculosis"]
["Mycobacterium tuberculosis PCR - Abcès / Kyste, cervical","mycobacterium-tuberculosis-pcr-4","","Abcès / Kyste, cervical","Microbio moléculaire","","Recherche de Mycobacterium tuberculosis complex.<br />Une culture mycobactérie du matériel natif est toujours effectuée en parallèle","","","TBC, bacille de Koch, tuberculose, complex tuberculosis"]
["Mycobacterium tuberculosis PCR - Abcès / Kyste, dentaire","mycobacterium-tuberculosis-pcr-5","","Abcès / Kyste, dentaire","Microbio moléculaire","","Recherche de Mycobacterium tuberculosis complex.<br />Une culture mycobactérie du matériel natif est toujours effectuée en parallèle","","","TBC, bacille de Koch, tuberculose, complex tuberculosis"]
["Mycobacterium tuberculosis PCR - Abcès / Kyste, foie","mycobacterium-tuberculosis-pcr-6","","Abcès / Kyste, foie","Microbio moléculaire","","Recherche de Mycobacterium tuberculosis complex.<br />Une culture mycobactérie du matériel natif est toujours effectuée en parallèle","","","TBC, bacille de Koch, tuberculose, complex tuberculosis"]
["Mycobacterium tuberculosis PCR - Abcès / Kyste, para-anal","mycobacterium-tuberculosis-pcr-7","","Abcès / Kyste, para-anal","Microbio moléculaire","","Recherche de Mycobacterium tuberculosis complex.<br />Une culture mycobactérie du matériel natif est toujours effectuée en parallèle","","","TBC, bacille de Koch, tuberculose, complex tuberculosis"]
["Mycobacterium tuberculosis PCR - Abcès / Kyste, paroi","mycobacterium-tuberculosis-pcr-8","","Abcès / Kyste, paroi","Microbio moléculaire","","Recherche de Mycobacterium tuberculosis complex.<br />Une culture mycobactérie du matériel natif est toujours effectuée en parallèle","","","TBC, bacille de Koch, tuberculose, complex tuberculosis"]
["Mycobacterium tuberculosis PCR - Abcès / kyste, pulmonaire","mycobacterium-tuberculosis-pcr-9","","Abcès / kyste, pulmonaire","Microbio moléculaire","","Recherche de Mycobacterium tuberculosis complex.<br />Une culture mycobactérie du matériel natif est toujours effectuée en parallèle","","","TBC, bacille de Koch, tuberculose, complex tuberculosis"]
["Mycobacterium tuberculosis PCR - Abcès / Kyste, sein","mycobacterium-tuberculosis-pcr-10","","Abcès / Kyste, sein","Microbio moléculaire","","Recherche de Mycobacterium tuberculosis complex.<br />Une culture mycobactérie du matériel natif est toujours effectuée en parallèle","","","TBC, bacille de Koch, tuberculose, complex tuberculosis"]
["Mycobacterium tuberculosis PCR - Biopsie","mycobacterium-tuberculosis-pcr-11","","Biopsie","Microbio moléculaire","","Recherche de Mycobacterium tuberculosis complex.<br />Une culture mycobactérie du matériel natif est toujours effectuée en parallèle","","","TBC, bacille de Koch, tuberculose, complex tuberculosis"]
["Mycobacterium tuberculosis PCR - Biopsie cérébrale","mycobacterium-tuberculosis-pcr-12","","Biopsie cérébrale","Microbio moléculaire","","Recherche de Mycobacterium tuberculosis complex.<br />Une culture mycobactérie du matériel natif est toujours effectuée en parallèle","","","TBC, bacille de Koch, tuberculose, complex tuberculosis"]
["Mycobacterium tuberculosis PCR - Biopsie disque intervertébral","mycobacterium-tuberculosis-pcr-13","","Biopsie disque intervertébral","Microbio moléculaire","","Recherche de Mycobacterium tuberculosis complex.<br />Une culture mycobactérie du matériel natif est toujours effectuée en parallèle","","","TBC, bacille de Koch, tuberculose, complex tuberculosis"]
["Mycobacterium tuberculosis PCR - Biopsie foie","mycobacterium-tuberculosis-pcr-14","","Biopsie foie","Microbio moléculaire","","Recherche de Mycobacterium tuberculosis complex.<br />Une culture mycobactérie du matériel natif est toujours effectuée en parallèle","","","TBC, bacille de Koch, tuberculose, complex tuberculosis"]
["Mycobacterium tuberculosis PCR - Biopsie ganglion","mycobacterium-tuberculosis-pcr-15","","Biopsie ganglion","Microbio moléculaire","","Recherche de Mycobacterium tuberculosis complex.<br />Une culture mycobactérie du matériel natif est toujours effectuée en parallèle","","","TBC, bacille de Koch, tuberculose, complex tuberculosis"]
["Mycobacterium tuberculosis PCR - Biopsie plèvre","mycobacterium-tuberculosis-pcr-16","","Biopsie plèvre","Microbio moléculaire","","Recherche de Mycobacterium tuberculosis complex.<br />Une culture mycobactérie du matériel natif est toujours effectuée en parallèle","","","TBC, bacille de Koch, tuberculose, complex tuberculosis"]
["Mycobacterium tuberculosis PCR - Biopsie poumon","mycobacterium-tuberculosis-pcr-17","","Biopsie poumon","Microbio moléculaire","","Recherche de Mycobacterium tuberculosis complex.<br />Une culture mycobactérie du matériel natif est toujours effectuée en parallèle","","","TBC, bacille de Koch, tuberculose, complex tuberculosis"]
["Mycobacterium tuberculosis PCR - Biopsie tissu articulaire","mycobacterium-tuberculosis-pcr-18","","Biopsie tissu articulaire","Microbio moléculaire","","Recherche de Mycobacterium tuberculosis complex.<br />Une culture mycobactérie du matériel natif est toujours effectuée en parallèle","","","TBC, bacille de Koch, tuberculose, complex tuberculosis"]
["Mycobacterium tuberculosis PCR - Biopsie transbronchique","mycobacterium-tuberculosis-pcr-19","","Biopsie transbronchique","Microbio moléculaire","","Recherche de Mycobacterium tuberculosis complex.<br />Une culture mycobactérie du matériel natif est toujours effectuée en parallèle","","","TBC, bacille de Koch, tuberculose, complex tuberculosis"]
["Mycobacterium tuberculosis PCR - Biopsie valve","mycobacterium-tuberculosis-pcr-20","","Biopsie valve","Microbio moléculaire","","Recherche de Mycobacterium tuberculosis complex.<br />Une culture mycobactérie du matériel natif est toujours effectuée en parallèle","","","TBC, bacille de Koch, tuberculose, complex tuberculosis"]
["Mycobacterium tuberculosis PCR - Expectoration","mycobacterium-tuberculosis-pcr-21","","Expectoration","Microbio moléculaire","","Recherche de Mycobacterium tuberculosis complex.<br />Une culture mycobactérie du matériel natif est toujours effectuée en parallèle","","","TBC, bacille de Koch, tuberculose, complex tuberculosis"]
["Mycobacterium tuberculosis PCR - Liquide amniotique","mycobacterium-tuberculosis-pcr-22","","Liquide amniotique","Microbio moléculaire","","Recherche de Mycobacterium tuberculosis complex.<br />Une culture mycobactérie du matériel natif est toujours effectuée en parallèle","","","TBC, bacille de Koch, tuberculose, complex tuberculosis"]
["Mycobacterium tuberculosis PCR - Liquide ascite","mycobacterium-tuberculosis-pcr-23","","Liquide ascite","Microbio moléculaire","","Recherche de Mycobacterium tuberculosis complex.<br />Une culture mycobactérie du matériel natif est toujours effectuée en parallèle","","","TBC, bacille de Koch, tuberculose, complex tuberculosis"]
["Mycobacterium tuberculosis PCR - Liquide douglas","mycobacterium-tuberculosis-pcr-24","","Liquide douglas","Microbio moléculaire","","Recherche de Mycobacterium tuberculosis complex.<br />Une culture mycobactérie du matériel natif est toujours effectuée en parallèle","","","TBC, bacille de Koch, tuberculose, complex tuberculosis"]
["Mycobacterium tuberculosis PCR - Liquide péricardique","mycobacterium-tuberculosis-pcr-25","","Liquide péricardique","Microbio moléculaire","","Recherche de Mycobacterium tuberculosis complex.<br />Une culture mycobactérie du matériel natif est toujours effectuée en parallèle","","","TBC, bacille de Koch, tuberculose, complex tuberculosis"]
["Mycobacterium tuberculosis PCR - Liquide péritonéal","mycobacterium-tuberculosis-pcr-26","","Liquide péritonéal","Microbio moléculaire","","Recherche de Mycobacterium tuberculosis complex.<br />Une culture mycobactérie du matériel natif est toujours effectuée en parallèle","","","TBC, bacille de Koch, tuberculose, complex tuberculosis"]
["Mycobacterium tuberculosis PCR - Liquide pleural","mycobacterium-tuberculosis-pcr-27","","Liquide pleural","Microbio moléculaire","","Recherche de Mycobacterium tuberculosis complex.<br />Une culture mycobactérie du matériel natif est toujours effectuée en parallèle","","","TBC, bacille de Koch, tuberculose, complex tuberculosis"]
["Mycobacterium tuberculosis PCR - Os","mycobacterium-tuberculosis-pcr-28","","Os","Microbio moléculaire","","Recherche de Mycobacterium tuberculosis complex.<br />Une culture mycobactérie du matériel natif est toujours effectuée en parallèle","","","TBC, bacille de Koch, tuberculose, complex tuberculosis"]
["Mycobacterium tuberculosis PCR - Tissu cutané","mycobacterium-tuberculosis-pcr-29","","Tissu cutané","Microbio moléculaire","","Recherche de Mycobacterium tuberculosis complex.<br />Une culture mycobactérie du matériel natif est toujours effectuée en parallèle","","","TBC, bacille de Koch, tuberculose, complex tuberculosis"]
["Mycobacterium tuberculosis PCR - Tubage gastrique","mycobacterium-tuberculosis-pcr-30","","Tubage gastrique","Microbio moléculaire","","Recherche de Mycobacterium tuberculosis complex.<br />Une culture mycobactérie du matériel natif est toujours effectuée en parallèle","","","TBC, bacille de Koch, tuberculose, complex tuberculosis"]
["Mycobacterium tuberculosis PCR - Moelle osseuse","mycobacterium-tuberculosis-pcr-31","","Moelle osseuse","Microbio moléculaire","","Recherche de Mycobacterium tuberculosis complex.<br />Une culture mycobactérie du matériel natif est toujours effectuée en parallèle","","","TBC, bacille de Koch, tuberculose, complex tuberculosis"]
["Mycobacterium tuberculosis PCR - Sécrétions endo-trachéales","mycobacterium-tuberculosis-pcr-32","","Sécrétions endo-trachéales","Microbio moléculaire","","Recherche de Mycobacterium tuberculosis complex.<br />Une culture mycobactérie du matériel natif est toujours effectuée en parallèle","","","TBC, bacille de Koch, tuberculose, complex tuberculosis"]
["Mycobacterium tuberculosis PCR - Liquide céphalo-rachidien (LCR)","mycobacterium-tuberculosis-pcr-33","","Liquide céphalo-rachidien (LCR)","Microbio moléculaire","","Recherche de Mycobacterium tuberculosis complex.<br />Une culture mycobactérie du matériel natif est toujours effectuée en parallèle","","","TBC, bacille de Koch, tuberculose, complex tuberculosis"]
["Mycobacterium tuberculosis PCR - Aspiration bronchique","mycobacterium-tuberculosis-pcr-34","","Aspiration bronchique","Microbio moléculaire","","Recherche de Mycobacterium tuberculosis complex.<br />Une culture mycobactérie du matériel natif est toujours effectuée en parallèle","","","TBC, bacille de Koch, tuberculose, complex tuberculosis"]
["Mycobacterium tuberculosis PCR - Lavage broncho-alvéolaire (LBA)","mycobacterium-tuberculosis-pcr-35","","Lavage broncho-alvéolaire (LBA)","Microbio moléculaire","","Recherche de Mycobacterium tuberculosis complex.<br />Une culture mycobactérie du matériel natif est toujours effectuée en parallèle","","","TBC, bacille de Koch, tuberculose, complex tuberculosis"]
["Mycobacterium tuberculosis PCR en URGENCE - Expectoration","mycobacterium-tuberculosis-pcr-en-urgence","","Expectoration","Microbio moléculaire","","Recherche de Mycobacterium tuberculosis complex EN URGENCE<br />Contact téléphonique avec le laboratoire obligatoire<br />Une culture mycobactérie du matériel natif est toujours effectuée en parallèle","","","TBC, bacille de Koch, tuberculose, complex tuberculosis"]
["Mycobacterium tuberculosis PCR en URGENCE - Aspiration bronchique","mycobacterium-tuberculosis-pcr-en-urgence-1","","Aspiration bronchique","Microbio moléculaire","","Recherche de Mycobacterium tuberculosis complex EN URGENCE<br />Contact téléphonique avec le laboratoire obligatoire<br />Une culture mycobactérie du matériel natif est toujours effectuée en parallèle","","","TBC, bacille de Koch, tuberculose, complex tuberculosis"]
["Mycobacterium tuberculosis PCR en URGENCE - Lavage broncho-alvéolaire (LBA)","mycobacterium-tuberculosis-pcr-en-urgence-2","","Lavage broncho-alvéolaire (LBA)","Microbio moléculaire","","Recherche de Mycobacterium tuberculosis complex EN URGENCE<br />Contact téléphonique avec le laboratoire obligatoire<br />Une culture mycobactérie du matériel natif est toujours effectuée en parallèle","","","TBC, bacille de Koch, tuberculose, complex tuberculosis"]
["Mycologie - Frottis de peau","mycologie","","Frottis de peau","Dermato-mycologie","","","","",""]
["Mycologie - Frottis anus","mycologie-1","","Frottis anus","Dermato-mycologie","","","","",""]
["Mycologie - Biopsie","mycologie-2","","Biopsie","Dermato-mycologie","","","","",""]
["Mycologie - Cavité orale","mycologie-3","","Cavité orale","Dermato-mycologie","","","","",""]
["Mycologie - Frottis d'œil","mycologie-4","","Frottis d'œil","Dermato-mycologie","","","","",""]
["Mycologie - Frottis d'oreilles","mycologie-5","","Frottis d'oreilles","Dermato-mycologie","","","","",""]
["Mycologie - Frottis d'ulcère","mycologie-6","","Frottis d'ulcère","Dermato-mycologie","","","","",""]
["Mycologie - Frottis vaginal","mycologie-7","","Frottis vaginal","Dermato-mycologie","","","","",""]
["Mycologie - Frottis vulvaire","mycologie-8","","Frottis vulvaire","Dermato-mycologie","","","","",""]
["Mycologie - Poils","mycologie-9","","Poils","Dermato-mycologie","","","","",""]
["Mycologie - Frottis urétral","mycologie-10","","Frottis urétral","Dermato-mycologie","","","","",""]
["Mycologie - Squames","mycologie-11","","Squames","Dermato-mycologie","","","","",""]
["Mycologie - Cheveux","mycologie-12","","Cheveux","Dermato-mycologie","","","","",""]
["Mycologie - Frottis du gland","mycologie-13","","Frottis du gland","Dermato-mycologie","","","","",""]
["Mycologie - Frottis de nez","mycologie-14","","Frottis de nez","Dermato-mycologie","","","","",""]
["Mycologie - Ongles","mycologie-15","","Ongles","Dermato-mycologie","","","","",""]
["Mycologie - PCR ongles","mycologie-16","","PCR ongles","Dermato-mycologie","","","","",""]
["Mycologie - Pus, sécrétions","mycologie-17","","Pus, sécrétions","Dermato-mycologie","","","","",""]
["Mycophénolate - Sang","mycophenolate","Immunosupresseur","Sang","Pharmacologie","","<p>Dosage du taux sanguin (TDM) de <strong>mycophénolate </strong>(MPA) et de son métabolite <strong>mycophénolate-glucuronide</strong> (MPAG). </p>\r\n<p>Absence d'intervalle de référence, évaluation seulement de la plausibilité du taux. </p>\r\n<p>Le résultat du taux du <strong>mycophénolate acyl-glucuronide </strong>(AcMPAG), un autre métabolite important du mycophénolate, sera rendu uniquement si l'échantillon sanguin parvient &lt;2h au laboratoire ou plasma congelé.<br /></p>","Sur avis du spécialiste. L’interprétation clinique (TDM) du dosage n’est actuellement pas validée.","","Mycophénolate Mofétil, Acide mycophénolique, CellCept, Myfenax, Myfortic"]
["Mycoplasma hominis PCR - Abcès","mycoplasma-hominis-pcr","","Abcès","Microbio moléculaire","","","","",""]
["Mycoplasma hominis PCR - Biopsie","mycoplasma-hominis-pcr-1","","Biopsie","Microbio moléculaire","","","","",""]
["Mycoplasma hominis PCR - Biopsie valve","mycoplasma-hominis-pcr-2","","Biopsie valve","Microbio moléculaire","","","","",""]
["Mycoplasma hominis PCR - Liquide natif","mycoplasma-hominis-pcr-3","","Liquide natif","Microbio moléculaire","","","","",""]
["Mycoplasma hominis PCR - Liquide péricardique","mycoplasma-hominis-pcr-4","","Liquide péricardique","Microbio moléculaire","","","","",""]
["Mycoplasmes urogénitaux - Culture - Abcès","mycoplasmes-urogenitaux-culture-6","pus","Abcès","Microbiologie","","Recherche par culture de Mycoplasmes urogénitaux (<em>Mycoplasma hominis</em> et Ureaplasmes) dans les échantillons d'abcès.","","",""]
["Mycoplasmes urogénitaux - Culture - Liquide et ponction de cavité normalement stérile (préciser la nature de l'échantillon)","mycoplasmes-urogenitaux-culture-7","Mycoplasma hominis, Uréaplasmes, cytoponction","Liquide et ponction de cavité normalement stérile (préciser la nature de l'échantillon)","Microbiologie","","﻿Recherche par culture de Mycoplasmes urogénitaux (<em>Mycoplasma hominis</em> et Ureaplasmes) dans un liquide, une ponction ou cytoponction de cavité normalement stérile.﻿","","",""]
["Mycoplasmes urogénitaux - Culture - Tissu ou biopsie (spécifier le site)","mycoplasmes-urogenitaux-culture-8","Mycoplasma hominis, Uréaplasmes, cytoponction, fragment","Tissu ou biopsie (spécifier le site)","Microbiologie","","﻿Recherche par culture de Mycoplasmes urogénitaux (<em>Mycoplasma hominis</em> et Ureaplasmes) dans du tissu ou biopsie.﻿","","",""]
["Mycoplasmes urogénitaux - Culture - Urines","mycoplasmes-urogenitaux-culture","Mycoplasma hominis, Uréaplasmes, ponction vésicale, sus pubienne","Urines","Microbiologie","","Recherche par culture de Mycoplasmes urogénitaux (Mycoplasma hominis et Ureaplasmes) dans les urines natives","","",""]
["Mycoplasmes urogénitaux - Culture - Sécrétions nasopharyngées chez le nouveau-né","mycoplasmes-urogenitaux-culture-1","","Sécrétions nasopharyngées chez le nouveau-né","Microbiologie","","Recherche par culture de Mycoplasmes urogénitaux (<em>Mycoplasma hominis</em> et Ureaplasmes) dans les sécrétions nasopharyngées du nouveau-né.","","",""]
["Mycoplasmes urogénitaux - Culture - Sperme","mycoplasmes-urogenitaux-culture-2","","Sperme","Microbiologie","","﻿Recherche par culture de Mycoplasmes urogénitaux (<em>Mycoplasma hominis</em> et Ureaplasmes) dans les échantillons de sperme.","","",""]
["Mycoplasmes urogénitaux - Culture - Frottis placenta","mycoplasmes-urogenitaux-culture-3","","Frottis placenta","Microbiologie","","Recherche par culture de Mycoplasmes urogénitaux (<em>Mycoplasma hominis</em> et Ureaplasmes) dans les frottis de placenta (face foetale et/ou maternelle).","","",""]
["Mycoplasmes urogénitaux - Culture - Frottis anus","mycoplasmes-urogenitaux-culture-4","","Frottis anus","Microbiologie","","Recherche par culture de Mycoplasmes urogénitaux (<em>Mycoplasma hominis</em> et Ureaplasmes) dans les échantillons de frottis anus.","","",""]
["Mycoplasmes urogénitaux - Culture - Frottis sphère génitale","mycoplasmes-urogenitaux-culture-5","verge, urétral","Frottis sphère génitale","Microbiologie","","Recherche par culture de Mycoplasmes urogénitaux (<em>Mycoplasma hominis</em> et Ureaplasmes) dans les échantillons de la sphère génitale.","","",""]
["Myopathies inflammatoires - Dépistage","myopathies-inflammatoires","Anti-cytoplasme, anti-nucléaire, EJ, JO1, MI-2, MDA-5, PL7, PL12, SRP, SSA 52 kDa, TIF1-gamma, SAE1, SAE2, NXP-2","Dépistage","Immunologie et allergie","","","Myopathies inflammatoires","",""]
["N-Acétyl glucosaminidase (NAG) - Urine 24h","n-acetyl-glucosaminidase-nag","","Urine 24h","Chimie clinique","","","","",""]
["N-Acétyl glucosaminidase (NAG) - Urine fraiche","n-acetyl-glucosaminidase-nag-1","","Urine fraiche","Chimie clinique","","","","",""]
["Neisseria meningitidis, Streptococcus pneumoniae, Listeria monocytogenes, Haemophilus influenzae  PCR - Liquide céphalo-rachidien (LCR)","neisseria-meningitidis-streptococcus-pneumoniae-listeria-monocytogenes-haemophilus-influenzae-pcr","","Liquide céphalo-rachidien (LCR)","Microbio moléculaire","","","Méningite","","Neisseria meningitidis, Streptococcus pneumoniae, Listeria monocytogenes, Haemophilus influenzae"]
["Nevirapine - Sang","nevirapine","Antiretroviraux, anti-HIV, Antirétroviral, NNRTI, analogue non nucléosidique","Sang","Pharmacologie","","<p>Dosage et interprétation pharmacologique (TDM) de taux sanguin de nevirapine (intervalle de référence disponible)</p>","<p>Suivi thérapeutique, réponse insatisfaisante, suspicion de toxicité, suspicion d'interaction médicamenteuse, doute sur la compliance, grossesse, étude</p>","","Viramune®"]
["Nilotinib - Sang","nilotinib","Anticancéreux ciblés, TKI, inhibiteur tirosine kinase, inhibiteur des protéines kinases, PKI","Sang","Pharmacologie","","<p>Dosage du taux sanguin de nilotinib</p>","<p>Sur avis du spécialiste. L’interprétation clinique (TDM) ou pharmacocinétique des dosage n’est actuellement pas validée.</p>","","Tasigna®"]
["Nocardia - Culture - Abcès cérébral","nocardia-culture-2","pus","Abcès cérébral","Microbiologie","","Recherche par culture de <em>Nocardia</em> dans l'abcès cérébral.","","",""]
["Nocardia - Culture - Abcès cervical","nocardia-culture-3","pus","Abcès cervical","Microbiologie","","Recherche par culture de <em>Nocardia</em> dans l'abcès cervical.","","",""]
["Nocardia - Culture - Abcès du poumon","nocardia-culture-4","pus","Abcès du poumon","Microbiologie","","Recherche par culture de <em>Nocardia</em> dans l'abcès pulmonaire.","","",""]
["Nocardia - Culture - Abcès","nocardia-culture-5","pus","Abcès","Microbiologie","","Recherche par culture de <em>Nocardia</em> dans les échantillons d'abcès.","","",""]
["Nocardia - Culture - Liquide pleural","nocardia-culture-6","","Liquide pleural","Microbiologie","","Recherche par culture de <em>Nocardia</em> dans le liquide pleural.","","",""]
["Nocardia - Culture - Liquide et ponction de cavité normalement stérile (préciser la nature de l'échantillon)","nocardia-culture-7","cytoponction","Liquide et ponction de cavité normalement stérile (préciser la nature de l'échantillon)","Microbiologie","","Recherche par culture de <em>Nocardia</em> dans un liquide, une ponction ou cytoponction de cavité normalement stérile.","","",""]
["Nocardia - Culture - Tissu (biopsie) d'anévrisme","nocardia-culture-8","fragment","Tissu (biopsie) d'anévrisme","Microbiologie","","Recherche par culture de <em>Nocardia</em> dans du tissu (biopsie) d'anévrisme.","","",""]
["Nocardia - Culture - Tissu (biopsie) cérébral","nocardia-culture-9","fragment","Tissu (biopsie) cérébral","Microbiologie","","Recherche par culture de <em>Nocardia</em> dans du tissu (biopsie) cérébral.","","",""]
["Nocardia - Culture - Tissu (biopsie) de ganglion","nocardia-culture-10","fragment","Tissu (biopsie) de ganglion","Microbiologie","","Recherche par culture de <em>Nocardia</em> dans du tissu (biopsie) de ganglion.","","",""]
["Nocardia - Culture - Tissu (biopsie) de plèvre ou poumon","nocardia-culture-11","fragment","Tissu (biopsie) de plèvre ou poumon","Microbiologie","","Recherche par culture de <em>Nocardia</em> dans du tissu (biopsie) de plèvre ou de poumon.","","",""]
["Nocardia - Culture - Tissu ou biopsie (spécifier le site anatomique)","nocardia-culture-12","fragment","Tissu ou biopsie (spécifier le site anatomique)","Microbiologie","","Recherche par culture de <em>Nocardia</em> dans du tissu ou biopsie.","","",""]
["Nocardia - Culture - Lavage broncho-alvéolaire (LBA)","nocardia-culture","Sécrétions pulmonaires, respiratoires","Lavage broncho-alvéolaire (LBA)","Microbiologie","","Recherche par culture de <em>Nocardia</em> dans les échantillons de lavage broncho-alvéolaire (LBA).","","",""]
["Nocardia - Culture - Aspirations bronchiques, Sécrétions endotrachéales","nocardia-culture-1","Sécrétions pulmonaires, respiratoires","Aspirations bronchiques, Sécrétions endotrachéales","Microbiologie","","Recherche par culture de Nocardia﻿ dans les aspirations bronchiques et sécrétions endotrachéales.","","",""]
["Nombre de dibucaïne - Sang","nombre-de-dibucaine","Dibucaïne, Pseudo Cholinestérase, Cholinestérase","Sang","Chimie clinique","","","","","Indice de dibucaïne"]
["Norovirus  Test rapide PCR - Selles","norovirus-test-rapide-pcr","","Selles","Microbio moléculaire","","Recherche de Norovirus 1 et 2<br />Ce test est d'un usage restreint problème épidémiologique <br />Patients ayant des symptômes de gastroentérite avec conditions sous-jacentes (surtout immunosuppression)","","",""]
["Nortriptyline - Sang","nortriptyline","Nortrilen","Sang","UPPC Pharmacogénétique et psychopharmacologie","","Dosage et interprétation pharmacologique du taux sanguin","Réponse insatisfaisante, effets secondaires, interactions, doute sur l’adhésion, suspicion d’intoxication","",""]
["NPM1 - Mutation NPM1","npm1","","Mutation NPM1","Hématologie moléculaire","","Des mutations au niveau de l'exon 12 du NPM1 sont présentes dans 50 à 60% des cas de LMA à caryotype normal, et leur confèrent un bon pronostic en l'absence d'autres anomalies moléculaires.<br />L'analyse permet de mettre en évidence, par PCR, les mutations les plus fréquentes des insertions de 4 nucléotides, puis de les indentifier par sequençage, dans la plupart des cas de NPM-1 muté pourra alors être quantifié par RQ-PCR pour le suivi de la maladie résiduelle.","","","LMA caryotype normal, nucleophosmin"]
["NSE - Sang","nse","marqueur tumoral, énolase neurospécifique, énolase spécifique du neurone","Sang","Chimie clinique","Ne pas envoyer par poste pneumatique, Condition particulière d'acheminement","","","","Neuron specific enolase, énolase spécifique des neurones"]
["NT-proBNP - Sang","nt-probnp","BNP, proBNP, insuffisance cardiaque","Sang","Chimie clinique","","","","","peptide natriurétique, N-terminal pro-brain natriuretic peptide"]
["Numération cellulaire - Cytométrie de masse (CyTOF)","numeration-cellulaire","Cellules dendritiques, lymphocytes T, lymphocytes B, monocytes, RTE, TCR, TFH","Cytométrie de masse (CyTOF)","Immunologie et allergie","","","","",""]
["Numération et différenciation leucocytaire - Liquide pleural","numeration-et-differenciation-leucocytaire","liquide ponction pleural pleurale numération","Liquide pleural","Hématologie générale 24/7","","<p>Numération cellulaire et répartition leucocytaire</p>","<p>La recherche de cellules tumorales s’effectue en cytologie (cf cytopathologie ) ainsi que le lavage broncho-alvéolaire et les liquides articulaires</p>","",""]
["Numération et différenciation leucocytaire - LCR","numeration-et-differenciation-leucocytaire-1","liquide ponction PL lombaire méningite","LCR","Hématologie générale 24/7","","Numération cellulaire et répartition leucocytaire.","La recherche de cellules tumorales s’effectue en cytologie (cf cytopathologie)","","Liquide céphalo-rachidien"]
["Numération et différenciation leucocytaire - Liquide d'ascite","numeration-et-differenciation-leucocytaire-2","liquide ponction ascite","Liquide d'ascite","Hématologie générale 24/7","","<p>Numération cellulaire et répartition leucocytaire</p>","<p>La recherche de cellules tumorales s’effectue en cytologie (cf cytopathologie) ainsi que l'analyse du lavage broncho-alvéolaire et des liquides articulaires.</p>","",""]
["Numération et différenciation leucocytaires - Liquide ponction drain","numeration-et-differenciation-leucocytaires","dialysat dialyse Jackson penrose peritoneal redon pericardique","Liquide ponction drain","Hématologie générale 24/7","","<p>Numération cellulaire et répartition leucocytaire</p>","<p>La recherche de cellules tumorales s’effectue en cytologie (cf cytopathologie) ainsi que les lavages broncho-alvéolaires et les liquides articulaires.</p>","",""]
["Numération lymphocytaire T - Cytométrie en flux","numeration-lymphocytaire-t","HIV, SIDA, CD3,  CD4, CD8","Cytométrie en flux","Immunologie et allergie","","Suivi de patients HIV positifs ou immunosupprimés","","",""]
["Numération lymphocytaire T, B, NK totaux - Cytométrie en flux","numeration-lymphocytaire-t-b-nk-totaux","Rituximab, immunodéficience, CD3,  CD4, CD8,  CD19, CD16/56","Cytométrie en flux","Immunologie et allergie","","Suivi traitement Rituximab ou immunosuppresseur","","",""]
["Olanzapine - Sang","olanzapine","Zyprexa","Sang","UPPC Pharmacogénétique et psychopharmacologie","","Dosage et interprétation pharmacologique du taux sanguin","Réponse insatisfaisante, effets secondaires, interactions, doute sur l’adhésion, suspicion d’intoxication","",""]
["Olaparib - Sang","olaparib","Anticancéreux ciblé, inhibiteur PPAR polymerase, Autres inihibiteurs enzymatiques","Sang","Pharmacologie","","<p>Dosage du taux sanguin de olaparib</p>","<p>Sur avis du spécialiste. L’interprétation clinique (TDM) ou pharmacocinétique des dosage n’est actuellement pas validée.</p>","","Lynparza®"]
["Oreillons - Sérodiagnostic IgG et IgM","oreillons","","Sérodiagnostic IgG et IgM","Microbio sérologie","","","","",""]
["Oritavancine - Sang","oritavancine","Antibiotique, antimicrobien, glycopetide","Sang","Pharmacologie","Ne pas prélever le week-end (vendredi dès 16h à dimanche midi).","<p>Dosage et interprétation pharmacologique (TDM) de taux sanguin d'oritavancine.&nbsp;L'interprétation clinique n'est pas fournie si les heures de prélèvement ou d'administration du médicament manquent.</p>","<p>TDM uniquement dans des cas spécifiques (i.e. difficultés d’adaptation des doses, épuration extrarénale, dialyse, interactions médicamenteuses, toxicité, résistances)</p>","","TENKASI®"]
["Orotate - Urine","orotate","cycle urée, acidurie orotique,\r\n IEM, EIM, erreurs innées du métabolisme, Inborn Errors of Metabolism","Urine","Chimie clinique","","","","","Acide orotique, orotic acid"]
["Osimertinib - Sang","osimertinib","Anticancéreux ciblés, TKI, inhibiteur tirosine kinase, inhibiteur des protéines kinases, PKI","Sang","Pharmacologie","","<p>Dosage du taux sanguin d'osimertinib</p>","<p>Sur avis du spécialiste. L’interprétation clinique (TDM) ou pharmacocinétique des dosage n’est actuellement pas validée.</p>","","Tagrisso®"]
["Osmolalité - Sang","osmolalite-1","","Sang","Chimie clinique","","","","",""]
["Osmolalité - Selles","osmolalite-2","","Selles","Chimie clinique","","","","",""]
["Osmolalité - Urine","osmolalite-3","","Urine","Chimie clinique","","","","",""]
["Osmolalité calculée - Sang","osmolalite-calculee","","Sang","Chimie clinique","","","<p><a class=\"link-external\" href=\"https://www.chuv.ch/fileadmin/sites/dl/documents/LCC-Lettre-information-osmolalite-2023-10-03.pdf\" target=\"_blank\" title=\"Changement de formule pour le calcul d’osmolalité et introduction du calcul du trou osmolaire\">Lettre d'information changement de calcul Osmolalité 02/10/2023</a></p>","",""]
["Ostéocalcine - Sang","osteocalcine","Marqueurs osseux","Sang","Chimie clinique","","","","<p>Le matin à jeun</p>",""]
["Oxalate - Urine 24h","oxalate","","Urine 24h","Chimie clinique","","","","","Acide oxalique"]
["Oxalate - Urine fraîche","oxalate-1","","Urine fraîche","Chimie clinique","","","","","Acide oxalique"]
["Oxcarbazepine - Sang","oxcarbazepine","Antiépileptique, anticonvulsivant, anti-convulsivant, anti-épileptique, épilepsie,","Sang","Pharmacologie","","Dosage et interprétation pharmacologique (TDM) de taux sanguin du métabolite actif: hydroxy-carbazepine (OH-carb) (intervalle de référence disponible). L'oxcarbazepine (prodrogue) est quasi immédiatement et totalement transformée en OH-carb.","Sur avis du spécialiste. L’interprétation clinique (TDM) du dosage n’est actuellement pas validée.","","Trileptal"]
["Oxymétrie - Sang","oxymetrie","","Sang","Chimie clinique","","","","","Oxyhémoglobine, carboxyhémoglobine, CO, méthémoglobine, hémoglobine réduite, monoxyde de carbone"]
["P1NP - Sang","p1np","Marqueur osseux, total P1NP, total procollagen type 1 amino-terminal propeptide","Sang","Chimie clinique","","","","<p>En raison des variations circadiennes, standardiser le moment du prélèvement.<br />Mais s'il s'agit d'une demande concomitante avec les ß-Crosslaps, le patient doit être à jeun et le prélèvement effectué le matin, selon un moment standardisé situé si possible entre 08h00 et 10h00.</p>","P1NP total, propeptide N-terminal du procollagène de type 1 total"]
["Palbociclib - Sang","palbociclib","Anticancéreux ciblé, TKI, inhibiteur tirosine kinase, palbociclib, ibrance","Sang","Pharmacologie","","<p>Dosage du taux sanguin de palbociclib</p>","<p>Sur avis du spécialiste. L’interprétation clinique (TDM) ou pharmacocinétique des dosage n’est actuellement pas validée.</p>","","Ibrance ®"]
["Palipéridone - Sang","paliperidone","Invega, Xeplion, 9-hydroxy-rispéridone, 9-OH-risperidone","Sang","UPPC Pharmacogénétique et psychopharmacologie","","Dosage et interprétation pharmacologique du taux sanguin","Réponse insatisfaisante, effets secondaires, interactions, doute sur l’adhésion, suspicion d’intoxication","",""]
["Pan Rickettsia PCR - Frottis peau","pan-rickettsia-pcr","","Frottis peau","Microbio moléculaire","","Recherche de Rickettsia du groupe thyphi et du groupe boutonneux pourpre (ou \"spotted fever groupe\")","","","Fièvre boutonneuse/typhus"]
["Pan Rickettsia PCR - Abcès","pan-rickettsia-pcr-1","","Abcès","Microbio moléculaire","","Recherche de Rickettsia du groupe thyphi et du groupe boutonneux pourpre (ou \"spotted fever groupe\")","","","Fièvre boutonneuse/typhus"]
["Pan Rickettsia PCR - Biopsie","pan-rickettsia-pcr-2","","Biopsie","Microbio moléculaire","","Recherche de Rickettsia du groupe thyphi et du groupe boutonneux pourpre (ou \"spotted fever groupe\")","","","Fièvre boutonneuse/typhus"]
["Pan Rickettsia PCR - Biopsie valve","pan-rickettsia-pcr-3","","Biopsie valve","Microbio moléculaire","","Recherche de Rickettsia du groupe thyphi et du groupe boutonneux pourpre (ou \"spotted fever groupe\")","","","Fièvre boutonneuse/typhus"]
["Pan Rickettsia PCR - Liquide natif","pan-rickettsia-pcr-4","","Liquide natif","Microbio moléculaire","","Recherche de Rickettsia du groupe thyphi et du groupe boutonneux pourpre (ou \"spotted fever groupe\")","","","Fièvre boutonneuse/typhus"]
["Pan Rickettsia PCR - Tissu cutané","pan-rickettsia-pcr-5","","Tissu cutané","Microbio moléculaire","","Recherche de Rickettsia du groupe thyphi et du groupe boutonneux pourpre (ou \"spotted fever groupe\")","","","Fièvre boutonneuse/typhus"]
["Pan Rickettsia PCR - Sang","pan-rickettsia-pcr-6","","Sang","Microbio moléculaire","","Recherche de Rickettsia du groupe thyphi et du groupe boutonneux pourpre (ou \"spotted fever groupe\")","","","Fièvre boutonneuse/typhus"]
["Panel resp élargi (Influenza,RSV,Paraflu,Coron,hMPV,Adeno,Rhino) PCR - Sécrétions nasopharyngées","panel-resp-elargi-influenzarsvparaflucoronhmpvadenorhino-pcr","","Sécrétions nasopharyngées","Microbio moléculaire","","Recherche en bloc des virus <br />Influenza A ( saisonnier et pandémique)<br />Virus respiratoire syncytial (RSV)<br />Parainfluenzae 1, 2, 3, 4<br />Coronavirus E229/ OC43/ NL63/ HKU1<br />Metapneumovirus<br />Adénovirus","Ce test est d'un usage restreint. Il est reservé aux patients avec état grippal et pneumopathie sévère (soins intensifs), ainsi qu'en cas d'immunosuppression ou d'importance épidémiologique (cas index dans une institutution).<br />En dehors de la saison hivernale, lorsque rhinovirus circule presque exclusivement (juin-octobre) , le test pour ce virus est réalisé d'abord, puis le panel respiratoire.","","Panel resp élargi (Influenza,RSV,Paraflu,Coron,hMPV,Adeno,Rhino)"]
["Panel resp élargi (Influenza,RSV,Paraflu,Coron,hMPV,Adeno,Rhino) PCR - Frottis nez","panel-resp-elargi-influenzarsvparaflucoronhmpvadenorhino-pcr-1","","Frottis nez","Microbio moléculaire","","Recherche en bloc des virus <br />Influenza A ( saisonnier et pandémique)<br />Virus respiratoire syncytial (RSV)<br />Parainfluenzae 1, 2, 3, 4<br />Coronavirus E229/ OC43/ NL63/ HKU1<br />Metapneumovirus<br />Adénovirus","Ce test est d'un usage restreint. Il est reservé aux patients avec état grippal et pneumopathie sévère (soins intensifs), ainsi qu'en cas d'immunosuppression ou d'importance épidémiologique (cas index dans une institutution).<br />En dehors de la saison hivernale, lorsque rhinovirus circule presque exclusivement (juin-octobre) , le test pour ce virus est réalisé d'abord, puis le panel respiratoire.","","Panel resp élargi (Influenza,RSV,Paraflu,Coron,hMPV,Adeno,Rhino)"]
["Panel resp élargi (Influenza,RSV,Paraflu,Coron,hMPV,Adeno,Rhino) PCR - Lavage broncho-alvéolaire (LBA)","panel-resp-elargi-influenzarsvparaflucoronhmpvadenorhino-pcr-2","","Lavage broncho-alvéolaire (LBA)","Microbio moléculaire","","Recherche en bloc des virus <br />Influenza A ( saisonnier et pandémique)<br />Virus respiratoire syncytial (RSV)<br />Parainfluenzae 1, 2, 3, 4<br />Coronavirus E229/ OC43/ NL63/ HKU1<br />Metapneumovirus<br />Adénovirus","Ce test est d'un usage restreint. Il est reservé aux patients avec état grippal et pneumopathie sévère (soins intensifs), ainsi qu'en cas d'immunosuppression ou d'importance épidémiologique (cas index dans une institutution).<br />En dehors de la saison hivernale, lorsque rhinovirus circule presque exclusivement (juin-octobre) , le test pour ce virus est réalisé d'abord, puis le panel respiratoire.","","Panel resp élargi (Influenza,RSV,Paraflu,Coron,hMPV,Adeno,Rhino)"]
["Panfungal PCR - Liquide humeur aqueuse","panfungal-pcr","","Liquide humeur aqueuse","Microbio moléculaire","","Recherche à large spectre de DNA de champignon dans un échantillon clinique","Après cultures négatives <br />Après un traitement anti-fongique<br />Les prélèvements non normalement stériles (muqueuses, urines prél. respiratoires) ne sont pas accéptés","","Broad spectrum PCR, champignon, large spectre"]
["Panfungal PCR - Liquide humeur vitrée","panfungal-pcr-1","","Liquide humeur vitrée","Microbio moléculaire","","Recherche à large spectre de DNA de champignon dans un échantillon clinique","Après cultures négatives <br />Après un traitement anti-fongique<br />Les prélèvements non normalement stériles (muqueuses, urines prél. respiratoires) ne sont pas accéptés","","Broad spectrum PCR, champignon, large spectre"]
["Panfungal PCR - Sécrétions conjonctivales","panfungal-pcr-2","","Sécrétions conjonctivales","Microbio moléculaire","","Recherche à large spectre de DNA de champignon dans un échantillon clinique","Après cultures négatives <br />Après un traitement anti-fongique<br />Les prélèvements non normalement stériles (muqueuses, urines prél. respiratoires) ne sont pas accéptés","","Broad spectrum PCR, champignon, large spectre"]
["Panfungal PCR - Abcès","panfungal-pcr-3","","Abcès","Microbio moléculaire","","Recherche à large spectre de DNA de champignon dans un échantillon clinique","Après cultures négatives <br />Après un traitement anti-fongique<br />Les prélèvements non normalement stériles (muqueuses, urines prél. respiratoires) ne sont pas accéptés","","Broad spectrum PCR, champignon, large spectre"]
["Panfungal PCR - Abcès / kyste, amygdale","panfungal-pcr-4","","Abcès / kyste, amygdale","Microbio moléculaire","","Recherche à large spectre de DNA de champignon dans un échantillon clinique","Après cultures négatives <br />Après un traitement anti-fongique<br />Les prélèvements non normalement stériles (muqueuses, urines prél. respiratoires) ne sont pas accéptés","","Broad spectrum PCR, champignon, large spectre"]
["Panfungal PCR - Abcès / Kyste, cérébral","panfungal-pcr-5","","Abcès / Kyste, cérébral","Microbio moléculaire","","Recherche à large spectre de DNA de champignon dans un échantillon clinique","Après cultures négatives <br />Après un traitement anti-fongique<br />Les prélèvements non normalement stériles (muqueuses, urines prél. respiratoires) ne sont pas accéptés","","Broad spectrum PCR, champignon, large spectre"]
["Panfungal PCR - Abcès / Kyste, cervical","panfungal-pcr-6","","Abcès / Kyste, cervical","Microbio moléculaire","","Recherche à large spectre de DNA de champignon dans un échantillon clinique","Après cultures négatives <br />Après un traitement anti-fongique<br />Les prélèvements non normalement stériles (muqueuses, urines prél. respiratoires) ne sont pas accéptés","","Broad spectrum PCR, champignon, large spectre"]
["Panfungal PCR - Abcès / Kyste, dentaire","panfungal-pcr-7","","Abcès / Kyste, dentaire","Microbio moléculaire","","Recherche à large spectre de DNA de champignon dans un échantillon clinique","Après cultures négatives <br />Après un traitement anti-fongique<br />Les prélèvements non normalement stériles (muqueuses, urines prél. respiratoires) ne sont pas accéptés","","Broad spectrum PCR, champignon, large spectre"]
["Panfungal PCR - Abcès / Kyste, foie","panfungal-pcr-8","","Abcès / Kyste, foie","Microbio moléculaire","","Recherche à large spectre de DNA de champignon dans un échantillon clinique","Après cultures négatives <br />Après un traitement anti-fongique<br />Les prélèvements non normalement stériles (muqueuses, urines prél. respiratoires) ne sont pas accéptés","","Broad spectrum PCR, champignon, large spectre"]
["Panfungal PCR - Abcès / Kyste, para-anal","panfungal-pcr-9","","Abcès / Kyste, para-anal","Microbio moléculaire","","Recherche à large spectre de DNA de champignon dans un échantillon clinique","Après cultures négatives <br />Après un traitement anti-fongique<br />Les prélèvements non normalement stériles (muqueuses, urines prél. respiratoires) ne sont pas accéptés","","Broad spectrum PCR, champignon, large spectre"]
["Panfungal PCR - Abcès / Kyste, paroi","panfungal-pcr-10","","Abcès / Kyste, paroi","Microbio moléculaire","","Recherche à large spectre de DNA de champignon dans un échantillon clinique","Après cultures négatives <br />Après un traitement anti-fongique<br />Les prélèvements non normalement stériles (muqueuses, urines prél. respiratoires) ne sont pas accéptés","","Broad spectrum PCR, champignon, large spectre"]
["Panfungal PCR - Abcès / kyste, pulmonaire","panfungal-pcr-11","","Abcès / kyste, pulmonaire","Microbio moléculaire","","Recherche à large spectre de DNA de champignon dans un échantillon clinique","Après cultures négatives <br />Après un traitement anti-fongique<br />Les prélèvements non normalement stériles (muqueuses, urines prél. respiratoires) ne sont pas accéptés","","Broad spectrum PCR, champignon, large spectre"]
["Panfungal PCR - Abcès / Kyste, sein","panfungal-pcr-12","","Abcès / Kyste, sein","Microbio moléculaire","","Recherche à large spectre de DNA de champignon dans un échantillon clinique","Après cultures négatives <br />Après un traitement anti-fongique<br />Les prélèvements non normalement stériles (muqueuses, urines prél. respiratoires) ne sont pas accéptés","","Broad spectrum PCR, champignon, large spectre"]
["Panfungal PCR - Biopsie","panfungal-pcr-13","","Biopsie","Microbio moléculaire","","Recherche à large spectre de DNA de champignon dans un échantillon clinique","Après cultures négatives <br />Après un traitement anti-fongique<br />Les prélèvements non normalement stériles (muqueuses, urines prél. respiratoires) ne sont pas accéptés","","Broad spectrum PCR, champignon, large spectre"]
["Panfungal PCR - Biopsie poumon","panfungal-pcr-14","","Biopsie poumon","Microbio moléculaire","","Recherche à large spectre de DNA de champignon dans un échantillon clinique","Après cultures négatives <br />Après un traitement anti-fongique<br />Les prélèvements non normalement stériles (muqueuses, urines prél. respiratoires) ne sont pas accéptés","","Broad spectrum PCR, champignon, large spectre"]
["Panfungal PCR - Biopsie sinus","panfungal-pcr-15","","Biopsie sinus","Microbio moléculaire","","Recherche à large spectre de DNA de champignon dans un échantillon clinique","Après cultures négatives <br />Après un traitement anti-fongique<br />Les prélèvements non normalement stériles (muqueuses, urines prél. respiratoires) ne sont pas accéptés","","Broad spectrum PCR, champignon, large spectre"]
["Panfungal PCR - Biopsie valve","panfungal-pcr-16","","Biopsie valve","Microbio moléculaire","","Recherche à large spectre de DNA de champignon dans un échantillon clinique","Après cultures négatives <br />Après un traitement anti-fongique<br />Les prélèvements non normalement stériles (muqueuses, urines prél. respiratoires) ne sont pas accéptés","","Broad spectrum PCR, champignon, large spectre"]
["Panfungal PCR - Liquide sinus","panfungal-pcr-17","","Liquide sinus","Microbio moléculaire","","Recherche à large spectre de DNA de champignon dans un échantillon clinique","Après cultures négatives <br />Après un traitement anti-fongique<br />Les prélèvements non normalement stériles (muqueuses, urines prél. respiratoires) ne sont pas accéptés","","Broad spectrum PCR, champignon, large spectre"]
["Panfungal PCR - Moelle osseuse","panfungal-pcr-18","","Moelle osseuse","Microbio moléculaire","","Recherche à large spectre de DNA de champignon dans un échantillon clinique","Après cultures négatives <br />Après un traitement anti-fongique<br />Les prélèvements non normalement stériles (muqueuses, urines prél. respiratoires) ne sont pas accéptés","","Broad spectrum PCR, champignon, large spectre"]
["Panfungal PCR - Sang","panfungal-pcr-19","","Sang","Microbio moléculaire","","Recherche à large spectre de DNA de champignon dans un échantillon clinique","Après cultures négatives <br />Après un traitement anti-fongique<br />Les prélèvements non normalement stériles (muqueuses, urines prél. respiratoires) ne sont pas accéptés","","Broad spectrum PCR, champignon, large spectre"]
["Panfungal PCR - Prothèse","panfungal-pcr-20","","Prothèse","Microbio moléculaire","","Recherche à large spectre de DNA de champignon dans un échantillon clinique","Après cultures négatives <br />Après un traitement anti-fongique<br />Les prélèvements non normalement stériles (muqueuses, urines prél. respiratoires) ne sont pas accéptés","","Broad spectrum PCR, champignon, large spectre"]
["Panfungal PCR - Prothèse vasculaire","panfungal-pcr-21","","Prothèse vasculaire","Microbio moléculaire","","Recherche à large spectre de DNA de champignon dans un échantillon clinique","Après cultures négatives <br />Après un traitement anti-fongique<br />Les prélèvements non normalement stériles (muqueuses, urines prél. respiratoires) ne sont pas accéptés","","Broad spectrum PCR, champignon, large spectre"]
["Panmycobactérienne directe PCR - Frottis peau","panmycobacterienne-directe-pcr","","Frottis peau","Microbio moléculaire","","Recherche à large spectre d'ADN de mycobactéries spp dans un échantillon clinique<br />La recherche spécifique d'ADN de Mycobacterium tuberculosis complex se fait par la PCR en temps réel spécifique \"Mycombacterium tuberculosis complex\". La culture est toujours effectuée en priorité.<br />Justifications cliniques demandées idéalement par contact téléphonique au 021 314 41 07","","","Large spectre, broad spectrum PCR"]
["Panmycobactérienne directe PCR - Abcès","panmycobacterienne-directe-pcr-1","","Abcès","Microbio moléculaire","","Recherche à large spectre d'ADN de mycobactéries spp dans un échantillon clinique<br />La recherche spécifique d'ADN de Mycobacterium tuberculosis complex se fait par la PCR en temps réel spécifique \"Mycombacterium tuberculosis complex\". La culture est toujours effectuée en priorité.<br />Justifications cliniques demandées idéalement par contact téléphonique au 021 314 41 07","","","Large spectre, broad spectrum PCR"]
["Panmycobactérienne directe PCR - Abcès / kyste, amygdale","panmycobacterienne-directe-pcr-2","","Abcès / kyste, amygdale","Microbio moléculaire","","Recherche à large spectre d' ADN de mycobactéries spp dans un échantillon clinique<br />La recherche spécifique d'ADN de Mycobacterium tuberculosis complex se fait par la PCR en temps réel spécifique \"Mycombacterium tuberculosis complex\". La culture est toujours effectuée en priorité.<br />Justification cliniques demandées idéalement par contact téléphonique au 021 314 41 07","","","Large spectre, broad spectrum PCR"]
["Panmycobactérienne directe PCR - Abcès / Kyste, cérébral","panmycobacterienne-directe-pcr-3","","Abcès / Kyste, cérébral","Microbio moléculaire","","Recherche à large spectre d' ADN de mycobactéries spp dans un échantillon clinique<br />La recherche spécifique d'ADN de Mycobacterium tuberculosis complex se fait par la PCR en temps réel spécifique \"Mycombacterium tuberculosis complex\". La culture est toujours effectuée en priorité.<br />Justification cliniques demandées idéalement par contact téléphonique au 021 314 41 07","","","Large spectre, broad spectrum PCR"]
["Panmycobactérienne directe PCR - Abcès / Kyste, cervical","panmycobacterienne-directe-pcr-4","","Abcès / Kyste, cervical","Microbio moléculaire","","Recherche à large spectre d' ADN de mycobactéries spp dans un échantillon clinique<br />La recherche spécifique d'ADN de Mycobacterium tuberculosis complex se fait par la PCR en temps réel spécifique \"Mycombacterium tuberculosis complex\". La culture est toujours effectuée en priorité.<br />Justification cliniques demandées idéalement par contact téléphonique au 021 314 41 07","","","Large spectre, broad spectrum PCR"]
["Panmycobactérienne directe PCR - Abcès / Kyste, dentaire","panmycobacterienne-directe-pcr-5","","Abcès / Kyste, dentaire","Microbio moléculaire","","Recherche à large spectre d' ADN de mycobactéries spp dans un échantillon clinique<br />La recherche spécifique d'ADN de Mycobacterium tuberculosis complex se fait par la PCR en temps réel spécifique \"Mycombacterium tuberculosis complex\". La culture est toujours effectuée en priorité.<br />Justification cliniques demandées idéalement par contact téléphonique au 021 314 41 07","","","Large spectre, broad spectrum PCR"]
["Panmycobactérienne directe PCR - Abcès / Kyste, foie","panmycobacterienne-directe-pcr-6","","Abcès / Kyste, foie","Microbio moléculaire","","Recherche à large spectre d' ADN de mycobactéries spp dans un échantillon clinique<br />La recherche spécifique d'ADN de Mycobacterium tuberculosis complex se fait par la PCR en temps réel spécifique \"Mycombacterium tuberculosis complex\". La culture est toujours effectuée en priorité.<br />Justification cliniques demandées idéalement par contact téléphonique au 021 314 41 07","","","Large spectre, broad spectrum PCR"]
["Panmycobactérienne directe PCR - Abcès / Kyste, para-anal","panmycobacterienne-directe-pcr-7","","Abcès / Kyste, para-anal","Microbio moléculaire","","Recherche à large spectre d' ADN de mycobactéries spp dans un échantillon clinique<br />La recherche spécifique d'ADN de Mycobacterium tuberculosis complex se fait par la PCR en temps réel spécifique \"Mycombacterium tuberculosis complex\". La culture est toujours effectuée en priorité.<br />Justification cliniques demandées idéalement par contact téléphonique au 021 314 41 07","","","Large spectre, broad spectrum PCR"]
["Panmycobactérienne directe PCR - Abcès / Kyste, paroi","panmycobacterienne-directe-pcr-8","","Abcès / Kyste, paroi","Microbio moléculaire","","Recherche à large spectre d' ADN de mycobactéries spp dans un échantillon clinique<br />La recherche spécifique d'ADN de Mycobacterium tuberculosis complex se fait par la PCR en temps réel spécifique \"Mycombacterium tuberculosis complex\". La culture est toujours effectuée en priorité.<br />Justification cliniques demandées idéalement par contact téléphonique au 021 314 41 07","","","Large spectre, broad spectrum PCR"]
["Panmycobactérienne directe PCR - Abcès / kyste, pulmonaire","panmycobacterienne-directe-pcr-9","","Abcès / kyste, pulmonaire","Microbio moléculaire","","Recherche à large spectre d' ADN de mycobactéries spp dans un échantillon clinique<br />La recherche spécifique d'ADN de Mycobacterium tuberculosis complex se fait par la PCR en temps réel spécifique \"Mycombacterium tuberculosis complex\". La culture est toujours effectuée en priorité.<br />Justification cliniques demandées idéalement par contact téléphonique au 021 314 41 07","","","Large spectre, broad spectrum PCR"]
["Panmycobactérienne directe PCR - Abcès / Kyste, sein","panmycobacterienne-directe-pcr-10","","Abcès / Kyste, sein","Microbio moléculaire","","Recherche à large spectre d' ADN de mycobactéries spp dans un échantillon clinique<br />La recherche spécifique d'ADN de Mycobacterium tuberculosis complex se fait par la PCR en temps réel spécifique \"Mycombacterium tuberculosis complex\". La culture est toujours effectuée en priorité.<br />Justification cliniques demandées idéalement par contact téléphonique au 021 314 41 07","","","Large spectre, broad spectrum PCR"]
["Panmycobactérienne directe PCR - Biopsie","panmycobacterienne-directe-pcr-11","","Biopsie","Microbio moléculaire","","Recherche à large spectre d' ADN de mycobactéries spp dans un échantillon clinique<br />La recherche spécifique d'ADN de Mycobacterium tuberculosis complex se fait par la PCR en temps réel spécifique \"Mycombacterium tuberculosis complex\". La culture est toujours effectuée en priorité.<br />Justification cliniques demandées idéalement par contact téléphonique au 021 314 41 07","","","Large spectre, broad spectrum PCR"]
["Panmycobactérienne directe PCR - Biopsie cérébrale","panmycobacterienne-directe-pcr-12","","Biopsie cérébrale","Microbio moléculaire","","Recherche à large spectre d' ADN de mycobactéries spp dans un échantillon clinique<br />La recherche spécifique d'ADN de Mycobacterium tuberculosis complex se fait par la PCR en temps réel spécifique \"Mycombacterium tuberculosis complex\". La culture est toujours effectuée en priorité.<br />Justification cliniques demandées idéalement par contact téléphonique au 021 314 41 07","","","Large spectre, broad spectrum PCR"]
["Panmycobactérienne directe PCR - Biopsie disque intervertébral","panmycobacterienne-directe-pcr-13","","Biopsie disque intervertébral","Microbio moléculaire","","Recherche à large spectre d' ADN de mycobactéries spp dans un échantillon clinique<br />La recherche spécifique d'ADN de Mycobacterium tuberculosis complex se fait par la PCR en temps réel spécifique \"Mycombacterium tuberculosis complex\". La culture est toujours effectuée en priorité.<br />Justification cliniques demandées idéalement par contact téléphonique au 021 314 41 07","","","Large spectre, broad spectrum PCR"]
["Panmycobactérienne directe PCR - Biopsie ganglion","panmycobacterienne-directe-pcr-14","","Biopsie ganglion","Microbio moléculaire","","Recherche à large spectre d' ADN de mycobactéries spp dans un échantillon clinique<br />La recherche spécifique d'ADN de Mycobacterium tuberculosis complex se fait par la PCR en temps réel spécifique \"Mycombacterium tuberculosis complex\". La culture est toujours effectuée en priorité.<br />Justification cliniques demandées idéalement par contact téléphonique au 021 314 41 07","","","Large spectre, broad spectrum PCR"]
["Panmycobactérienne directe PCR - Biopsie plèvre","panmycobacterienne-directe-pcr-15","","Biopsie plèvre","Microbio moléculaire","","Recherche à large spectre d' ADN de mycobactéries spp dans un échantillon clinique<br />La recherche spécifique d'ADN de Mycobacterium tuberculosis complex se fait par la PCR en temps réel spécifique \"Mycombacterium tuberculosis complex\". La culture est toujours effectuée en priorité.<br />Justification cliniques demandées idéalement par contact téléphonique au 021 314 41 07","","","Large spectre, broad spectrum PCR"]
["Panmycobactérienne directe PCR - Biopsie transbronchique","panmycobacterienne-directe-pcr-16","","Biopsie transbronchique","Microbio moléculaire","","Recherche à large spectre d' ADN de mycobactéries spp dans un échantillon clinique<br />La recherche spécifique d'ADN de Mycobacterium tuberculosis complex se fait par la PCR en temps réel spécifique \"Mycombacterium tuberculosis complex\". La culture est toujours effectuée en priorité.<br />Justification cliniques demandées idéalement par contact téléphonique au 021 314 41 07","","","Large spectre, broad spectrum PCR"]
["Panmycobactérienne directe PCR - Liquide natif","panmycobacterienne-directe-pcr-17","","Liquide natif","Microbio moléculaire","","Recherche à large spectre d' ADN de mycobactéries spp dans un échantillon clinique<br />La recherche spécifique d'ADN de Mycobacterium tuberculosis complex se fait par la PCR en temps réel spécifique \"Mycombacterium tuberculosis complex\". La culture est toujours effectuée en priorité.<br />Justification cliniques demandées idéalement par contact téléphonique au 021 314 41 07","","","Large spectre, broad spectrum PCR"]
["Panmycobactérienne directe PCR - Liquide pleural","panmycobacterienne-directe-pcr-18","","Liquide pleural","Microbio moléculaire","","Recherche à large spectre d' ADN de mycobactéries spp dans un échantillon clinique<br />La recherche spécifique d'ADN de Mycobacterium tuberculosis complex se fait par la PCR en temps réel spécifique \"Mycombacterium tuberculosis complex\". La culture est toujours effectuée en priorité.<br />Justification cliniques demandées idéalement par contact téléphonique au 021 314 41 07","","","Large spectre, broad spectrum PCR"]
["Panmycobactérienne directe PCR - Os","panmycobacterienne-directe-pcr-19","","Os","Microbio moléculaire","","Recherche à large spectre d' ADN de mycobactéries spp dans un échantillon clinique<br />La recherche spécifique d'ADN de Mycobacterium tuberculosis complex se fait par la PCR en temps réel spécifique \"Mycombacterium tuberculosis complex\". La culture est toujours effectuée en priorité.<br />Justification cliniques demandées idéalement par contact téléphonique au 021 314 41 07","","","Large spectre, broad spectrum PCR"]
["Panmycobactérienne directe PCR - Moelle osseuse","panmycobacterienne-directe-pcr-20","","Moelle osseuse","Microbio moléculaire","","Recherche à large spectre d' ADN de mycobactéries spp dans un échantillon clinique<br />La recherche spécifique d'ADN de Mycobacterium tuberculosis complex se fait par la PCR en temps réel spécifique \"Mycombacterium tuberculosis complex\". La culture est toujours effectuée en priorité.<br />Justification cliniques demandées idéalement par contact téléphonique au 021 314 41 07","","","Large spectre, broad spectrum PCR"]
["Panmycobactérienne directe PCR - Aspiration bronchique","panmycobacterienne-directe-pcr-21","","Aspiration bronchique","Microbio moléculaire","","Recherche à large spectre d' ADN de mycobactéries spp dans un échantillon clinique<br />La recherche spécifique d'ADN de Mycobacterium tuberculosis complex se fait par la PCR en temps réel spécifique \"Mycombacterium tuberculosis complex\". La culture est toujours effectuée en priorité.<br />Justification cliniques demandées idéalement par contact téléphonique au 021 314 41 07","","","Large spectre, broad spectrum PCR"]
["Panmycobactérienne directe PCR - Lavage broncho-alvéolaire (LBA)","panmycobacterienne-directe-pcr-22","","Lavage broncho-alvéolaire (LBA)","Microbio moléculaire","","Recherche à large spectre d' ADN de mycobactéries spp dans un échantillon clinique<br />La recherche spécifique d'ADN de Mycobacterium tuberculosis complex se fait par la PCR en temps réel spécifique \"Mycombacterium tuberculosis complex\". La culture est toujours effectuée en priorité.<br />Justification cliniques demandées idéalement par contact téléphonique au 021 314 41 07","","","Large spectre, broad spectrum PCR"]
["Panmycobactérienne directe PCR - Prothèse","panmycobacterienne-directe-pcr-23","","Prothèse","Microbio moléculaire","","Recherche à large spectre d' ADN de mycobactéries spp dans un échantillon clinique<br />La recherche spécifique d'ADN de Mycobacterium tuberculosis complex se fait par la PCR en temps réel spécifique \"Mycombacterium tuberculosis complex\". La culture est toujours effectuée en priorité.<br />Justification cliniques demandées idéalement par contact téléphonique au 021 314 41 07","","","Large spectre, broad spectrum PCR"]
["Panmycobactérienne directe PCR - Prothèse vasculaire","panmycobacterienne-directe-pcr-24","","Prothèse vasculaire","Microbio moléculaire","","Recherche à large spectre d' ADN de mycobactéries spp dans un échantillon clinique<br />La recherche spécifique d'ADN de Mycobacterium tuberculosis complex se fait par la PCR en temps réel spécifique \"Mycombacterium tuberculosis complex\". La culture est toujours effectuée en priorité.<br />Justification cliniques demandées idéalement par contact téléphonique au 021 314 41 07","","","Large spectre, broad spectrum PCR"]
["Papillomavirus  PCR - Frottis anus","papillomavirus-pcr","","Frottis anus","Microbio moléculaire","","","","","HPV, condylome, verrue"]
["Papillomavirus  PCR - Frottis col","papillomavirus-pcr-1","","Frottis col","Microbio moléculaire","","","","","HPV, condylome, verrue"]
["Papillomavirus  PCR - Frottis gland","papillomavirus-pcr-2","","Frottis gland","Microbio moléculaire","","","","","HPV, condylome, verrue"]
["Papillomavirus  PCR - Abcès","papillomavirus-pcr-3","","Abcès","Microbio moléculaire","","","","","HPV, condylome, verrue"]
["Papillomavirus  PCR - Biopsie","papillomavirus-pcr-4","","Biopsie","Microbio moléculaire","","","","","HPV, condylome, verrue"]
["Papillomavirus  PCR - Biopsie anale","papillomavirus-pcr-5","","Biopsie anale","Microbio moléculaire","","","","","HPV, condylome, verrue"]
["Papillomavirus  PCR - Biopsie colique","papillomavirus-pcr-6","","Biopsie colique","Microbio moléculaire","","","","","HPV, condylome, verrue"]
["Papillomavirus  PCR - Liquide natif","papillomavirus-pcr-7","","Liquide natif","Microbio moléculaire","","","","","HPV, condylome, verrue"]
["Papillomavirus  PCR - Tissu cutané","papillomavirus-pcr-8","","Tissu cutané","Microbio moléculaire","","","","","HPV, condylome, verrue"]
["Paracétamol - Sang","paracetamol","","Sang","Chimie clinique","","<p>Dosage et interprétation pharmacologique de taux sanguin de paracétamol (nomogramme de Rumack).</p>","<p>- Lors de suspicion d'intoxication pour déterminer si l'administration de N-acétylcystéine est indiquée.<br /> - Lors de test d'absorption.</p>","","Acétalgine, acetaminophen,  acétaminophène, APAP, Dafalgan, Dolprone, Panadol, Tylenol, Zolben"]
["Parasitologie - Cysticercus larves (Microscopie ou Macroscopie) - Abcès - Liquides de ponction","parasitologie-cysticercus-larves-microscopie-ou-macroscopie","echinocoques, echinococcose, foie, poumon, kyste hydatique","Abcès - Liquides de ponction","Microbiologie","","<ul><li>Identification de larve extraite d'un échantillon (Ex: Echinocoques)</li><li>Recherche par microscopie dans un échantillon de type abcès ou liquide.</li></ul>","﻿","Prélèvement de larve par chirurgie.<br />Demander un examen sérologique.",""]
["Parasitologie - Enterobius vermicularis (Oxyures) - Microscopie - Scotch-test anus","parasitologie-enterobius-vermicularis-oxyures-microscopie","vers","Scotch-test anus","Microbiologie","","<ul><li>Recherche par microscopie d'<em>Enterobius vermicularis</em> (Oxyures) sur scotch-test anal.</li><li><span>Ne jamais envoyer de selles pour cette recherche.</span>﻿﻿</li></ul>","","Lors des démangeaisons, surtout matinales, appliquer avant la toilette, le scotch transparent d'environ 5 cm sur l'anus, puis le placer sur une lame porte-objet.",""]
["Parasitologie - Helminthes (Microscopie) - Selles","parasitologie-helminthes-microscopie","parasite, vers, oeufs, ankylostoma, ascaris, diphyllobothrium, distomas, douves, taenia, trichuris, hymenolepis","Selles","Microbiologie","","Recherche par microscopie d'Helminthes intestinaux dans les selles.","","",""]
["Parasitologie - Isospora, Cyclospora (Microscopie) - Selles","parasitologie-isospora-cyclospora-microscopie","parasite, coccidies, coccidiose","Selles","Microbiologie","","Recherche par microscopie d' Isospora et Cyclospora dans les selles.","Patient-e-s immunodéprimé-e-s ou atteint-e-s de SIDA, séjour dans un pays tropical.","",""]
["Parasitologie - Microfilaires (Microscopie) - Sang (Tube EDTA)","parasitologie-microfilaires-microscopie","babesia, trypanosome, trypanosomiase, trypanosoma, filaires, babésiose, brugia, Loa loa, mansonella, wuchereria bancrofti","Sang (Tube EDTA)","Microbiologie","","Recherche par microscopie de Microfilaires dans le sang.","","<ul><li><em>﻿</em><em>Loa loa: </em>﻿Effectuer un prélèvement diurne﻿ entre 10h00 - 14h00.</li><li><em>﻿Wuchereria bancrofti, Brugia malayi: </em>﻿Effectuer un prélèvement nocturne entre 22h00 -02h00.</li><li>Autres: Pas de contrainte d'heure de prélèvement﻿</li></ul>",""]
["Parasitologie - Protozoaires (Entamoeba histolytica, Cryptosporidium hominis - parvum, Giardia lamblia) - PCR (test rapide) - Selles","parasitologie-protozoaires-entamoeba-histolytica-cryptosporidium-hominis-parvum-giardia-lamblia-pcr-test-rapide","parasites, amibes","Selles","Microbiologie","","Détection par PCR dans les Selles de <em>Entamoeba histolytica</em>, <em>Cryptosporidium</em> species (<em>hominis, parvum</em>), <em>Gardia lamblia</em>","","",""]
["Parasitologie - Schistosoma haematobium (Mircoscopie) - Urines totales après effort physique","parasitologie-schistosoma-haematobium-mircoscopie","schistosome, schistosomiase, bilharziose, parasite","Urines totales après effort physique","Microbiologie","","<ul> \t<li>Recherche par microscopie de <em>Schistosoma haematobium </em></li> \t<li>Important:﻿ Récolte des urines après effort physique (marches d'escaliers)</li> \t<li>Echantillons: Urines totales du matin ou&nbsp;urines totales&nbsp;collectées entre 10:00 et 14:00&nbsp;</li> </ul>","<p>Suspicion de Bilharziose.</p>","",""]
["Parathormone (PTH) - Sang","parathormone-pth","PTH 1-84","Sang","Chimie clinique","Acheminer immédiatement le tube","","","","Hormone parathyroïdienne "]
["Paroxétine - Sang","paroxetine","Deroxat","Sang","UPPC Pharmacogénétique et psychopharmacologie","","<p>Dosage et interprétation pharmacologique du taux sanguin</p>","<p>Réponse insatisfaisante, effets secondaires, interactions, doute sur l’adhésion, suspicion d’intoxication</p>","",""]
["Parvovirus B19 - Sérodiagnostic IgG et IgM","parvovirus-b19-1","","Sérodiagnostic IgG et IgM","Microbio sérologie","","","","",""]
["Parvovirus B19 PCR - Biopsie ganglion","parvovirus-b19-pcr","","Biopsie ganglion","Microbio moléculaire","","","","","B19"]
["Parvovirus B19 PCR - Os","parvovirus-b19-pcr-1","","Os","Microbio moléculaire","","","","","B19"]
["Parvovirus B19 PCR - Moelle osseuse","parvovirus-b19-pcr-2","","Moelle osseuse","Microbio moléculaire","","","","","B19"]
["Parvovirus B19 PCR - Sang","parvovirus-b19-pcr-3","","Sang","Microbio moléculaire","","Evaluation de la charge virale","Principalement c/o immunosupprimés","","B19"]
["Pathologie chirurgicale - Pièces opératoires fraîches","pathologie-chirurgicale","Matériel frais","Pièces opératoires fraîches","Pathologie - Pathologie clinique","","Examen Anatomo-pathologique d'une pièce opératoire","","",""]
["Pathologie chirurgicale - Biopsies et pièces opératoires fraîches avec examen extemporané","pathologie-chirurgicale-1","Examen extemporané","Biopsies et pièces opératoires fraîches avec examen extemporané","Pathologie - Antenne des extemporanés","","Réalisation de coupes histologiques durant une intervention afin d'orienter au mieux l'acte chirurgical -  Examen Anatomo-pathologique d'une pièce opératoire","","",""]
["Pathologie chirurgicale - Biopsies fraîches pour suspicion d'hémopathie (ganglions ou autres)","pathologie-chirurgicale-2","Hémopathie","Biopsies fraîches pour suspicion d'hémopathie (ganglions ou autres)","Pathologie - Pathologie clinique","","Examen Anatomo-pathologique d'une pièce opératoire","","",""]
["Pathologie chirurgicale - Extemporanés pour maladie de Hirschsprung","pathologie-chirurgicale-3","Hirschsprung","Extemporanés pour maladie de Hirschsprung","Pathologie - Antenne des extemporanés","","Réalisation de coupes histologiques durant une intervention afin d'orienter au mieux l'acte chirurgical -  Examen Anatomo-pathologique d'une pièce opératoire","","",""]
["Pathologie chirurgicale - Biopsies et pièces opératoires fixées","pathologie-chirurgicale-4","Matériel fixé","Biopsies et pièces opératoires fixées","Pathologie - Pathologie clinique","","Examen Anatomo-pathologique d'une pièce opératoire","","",""]
["Pathologie chirurgicale - Biopsies de greffons (myocardiques, pulmonaires et hépatiques)","pathologie-chirurgicale-5","Biopsie, Greffon","Biopsies de greffons (myocardiques, pulmonaires et hépatiques)","Pathologie - Pathologie clinique","","Examen Anatomo-pathologique d'un échantillon tissulaire","","",""]
["Pathologie chirurgicale - Biopsies médicales de reins (non tumorales)","pathologie-chirurgicale-6","Biopsie rein","Biopsies médicales de reins (non tumorales)","Pathologie - Pathologie clinique","","Examen Anatomo-pathologique d'un échantillon tissulaire","","",""]
["Pathologie chirurgicale - Biopsies musculaires","pathologie-chirurgicale-7","Biopsie musculaire","Biopsies musculaires","Pathologie - Pathologie clinique","","Examen Anatomo-pathologique d'un échantillon tissulaire","","",""]
["Pathologie chirurgicale - Autres biopsies fraîches","pathologie-chirurgicale-8","biopsies fraîches","Autres biopsies fraîches","Pathologie - Pathologie clinique","","Examen Anatomo-pathologique d'un échantillon tissulaire","","",""]
["Pathologie chirurgicale - Biopsies d'artère temporale","pathologie-chirurgicale-9","Artère temporale","Biopsies d'artère temporale","Pathologie - Pathologie clinique","","Examen Anatomo-pathologique d'un échantillon tissulaire","","",""]
["Pathologie chirurgicale - Biopsies ostéomédullaires","pathologie-chirurgicale-10","Moelle","Biopsies ostéomédullaires","Pathologie - Pathologie clinique","","Examen Anatomo-pathologique d'un échantillon tissulaire","","",""]
["Pathologie clinique - Cas adressé pour analyse complémentaire","pathologie-clinique","Pathologie, examen anatomo-histo-cyto-pathologie","Cas adressé pour analyse complémentaire","Pathologie - Pathologie clinique","","Examen d'analyses complémentaires : colorations spéciales, biologie moléculaire, FISH, Immunopathologie …","","",""]
["Pathologie clinique - Cas adressé pour avis et/ou demande de relecture","pathologie-clinique-1","Pathologie, examen anatomo-histo-cyto-pathologie","Cas adressé pour avis et/ou demande de relecture","Pathologie - Pathologie clinique","","Examen anatomo ou cyto pathologique dans le cadre d'une demande de relecture ou d'une demande d'avis","","",""]
["Pathologie moléculaire - Analyse de Biologie Moléculaire sur biopsies liquides (ctDNA/plasma)","pathologie-moleculaire","Pathologie, Biopsie liquide, Cobas, Mutation EGFR, Plasma, Résistance, ctDNA, cfDNA, biologie moléculaire","Analyse de Biologie Moléculaire sur biopsies liquides (ctDNA/plasma)","Pathologie moléculaire","","<p>Recherche d'anomalies moléculaires sur ADN tumoral circulant (ctDNA/plasma)</p>","","",""]
["Pathologie moléculaire - Analyse de Biologie Moléculaire sur sang (ADN leucocytaire)","pathologie-moleculaire-1","Pathologie, biologie moléculaire, ADN, ARN, NGS, PCR, Amplification, Délétion, Translocation, Mutation, Séquençage\r\nRT-PCR Sang Contrôle","Analyse de Biologie Moléculaire sur sang (ADN leucocytaire)","Pathologie moléculaire","","<p>Extraction d'ADN leucocytaire à partir du sang pour :</p>\r\n<p>- Analyse d'ADN constitutionnel (ADN contrôle pour comparaison avec ADN tumoral)</p>\r\n<p>﻿ou</p>\r\n<p>- Analyse de clonalité lymphoïde (généralement pour comparaison avec un échantillon tissulaire)﻿</p>","","",""]
["Pathologie moléculaire - Analyse de Biologie Moléculaire à partir d'ADN/ARN","pathologie-moleculaire-2","Pathologie, biologie moléculaire, ADN, ARN, NGS, PCR, Amplification, Délétion, Translocation, Mutation, Séquençage\r\nRT-PCR Sang Contrôle","Analyse de Biologie Moléculaire à partir d'ADN/ARN","Pathologie moléculaire","","<p>Caractérisation qualitative et/ou quantitative de l’ADN ou de l’ARN visant la détection d’anomalies ou de signatures moléculaires en rapport avec des situations pathologiques</p>","","",""]
["Pazopanib - Sang","pazopanib","Anticancéreux ciblés, TKI, inhibiteur tirosine kinase, inhibiteur des protéines kinases, PKI","Sang","Pharmacologie","","<p>Dosage de taux sanguin de pazopanib</p>","<p>Sur avis du spécialiste. L’interprétation clinique (TDM) ou pharmacocinétique des dosage n’est actuellement pas validée.</p>","","Votrient®"]
["Penicilline G - Sang","penicilline-g","Antibiotique, antimicrobien, pénicilline","Sang","Pharmacologie","Contact nécessaire avant réalisation","<p>Dosage et interprétation pharmacocinétique de taux sanguin de penicilline G (ou benzylpenicilline)(absence d'intervalle de référence, évaluation seulement de la plausibilité du taux)</p>","<p>TDM indiqué uniquement dans des situations spécifiques : il est recommandé de <strong>contacter le responsable TDM AVANT prélèvement </strong>: 021 314 22 41. En cas d’absence, téléphonez au : 021 314 25 00.</p>\r\n<p>Sur avis du spécialiste. L’interprétation clinique (TDM) du dosage n’est actuellement pas validée.</p>","","benzylpenicilline, «Grünenthal»®"]
["Peptide d'activation prothrombine (F1+2) - ","peptide-dactivation-prothrombine-f1-2","","","Hématologie - Hémostase spéciale","","","","","Fragment F1 F2, F1 F2"]
["Pérampanel - Sang","perampanel","Antiépileptique, anticonvulsivant, anti-convulsivant, anti-épileptique, épilepsie,","Sang","Pharmacologie","","Dosage et interprétation pharmacocinétique de taux sanguin de pérampanel (absence d'intervalle de référence, évaluation seulement de la plausibilité du taux)","Sur avis du spécialiste. L’interprétation clinique (TDM) du dosage n’est actuellement pas validée.","","Fycompa"]
["PFA EPI / ADP - ","pfa-epi-/-adp","","","Hématologie - Hémostase spéciale","","<p>Analyse rapide des fonctions plaquettaires et du VWF par la mesure d'un temps d'occlusion sur sang complet. </p>\r\n<p>Sur le bon 023 - Hématologie cocher l'analyse \"Fonctions plaquettaires\"<br /></p>\r\n<p><br /></p>","Analyse faisant partie du bilan pré-greffe cardiaque","Selon le cas:<br />S'assurer que le patient n'a pas pris de médicaments contenant de l'aspirine depuis 10 jours ou autre antiagrégant plaquettaire.<br />HT >35% et plaq > 150 G/L",""]
["PFA P2Y - ","pfa-p2y","ADP récepteur inhibiteur","","Hématologie - Hémostase spéciale","","<p>Analyse rapide de l'efficacité des inhibiteurs du récepteur ADP P2Y12 (ex: Clopidogrel, Prasugrel, Ticagrelor ) par le mesure d'un temps d'occlusion sur sang complet.</p>\r\n<p>Sur le bon 023 - Hématologie cocher l'analyse \"Résistance aux antiplaquettaires\"<br /></p>","","","PFA, P2Y, P2Y12"]
["pH - Liquide pleural","ph-1","","Liquide pleural","Chimie clinique","","","","",""]
["pH scalp fœtal - Sang fœtal","ph-scalp-foetal","","Sang fœtal","Foetologie - maternité","","","","",""]
["pH urine - Pédiatrie","ph-urine","","Pédiatrie","Néphrologie pédiatrique","","","","",""]
["Phénobarbital - Sang","phenobarbital","Anticonvulsivant, anti-convulsivant, antiépileptique, anti-épileptique, épilepsie","Sang","Chimie clinique","","<p>Dosage et interprétation pharmacologique (TDM) de taux sanguin de phénobarbital (intervalle de référence disponible).</p>","<p>Suivi thérapeutique, réponse insatisfaisante, suspicion de toxicité, suspicion d'interaction médicamenteuse, doute sur la compliance, grossesse.</p>","","Aphenylbarbit, Gardenal, Luminal, Maliasin"]
["Phénotypage cytochromes P450 - Sang","phenotypage-cytochromes-p450","CYP1A2, CYP2B6, CYP2C9, CYP2C19, CYP2D6, CYP3A4, cytochrome, phénotype","Sang","UPPC Pharmacogénétique et psychopharmacologie","","Détermination des activités enzymatiques","Suspicion de métabolisme déficient ou rapide","",""]
["Phénotypage cytochromes P450 + P-gp - Sang","phenotypage-cytochromes-p450-p-gp","CYP1A2, CYP2B6, CYP2C9, CYP2C19, CYP2D6, CYP3A4, cytochrome, phénotype, P-gp, P-glycoproteine","Sang","UPPC Pharmacogénétique et psychopharmacologie","","Détermination des activités enzymatiques et de transport","Suspicion de métabolisme déficient ou rapide","",""]
["Phénotype érythrocytaire étendu - ","phenotype-erythrocytaire-etendu","Phénotypage, phénotype large, phénotype étendu, transfusion","","UMT","","Complément d'analyse en cas d'immunisation complexe ou de transfusion phénotype étendu compatible<br />","","","Antigènes érythrocytaires"]
["Phénotype Rhésus et Kell (KEL1) - ","phenotype-rhesus-et-kell-kel1","Transfusion, groupe sanguin, RH","","UMT","","Pour la transfusion phénotype Rhésus et Kell (KEL1) compatible","","",""]
["Phénytoïne - Sang","phenytoine","Anticonvulsivant, anti-convulsivant, antiépileptique, anti-épileptique, épilepsie","Sang","Chimie clinique","","<p>Dosage et interprétation pharmacologique (TDM) de taux sanguin de phénytoïne (intervalle de référence disponible).</p>","<p>Suivi thérapeutique, réponse insatisfaisante, suspicion de toxicité, suspicion d'interaction médicamenteuse, doute sur la compliance, grossesse.</p>","","Epanutin, Phenhydran"]
["Phosphatase alcaline - Sang","phosphatase-alcaline","","Sang","Chimie clinique","","","","","ALP, PAL"]
["Phosphate - Urine fraiche","phosphate","","Urine fraiche","Chimie clinique","","","","","Phosphore "]
["Phosphate - Urine 24h","phosphate-1","","Urine 24h","Chimie clinique","","","","","Phosphore "]
["Phosphate - Sang","phosphate-2","","Sang","Chimie clinique","","","","","Phosphore "]
["Phosphate - Dialysat","phosphate-3","","Dialysat","Chimie clinique","","","","","Phosphore "]
["Pink test - ","pink-test","","","Hématologie spéciale","","Le Pink test est un test de dépistage de la sphérocytose héréditaire","","","Sphérocytose, sphérocytose héréditaire, test de lyse érythrocytaire"]
["Pipampérone - Sang","pipamperone","Dipiperon","Sang","UPPC Pharmacogénétique et psychopharmacologie","","Dosage et interprétation pharmacologique du taux sanguin","Réponse insatisfaisante, effets secondaires, interactions, doute sur l’adhésion, suspicion d’intoxication","",""]
["Piperacilline - Sang","piperacilline","Antibiotique, antimicrobien, pénicilline","Sang","Pharmacologie","","Dosage et interprétation pharmacologique (TDM) de taux sanguin de piperacilline (intervalle de référence disponible)","TDM uniquement dans des cas spécifiques (i.e. difficultés d’adaptation des doses, épuration extrarénale, dialyse, interactions médicamenteuses, toxicité, résistances)","","Tazobac®"]
["Piperaquine - Sang","piperaquine","Antimalarique, antipaludéen, malaria, paludisme, plasmodium","Sang","Pharmacologie","","Dosage du taux sanguin de piperaquine","Sur avis du spécialiste. L’interprétation clinique (TDM) du dosage n’est actuellement pas validée.","Le patient doit être informé que cette analyse ne figure pas sur la liste des analyses en vigueur et qu'elle ne sera pas obligatoirement prise en charge par les caisses maladie",""]
["Plaquettes sur TromboExact - FSS","plaquettes-sur-tromboexact","amas plaquette plaquettaire EDTA thrombopenie  FS FSS hemogramme  thrombocyte satellitsime thromboexact","FSS","Hématologie générale 24/7","","<p>Numération des plaquettes en présence d'une agglutination ou d'un satellitisme vérifié au microscope.</p>","","","Amas plaquettaires"]
["PlGF - ","plgf","prééclampsie, pré-éclampsie","","Chimie clinique","Acheminer immédiatement le tube","","<p></p>\r\n<p>Spécification du risque de<br />prééclampsie lors du dépistage prénatal du premier trimestre.</p>\r\n<p>Par sa prescription de l'analyse, le<br />prescripteur atteste que la patiente a été informée et a donné son accord pour<br />la facturation de l'analyse.</p>\r\n<p> </p>\r\n<p></p>","","facteur de croissance placentaire, facteur pro-angiogénique"]
["PLT VASP / P2Y12 - ","plt-vasp-/-p2y12","","","Hématologie - Hémostase spéciale","","Analyse pour mesurer un index de réactivité des récepteurs P2Y12","","",""]
["PML-RARA - Equivalent moléculaire translocation t(15;17)","pml-rara","","Equivalent moléculaire translocation t(15;17)","Hématologie moléculaire","","Le PML-RARA correspond à l'équivalent moléculaire de la translocation chromosomique (15;17) qui est recherchée dans les LMA.<br />Cette analyse est complémentaire de l'analyse cytogénétique standard.","","","t (15;17), translocations chromosomiques, PMLRAR, PMLRARA"]
["Pneumocystis jirovecii PCR - Biopsie transbronchique","pneumocystis-jirovecii-pcr","","Biopsie transbronchique","Microbio moléculaire","","","","","PCP"]
["Pneumocystis jirovecii PCR - Expectoration","pneumocystis-jirovecii-pcr-1","","Expectoration","Microbio moléculaire","","","","","PCP"]
["Pneumocystis jirovecii PCR - Sécrétions endo-trachéales","pneumocystis-jirovecii-pcr-2","","Sécrétions endo-trachéales","Microbio moléculaire","","","","","PCP"]
["Pneumocystis jirovecii PCR - Aspiration bronchique","pneumocystis-jirovecii-pcr-3","","Aspiration bronchique","Microbio moléculaire","","","","","PCP"]
["Pneumocystis jirovecii PCR - Lavage broncho-alvéolaire (LBA)","pneumocystis-jirovecii-pcr-4","","Lavage broncho-alvéolaire (LBA)","Microbio moléculaire","","","","","PCP"]
["PNH - ","pnh","","","Hématologie spéciale","","Le dépistage de l'hémoglobinurie paroxystique nocturne se fait par analyse de marqueurs immunologiques.","Recherche de clones PNH lors de PNH ou d'anémie aplastique.","","Hémoglobinurie paroxystique nocturne, HPN, paroxysmal nocturnal hemoglubinuria"]
["Polyomavirus (JC virus) PCR - Biopsie cérébrale","polyomavirus-jc-virus-pcr-1","","Biopsie cérébrale","Microbio moléculaire","","","","","JC virus"]
["Polyomavirus (JC virus) PCR - Liquide céphalo-rachidien (LCR)","polyomavirus-jc-virus-pcr","","Liquide céphalo-rachidien (LCR)","Microbio moléculaire","","","","","JC virus"]
["Ponatinib - Sang","ponatinib","Anticancéreux ciblés, TKI, inhibiteur tirosine kinase, inhibiteur des protéines kinases, PKI","Sang","Pharmacologie","","Dosage et interprétation pharmacocinétique de taux sanguin de ponatinib (absence d'intervalle de référence, évaluation seulement de la plausibilité du taux)","Sur avis du spécialiste. L’interprétation clinique (TDM) du dosage n’est actuellement pas validée.","","Iclusig®"]
["Porphyrines - ","porphyrines","acide delta aminolévulinique, porphobilinogène, spectre fluorescence plasmatique, PBG deaminase, Porphyrines erythrocytaires, plomb, intoxication plomb","","Chimie clinique","","","<a href=\"https://www.chuv.ch/fileadmin/sites/dl/documents/dl-lcc-porphyrines.pdf\">https://www.chuv.ch/fileadmin/sites/dl/documents/dl-lcc-porphyrines.pdf</a>","",""]
["Port-à-cath. - Culture","port-a-cath","","Culture","Microbiologie","","Cet examen comprend une bactériologie générale y compris germes anaérobies","","","PAC"]
["Posaconazole - Sang","posaconazole","Antifongique, triazolé","Sang","Pharmacologie","","<p>Dosage et interprétation pharmacologique (TDM) de taux sanguin de posaconazole (intervalle de référence disponible)</p>","<p>TDM uniquement dans des cas spécifiques (i.e. difficultés d’adaptation des doses, épuration extrarénale, dialyse, interactions médicamenteuses, toxicité, résistances)</p>","","Noxafil®"]
["Potassium - LCR","potassium","électrolytes","LCR","Chimie clinique","","","","",""]
["Potassium - Urine fraiche","potassium-1","électrolytes","Urine fraiche","Chimie clinique","","","","",""]
["Potassium - Sang","potassium-2","électrolytes","Sang","Chimie clinique","","","","",""]
["Potassium - Selles","potassium-3","électrolytes","Selles","Chimie clinique","","","","",""]
["Potassium - Liquide d'ascite","potassium-4","électrolytes","Liquide d'ascite","Chimie clinique","","","","",""]
["Potassium - Urine 24h","potassium-5","électrolytes","Urine 24h","Chimie clinique","","","","",""]
["Potassium - Liquide pleural","potassium-6","électrolytes","Liquide pleural","Chimie clinique","","","","",""]
["Potassium - Dialysat","potassium-7","électrolytes","Dialysat","Chimie clinique","","","","",""]
["Pouvoir d'acidification urine - Pédiatrie","pouvoir-dacidification-urine","","Pédiatrie","Néphrologie pédiatrique","","","Acidose tubulaire (proximale et distale)","Unité métabolique prépare le patient, prélève et achemine le prélèvement",""]
["Prader Willi - Analyse moléculaire","prader-willi","Angelmann, cytogénétique, FISH","Analyse moléculaire","Génétique moléculaire","","Analyse de la méthylation de la région","","",""]
["Préalbumine - Sang","prealbumine","","Sang","Chimie clinique","","","","",""]
["Prégabaline - Sang","pregabaline","Antiépileptique, anticonvulsivant, anti-convulsivant, anti-épileptique, épilepsie,","Sang","Pharmacologie","","Dosage et interprétation pharmacocinétique de taux sanguin de prégabaline (absence d'intervalle de référence, évaluation seulement de la plausibilité du taux)","Sur avis du spécialiste. L’interprétation clinique (TDM) du dosage n’est actuellement pas validée.","","Lyrica"]
["Pretomanid - Sang","sutezolide","tuberculose, tuberculeux, anti-tuberculeux, Antibiotique","Sang","Pharmacologie","Ne pas prélever le week-end (vendredi dès 16h à dimanche midi)., Acheminer immédiatement le tube","<p>Dosage et interprétation pharmacocinétique de taux sanguin de pretomanide</p>","<p>Sur avis du spécialiste. L’interprétation clinique (TDM) du dosage n’est actuellement pas validée.</p>\r\n\r\n","",""]
["Prise de sang pour biobanque - ","prise-de-sang-pour-biobanque","","","Biobanque génomique du CHUV","","<p>Cet examen ne fait pas l'objet d'un résultat. Concerne les patients ayant accepté la prise de sang pour la BCG, la Biobanque génomique du CHUV (ex Biobanque institutionnelle de Lausanne) en répondant à la question B du formulaire de consentement général. ﻿</p>","","<p>Prescription par l'unité du consentement à la recherche</p>\r\n<p>De préférence lors d'un prélèvement effectué pour les soins.﻿</p>",""]
["Procalcitonine - Sang","procalcitonine","","Sang","Chimie clinique","","","http://files.chuv.ch/internet-docs/dml/examens/pct_limitations_emploi.pdf<br />","","PCT"]
["Profil protéines - LCR / sérum","profil-proteines","Bandes IgG oligoclonales, isoélectrofocalisation des IgG, synthèse intrathécale","LCR / sérum","Chimie clinique","","<p>Détection de bandes oligoclonales IgG dans le LCR et le sérum.</p>","<p>Diagnostic des maladies neurologiques à composante inflammatoire (IgG intrathécales, ...)</p>","","Bandes IgG oligoclonales, isoélectrofocalisation des IgG."]
["Profil stéroïdes - Sang","profil-steroides","hormone, stéroïdes, DHT, DHEAS, OHP, minéralocorticoïdes, androgènes, déoxycortisol, 11DOC, hydrocortisone, corticoïdes","Sang","Chimie clinique","","","<p>Le profil stéroïdes comprend les analyses suivantes: androstènedione, corticostérone, cortisol, cortisone, 11-deoxycortisol, 21-deoxycortisol, dehydroepiandrosterone 3-sulfate (DHEA-S), deoxycorticostérone, dihydrotestostérone (DHT), 17-hydroxyprogésterone, 17-hydroxypregnénolone, pregnénolone, progestérone et la testostérone.</p>","","profil stéroïdien, androstènedione, corticostérone, cortisol, cortisone, DHEA-S, 11-désoxycortisol, 21-désoxycortisol, désoxycorticostérone, dihydrotestostérone, 17-hydroxypregnénolone, 17-hydroxyprogestérone, pregnénolone, progestérone, testostérone, DHT"]
["Progéniteurs hématopoïétique moelle osseuse - Pédiatrie","progeniteurs-hematopoietique-moelle-osseuse","","Pédiatrie","Onco-hématologie pédiatrique","","","troubles de l'hématopoïèse, greffe de moelle","",""]
["Progéniteurs hématopoïétique sang - Pédiatrie","progeniteurs-hematopoietique-sang","","Pédiatrie","Onco-hématologie pédiatrique","","","troubles de l'hématopoïèse, greffe de moelle","",""]
["Progestérone - Sang","progesterone","Hormone, stéroïdes, stéroïde","Sang","Chimie clinique","","","","","P4"]
["Progestérone 17-OH - Sang","progesterone-17-oh","Hormone, stéroïde, stéroïdes, profil stéroïdes, profil stéroïdien, progestagène, CAH, hyperplasie congénitale des surrénales","Sang","Chimie clinique","","","","","17OH-P4, OHP4, 17 hydroxyprogestérone, 17-OH progestérone, progestérone 17-OH, 17-OHP, OHP, 17α-OHP"]
["Prolactine (PRL) - Sang","prolactine-prl","hormone lactotrope","Sang","Chimie clinique","","","","",""]
["Prolifération lymphocytaire - ","proliferation-lymphocytaire","Stimulation","","Immunologie et allergie","","","Immunodéficiences primaires et secondaires","",""]
["Promazine - Sang","promazine","Prazine","Sang","UPPC Pharmacogénétique et psychopharmacologie","","Dosage et interprétation pharmacologique du taux sanguin","Réponse insatisfaisante, effets secondaires, interactions, doute sur l’adhésion, suspicion d’intoxication","",""]
["Protéine C activée - ","proteine-c-activee","","","Hématologie - Hémostase spéciale","","","","Patient non anticoagulé (héparine/Sintrom)","APC résistance, co-facteur protéine C, PCA = protéine C activée, protéine C"]
["Protéine C fonctionnelle - ","proteine-c-fonctionnelle","","","Hématologie - Hémostase spéciale","","","","Absence d'anticoagulation orale (AVK/Sintrom)","Co facteur protéine C, PCF, protéine C, protéine C fonctionnelle"]
["Protéine S libre (et / ou totale) - ","proteine-s-libre-et-/-ou-totale","","","Hématologie - Hémostase spéciale","","","","Absence d'anticoagulation orale (AVK/Sintrom)","PSL, PST, S protéine, S-protéine"]
["Protéines Tau, p-Tau-181P et b-Amyloïde-1-42 - LCR","proteines-tau-p-tau-181p-et-b-amyloide-1-42","Alzheimer","LCR","Chimie clinique","","","Diagnostic de la maladie d'Alzheimer","","Amyloïde, Tau, paramètres Alzheimer"]
["Protéines totales - Liquide pleural","proteines-totales","","Liquide pleural","Chimie clinique","","","","",""]
["Protéines totales - Urine 24h","proteines-totales-1","","Urine 24h","Chimie clinique","","","","",""]
["Protéines totales - Dialysat","proteines-totales-2","","Dialysat","Chimie clinique","","","","",""]
["Protéines totales - Liquide d'ascite","proteines-totales-3","","Liquide d'ascite","Chimie clinique","","","","",""]
["Protéines totales - LCR","proteines-totales-4","","LCR","Chimie clinique","","","","",""]
["Protéines totales - Urine fraiche","proteines-totales-5","","Urine fraiche","Chimie clinique","","","","",""]
["Protéines totales - Sang","proteines-totales-6","","Sang","Chimie clinique","","","","",""]
["Prothionamide - Sang","prothionamide","tuberculose, tuberculeux, anti-tuberculeux, Antibiotique, MDR, XDR","Sang","Pharmacologie","","Dosage et interprétation pharmacocinétique de taux sanguin de Prothionamide ","<p>Sur avis du spécialiste. L’interprétation clinique (TDM) du dosage n’est actuellement pas validée. </p>\r\n<p><br /></p>","",""]
["PSA - Sang","psa","","Sang","Chimie clinique","","","","Pas de rapport sexuel dans les 48 h avant le prélèvement<br />avant toute manipulation prostatique (toucher rectal, ultrasons trans-rectaux, biopsie, …)","Prostate specific antigen, antigène prostatique spécifique"]
["Pseudo Cholinestérase - Sang","pseudo-cholinesterase","","Sang","Chimie clinique","","","","",""]
["Purines pyrimidines - Urine","purines-pyrimidines","Uridine, Orotidine, Uracil, Thymine, Thymidine, Inosine, Adenosine, Hypoxanthine, Guanosien, Guanine, Adenine, SAICAR, AICAR, Uric acid,  IEM, EIM, erreurs innées du métabolisme, Inborn Errors of Metabolism","Urine","Chimie clinique","","﻿","","","purines, pyrimidines, nucléotides"]
["Pyrazinamide - Sang","pyrazinamide","tuberculose, tuberculeux, anti-tuberculeux, Antibiotique","Sang","Pharmacologie","","Dosage et interprétation pharmacocinétique de taux sanguin de pyrazinamide\t ","<p>Sur avis du spécialiste. L’interprétation clinique (TDM) du dosage n’est actuellement pas validée. </p>\r\n<p><br /></p>","","dans Rimstar"]
["Pyrimethamine - Sang","pyrimethamine","Antimalarique, antipaludéen, malaria, paludisme, plasmodium","Sang","Pharmacologie","","Dosage du taux sanguin","Sur avis du spécialiste. L’interprétation clinique (TDM) du dosage n’est actuellement pas validée.","Le patient doit être informé que cette analyse ne figure pas sur la liste des analyses en vigueur et qu'elle ne sera pas obligatoirement prise en charge par les caisses maladie","Daraprim®"]
["Pyronaridine - Sang","pyronaridine","Antimalarique, antipaludéen, malaria, paludisme, plasmodium","Sang","Pharmacologie","","Dosage du taux sanguin de pyronaridine","Sur avis du spécialiste. L’interprétation clinique (TDM) du dosage n’est actuellement pas validée.","Le patient doit être informé que cette analyse ne figure pas sur la liste des analyses en vigueur et qu'elle ne sera pas obligatoirement prise en charge par les caisses maladie",""]
["QuantiFERON-TB - Recherche d'immunité anti-TB","quantiferon-tb","Tuberculose, IGRA, Interferon-Gamma Release Assay, ELISpot","Recherche d'immunité anti-TB","Immunologie et allergie","Ne pas envoyer par poste pneumatique","","Suspicion d'infection tuberculeuse","","TBC"]
["Quétiapine - Sang","quetiapine","Sequase, Seroquel, XR","Sang","UPPC Pharmacogénétique et psychopharmacologie","","Dosage et interprétation pharmacologique du taux sanguin","Réponse insatisfaisante, effets secondaires, interactions, doute sur l’adhésion, suspicion d’intoxication","",""]
["Quinine - Sang","quinine","Antimalarique, antipaludéen, malaria, paludisme, plasmodium","Sang","Pharmacologie","","Dosage du taux sanguin de quinine","Sur avis du spécialiste. L’interprétation clinique (TDM) du dosage n’est actuellement pas validée.","Le patient doit être informé que cette analyse ne figure pas sur la liste des analyses en vigueur et qu'elle ne sera pas obligatoirement prise en charge par les caisses maladie",""]
["Quotient albumine - LCR / sérum","quotient-albumine","","LCR / sérum","Chimie clinique","","Evaluation de l'intégrité de la barrière hémato-encéphalique.","","","Rapport albumine LCR/sérum"]
["Raltegravir - Sang","raltegravir","Antiretroviraux, anti-HIV, Antirétroviral, INI, inhibiteur de l'intégrase","Sang","Pharmacologie","","<p>Dosage et interprétation pharmacologique (TDM) de taux sanguin de raltegravir (intervalle de référence disponible)</p>","<p>Suivi thérapeutique, réponse insatisfaisante, suspicion de toxicité, suspicion d'interaction médicamenteuse, doute sur la compliance, grossesse, étude</p>","","Isentress®"]
["Rapport sFlt-1/PlGF - ","rapport-sflt-1/plgf","prééclampsie, pré-éclampsie, ratio sFlt-1/PlGF, index sFlt-1/PlGF","","Chimie clinique","Acheminer immédiatement le tube","","<p>Exclusion d'une prééclampsie</p>\r\n<p>Analyse remboursée par la LAMal à partir de la 20ème semaine de grossesse</p>\r\n<p>Seuil décisionnel dès la 24ème semaine de grossesse</p>\r\n<p> </p>\r\n<p></p>","","ratio sFlt-1/PlGF, fms-like tyrosine kinase 1, facteur de croissance placentaire, facteur anti-angiogénique,  facteur pro-angiogénique"]
["Réarrangement IgH (clonalité) - Réarrangement des gènes des immunoglobuline chaines lourdes","rearrangement-igh-clonalite","","Réarrangement des gènes des immunoglobuline chaines lourdes","Hématologie moléculaire","","Détection d'une expansion clonale éventuelle chaine lourde","","","IGH, récepteur"]
["Réarrangements TCRG (clonalité) - Réarrangement des gènes du recept. cell. T chaines gamma","rearrangements-tcrg-clonalite","","Réarrangement des gènes du recept. cell. T chaines gamma","Hématologie moléculaire","","Détection d'une expansion clonale éventuelle chaine gamma","","","TCRG, récepteur"]
["Réboxétine - Sang","reboxetine","Edronax","Sang","UPPC Pharmacogénétique et psychopharmacologie","","Dosage et interprétation pharmacologique du taux sanguin","Réponse insatisfaisante, effets secondaires, interactions, doute sur l’adhésion, suspicion d’intoxication","",""]
["Recherche d'anticorps anti-érythrocytaires - ","recherche-danticorps-anti-erythrocytaires","Anticorps immuns, anticorps irréguliers, transfusion, dépistage anticorps irréguliers, identification, RAI, rhophylac®, immunisation","","UMT","","Déceler un anticorps cliniquement significatif dans le plasma du patient ou bilan avant transfusion<br />","","","Anticorps immuns, anticorps irréguliers, transfusion, dépistage anticorps irréguliers, identification, RAI"]
["Recherche de cellules de Sézary - ","recherche-de-cellules-de-sezary","","","Hématologie spéciale","","","","",""]
["Recherche de schistocytes - ","recherche-de-schistocytes","Schizocyte, fragment, fragmentocyte, hémolyse, shu, microangiopathie","","Hématologie générale 24/7","","","","",""]
["Recherche de transcrits par RT-MLPA - ","recherche-de-transcrits-par-rt-mlpa","LMA, RT-MLPA, transcrits de fusion, translocation","","Hématologie moléculaire","","Recherche de transcrits par RT-MLPA (Reverse Transcription and Multiplex Ligation-dépendent Probe Amplification). Cette technique permet de rechercher simultanément une centaine de transcrits de fusions, récurrents dans les hémopathies malignes.<br />","","","Translocations chromosomiques"]
["Regorafenib (metabolites M2 & M5) - Sang","regorafenib-metabolites-m2-m5","Anticancéreux ciblés, TKI, inhibiteur tirosine kinase, inhibiteur des protéines kinases, PKI","Sang","Pharmacologie","","<p>Dosage du taux sanguin de regorafenib et ses metabolites actifs M2 et M5</p>","<p>Sur avis du spécialiste. L’interprétation clinique (TDM) ou pharmacocinétique des dosage n’est actuellement pas validée.</p>","","Stivarga®"]
["Rénine activité - Sang","renine-activite","Rénine, Angiotensin, Angiotensin I, activité de rénine","Sang","Chimie clinique","","","","<p>J-15 arrêt médicaments antihypertenseurs J-5 régime normosode J-5 arrêt de médicaments diurétiques 4 sem. Patient couché pendant &gt;1 heure avant prélèvement (prélèvement en position couchée). Patient debout (déambulation) pendant &gt;30 minutes avant prélèvement (prélèvement en position debout).</p>","PRA, Activité de la rénine"]
["Résistance à l'aspirine - ","resistance-a-laspirine","aspirine résistance","","Hématologie - Hémostase spéciale","Formulaire annexe à remplir (voir rubrique Informations Générales - Prescription), Contact nécessaire avant réalisation, Ne pas envoyer par poste pneumatique","Déterminer si le patient présente une résistance au traitement à l'Aspirine.<br />","","","Résistance\r\nAspirine"]
["Résistome par génomique sur souche - Souche bactérienne","resistome-par-genomique-sur-souche","","Souche bactérienne","Microbio génomique et métagénomique","","<p>Analyse « ouverte » visant à identifier les facteurs génétiques conférant une résistance aux antibiotiques chez les bactéries. Elle permet potentiellement d’identifier n’importe quel gène ou mutation répertoriés comme conférant une résistance aux antibiotiques dans notre base de données, notamment :</p>\r\n<p>-\tGram négatifs : beta-lactamases et carbapénémases-\tMRSA : mecA, mecC, erm, mutations parC (CIP), mutations gyrA-\tVRE : vanA, vanB, et vanC﻿</p>","Justifications cliniques demandées idéalement par contact téléphonique au 44107<br />","","Résistome, facteur de résistance"]
["Réticulocytes - Sang veineux","reticulocytes","erythrocyte globule rouge hematie anemie","Sang veineux","Hématologie générale 24/7","","","","",""]
["RhD fœtal - Plasma maternel","rhd-foetal","","Plasma maternel","Hématologie moléculaire","","Cette analyse permet de mettre en évidence la présence ou l'absence de gène RhD du fœtus à partir d'un prélèvement du sang maternel pour déterminer la présence ou l'absence de ce gène, les exons 5, 7 et 10 du gène RhD sont testés en duplicata.<br />Cette analyse est de grand intérêt dans le suivi de la grossesse d'une femme RhD négative.","","Analyse réalisée à partir de 12 semaines d'aménorrhée. <br />","Génotypage, grossesse, rhésus, Rh1"]
["Ribavirine - Sang","ribavirine","Anti-HCV, hépatite C, Antiviraux","Sang","Pharmacologie","","<p>Dosage et interprétation pharmacologique (TDM) de taux sanguin de ribavirine (intervalle de référence disponible)</p>","<p>Suivi thérapeutique, Réponse insatisfaisante, suspicion de toxicité, suspicion d'interaction médicamenteuse, doute sur la compliance, étude</p>\r\n<p>Si ancienne version du formulaire-&gt; Cocher l'analyse sous \"Autre\" du bon 16 (verso) et inscrire manuellement ribavirine.</p>","","Copegus®, Rebetol®"]
["Rickettsia - Sérodiagnostic","rickettsia","","Sérodiagnostic","Microbio sérologie","","","","","Rickettsia conorii\r\nRickettsia typhi\r\nRickettsia africae"]
["Rifabutine - Sang","rifabutine","tuberculose, tuberculeux, anti-tuberculeux, Antibiotique","Sang","Pharmacologie","","Dosage et interprétation pharmacocinétique de taux sanguin de rifabutine  ","<p>Sur avis du spécialiste. L’interprétation clinique (TDM) du dosage n’est actuellement pas validée. </p>\r\n<p><br /></p>","","Mycobutin"]
["Rifampicine (antibiotique) - Sang","rifampicine-antibiotique","Antibiotique","Sang","Pharmacologie","","Dosage et interprétation pharmacocinétique de taux sanguin de rifampicine﻿","<p>Sur avis du spécialiste. ﻿<br /></p>\r\n<p>Indication <strong>antituberculeux</strong>: utiliser le bon 18.</p>\r\n<p>Indication <strong>antibiotique</strong>: utiliser le bon 16. </p>\r\n<p><br /></p>","","Rimactan"]
["Rifampicine (tuberculose) - Sang","rifampicine-tuberculose","tuberculose, tuberculeux, anti-tuberculeux, Antibiotique","Sang","Pharmacologie","","Dosage et interprétation pharmacocinétique de taux sanguin de rifampicine ","<p>Sur avis du spécialiste. L’interprétation clinique (TDM) du dosage n’est actuellement pas validée. </p>\r\n<p>Indication <strong>antituberculeux</strong>: utiliser le bon 18.</p>\r\n<p>Indication <strong>antibiotique</strong>: utiliser le bon 16.</p>","","Rimactan, Rimstar"]
["Rifapentine - Sang","rifapentine","tuberculose, tuberculeux, anti-tuberculeux, Antibiotique, MDR, XDR","Sang","Pharmacologie","","Dosage et interprétation pharmacocinétique de taux sanguin de rifapentine\t ","<p>Sur avis du spécialiste. L’interprétation clinique (TDM) du dosage n’est actuellement pas validée. </p>\r\n<p><br /></p>","","Priftin (USA)"]
["Rilpivirine - Sang","rilpivirine","Antiretroviraux, anti-HIV, Antirétroviral, NNRTI, analogue non nucléosidique","Sang","Pharmacologie","","<p>Dosage et interprétation pharmacologique (TDM) de taux sanguin de rilpivirine (intervalle de référence disponible)</p>","<p>Suivi thérapeutique, réponse insatisfaisante, suspicion de toxicité, suspicion d'interaction médicamenteuse, doute sur la compliance, grossesse, étude</p>","","Edurant®, dans Eviplera®"]
["Risperidone - Sang","risperidone","Risperdal, Risperdal consta","Sang","UPPC Pharmacogénétique et psychopharmacologie","","Dosage et interprétation pharmacologique du taux sanguin","Réponse insatisfaisante, effets secondaires, interactions, doute sur l’adhésion, suspicion d’intoxication","",""]
["Rituximab - Taux résiduel du médicament, détection d'anticorps anti-médicaments","rituximab","","Taux résiduel du médicament, détection d'anticorps anti-médicaments","Immunologie et allergie","","Suivi thérapeutique","","","MabThera, médicaments biologiques"]
["Rivastigmine - Sang","rivastigmine","Exelon","Sang","UPPC Pharmacogénétique et psychopharmacologie","","Dosage et interprétation pharmacologique du taux sanguin","Réponse insatisfaisante, effets secondaires, interactions, doute sur l’adhésion, suspicion d’intoxication","Le patient doit être informé que cette analyse ne figure pas sur la liste des analyses en vigueur et qu'elle ne sera pas obligatoirement prise en charge par les caisses maladie",""]
["Rotavirus antigènes (test rapide) - Selles","rotavirus-antigenes-test-rapide","","Selles","Microbiologie","","Mise en évidence de Rotavirus dans les selles par test rapide immunochromatographique.","","",""]
["Rougeole - Sérodiagnostic IgG et IgM","rougeole","","Sérodiagnostic IgG et IgM","Microbio sérologie","","","","",""]
["Rougeole PCR - Frottis gorge","rougeole-pcr","","Frottis gorge","Microbio moléculaire","","","","",""]
["RSV Test rapide PCR - Sécrétions nasopharyngées","rsv-test-rapide-pcr","","Sécrétions nasopharyngées","Microbio moléculaire","","Recherche du virus respiratoire syncytial","Ce test est d'usage restreint<br />Patients de pédiatrie avec symptômes de détresse respiratoire","","Virus respiratoire syncytial"]
["RSV Test rapide PCR - Frottis nez","rsv-test-rapide-pcr-1","","Frottis nez","Microbio moléculaire","","Recherche du virus respiratoire syncytial","Ce test est d'usage restreint<br />Patients de pédiatrie avec symptômes de détresse respiratoire","","Virus respiratoire syncytial"]
["RSV Test rapide PCR - Lavage broncho-alvéolaire (LBA)","rsv-test-rapide-pcr-2","","Lavage broncho-alvéolaire (LBA)","Microbio moléculaire","","Recherche du virus respiratoire syncytial","Ce test est d'usage restreint<br />Patients de pédiatrie avec symptômes de détresse respiratoire","","Virus respiratoire syncytial"]
["Rubéole - Sérodiagnostic IgG et IgM","rubeole","","Sérodiagnostic IgG et IgM","Microbio sérologie","","","","",""]
["Rufinamide - Sang","rufinamide","Antiépileptique, anticonvulsivant, anti-convulsivant, anti-épileptique, épilepsie,","Sang","Pharmacologie","","Dosage et interprétation pharmacocinétique de taux sanguin de rufinamide (absence d'intervalle de référence, évaluation seulement de la plausibilité du taux)","Sur avis du spécialiste. L’interprétation clinique (TDM) du dosage n’est actuellement pas validée.","","Inovelon"]
["RUNX1-RUNX1T1 - Equivalent moléculaire translocation t(8;21)Ancien AML1-ETO","runx1-runx1t1","","Equivalent moléculaire translocation t(8;21)Ancien AML1-ETO","Hématologie moléculaire","","Le RUNXI-RUNX1T1, (Anciennement AML1-ETO) correspond à l'équivalent moléculaire de la translocation chromosomique t(8;21) qui est recherché dans les LMA.<br />L'analyse est complémentaire de l'analyse cytogénétique standard.","","","Translocations chromosomiques, T (8;21), RUNX1RUNX1T1"]
["Ruxolitinib - Sang","ruxolitinib","Anticancéreux ciblés, TKI, inhibiteur tirosine kinase, inhibiteur des protéines kinases, PKI","Sang","Pharmacologie","","<p>Dosage du taux sanguin de ruxolitinib</p>","<p>Sur avis du spécialiste. L’interprétation clinique (TDM) ou pharmacocinétique des dosage n’est actuellement pas validée.</p>","","Jacavi®"]
["SAA - ","saa","","","Chimie clinique","","","","","Amyloïde A sérique"]
["Salicylate - Sang","salicylate","Acide acétylsalicylique, Alcacyl, Aspegic, Aspirine, Aspro","Sang","Chimie clinique","","<p>Dosage et interprétation pharmacologique de taux sanguin de salicylate (nomogramme de Done).</p>","<p>Lors de suspicion d'intoxication pour déterminer le traitement à entreprendre.</p>","","acide salicylique"]
["SC5B-9 - ","sc5b-9","Complément","","Immunologie et allergie","","En cas de suivi traitement à l'Eculizumab :  ajouter le CH 50 (sérum)","","",""]
["SCC - Sang","scc","Marqueur tumoral","Sang","Chimie clinique","","Analyse réservée aux requérants internes","","","Squamous cell carcinoma, squamous cell carcinoma antigen, SCCA,"]
["Score de Nugent (Microscopie) - Bactériologie culture - Frottis vaginal et col","score-de-nugent-microscopie-bacteriologie-culture","endocol","Frottis vaginal et col","Microbiologie","","Femmes entre 16 ans et 49 ans : Score de Nugent uniquement (microscopie).<br />Femmes &lt;16 ans et &gt;50 ans : Culture bactéries aérobies effectuée.","Suspicion de vaginose bactérienne: Le Score de Nugent est suffisant (pas de culture)","",""]
["Sécrétions plaquettaires - ","secretions-plaquettaires","","","Hématologie - Hémostase spéciale","","Analyse de la capacité de sécréter des plaquettes après activation par divers agonistes","","","Agrégations plaquettaires, coagulation (fonction de …), fonctions plaquettaires, plaquettes sanguines, sécrétions plaquettaires"]
["Secukinumab - Taux résiduel du médicament, détection d'anticorps anti-médicaments","secukinumab","","Taux résiduel du médicament, détection d'anticorps anti-médicaments","Immunologie et allergie","","Suivi thérapeutique","","","Cosentyx, médicaments biologiques"]
["Sélénium - Sang","selenium","Eléments trace, métal, métalloïde, métaux, oligo-éléments, oligoéléments","Sang","Chimie clinique","","","","","Se, selenium"]
["Séquençage de génome SARS-CoV-2 - Echantillons cliniques positifs pour SARS-CoV-2","sequencage-de-genome-sars-cov-2","","Echantillons cliniques positifs pour SARS-CoV-2","Microbio génomique et métagénomique","","<p></p>\r\n<p></p>\r\n<p>Amplification du génome SARS-CoV-2 à partir d’échantillons cliniques et séquençage NGS pour la détermination de la séquence génétique du virus. Les séquences peuvent être utilisées pour assigner des lignées ou pour estimer de la proximité génétique entre deux ou plusieurs échantillons, basé sur la présence de variants (SNVs/indels).Exemples d’indications :-\tInvestigation de potentielles transmissions entre les patients-\tSurveillance épidémiologique, y compris pour des infections post-vaccination et/ou des réinfectionsAnalyse également réalisée dans le cadre de la surveillance nationale et hospitalière.</p>","Justifications cliniques demandées idéalement par contact téléphonique au 44107.<br />","","SARS-CoV-2, COVID, Coronavirus SARS-CoV-2"]
["Sérotonine Libre - Sang","serotonine-libre","","Sang","Catécholamines","","","","<p>24h avant le prélèvement, ne pas absorber de noix, banane, chocolat, prune, avocat, aubergine, tomate,<br />ananas, kiwi, plantain, caféine (café, thé), nicotine, alcool.<br /></p>\r\n<p>Etre à jeûn.<br /></p>","Serotonin, 5-hydroxytryptamine, 5-HT"]
["Sertindole - Sang","sertindole","Serdolect","Sang","UPPC Pharmacogénétique et psychopharmacologie","","Dosage et interprétation pharmacologique du taux sanguin","Réponse insatisfaisante, effets secondaires, interactions, doute sur l’adhésion, suspicion d’intoxication","",""]
["Sertraline - Sang","sertraline","Zoloft, Sertragen, Sertralin","Sang","UPPC Pharmacogénétique et psychopharmacologie","","<p>Dosage et interprétation pharmacologique du taux sanguin</p>","<p>Réponse insatisfaisante, effets secondaires, interactions, doute sur l’adhésion, suspicion d’intoxication</p>","",""]
["Sexe génétique - Analyse moléculaire","sexe-genetique","","Analyse moléculaire","Génétique moléculaire","","Analyse de la présence de SRY, AMELX, et AMELY","","",""]
["SHBG - Sang","shbg","","Sang","Chimie clinique","","","",""," Sex hormone-binding globulin, SBP,  sex steroid-binding protein, sex binding protein, SEBG, TeBG, Testosterone Binding Globulin, SBG, Sex Binding Globulin, Sex Hormone Binding Globulin, Testosterone estradiol Binding Globulin, globuline liant les hormones sexuelles"]
["Sirolimus - Sang","sirolimus","Immunosuppresseurs","Sang","Chimie clinique","","<p>Dosage et interprétation pharmacologique (TDM) de taux sanguin de sirolimus (intervalle de référence greffe dépendant).</p>","<p>Suivi thérapeutique, suspicion de taux insuffisant, suspicion de toxicité, suspicion d'interaction médicamenteuse.</p>","","Rapamune, Rapamycine"]
["Sodium - Sang","sodium","électrolytes","Sang","Chimie clinique","","","","",""]
["Sodium - Urine 24h","sodium-1","électrolytes","Urine 24h","Chimie clinique","","","","","Na, Natrium, sels minéraux"]
["Sodium - Dialysat","sodium-2","électrolytes","Dialysat","Chimie clinique","","","","",""]
["Sodium - LCR","sodium-3","électrolytes","LCR","Chimie clinique","","","","",""]
["Sodium - Selles","sodium-4","électrolytes","Selles","Chimie clinique","","","","",""]
["Sodium - Liquide d'ascite","sodium-5","électrolytes","Liquide d'ascite","Chimie clinique","","","","",""]
["Sodium - Urine fraiche","sodium-6","électrolytes","Urine fraiche","Chimie clinique","","","","",""]
["Sodium - Liquide pleural","sodium-7","électrolytes","Liquide pleural","Chimie clinique","","","","",""]
["Sorafenib - Sang","sorafenib","Anticancéreux ciblés, TKI, inhibiteur tirosine kinase, inhibiteur des protéines kinases, PKI","Sang","Pharmacologie","","<p>Dosage du taux sanguin de sorafenib</p>","<p>Sur avis du spécialiste. L’interprétation clinique (TDM) ou pharmacocinétique des dosage n’est actuellement pas validée.</p>","","Nexavar®"]
["Sous-classes IgG - ","sous-classes-igg","Anticorps, immunité humorale, IgG1, IgG2, IgG3, IgG4","","Immunologie et allergie","","","Déficit immunitaire , infections à répétitions","","IgG1, IgG2, IgG3, IgG4"]
["Sous-unité alpha libre - Sang","sous-unite-alpha-libre","Marqueur, marqueur tumoral","Sang","Chimie clinique","","Analyse réservée aux requérants internes","","","Sous-unité alpha libre, test LHRH 0.1 mg IV, test  TRH 0.2 mg IV"]
["Spectrogramme - Liquide amniotique","spectrogramme","","Liquide amniotique","Foetologie - maternité","","Incompatibilité rhesus foeto-maternelle","Amnioscentese","","IgG1, IgG2, IgG3, IgG4"]
["Spectrophotométrie - LCR","spectrophotometrie","Hémorragie sous-arachnoïdienne, xanthochromie du LCR","LCR","Chimie clinique","","","Diagnostic des hémorragies sous-arachnoïdiennes","",""]
["Spermiogramme complet - ","spermiogramme-complet","sperme","","Andrologie et de biologie de la reproduction","","Le spermiogramme complet est l’examen de choix proposé dans le cadre d’une prise en charge de PMA. Il complète le spermiogramme de base par l’analyse du sperme après lavage, ainsi que par la recherche d’anticorps anti-spermatozoïdes.","","Abstinence 2-4 jours<br />Déplacement du patient au laboratoire",""]
["Spermiogramme de base - ","spermiogramme-de-base","sperme","","Andrologie et de biologie de la reproduction","","Le spermiogramme est l’examen médical principal pratiqué lors d’un bilan d’infertilité chez l’homme. À l’aide de techniques de microscopie, il mesure des paramètres comme la concentration, la mobilité et la morphologie des spermatozoïdes dans l’éjaculat.","","Abstinence 2-4 jours<br />Déplacement du patient au laboratoire",""]
["Streptococcus pneumoniae antigènes - Test rapide - Urines","streptococcus-pneumoniae-antigenes-test-rapide","pneumocoque, streptocoque, antigènes urinaires","Urines","Microbiologie","","<ul><li>Détection par test immunochromatographique des antigènes de <em>Streptococcus pneumoniae</em> dans les urines natives.<br></li></ul>","﻿","",""]
["Streptocoques du groupe B - Culture (dépistage fin de grossesse) - Frottis vagin - anus","streptocoques-du-groupe-b-culture-depistage-fin-de-grossesse","Streptococcus agalactiae","Frottis vagin - anus","Microbiologie","","Recherche de Streptococcus du groupe B dans les échantillons de vagin-anus.","Grossesse","",""]
["Streptomycine - Sang","streptomycine","tuberculose, tuberculeux, anti-tuberculeux, Antibiotique","Sang","Pharmacologie","","Dosage et interprétation pharmacocinétique de taux sanguin de streptomycine ","<p>Sur avis du spécialiste. L’interprétation clinique (TDM) du dosage n’est actuellement pas validée. </p>\r\n<p><br /></p>","",""]
["Substances réductrices - Urine","substances-reductrices-1","galactosémie, galactose, clinitest","Urine","Chimie clinique","","","Uniquement en cas de suspicion de galactosémie","","sucres réducteurs, sucre réducteur, galactose"]
["Sulfadoxine - Sang","sulfadoxine","Antimalarique, antipaludéen, malaria, paludisme, plasmodium","Sang","Pharmacologie","","Dosage du taux sanguin de sulfadoxine","Sur avis du spécialiste. L’interprétation clinique (TDM) du dosage n’est actuellement pas validée.","Le patient doit être informé que cette analyse ne figure pas sur la liste des analyses en vigueur et qu'elle ne sera pas obligatoirement prise en charge par les caisses maladie",""]
["Sultiame - Sang","sultiame","Antiépileptique, anticonvulsivant, anti-convulsivant, anti-épileptique, épilepsie,","Sang","Pharmacologie","","Dosage et interprétation pharmacologique (TDM) de taux sanguin de sultiame<br />","Sur avis du spécialiste. L’interprétation clinique (TDM) du dosage n’est actuellement pas validée.<br />","","Ospolot® , sulthiame"]
["Sunitinib - Sang","sunitinib","Anticancéreux ciblés, TKI, inhibiteur tirosine kinase, inhibiteur des protéines kinases, PKI","Sang","Pharmacologie","","<p>Dosage de taux sanguin de sunitinib</p>","<p>Sur avis du spécialiste. L’interprétation clinique (TDM) ou pharmacocinétique des dosage n’est actuellement pas validée.</p>","","Sutent®"]
["Sutezolide - Sang","sutezolide-1","tuberculose, tuberculeux, anti-tuberculeux, Antibiotique","Sang","Pharmacologie","","Dosage et interprétation pharmacocinétique de taux sanguin de sutezolide  ","<p>Sur avis du spécialiste. L’interprétation clinique (TDM) du dosage n’est actuellement pas validée. </p>\r\n<p><br /></p>","",""]
["Syndrome kystique rénal - diabète - Analyse moléculaire","syndrome-kystique-renal-diabete","","Analyse moléculaire","Génétique moléculaire","","HNF1B, OMIM 189907","","",""]
["Syphilis LCR - Sérodiagnostic Ig totales + synthèse intrathécale","syphilis-lcr","","Sérodiagnostic Ig totales + synthèse intrathécale","Microbio sérologie","","","","","TPHA, tréponème, neurosyphilis"]
["Syphilis sang - Sérodiagnostic Ig totales","syphilis-sang","","Sérodiagnostic Ig totales","Microbio sérologie","","","","","TPHA, TPPA, tréponème, lues"]
["T3 libre - Sang","t3-libre","Thyroïde, hormone thyroïdienne","Sang","Chimie clinique","","","","","triiodothyronine libre"]
["T3 reverse - Sang","t3-reverse","","Sang","Chimie clinique","","﻿","","","Reverse T3, tri-iodo-thyronne"]
["T3 totale - Sang","t3-totale","Thyroïde, hormone thyroïdienne","Sang","Chimie clinique","","","","","triiodothyronine totale"]
["T4 libre - Sang","t4-libre","Thyroïde, hormone thyroïdienne","Sang","Chimie clinique","","","","","thyroxine libre"]
["T4 totale - Sang","t4-totale","Thyroïde, hormone thyroïdienne","Sang","Chimie clinique","","","","","thyroxine totale"]
["Tacrolimus - Sang","tacrolimus","Immunosuppresseurs","Sang","Chimie clinique","","<p>Dosage et interprétation pharmacologique (TDM) de taux sanguin de tacrolimus (intervalle de référence greffe dépendant).</p>","<p>Suivi thérapeutique, suspicion de taux insuffisant, suspicion de toxicité, suspicion d'interaction médicamenteuse.</p>","","Advagraf, FK 506, Prograf"]
["Tamoxifen-Endoxifen - Sang","tamoxifen-endoxifen","Anticancéreux ciblés,  anti-cancéreux, anti-estrogène, antiestrogène, antioestrogène","Sang","Pharmacologie","","<p>Dosage et interprétation pharmacologique (TDM) de taux sanguin du tamoxifène (pro-drogue), et son métabolites actif l'endoxifène (intervalle de référence disponible)</p>","<p>Suivi thérapeutique, réponse insatisfaisante, suspicion de toxicité, suspicion d'interaction médicamenteuse, doute sur la compliance, grossesse, étude</p>","","Tamoxifen®"]
["TB Flow - ","tb-flow","TB, tuberculose","","Immunologie et allergie","","","Suspicion d'infection tuberculeuse active","",""]
["TBG - Sang","tbg","","Sang","Chimie clinique","","﻿","","","Thyroxin binding globulin"]
["Temps de lyse des euglobulines - ","temps-de-lyse-des-euglobulines","","","Hématologie - Hémostase spéciale","","","","","ELTA"]
["Temps de prothrombine - ","temps-de-prothrombine","ANCO, anticoagulation orale, INR, Quick, Sintrom, temps de prothrombine, temps de Quick, temps de thromboplastine, TP","","Hématologie générale 24/7","","","","","Quick, INR"]
["Temps de reptilase - ","temps-de-reptilase","","","Hématologie - Hémostase spéciale","","","","","TR"]
["Temps de thrombine - ","temps-de-thrombine","TT","","Hématologie générale 24/7","","","","",""]
["Temps de thromboplastine partielle activée - Sang","temps-de-thromboplastine-partielle-activee","","Sang","Hématologie générale 24/7","","","","","APTT,  APTT=Activated Partial Thromboplast, héparine,  PTT,  PTT=Partial Thromboplastin Time, TCA, temps  coagulation, temps de céphaline activée, temps thromboplastine part. activée"]
["Ténofovir - Sang","tenofovir","Antirétroviraux, anti-HIV, Antirétroviral, NRTI, analogue nucléosidique et nucléotidique","Sang","Pharmacologie","","<p>Dosage et interprétation pharmacocinétique de taux sanguin de ténofovir (absence d'intervalle de référence, évaluation seulement de la plausibilité du taux)</p>","<p>Suivi thérapeutique, réponse insatisfaisante, suspicion de toxicité, suspicion d'interaction médicamenteuse, doute sur la compliance, grossesse, étude</p>","","Viread®, dans Triumeq®, dans Atripla®, dans Genvoya®, dans Stribild®, dans Truvada®, dans Descovy®"]
["Test à la sueur - Pédiatrie","test-a-la-sueur","","Pédiatrie","Néphrologie pédiatrique","","","","Unité métabolique prépare le patient, prélève et achemine le prélèvement",""]
["Test CRH ovin 1 microgramme/kg IV - Sang","test-crh-ovin-1-microgramme/kg-iv","ACTH, corticotrophine, cortisol, CRF, CRH, CRH ovin dynamique, épreuve, épreuve dynamique, test, test dynamique","Sang","Chimie clinique","","","","",""]
["Test de falciformation - Dépistage drépanocytose (qualitatif)","test-de-falciformation","Drépanocytes, drépanocytose, érythrocytes, globules rouges, Hb S, falciforme, hémoglobine S, HBS","Dépistage drépanocytose (qualitatif)","Hématologie spéciale","","Cette analyse a pour but le <strong>dépistage </strong>﻿de la﻿ drépanocytose (hémoglobinopathie) et le résultat est qualitatif (présence ou absence). Il n'est pas adapté pour le suivi de la drépanocytose (voir fiche Electrophorèse de l'hémoglobine).","","","Drépanocytes, drépanocytose, érythrocytes, globules rouges, Hb S, falciforme, hémoglobine S, HBS"]
["Test dexaméthasone 1 mg po - Sang","test-dexamethasone-1-mg-po","Cortisol, dexaméthasone, épreuve, épreuve dynamique, test, test dynamique","Sang","Chimie clinique","","","","",""]
["Test dexaméthasone-CRH ovin - Sang","test-dexamethasone-crh-ovin","Epreuve, épreuve dynamique, test, test dynamique","Sang","Chimie clinique","","","","","Cortisol, CRH, dexamétosone,"]
["Test direct à l'antiglobuline - ","test-direct-a-lantiglobuline","Transfusion, Coombs","","UMT","","<p>Bilan avant transfusion, bilan d'anémie immuno-hémolytique</p>","","","TDA, Test de Coombs direct"]
["Test GHRH 1microgramme/kg IV - Sang","test-ghrh-1microgramme/kg-iv","Epreuve, épreuve dynamique","Sang","Chimie clinique","","","","","GHRH, GRF, HGH, STH, test, test dynamique"]
["Test glucagon 1mg IV - Sang","test-glucagon-1mg-iv","C-péptide, épreuve, épreuve dynamique, glucagon, insuline, test, test dynamique","Sang","Chimie clinique","","","","",""]
["Test glucose 75 g po - investigation acromégalie - Sang","test-glucose-75-g-po-investigation-acromegalie","Epreuve, épreuve dynamique, test, test dynamique","Sang","Chimie clinique","","","","","Glucides, glucose, sucres, insuline"]
["Test glucose 75 g po - tolérance au glucose - Sang","test-glucose-75-g-po-tolerance-au-glucose","Epreuve, épreuve dynamique, test, test dynamique","Sang","Chimie clinique","","","","","Glucides, glucose, sucres, insuline"]
["Test insuline 0.10-0.15 U/kg IV - Sang","test-insuline-010-015-u/kg-iv","Epreuve, épreuve dynamique, test, test dynamique","Sang","Chimie clinique","","","","","ACTH, corticotrophine, cortisol, C-peptide, HGH, insuline, STH"]
["Test LHRH 0.1 mg IV - Sang","test-lhrh-01-mg-iv","Epreuve, épreuve dynamique, test, test dynamique","Sang","Chimie clinique","","","","","Follitarophine, FSH, LH, LHRH, Lutrophine, sous-unité alpha libre"]
["Test pentagastrine 0.5 microgrammme/kg IV - Sang","test-pentagastrine-05-microgrammme/kg-iv","Epreuve, épreuve dynamique, test, test dynamique, marqueur tumoral","Sang","Chimie clinique","","","","","Calcitonine, CT (calcitonine), pentagrastrine"]
["Test sécrétine 2 U/kg IV - Sang","test-secretine-2-u/kg-iv","Epreuve, épreuve dynamique, test, test dynamique","Sang","Chimie clinique","","","","","Gastrine, sécrétine"]
["Test synacthen 0.25 mg IV - Sang","test-synacthen-025-mg-iv","Cortisol, progestérone 17-OH, synacthen, 17-hydroxyprogestérone, 17-OH progestérone","Sang","Chimie clinique","","","","","Epreuve, épreuve dynamique, test, test dynamique, épreuve ACTH,"]
["Test TRH 0.2 mg IV - Sang","test-trh-02-mg-iv","Epreuve, épreuve dynamique, test dynamique","Sang","Chimie clinique","","","",""," HGH, PRL, prolactine, STH"]
["Testostérone - Sang","testosterone","Androgène, androgènes, hormone, stéroïde, stéroïdes","Sang","Chimie clinique","","","","","Testostérone totale"]
["Testostérone - Salive","testosterone-1","","Salive","Chimie clinique","","","","1 heure après arrêt aliments et boissons et brossage de dents","Hormone, testostérone libre, testostérone salivaire, testostérone sang"]
["Tests pré-transfusionnels - ","tests-pre-transfusionnels","Transfusion, compatibilité, T&S, type & screen, épreuves croisées, tests pré-transfusionnels","","UMT","","Préalable à la transfusion de concentrés érytrocytaires","","","Épreuves croisées"]
["Théophylline - Sang","theophylline","","Sang","Chimie clinique","","<p>Dosage et interprétation pharmacologique (TDM) de taux sanguin de théophylline (intervalle de référence disponible).</p>","<p>Suivi thérapeutique, réponse insatisfaisante, suspicion de toxicité, suspicion d'interaction médicamenteuse, doute sur la compliance.</p>","","Aminophylline, Euphyllin, Sodip-phylline, Theolair, Unifyl"]
["Thiopurines (6-TG, 6-MMP) - Sang","thiopurines-6-tg-6-mmp","Immunosupresseur, Anticancéreux","Sang","Pharmacologie","","<p>Dosage du taux sanguin (TDM) des thiopurines: 6-TG (6-Thioguanine) et 6-MMP (6-Methylmercaptopurine). ﻿</p>","<p>Sur avis du spécialiste. L’interprétation clinique (TDM) du dosage n’est actuellement pas validée pour toutes les indications thérapeutiques.</p>","","Imurek®, Puri-Nethol®, Lanvis®\r\n6-Mercaptopurine, 6-MP, 6-MMP, 6-Methylmercaptopurine, 6-TG, 6-Thioguanine, Azathioprine, 6-TGN, 6-Thioguanine nucleotide, 6tg, 6mmp, 6tgn"]
["Thyroglobuline - Sang","thyroglobuline","marqueur tumoral, hTg, thyroglobuline ultra sensible","Sang","Chimie clinique","","<p>Mesure de la thyroglobuline par une méthode hautement sensible.</p>\r\n<p>Remarque: un test de recouvrement est réalisé d'office pour chaque échantillon, ce qui permet de révéler la plupart des interférences analytiques (anticorps  anti-thyroglobuline, anticorps hétérophiles, etc.). Il est néanmoins recommandé de prescrire en parallèle à l'analyse de thyroglobuline un dosage des anticorps anti-thyroglobuline pour compléter le bilan biochimique.</p>","","","Tg, thyréoglobuline"]
["Tigecycline - Sang","tigecycline","Antibiotique, antimicrobien, tétracycline","Sang","Pharmacologie","","<p>Dosage et interprétation pharmacocinétique de taux sanguin de tigecycline (absence d'intervalle de référence, évaluation seulement de la plausibilité du taux)</p>","<p>Sur avis du spécialiste. L’interprétation clinique (TDM) du dosage n’est actuellement pas validée.</p>","","Tygacil®"]
["Titre d'un anticorps anti-érythrocytaire - ","titre-dun-anticorps-anti-erythrocytaire","Titre, grossesse, suivi grossesse","","UMT","","Suivi prophylaxie anti-D ou alloimmunisation chez une femme enceinte","","",""]
["TNFalpha - ","tnfalpha","","","Immunologie et allergie","","Suivi thérapeutique","","","Médicaments biologiques"]
["Tobramycine - Sang","tobramycine","antibiotique, antimicrobien, aminoside, aminoglycoside","Sang","Chimie clinique","Acheminer immédiatement le tube","<p>Dosage et interprétation pharmacologique (TDM) de taux sanguin de tobramycine (intervalle de référence pour une administration journalière unique).</p>","<p>Suivi thérapeutique, réponse insatisfaisante, suspicion de toxicité.</p>","","Obracin, Tobi"]
["Tocilizumab - Taux résiduel du médicament, détection d'anticorps anti-médicaments","tocilizumab","","Taux résiduel du médicament, détection d'anticorps anti-médicaments","Immunologie et allergie","","Suivi thérapeutique","","","Actemra, médicaments biologiques"]
["Topiramate - Sang","topiramate","Antiépileptique, anticonvulsivant, anti-convulsivant, anti-épileptique, épilepsie,","Sang","Pharmacologie","","Dosage et interprétation pharmacologique (TDM) de taux sanguin de topiramate (intervalle de référence disponible)","Suivi thérapeutique, réponse insatisfaisante, suspicion de toxicité, suspicion d'interaction médicamenteuse, doute sur la compliance, grossesse, étude","","Topamax"]
["Torsion dystonia 1 - Analyse moléculaire","torsion-dystonia-1","Ataxie, spinocérébelleuse","Analyse moléculaire","Génétique moléculaire","","Analyse de la délétion d'un codon du gène DYT1.<br />OMIM 128100","","",""]
["Toxoplasma gondii PCR - Liquide humeur aqueuse","toxoplasma-gondii-pcr","","Liquide humeur aqueuse","Microbio moléculaire","","","","","Toxoplasmose congénitale"]
["Toxoplasma gondii PCR - Liquide humeur vitrée","toxoplasma-gondii-pcr-1","","Liquide humeur vitrée","Microbio moléculaire","","","","","Toxoplasmose congénitale"]
["Toxoplasma gondii PCR - Abcès / Kyste, cérébral","toxoplasma-gondii-pcr-2","","Abcès / Kyste, cérébral","Microbio moléculaire","","","","","Toxoplasmose congénitale"]
["Toxoplasma gondii PCR - Biopsie ganglion","toxoplasma-gondii-pcr-3","","Biopsie ganglion","Microbio moléculaire","","","","","Toxoplasmose congénitale"]
["Toxoplasma gondii PCR - Biopsie transbronchique","toxoplasma-gondii-pcr-4","","Biopsie transbronchique","Microbio moléculaire","","","","","Toxoplasmose congénitale"]
["Toxoplasma gondii PCR - Liquide amniotique","toxoplasma-gondii-pcr-5","","Liquide amniotique","Microbio moléculaire","","","","","Toxoplasmose congénitale"]
["Toxoplasma gondii PCR - Sang","toxoplasma-gondii-pcr-6","","Sang","Microbio moléculaire","","","","","Toxoplasmose congénitale"]
["Toxoplasma gondii PCR - Liquide céphalo-rachidien (LCR)","toxoplasma-gondii-pcr-7","","Liquide céphalo-rachidien (LCR)","Microbio moléculaire","","","","","Toxoplasmose congénitale"]
["Toxoplasma gondii PCR - Lavage broncho-alvéolaire (LBA)","toxoplasma-gondii-pcr-8","","Lavage broncho-alvéolaire (LBA)","Microbio moléculaire","","","","","Toxoplasmose congénitale"]
["Toxoplasmose - Sérodiagnostic IgG et IgM","toxoplasmose","","Sérodiagnostic IgG et IgM","Microbio sérologie","","","","",""]
["Toxoplasmose Avidité - Sérodiagnostic IgG","toxoplasmose-avidite","","Sérodiagnostic IgG","Microbio sérologie","","Permettre de dater plus précisément une infection (en particulier lors de découverte d'infection récente durant la grossesse)","<ul><li>Analyse devant idéalement être réalisée dans les quatre premiers mois de grossesse.</li><li>Analyse non effectuée chez des enfants de moins d'1 an﻿</li></ul>","",""]
["Toxoplasmose Immunoblot - Sérodiagnostic IgG et IgM","toxoplasmose-immunoblot","","Sérodiagnostic IgG et IgM","Microbio sérologie","","<p>Diagnostic de la toxoplasmose congénitale par comparaison des profils immunologiques entre le sang maternel et le sang du cordon/nouveau-né à la naissance puis entre le sang du cordon/nouveau-né (j0) et le sang de l'enfant J+N en suivi post-natal.</p>\r\n<p>Ce test sérologique permet de déterminer si les anticorps présents chez le nouveau-né sont des anticorps maternels transmis ou le produit d'une néo synthèse conséquemment à une infection congénitale par <em>Toxoplasma gondii.</em></p>\r\n<ul> \t<li>﻿A la ﻿naissance (J0), IgG et IgM sont testées</li> \t<li>Suivi post-natal à 1 mois de vie, IgG et ﻿IgM sont testées</li> \t<li>Suivi post natal &gt; 3 mois de vie﻿, les IgG seules sont testées</li> </ul>","<p>Suspicion d'une infection toxoplasmique congénitale.﻿</p>","",""]
["Trametinib - Sang","trametinib","anticancéreux ciblés, TKI, inhibiteur tirosine kinase, inhibiteur des protéines kinases, PKI","Sang","Pharmacologie","","<p>Dosage du taux sanguin de trametinib</p>","<p>Sur avis du spécialiste. L’interprétation clinique (TDM) ou pharmacocinétique des dosage n’est actuellement pas validée.</p>","","Mekinist ®"]
["Transferrine - Sang","transferrine","coefficient de saturation","Sang","Chimie clinique","","","","",""]
["Trazodone - Sang","trazodone","Trittico","Sang","UPPC Pharmacogénétique et psychopharmacologie","","Dosage et interprétation pharmacologique du taux sanguin","Réponse insatisfaisante, effets secondaires, interactions, doute sur l’adhésion, suspicion d’intoxication","",""]
["Treponema pallidum PCR - Frottis col","treponema-pallidum-pcr","","Frottis col","Microbio moléculaire","","","","","Syphilis"]
["Treponema pallidum PCR - Frottis gland","treponema-pallidum-pcr-1","","Frottis gland","Microbio moléculaire","","","","","Syphilis"]
["Treponema pallidum PCR - Abcès","treponema-pallidum-pcr-2","","Abcès","Microbio moléculaire","","","","","Syphilis"]
["Treponema pallidum PCR - Biopsie","treponema-pallidum-pcr-3","","Biopsie","Microbio moléculaire","","","","","Syphilis"]
["Treponema pallidum PCR - Biopsie anale","treponema-pallidum-pcr-4","","Biopsie anale","Microbio moléculaire","","","","","Syphilis"]
["Treponema pallidum PCR - Liquide natif","treponema-pallidum-pcr-5","","Liquide natif","Microbio moléculaire","","","","","Syphilis"]
["Treponema pallidum PCR - Tissu cutané","treponema-pallidum-pcr-6","","Tissu cutané","Microbio moléculaire","","","","","Syphilis"]
["Triglycérides - Liquide d'ascite","triglycerides","","Liquide d'ascite","Chimie clinique","","","","",""]
["Triglycérides - Liquide pleural","triglycerides-1","","Liquide pleural","Chimie clinique","","","","",""]
["Triglycérides - Sang","triglycerides-2","lipides","Sang","Chimie clinique","","","","",""]
["Trimethoprime (+Sulfamethoxazole) - Sang","trimethoprime-sulfamethoxazole","Antibiotique, antimicrobien","Sang","Pharmacologie","Contact nécessaire avant réalisation","<p>Dosage des taux sanguins de trimethoprime et sulfamethoxazole (co-trimoxazole).</p>","<p>TDM indiqué uniquement dans des situations spécifiques : il est recommandé de <strong>contacter le responsable TDM AVANT prélèvement </strong>: 021 314 22 41. En cas d’absence, téléphonez au : 021 314 25 00.</p>\r\n<p>Sur avis du spécialiste. L’interprétation clinique (TDM) du dosage n’est actuellement pas validée.</p>","","Bactrim®"]
["Trimipramine - Sang","trimipramine","Surmontil","Sang","UPPC Pharmacogénétique et psychopharmacologie","","Dosage et interprétation pharmacologique du taux sanguin","Réponse insatisfaisante, effets secondaires, interactions, doute sur l’adhésion, suspicion d’intoxication","",""]
["Tropheryma whipplei PCR - Salive","tropheryma-whipplei-pcr-16","","Salive","Microbio moléculaire","","","","","Whipple"]
["Tropheryma whipplei PCR - Abcès","tropheryma-whipplei-pcr","","Abcès","Microbio moléculaire","","","","","Whipple"]
["Tropheryma whipplei PCR - Biopsie","tropheryma-whipplei-pcr-1","","Biopsie","Microbio moléculaire","","","","","Whipple"]
["Tropheryma whipplei PCR - Biopsie anale","tropheryma-whipplei-pcr-2","","Biopsie anale","Microbio moléculaire","","","","","Whipple"]
["Tropheryma whipplei PCR - Biopsie valve","tropheryma-whipplei-pcr-3","","Biopsie valve","Microbio moléculaire","","","","","Whipple"]
["Tropheryma whipplei PCR - Liquide amniotique","tropheryma-whipplei-pcr-4","","Liquide amniotique","Microbio moléculaire","","","","","Whipple"]
["Tropheryma whipplei PCR - Liquide bile","tropheryma-whipplei-pcr-5","","Liquide bile","Microbio moléculaire","","","","","Whipple"]
["Tropheryma whipplei PCR - Liquide boursite","tropheryma-whipplei-pcr-6","","Liquide boursite","Microbio moléculaire","","","","","Whipple"]
["Tropheryma whipplei PCR - Liquide dialyse péritonéale","tropheryma-whipplei-pcr-7","","Liquide dialyse péritonéale","Microbio moléculaire","","","","","Whipple"]
["Tropheryma whipplei PCR - Liquide douglas","tropheryma-whipplei-pcr-8","","Liquide douglas","Microbio moléculaire","","","","","Whipple"]
["Tropheryma whipplei PCR - Liquide natif","tropheryma-whipplei-pcr-9","","Liquide natif","Microbio moléculaire","","","","","Whipple"]
["Tropheryma whipplei PCR - Liquide péricardique","tropheryma-whipplei-pcr-10","","Liquide péricardique","Microbio moléculaire","","","","","Whipple"]
["Tropheryma whipplei PCR - Liquide péritonéal","tropheryma-whipplei-pcr-11","","Liquide péritonéal","Microbio moléculaire","","","","","Whipple"]
["Tropheryma whipplei PCR - Liquide pleural","tropheryma-whipplei-pcr-12","","Liquide pleural","Microbio moléculaire","","","","","Whipple"]
["Tropheryma whipplei PCR - Sang","tropheryma-whipplei-pcr-13","","Sang","Microbio moléculaire","","","","","Whipple"]
["Tropheryma whipplei PCR - Selles","tropheryma-whipplei-pcr-14","","Selles","Microbio moléculaire","","","","","Whipple"]
["Tropheryma whipplei PCR - Liquide céphalo-rachidien (LCR)","tropheryma-whipplei-pcr-15","","Liquide céphalo-rachidien (LCR)","Microbio moléculaire","","","","","Whipple"]
["Troponine I hs - Sang - ","troponine-i-hs-sang","Troponine","","Chimie clinique","","","<p>La troponine I est utilisée exclusivement lorsque la situation clinique ne permet pas d'interpréter la troponine T (myosite, interférences, ...).</p>\r\n<p>La troponine T hs reste au CHUV l'examen de choix pour le syndrome coronarien aigu.</p>\r\n<p>Attention : les valeurs seuils diffèrent entre la troponine T et la troponine I !﻿</p>","",""]
["Troponine T hs - Sang","troponine-t-hs","","Sang","Chimie clinique","","","","",""]
["Trou anionique - Sang","trou-anionique","Bicarbonate, chlorure, sodium","Sang","Chimie clinique","","<p>Si le sodium, le chlorure et le bicarbonate sont demandés, le trou anionique est calculé automatiquement.</p>","","",""]
["Trypanosomiase- Trypanosoma cruzi (Chagas) - Sérodiagnostic IgG - ","trypanosomiase-trypanosoma-cruzi-chagas-serodiagnostic-igg","chagas","","","","<p>Recherche d'anticorps IgG anti-Trypanosoma cruzi</p>","","",""]
["Tryptase - ","tryptase","Allergie","","Immunologie et allergie","","","Choc anaphylactique, anaphylactoïde","",""]
["TSH (thyrotrophine) - Sang","tsh-thyrotrophine","Thyroïde","Sang","Chimie clinique","","","","","thyroid-stimulating hormone, thyroid stimulating hormone, thyréotrophine,  thyréotropine, thyrotropine, thyréostimuline, thyrostimuline, hormone thyréotrope, hormone thyréostimulante"]
["Typage bactérien - Souche bactérienne","typage-bacterien","","Souche bactérienne","Microbio génomique et métagénomique","","Cette analyse vise à déterminer le « sequence type » (ST) de pathogènes communs pour lesquels un schéma multi-locus sequence typing (MLST) est disponible.<br />Exemple d’indication : <br />-\tSurveillance épidémiologique <br />-\tPlacement d’une souche dans un contexte épidémiologique local, régional ou mondial en la comparant à des bases de données de référence de      souches typées.<br />","Justifications cliniques demandées idéalement par contact téléphonique au 44107<br />","","Typage, épidémiologie, phylogénétique"]
["Typage HLA - ","typage-hla","Antigènes d'histocompatibilité, CMH, HLA classe I, HLA classe II, typisation, locus, HLA-A, HLA-B, HLA-C, HLA-DR, HLA-DP, HLA-DQ","","Immunologie et allergie - transplant","","","Transplantation d'organes","","Typisation HLA"]
["Urate - Sang","urate","","Sang","Chimie clinique","","","","","Acide urique"]
["Urate - Urine fraiche","urate-1","","Urine fraiche","Chimie clinique","","","","","Acide urique"]
["Urate - Urine 24h","urate-2","","Urine 24h","Chimie clinique","","","","","Acide urique"]
["Urée - Dialysat","uree","","Dialysat","Chimie clinique","","","","",""]
["Urée - Sang","uree-1","","Sang","Chimie clinique","","","","",""]
["Urée - Urine fraiche","uree-2","","Urine fraiche","Chimie clinique","","","","",""]
["Urée - Urine 24h","uree-3","","Urine 24h","Chimie clinique","","","","",""]
["Ustekinumab - Taux résiduel du médicament, détection d'anticorps anti-médicaments","ustekinumab","","Taux résiduel du médicament, détection d'anticorps anti-médicaments","Immunologie et allergie","","Suivi thérapeutique","","","Stelara, médicaments biologiques"]
["Valaciclovir - Sang","valaciclovir","Antiviraux, antiviral","Sang","Pharmacologie","","<p>Le valaciclovir est une prodrogue très rapidement métabolisée en sa substance active: <strong>l'aciclovir</strong>. <br />Le taux sanguin mesuré et interprété (TDM) est donc celui de l’aciclovir. Le taux de valaciclovir n’est pas mesuré.  <br /></p>","Suivi thérapeutique, réponse insatisfaisante, suspicion de toxicité, suspicion d'interaction médicamenteuse, doute sur la compliance, grossesse, étude","","Valtrex®"]
["Valganciclovir - Sang","valganciclovir","Antiviraux, antiviral","Sang","Pharmacologie","","<p>Le valganciclovir est une prodrogue très rapidement métabolisée en sa substance active: le ganciclovir. Le taux sanguin mesuré et interprété (TDM) est donc celui du ganciclovir. Le taux de valganciclovir n’est pas mesuré.</p>\r\n<p></p>","Suivi thérapeutique, réponse insatisfaisante, suspicion de toxicité, suspicion d'interaction médicamenteuse, doute sur la compliance, grossesse, étude","","Valcyte®"]
["Valproate - Sang","valproate","Anticonvulsivant, anti-convulsivant, antiépileptique, anti-épileptique, épilepsie","Sang","Chimie clinique","","<p>Dosage et interprétation pharmacologique (TDM) de taux sanguin de valproate (intervalle de référence disponible).</p>","<p>Suivi thérapeutique, réponse insatisfaisante, suspicion de toxicité, suspicion d'interaction médicamenteuse, doute sur la compliance, grossesse.</p>","","Acide valproïque, Convulex, Depakine, Orfiril"]
["Vancomycine - LCR","vancomycine-1","","LCR","Chimie clinique","Acheminer immédiatement le tube","<p>Dosage et interprétation pharmacologique (TDM) de taux LCR de vancomycine</p>","<p><a href=\"http://catalog.chuv.ch/Fichierdesexamens/Laboratoires/EntityInstances/Edit/62790\">Vancomycine (chuv.ch)</a></p>","",""]
["Vancomycine - Sang","vancomycine","antibiotique, antimicrobien, glycopeptide","Sang","Chimie clinique","Acheminer immédiatement le tube","<p>Dosage et interprétation pharmacologique (TDM) de taux sanguin de vancomycine (intervalle de référence disponible).</p>","<p>Suivi thérapeutique, réponse insatisfaisante, suspicion de toxicité.</p>\r\n<p><em>Néonatologie:</em> protocole 1ère dose.</p>","","Vancocin"]
["Varicelle zoster  PCR - Liquide humeur aqueuse","varicelle-zoster-pcr","","Liquide humeur aqueuse","Microbio moléculaire","","","","","VZV, varicelle zona virus, varicelle zoster"]
["Varicelle zoster  PCR - Liquide humeur vitrée","varicelle-zoster-pcr-1","","Liquide humeur vitrée","Microbio moléculaire","","","","","VZV, varicelle zona virus, varicelle zoster"]
["Varicelle zoster  PCR - Biopsie","varicelle-zoster-pcr-2","","Biopsie","Microbio moléculaire","","","","","VZV, varicelle zona virus, varicelle zoster"]
["Varicelle zoster  PCR - Biopsie anale","varicelle-zoster-pcr-3","","Biopsie anale","Microbio moléculaire","","","","","VZV, varicelle zona virus, varicelle zoster"]
["Varicelle zoster  PCR - Biopsie cérébrale","varicelle-zoster-pcr-4","","Biopsie cérébrale","Microbio moléculaire","","","","","VZV, varicelle zona virus, varicelle zoster"]
["Varicelle zoster  PCR - Biopsie colique","varicelle-zoster-pcr-5","","Biopsie colique","Microbio moléculaire","","","","","VZV, varicelle zona virus, varicelle zoster"]
["Varicelle zoster  PCR - Biopsie ganglion","varicelle-zoster-pcr-6","","Biopsie ganglion","Microbio moléculaire","","","","","VZV, varicelle zona virus, varicelle zoster"]
["Varicelle zoster  PCR - Biopsie gastrique","varicelle-zoster-pcr-7","","Biopsie gastrique","Microbio moléculaire","","","","","VZV, varicelle zona virus, varicelle zoster"]
["Varicelle zoster  PCR - Liquide amniotique","varicelle-zoster-pcr-8","","Liquide amniotique","Microbio moléculaire","","","","","VZV, varicelle zona virus, varicelle zoster"]
["Varicelle zoster  PCR - Liquide natif","varicelle-zoster-pcr-9","","Liquide natif","Microbio moléculaire","","","","","VZV, varicelle zona virus, varicelle zoster"]
["Varicelle zoster  PCR - Sperme","varicelle-zoster-pcr-10","","Sperme","Microbio moléculaire","","","","","VZV, varicelle zona virus, varicelle zoster"]
["Varicelle zoster  PCR - Liquide céphalo-rachidien (LCR)","varicelle-zoster-pcr-11","","Liquide céphalo-rachidien (LCR)","Microbio moléculaire","","","Méningite","","VZV, varicelle zona virus, varicelle zoster"]
["Varicelle zoster  PCR - Frottis vulve","varicelle-zoster-pcr-12","","Frottis vulve","Microbio moléculaire","","","","","VZV, varicelle zona virus, varicelle zoster"]
["Varicelle zoster  PCR - Frottis anus","varicelle-zoster-pcr-13","","Frottis anus","Microbio moléculaire","","","","","VZV, varicelle zona virus, varicelle zoster"]
["Varicelle zoster  PCR - Frottis bouche","varicelle-zoster-pcr-14","","Frottis bouche","Microbio moléculaire","","","","","VZV, varicelle zona virus, varicelle zoster"]
["Varicelle zoster  PCR - Frottis col","varicelle-zoster-pcr-15","","Frottis col","Microbio moléculaire","","","","","VZV, varicelle zona virus, varicelle zoster"]
["Varicelle zoster  PCR - Frottis peau","varicelle-zoster-pcr-16","","Frottis peau","Microbio moléculaire","","","","","VZV, varicelle zona virus, varicelle zoster"]
["Varicelle zoster  PCR - Frottis gland","varicelle-zoster-pcr-17","","Frottis gland","Microbio moléculaire","","","","","VZV, varicelle zona virus, varicelle zoster"]
["Varicelle zoster  PCR - Frottis gorge","varicelle-zoster-pcr-18","","Frottis gorge","Microbio moléculaire","","","","","VZV, varicelle zona virus, varicelle zoster"]
["Varicelle zoster  PCR - Frottis nez","varicelle-zoster-pcr-19","","Frottis nez","Microbio moléculaire","","","","","VZV, varicelle zona virus, varicelle zoster"]
["Varicelle zoster  PCR - Frottis oreille","varicelle-zoster-pcr-20","","Frottis oreille","Microbio moléculaire","","","","","VZV, varicelle zona virus, varicelle zoster"]
["Varicelle zoster  PCR - Frottis périnée","varicelle-zoster-pcr-21","","Frottis périnée","Microbio moléculaire","","","","","VZV, varicelle zona virus, varicelle zoster"]
["Varicelle zoster  PCR - Frottis urètre","varicelle-zoster-pcr-22","","Frottis urètre","Microbio moléculaire","","","","","VZV, varicelle zona virus, varicelle zoster"]
["Varicelle zoster  PCR - Frottis vaginal","varicelle-zoster-pcr-23","","Frottis vaginal","Microbio moléculaire","","","","","VZV, varicelle zona virus, varicelle zoster"]
["Varicelle-zona - Sérodiagnostic IgG et IgM","varicelle-zona","","Sérodiagnostic IgG et IgM","Microbio sérologie","","","","","VZV, varicelle zona virus"]
["Vasopressine - Sang","vasopressine","","Sang","Néphrologie","","","","4 sem. après isotopes radioactifs dans le sang <br />Patient à jeun<br />Patient couché pendant > 1 heure avant prélèvement","ADH, antidiuretic hormone, arginine-vasopressine, hormone anti-diurétique"]
["Vedolizumab - Taux résiduel du médicament, détection d'anticorps anti-médicaments","vedolizumab","","Taux résiduel du médicament, détection d'anticorps anti-médicaments","Immunologie et allergie","","Suivi thérapeutique","","","Entyvio, médicaments biologiques"]
["VEGF-D - ","vegf-d","","","Immunologie et allergie","","","Lymphangioleiomyatose (LAM)","",""]
["Vemurafenib - Sang","vemurafenib","Anticancéreux ciblés, TKI, inhibiteur tirosine kinase, inhibiteur des protéines kinases, PKI","Sang","Pharmacologie","","<p>Dosage du taux sanguin de vemurafenib</p>","<p>Sur avis du spécialiste. L’interprétation clinique (TDM) ou pharmacocinétique des dosage n’est actuellement pas validée.</p>","","Zelboraf®"]
["Venlafaxine - Sang","venlafaxine","Efexor, Venlafaxin, Venlax, ER","Sang","UPPC Pharmacogénétique et psychopharmacologie","","Dosage et interprétation pharmacologique du taux sanguin","Réponse insatisfaisante, effets secondaires, interactions, doute sur l’adhésion, suspicion d’intoxication","",""]
["Vibrio cholerae - Culture - Selles","vibrio-cholerae-culture","choléra","Selles","Microbiologie","","Recherche par culture spécifique de <em>Vibrio cholerae </em>dans les selles.","Forte suspicion de Cholera avec diarrhée aiguë, aqueuse au retour de voyage.","",""]
["Vibrio non cholérique - Culture - Selles","vibrio-non-cholerique-culture","","Selles","Microbiologie","","Recherche par culture spécifique de Vibrio spp. non cholérique dans les selles.","<p>﻿﻿﻿﻿﻿﻿﻿Diarrhées au retour de voyage, baignade en eau tiède salée ou eau douce mélangée à de l'eau salée (par ex. dans les estuaires).</p>\r\n<p>Ingestion de fruits de mer crus﻿ ou mal cuits.</p>","",""]
["Virulome par génomique sur souche - Souche bactérienne","virulome-par-genomique-sur-souche","","Souche bactérienne","Microbio génomique et métagénomique","","<p></p>\r\n<p>Recherche de facteurs de virulence chez Staphylococcus aureus par séquençage à haut débit, incluant la recherche des facteurs suivants : -\tPanton-Valentine leucocidin-\tToxic-schock syndrom toxin (TSST-1)-\tExfoliatines A et BLa recherché de facteurs de virulence pour d’autres espèces peut être effectuée hors accréditation, mais son interprétation est souvent difficile.﻿</p>","Justifications cliniques demandées idéalement par contact téléphonique au 44107<br />","","Virulome, facteur de virulence"]
["Virus de la dengue - Sérodiagnostic antigène NS1 + IgG et IgM","virus-de-la-dengue","dengue","Sérodiagnostic antigène NS1 + IgG et IgM","Microbio sérologie","","<p>Détection de l'antigène NS1 (phase virémique précoce) et des IgG et IgM anti-virus de la dengue (séroconversion).</p>","","",""]
["Vitamine A - Sang","vitamine-a","Axerophthol","Sang","Chimie clinique","","","","","Retinol, vitamine A1"]
["Vitamine B1 - Sang","vitamine-b1","","Sang","Chimie clinique","","","","","Pyrophosphate de thiamine,  thiamine-pyrophosphate (TPP)"]
["Vitamine B12 - Sang","vitamine-b12","","Sang","Chimie clinique","","","","","cobalamine, cyanocobalamine, hydroxycobalamine, methylcobalamine"]
["Vitamine B2 (FAD) - Sang","vitamine-b2-fad","Flavine-adenine-dinucleotide (FAD) (forme ciblée de vitamine B2)","Sang","Chimie clinique","","","","","Riboflavine"]
["Vitamine B6 (pyridoxal-5-phosphate) - Sang","vitamine-b6-pyridoxal-5-phosphate","Pyridoxal-5-phosphate (P5P) (forme ciblée de vitamine B6)","Sang","Chimie clinique","","Cette analyse permet de quantifier le pyridoxal-5-phosphate","","","B6 Vitamine, pyridoxine, vitamine B6"]
["Vitamine D (25-OH) - Sang","vitamine-d-25-oh","Cholecalciferol (vitamine D3),  ergocalciferol (vitamine D2),  vitamine D","Sang","Chimie clinique","","","<p>Limitation selon la LA﻿ dès le 1.7.2022</p>\r\n<p>1. Facturable une seule fois en cas de détermination séparée des deux formes de 25-hydroxy-vitamine D (25-OH-D3 et 25-OH-D2)<br /> 2. Uniquement chez les patients:<br /> - souffrant ou suspectés de souffrir d'une des pathologies suivantes:<br />  ostéomalacie, rachitisme<br />  ostéopénie<br />  ostéoporose<br />  fracture non traumatique<br />  après une chute de cause peu claire chez les patients ≥ 65 ans<br />  risque anamnestique accru de fracture les patients ≥ 65 ans<br /> - avec des pathologies suivantes affectant le métabolisme de la vitamine D ou son absorption:<br />  maladies rénales, y inclus l'urolithiase,<br />  troubles de l'hormone parathyroidienne, de la calcémie et/ou de la phosphatémie<br />  maladies gastro-intestinales<br />  syndromes de malabsorption<br />  maladies hépatiques<br /> - prenant des médicaments influençant le métabolisme de la vitamine D ou son absorption.<br /> 3. En cas de suivi du taux de vitamine D dans le cadre d'un des cas listés sous le point 2, l'analyse peut être facturée au maximum une fois tous les 3 mois.</p>","","Vitamine D2 (25-OH),  vitamine D3 (25-OH),  25-hydroxy vitamine D2,  25-hydroxy-vitamine D3,  25-OH-vitamine D2,  25-OH-vitamine D3, calcidiol, calcifediol"]
["Vitamine E - Sang","vitamine-e","","Sang","Chimie clinique","","","","","Tocophérol, alpha-tocophérol"]
["Vitesse de sédimentation - ","vitesse-de-sedimentation","","","Hématologie générale 24/7","","","","","VS"]
["Voriconazole - Sang","voriconazole","Antifongique, triazolé","Sang","Pharmacologie","","<p>Dosage et interprétation pharmacologique (TDM) de taux sanguin de voriconazole (intervalle de référence disponible)</p>","<p>Suivi thérapeutique, réponse insatisfaisante, suspicion de toxicité, suspicion d'interaction médicamenteuse, doute sur la compliance, étude</p>","","Vfend®"]
["Vortioxétine - Sang","vortioxetine","Brintellix","Sang","UPPC Pharmacogénétique et psychopharmacologie","","Dosage et interprétation pharmacologique du taux sanguin","Réponse insatisfaisante, effets secondaires, interactions, doute sur l’adhésion, suspicion d’intoxication","",""]
["Werdnig Hoffmann - Analyse moléculaire","werdnig-hoffmann","Diagnostic prénatal, Kugelberg, myotonie, SMA, SMA1, SMA2, SMA3,Welander","Analyse moléculaire","Génétique moléculaire","","Analyse de la délétion homozygote du gène SMIN1. OMIM 253300","","",""]
["WT1 - Hyperexpression WT1","wt1","","Hyperexpression WT1","Hématologie moléculaire","","Le gène de WT1 (Wilmstrumor 1) est suppresseur de tumeurs et activateur d'oncogènes, en fonction du type cellulaire dans lequel la protéine WT1 est exprimée et des interactions avec d'autres protéines régulatrices, alors que dans la moelle osseuse de sujets sains l'expression de WT1 est très basse ou absente, une majorité (env. 70%) de patients atteints de leucémie aigüe présentent des taux médullaires de WT1 augmenté de 100 à 1000 x en fonction du nombre de cellules blastiques","","",""]
["X fragile - Analyse moléculaire","x-fragile","Diagnostic prénatal, expansion des triplets, x-fragile","Analyse moléculaire","Génétique moléculaire","","Analyse de la méthylation et de la taille de la région instable du gène FMR1.<br />OMIM 309550","","",""]
["X-inactivation - Analyse moléculaire","x-inactivation","","Analyse moléculaire","Génétique moléculaire","","La méthylation des sites HpaII et HhaI à proximité de la répétition CAG polymorphe dans le gène des récepteurs androgènes humains","","",""]
["X-match (donneur) - ","x-match-donneur","","","Immunologie et allergie - transplant","","Compatibilité tissulaire","Transplantation d'organes (rein, foie, cœur, poumon)","","Cross-match"]
["X-match (receveur) - ","x-match-receveur","","","Immunologie et allergie - transplant","","Compatibilité tissulaire","Transplantation d'organes (rein, foie, cœur, poumon)","","Cross-match"]
["Yersinia - Culture - Selles","yersinia-culture","","Selles","Microbiologie","","Recherche par culture spécifique de <em>Yersinia spp.</em> dans les selles.","Adénite mésentérique, colites et entérocolites accompagnées de fièvre.","",""]
["Zika Virus PCR - Ponction vésicale","zika-virus-pcr","","Ponction vésicale","Microbio moléculaire","","","","",""]
["Zika Virus PCR - Urine début du jet (PCR uniquement)","zika-virus-pcr-1","","Urine début du jet (PCR uniquement)","Microbio moléculaire","","","","",""]
["Zika Virus PCR - Urine milieu du jet","zika-virus-pcr-2","","Urine milieu du jet","Microbio moléculaire","","","","",""]
["Zika Virus PCR - Urine sondage aller retour","zika-virus-pcr-3","","Urine sondage aller retour","Microbio moléculaire","","","","",""]
["Zika Virus PCR - Urine sonde à demeure","zika-virus-pcr-4","","Urine sonde à demeure","Microbio moléculaire","","","","",""]
["Zika Virus PCR - Sang","zika-virus-pcr-5","","Sang","Microbio moléculaire","","","","",""]
["Zika Virus PCR - Liquide céphalo-rachidien (LCR)","zika-virus-pcr-6","","Liquide céphalo-rachidien (LCR)","Microbio moléculaire","","","","",""]
["Zinc - Sang","zinc","Eléments traces,  métal, métalloïde métaux,  oligo-éléments, oligoéléments","Sang","Chimie clinique","","","","","Zn"]
["Zinc - Urine","zinc-1","Eléments traces, métal, métalloïde, métaux, oligo-éléments, oligoéléments","Urine","Chimie clinique","","","","","Zn"]
["Zonisamide - Sang","zonisamide","Antiépileptique, anticonvulsivant, anti-convulsivant, anti-épileptique, épilepsie,","Sang","Pharmacologie","","Dosage et interprétation pharmacologique (TDM) de taux sanguin de zonisamide (intervalle de référence disponible)","Suivi thérapeutique, réponse insatisfaisante, suspicion de toxicité, suspicion d'interaction médicamenteuse, doute sur la compliance, grossesse, étude","","Zonegran"]
["Zuclopenthixol - Sang","zuclopenthixol","Clopixol","Sang","UPPC Pharmacogénétique et psychopharmacologie","","Dosage et interprétation pharmacologique du taux sanguin","Réponse insatisfaisante, effets secondaires, interactions, doute sur l’adhésion, suspicion d’intoxication","",""]

{"sheet":"Outlook","index":2,"n_rows":4,"n_cols":5,"rows_kept":4,"cut":false,"hidden":true,"merged":[]}
[]
["Projet",null,"A:","dmlp.etudes@chuv.ch"]
[null,null,"Sujet:",{"$f":"CONCATENATE(E3,\" \",B2)","v":"Demande de projet N° "},"Demande de projet N°"]
[null,null,"Message:","Bonjour,\n\nLe devis est complété pour UB (à modifier).\n\nSi différent, les analyses non-prévues dans le budget sont à créditer sur CGRA/CGRB (à modifier).\n\nMeilleures salutations."]